{"text_format":"1","workbook":"xlsx","n_sheets":1,"sheets":["DMV or L&R Check"],"not_rendered":{"charts":0,"images":2,"macros":1,"external_links":0,"defined_names":7,"comments":0,"pivot_tables":0},"unopened":[],"bounds":{"document_bytes":16777216,"sheet_cells":100000,"rows_first":2000,"rows_last":500,"rows_between":2000,"halvings":0,"cell_chars":16384,"cell_head_chars":4096},"cells_cut":0,"cells_raw":0,"read":"whole","date_system":"1900"}

{"sheet":"DMV or L&R Check","index":0,"n_rows":2311,"n_cols":45,"rows_kept":2311,"cut":false,"hidden":false,"merged":[[14,0,14,1],[24,0,24,1],[25,0,25,1],[23,2,23,4],[16,0,16,1],[19,0,19,1],[23,0,23,1],[0,27,0,29],[19,2,19,10],[16,4,16,9],[24,2,24,9],[28,3,28,8],[29,3,29,8],[25,2,25,9],[30,3,30,8],[31,3,31,8],[27,0,27,11],[18,2,18,4],[26,2,26,9],[22,2,22,9],[26,0,26,1],[18,0,18,1]]}
[null,null,null,null,null,null,null,null,null,null,null,null,null,null,null,null,null,null,null,null,null,null,null,null,null,null,null,"UN Number",null,null,null,null,"Code","Code Description","R&D",null,null,null,null,null,null,null,null,"Select the Wharf Here","Limit Class 1"]
[null,null,null,null,null,null,null,null,null,null,null,null,null,null,null,null,null,null,null,null,null,null,null,null,null,null,null,"UN #","Class","Description",null,null,1,"EXPLOSIVES 1","What NEQ of Class 1?",{"$f":"IF($C$24=\"Select the wharf here\",\"\",\"Less than \"&VLOOKUP($C$24,wharf,2,FALSE)&\" tonnes\")","v":"Less than 36 tonnes"},{"$f":"IF($C$24=\"\",\"\",\"DMV - Direct to/from motor vehicle\")","v":"DMV - Direct to/from motor vehicle"},{"$f":"IF($C$24=\"Select the wharf here\",\"\",\"Less than \"&VLOOKUP($C$24,wharf,2,FALSE)&\" tonnes\")","v":"Less than 36 tonnes"},{"$f":"IF($C$24=\"\",\"\",\"Direct to a barge at Orakei Anchorage\")","v":"Direct to a barge at Orakei Anchorage"},"Over 100 tonnes",{"$f":"IF($C$24=\"\",\"\",\"Direct to a barge at Motuihe Anchorage\")","v":"Direct to a barge at Motuihe Anchorage"},null,null,"Bledisloe B3",12]
[null,null,null,null,null,null,null,null,null,null,null,null,null,null,null,null,null,null,null,null,null,null,null,null,null,null,null,"0004","1.1D","AMMONIUM PICRATE",null,null,1.1000000000000001,"EXPLOSIVES 1.1","What NEQ of Class 1?","Less than 36 tonnes",{"$f":"IF($C$24=\"\",\"\",\"DMV - Direct to/from motor vehicle\")","v":"DMV - Direct to/from motor vehicle"},"Less than 36 tonnes",{"$f":"IF($C$24=\"\",\"\",\"Direct to a barge at Orakei Anchorage\")","v":"Direct to a barge at Orakei Anchorage"},"Over 100 tonnes",{"$f":"IF($C$24=\"\",\"\",\"Direct to a barge at Motuihe Anchorage\")","v":"Direct to a barge at Motuihe Anchorage"},null,null,"Fergusson",36]
[null,null,null,null,null,null,null,null,null,null,null,null,null,null,null,null,null,null,null,null,null,null,null,null,null,null,null,"0005","1.1F","CARTRIDGES FOR WEAPONS",null,null,1.2,"EXPLOSIVES 1.2","What NEQ of Class 1?","Less than 36 tonnes","DMV - Direct to/from motor vehicle","Less than 36 tonnes","Direct to a barge at Orakei Anchorage","Over 100 tonnes","Direct to a barge at Motuihe Anchorage",null,null,"Freyberg",4.5]
[null,null,null,null,null,null,null,null,null,null,null,null,null,null,null,null,null,null,null,null,null,null,null,null,null,null,null,"0006","1.1E","CARTRIDGES FOR WEAPONS",null,null,1.3,"EXPLOSIVES 1.3","What NEQ of Class 1?","Less than 36 tonnes","DMV - Direct to/from motor vehicle","Less than 36 tonnes","Direct to a barge at Orakei Anchorage","Over 100 tonnes","Direct to a barge at Motuihe Anchorage",null,null,"Jellicoe East",5]
[null,null,null,null,null,null,null,null,null,null,null,null,null,null,null,null,null,null,null,null,null,null,null,null,null,null,null,"0007","1.2F","CARTRIDGES FOR WEAPONS",null,null,1.4,"EXPLOSIVES 1.4","What NEQ of Class 1?","Less than 36 tonnes","DMV - Direct to/from motor vehicle","Less than 36 tonnes","Direct to a barge at Orakei Anchorage","Over 100 tonnes","Direct to a barge at Motuihe Anchorage",null,null,"Jellicoe West",20]
[null,null,null,null,null,null,null,null,null,null,null,null,null,null,null,null,null,null,null,null,null,null,null,null,null,null,null,"0009","1.2G","AMMUNITION, INCENDIARY",null,null,1.5,"EXPLOSIVES 1.5","What NEQ of Class 1?","Less than 36 tonnes","DMV - Direct to/from motor vehicle","Less than 36 tonnes","Direct to a barge at Orakei Anchorage","Over 100 tonnes","Direct to a barge at Motuihe Anchorage"]
[null,null,null,null,null,null,null,null,null,null,null,null,null,null,null,null,null,null,null,null,null,null,null,null,null,null,null,"0010","1.3G","AMMUNITION, INCENDIARY",null,null,1.6,"EXPLOSIVES 1.6","What NEQ of Class 1?","Less than 36 tonnes","DMV - Direct to/from motor vehicle","Less than 36 tonnes","Direct to a barge at Orakei Anchorage","Over 100 tonnes","Direct to a barge at Motuihe Anchorage"]
[null,null,null,null,null,null,null,null,null,null,null,null,null,null,null,null,null,null,null,null,null,null,null,null,null,null,null,"0012","1.4S","CARTRIDGES FOR WEAPONS, INERT PROJECTILE",null,null,2,"GASES","L&R within 72Hrs"]
[null,null,null,null,null,null,null,null,null,null,null,null,null,null,null,null,null,null,null,null,null,null,null,null,null,null,null,"0014","1.4S","CARTRIDGES FOR WEAPONS, BLANK",null,null,2.1,"INFLAMMABLE GAS","L&R","Not in Limited Quantities","L&R within 24Hrs","Limited Quantities","L&R within 72hrs",null,null,"The shipping co must provide POAL with written confirmation of limited quantity"]
[null,null,null,null,null,null,null,null,null,null,null,null,null,null,null,null,null,null,null,null,null,null,null,null,null,null,null,"0015","1.2G","AMMUNITION, SMOKE",null,null,2.2000000000000002,"NON-FLAMMABLE GAS","L&R within 72Hrs"]
[null,null,null,null,null,null,null,null,null,null,null,null,null,null,null,null,null,null,null,null,null,null,null,null,null,null,null,"0016","1.3G","AMMUNITION, SMOKE",null,null,2.2999999999999998,"POISONOUS GAS","L&R within 72Hrs"]
[null,null,null,null,null,null,null,null,null,null,null,null,null,null,null,null,null,null,null,null,null,null,null,null,null,null,null,"0018","1.2G","AMMUNITION, TEAR-PRODUCING",null,null,3,"INFLAMMABLE LIQUID","L&R","ISO Tank","L&R within 24Hrs","ISO Container","L&R within 72hrs"]
[null,null,null,null,null,null,null,null,null,null,null,null,null,null,null,null,null,null,null,null,null,null,null,null,null,null,null,"0019","1.3G","AMMUNITION, TEAR-PRODUCING",null,null,3.1,"FLAMMABLE LIQUID LOW FLASHPOINT","L&R","ISO Tank","L&R within 24Hrs","ISO Container","L&R within 72hrs"]
["DMV or L&R Check",null,null,null,null,null,null,null,null,null,null,null,null,null,null,null,null,null,null,null,null,null,null,null,null,null,null,"0020","1.2K","AMMUNITION, TOXIC",null,null,3.2,"FLAMMABLE LIQUID INTERMEDIATE FLASHPOINT","L&R","ISO Tank","L&R within 24Hrs","ISO Container","L&R within 72hrs"]
[null,null,null,null,null,null,null,null,null,null,null,null,null,null,null,null,null,null,null,null,null,null,null,null,null,null,null,"0021","1.3K","AMMUNITION, TOXIC",null,null,3.3,"FLAMMABLE LIQUID HIGH FLASH POINT","L&R","ISO Tank","L&R within 24Hrs","ISO Container","L&R within 72hrs"]
["UN Number",null,null,null,"Enter the 4 digit UN Number",null,null,null,null,null,null,null,null,null,null,null,null,null,null,null,null,null,null,null,null,null,null,"0027","1.1D","BLACK POWDER",null,null,4.0999999999999996,"INFLAMMABLE SOLID","L&R within 72Hrs"]
[null,null,null,null,null,null,null,null,null,null,null,null,null,null,null,null,null,null,null,null,null,null,null,null,null,null,null,"0028","1.1D","BLACK POWDER, COMPRESSED",null,null,4.2,"SPONTANEOUSLY COMBUSTIBLE","L&R within 24Hrs"]
[{"$f":"IF(C17=\"\",\"\",\"Hazard Class\")","v":""},null,{"$f":"IF(C17=\"\",\"\",IF(ISNA(VLOOKUP(C17,UNNumber,2,FALSE)),\"Check UN Number\",VLOOKUP(C17,UNNumber,2,FALSE)))","v":""},null,null,null,null,null,null,null,null,null,null,null,null,null,null,null,null,null,null,null,null,null,null,null,null,"0029","1.1B","DETONATORS, NON-ELECTRIC",null,null,4.3,"DANGEROUS WHEN WET","L&R within 72Hrs"]
[{"$f":"IF(C17=\"\",\"\",\"Description\")","v":""},null,{"$f":"IF(ISNA(VLOOKUP(C17,UNNumber,3,FALSE)),\"\",VLOOKUP(C17,UNNumber,3,FALSE))","v":""},null,null,null,null,null,null,null,null,null,null,null,null,null,null,null,null,null,null,null,null,null,null,null,null,"0030","1.1B","DETONATORS, ELECTRIC",null,null,5.0999999999999996,"OXIDISING AGENT","L&R within 24Hrs","For Ammonium Nitrate","400 Tonne max permitted at POAL"]
[null,null,null,null,null,null,null,null,null,null,null,null,null,null,null,null,null,null,null,null,null,null,null,null,null,null,null,"0033","1.1F","BOMBS",null,null,5.2,"ORGANIC PEROXIDE","L&R within 24Hrs"]
[null,null,null,null,null,null,null,null,null,null,null,null,null,null,null,null,null,null,null,null,null,null,null,null,null,null,null,"0034","1.1D","BOMBS",null,null,6.1,"POISON","L&R within 72Hrs"]
[null,null,{"$f":"IF(OR(C17=\"\",C19=\"Check UN Number\"),\"\",VLOOKUP(C19,class,3,FALSE))","v":""},null,null,null,null,null,null,null,null,null,null,null,null,null,null,null,null,null,null,null,null,null,null,null,null,"0035","1.2D","BOMBS",null,null,6.2,"INFECTIOUS SUBSTANCE","L&R within 72Hrs"]
[{"$f":"IF(C23=\"What NEQ of Class 1?\",\"Which Wharf?\",\"\")","v":""},null,"Fergusson",null,null,null,null,null,null,null,null,null,null,null,null,null,null,null,null,null,null,null,null,null,null,null,null,"0037","1.1F","BOMBS, PHOTO-FLASH"]
[{"$f":"IF(OR(C17=\"\",C19=\"Check UN Number\",AND(C24=\"Select the Wharf Here\",C23=\"What NEQ of Class 1?\")),\"\",IF(VLOOKUP(C19,class,4,FALSE)=\"\",\"\",VLOOKUP(C19,class,4,FALSE)))","v":""},null,{"$f":"IF(OR(C17=\"\",C19=\"Check UN Number\",AND(C24=\"Select the Wharf Here\",C23=\"What NEQ of Class 1?\")),\"\",IF(VLOOKUP(C19,class,5,FALSE)=\"\",\"\",VLOOKUP(C19,class,5,FALSE)))","v":""},null,null,null,null,null,null,null,null,null,null,null,null,null,null,null,null,null,null,null,null,null,null,null,null,"0038","1.1D","BOMBS, PHOTO-FLASH",null,null,7,"RADIOACTIVE","DMV - Direct to/from motor vehicle"]
[{"$f":"IF(OR(C17=\"\",C19=\"Check UN Number\",AND(C24=\"Select the Wharf Here\",C23=\"What NEQ of Class 1?\")),\"\",IF(VLOOKUP(C19,class,6,FALSE)=\"\",\"\",VLOOKUP(C19,class,6,FALSE)))","v":""},null,{"$f":"IF(OR(C17=\"\",C19=\"Check UN Number\",AND(C24=\"Select the Wharf Here\",C23=\"What NEQ of Class 1?\")),\"\",IF(VLOOKUP(C19,class,7,FALSE)=\"\",\"\",VLOOKUP(C19,class,7,FALSE)))","v":""},null,null,null,null,null,null,null,null,null,null,null,null,null,null,null,null,null,null,null,null,null,null,null,null,"0039","1.2G","BOMBS, PHOTO-FLASH",null,null,8,"CORROSIVES","L&R within 72Hrs"]
[{"$f":"IF(OR(C17=\"\",C19=\"Check UN Number\",C24=\"Select the Wharf Here\"),\"\",IF(VLOOKUP(C19,class,8,FALSE)=\"\",\"\",VLOOKUP(C19,class,8,FALSE)))","v":""},null,{"$f":"IF(OR(C17=\"\",C19=\"Check UN Number\",C24=\"Select the Wharf Here\"),\"\",IF(VLOOKUP(C19,class,9,FALSE)=\"\",\"\",VLOOKUP(C19,class,9,FALSE)))","v":""},null,null,null,null,null,null,null,null,null,null,null,null,null,null,null,null,null,null,null,null,null,null,null,null,"0042","1.1D","BOOSTERS",null,null,9,"GENERAL HAZARD","L&R within 72Hrs"]
[{"$f":"IF(OR(C17=\"\",C19=\"Check UN Number\"),\"\",IF(VLOOKUP(C19,class,10,FALSE)=\"\",\"\",VLOOKUP(C19,class,10,FALSE)))","v":""},null,null,null,null,null,null,null,null,null,null,null,null,null,null,null,null,null,null,null,null,null,null,null,null,null,null,"0043","1.1D","BURSTERS",null,null,"1.1A","EXPLOSIVES 1.1","What NEQ of Class 1?",{"$f":"IF($C$24=\"Select the wharf here\",\"\",\"Less than \"&VLOOKUP($C$24,wharf,2,FALSE)&\" tonnes\")","v":"Less than 36 tonnes"},{"$f":"IF($C$24=\"\",\"\",\"DMV - Direct to/from motor vehicle\")","v":"DMV - Direct to/from motor vehicle"},{"$f":"IF($C$24=\"Select the wharf here\",\"\",VLOOKUP($C$24,wharf,2,FALSE)&\" to 100 tonnes\")","v":"36 to 100 tonnes"},{"$f":"IF($C$24=\"\",\"\",\"Direct to a barge at Orakei Anchorage\")","v":"Direct to a barge at Orakei Anchorage"},"Over 100 tonnes",{"$f":"IF($C$24=\"\",\"\",\"Direct to a barge at Motuihe Anchorage\")","v":"Direct to a barge at Motuihe Anchorage"}]
["For further assistance contact Customer Services:",null,null,"Mon-Fri: 07:00-19:00, Sat & Sun: 07:00-15:00",null,null,null,null,null,null,null,null,null,null,null,null,null,null,null,null,null,null,null,null,null,null,null,"0044","1.4S","PRIMERS, CAP TYPE",null,null,"1.1B","EXPLOSIVES 1.1","What NEQ of Class 1?","Less than 36 tonnes","DMV - Direct to/from motor vehicle","36 to 100 tonnes","Direct to a barge at Orakei Anchorage","Over 100 tonnes",{"$f":"IF($C$24=\"\",\"\",\"Direct to a barge at Motuihe Anchorage\")","v":"Direct to a barge at Motuihe Anchorage"}]
[null,null,null,"Phone: +64 9 309 1324",null,null,null,null,null,null,null,null,null,null,null,null,null,null,null,null,null,null,null,null,null,null,null,"0048","1.1D","CHARGES, DEMOLITION",null,null,"1.1C","EXPLOSIVES 1.1","What NEQ of Class 1?","Less than 36 tonnes","DMV - Direct to/from motor vehicle","36 to 100 tonnes","Direct to a barge at Orakei Anchorage","Over 100 tonnes",{"$f":"IF($C$24=\"\",\"\",\"Direct to a barge at Motuihe Anchorage\")","v":"Direct to a barge at Motuihe Anchorage"}]
[null,null,null,"Fax: 09 309 1354",null,null,null,null,null,null,null,null,null,null,null,null,null,null,null,null,null,null,null,null,null,null,null,"0049","1.1G","CARTRIDGES, FLASH",null,null,"1.1D","EXPLOSIVES 1.1","What NEQ of Class 1?","Less than 36 tonnes","DMV - Direct to/from motor vehicle","36 to 100 tonnes","Direct to a barge at Orakei Anchorage","Over 100 tonnes",{"$f":"IF($C$24=\"\",\"\",\"Direct to a barge at Motuihe Anchorage\")","v":"Direct to a barge at Motuihe Anchorage"}]
[null,null,null,"mailto:customerservice@poal.co.nz",null,null,null,null,null,null,null,null,null,null,null,null,null,null,null,null,null,null,null,null,null,null,null,"0050","1.3G","CARTRIDGES, FLASH",null,null,"1.1E","EXPLOSIVES 1.1","What NEQ of Class 1?","Less than 36 tonnes","DMV - Direct to/from motor vehicle","36 to 100 tonnes","Direct to a barge at Orakei Anchorage","Over 100 tonnes","Direct to a barge at Motuihe Anchorage"]
[null,null,null,null,null,null,null,null,null,null,null,null,null,null,null,null,null,null,null,null,null,null,null,null,null,null,null,"0054","1.3G","CARTRIDGES, SIGNAL",null,null,"1.1F","EXPLOSIVES 1.1","What NEQ of Class 1?","Less than 36 tonnes","DMV - Direct to/from motor vehicle","36 to 100 tonnes","Direct to a barge at Orakei Anchorage","Over 100 tonnes","Direct to a barge at Motuihe Anchorage"]
[null,null,null,null,null,null,null,null,null,null,null,null,null,null,null,null,null,null,null,null,null,null,null,null,null,null,null,"0055","1.4S","CASES, CARTRIDGE, EMPTY, WITH PRIMER",null,null,"1.1G","EXPLOSIVES 1.1","What NEQ of Class 1?","Less than 36 tonnes","DMV - Direct to/from motor vehicle","36 to 100 tonnes","Direct to a barge at Orakei Anchorage","Over 100 tonnes","Direct to a barge at Motuihe Anchorage"]
[null,null,null,null,null,null,null,null,null,null,null,null,null,null,null,null,null,null,null,null,null,null,null,null,null,null,null,"0056","1.1D","CHARGES, DEPTH",null,null,"1.1J","EXPLOSIVES 1.1","What NEQ of Class 1?","Less than 36 tonnes","DMV - Direct to/from motor vehicle","36 to 100 tonnes","Direct to a barge at Orakei Anchorage","Over 100 tonnes","Direct to a barge at Motuihe Anchorage"]
[null,null,null,null,null,null,null,null,null,null,null,null,null,null,null,null,null,null,null,null,null,null,null,null,null,null,null,"0059","1.1D","CHARGES, SHAPED",null,null,"1.1L","EXPLOSIVES 1.1","What NEQ of Class 1?","Less than 36 tonnes","DMV - Direct to/from motor vehicle","36 to 100 tonnes","Direct to a barge at Orakei Anchorage","Over 100 tonnes","Direct to a barge at Motuihe Anchorage"]
["Current to 08/07/2010",null,null,null,null,null,null,null,null,null,null,null,null,null,null,null,null,null,null,null,null,null,null,null,null,null,null,"0060","1.1D","CHARGES, SUPPLEMENTARY, EXPLOSIVE",null,null,"1.2B","EXPLOSIVES 1.2","What NEQ of Class 1?","Less than 36 tonnes","DMV - Direct to/from motor vehicle","36 to 100 tonnes","Direct to a barge at Orakei Anchorage","Over 100 tonnes","Direct to a barge at Motuihe Anchorage"]
[null,null,null,null,null,null,null,null,null,null,null,null,null,null,null,null,null,null,null,null,null,null,null,null,null,null,null,"0065","1.1D","CORD, DETONATING",null,null,"1.2C","EXPLOSIVES 1.2","What NEQ of Class 1?","Less than 36 tonnes","DMV - Direct to/from motor vehicle","36 to 100 tonnes","Direct to a barge at Orakei Anchorage","Over 100 tonnes","Direct to a barge at Motuihe Anchorage"]
[null,null,null,null,null,null,null,null,null,null,null,null,null,null,null,null,null,null,null,null,null,null,null,null,null,null,null,"0066","1.4G","CORD, IGNITER",null,null,"1.2D","EXPLOSIVES 1.2","What NEQ of Class 1?","Less than 36 tonnes","DMV - Direct to/from motor vehicle","36 to 100 tonnes","Direct to a barge at Orakei Anchorage","Over 100 tonnes","Direct to a barge at Motuihe Anchorage"]
[null,null,null,null,null,null,null,null,null,null,null,null,null,null,null,null,null,null,null,null,null,null,null,null,null,null,null,"0070","1.4S","CUTTERS, CABLE, EXPLOSIVE",null,null,"1.2E","EXPLOSIVES 1.2","What NEQ of Class 1?","Less than 36 tonnes","DMV - Direct to/from motor vehicle","36 to 100 tonnes","Direct to a barge at Orakei Anchorage","Over 100 tonnes","Direct to a barge at Motuihe Anchorage"]
[null,null,null,null,null,null,null,null,null,null,null,null,null,null,null,null,null,null,null,null,null,null,null,null,null,null,null,"0072","1.1D","CYCLOTRIMETHYLENETRINITRAMINE, WETTED",null,null,"1.2F","EXPLOSIVES 1.2","What NEQ of Class 1?","Less than 36 tonnes","DMV - Direct to/from motor vehicle","36 to 100 tonnes","Direct to a barge at Orakei Anchorage","Over 100 tonnes","Direct to a barge at Motuihe Anchorage"]
[null,null,null,null,null,null,null,null,null,null,null,null,null,null,null,null,null,null,null,null,null,null,null,null,null,null,null,"0073","1.1B","DETONATORS FOR AMMUNITION",null,null,"1.2G","EXPLOSIVES 1.2","What NEQ of Class 1?","Less than 36 tonnes","DMV - Direct to/from motor vehicle","36 to 100 tonnes","Direct to a barge at Orakei Anchorage","Over 100 tonnes","Direct to a barge at Motuihe Anchorage"]
[null,null,null,null,null,null,null,null,null,null,null,null,null,null,null,null,null,null,null,null,null,null,null,null,null,null,null,"0074","1.1A","DIAZODINITROPHENOL, WETTED",null,null,"1.2H","EXPLOSIVES 1.2","What NEQ of Class 1?","Less than 36 tonnes","DMV - Direct to/from motor vehicle","36 to 100 tonnes","Direct to a barge at Orakei Anchorage","Over 100 tonnes","Direct to a barge at Motuihe Anchorage"]
[null,null,null,null,null,null,null,null,null,null,null,null,null,null,null,null,null,null,null,null,null,null,null,null,null,null,null,"0075","1.1D","DIETHYLENEGLYCOL DINITRATE, DESENSITIZED",null,null,"1.2J","EXPLOSIVES 1.2","What NEQ of Class 1?","Less than 36 tonnes","DMV - Direct to/from motor vehicle","36 to 100 tonnes","Direct to a barge at Orakei Anchorage","Over 100 tonnes","Direct to a barge at Motuihe Anchorage"]
[null,null,null,null,null,null,null,null,null,null,null,null,null,null,null,null,null,null,null,null,null,null,null,null,null,null,null,"0076","1.1D","DINITROPHENOL",null,null,"1.2K","EXPLOSIVES 1.2","What NEQ of Class 1?","Less than 36 tonnes","DMV - Direct to/from motor vehicle","36 to 100 tonnes","Direct to a barge at Orakei Anchorage","Over 100 tonnes","Direct to a barge at Motuihe Anchorage"]
[null,null,null,null,null,null,null,null,null,null,null,null,null,null,null,null,null,null,null,null,null,null,null,null,null,null,null,"0077","1.3C","DINITROPHENOLATES",null,null,"1.2L","EXPLOSIVES 1.2","What NEQ of Class 1?","Less than 36 tonnes","DMV - Direct to/from motor vehicle","36 to 100 tonnes","Direct to a barge at Orakei Anchorage","Over 100 tonnes","Direct to a barge at Motuihe Anchorage"]
[null,null,null,null,null,null,null,null,null,null,null,null,null,null,null,null,null,null,null,null,null,null,null,null,null,null,null,"0078","1.1D","DINITRORESORCINOL",null,null,"1.3C","EXPLOSIVES 1.3","What NEQ of Class 1?","Less than 36 tonnes","DMV - Direct to/from motor vehicle","36 to 100 tonnes","Direct to a barge at Orakei Anchorage","Over 100 tonnes","Direct to a barge at Motuihe Anchorage"]
[null,null,null,null,null,null,null,null,null,null,null,null,null,null,null,null,null,null,null,null,null,null,null,null,null,null,null,"0079","1.1D","HEXANITRODIPHENYLAMINE",null,null,"1.3G","EXPLOSIVES 1.3","L&R within 24Hrs"]
[null,null,null,null,null,null,null,null,null,null,null,null,null,null,null,null,null,null,null,null,null,null,null,null,null,null,null,"0081","1.1D","EXPLOSIVE, BLASTING, TYPE A",null,null,"1.3H","EXPLOSIVES 1.3","What NEQ of Class 1?",{"$f":"IF($C$24=\"Select the wharf here\",\"\",\"Less than \"&VLOOKUP($C$24,wharf,2,FALSE)&\" tonnes\")","v":"Less than 36 tonnes"},{"$f":"IF($C$24=\"\",\"\",\"DMV - Direct to/from motor vehicle\")","v":"DMV - Direct to/from motor vehicle"},{"$f":"IF($C$24=\"Select the wharf here\",\"\",VLOOKUP($C$24,wharf,2,FALSE)&\" to 100 tonnes\")","v":"36 to 100 tonnes"},{"$f":"IF($C$24=\"\",\"\",\"Direct to a barge at Orakei Anchorage\")","v":"Direct to a barge at Orakei Anchorage"},"Over 100 tonnes",{"$f":"IF($C$24=\"\",\"\",\"Direct to a barge at Motuihe Anchorage\")","v":"Direct to a barge at Motuihe Anchorage"}]
[null,null,null,null,null,null,null,null,null,null,null,null,null,null,null,null,null,null,null,null,null,null,null,null,null,null,null,"0082","1.1D","EXPLOSIVE, BLASTING, TYPE B",null,null,"1.3J","EXPLOSIVES 1.3","What NEQ of Class 1?",{"$f":"IF($C$24=\"Select the wharf here\",\"\",\"Less than \"&VLOOKUP($C$24,wharf,2,FALSE)&\" tonnes\")","v":"Less than 36 tonnes"},{"$f":"IF($C$24=\"\",\"\",\"DMV - Direct to/from motor vehicle\")","v":"DMV - Direct to/from motor vehicle"},{"$f":"IF($C$24=\"Select the wharf here\",\"\",VLOOKUP($C$24,wharf,2,FALSE)&\" to 100 tonnes\")","v":"36 to 100 tonnes"},{"$f":"IF($C$24=\"\",\"\",\"Direct to a barge at Orakei Anchorage\")","v":"Direct to a barge at Orakei Anchorage"},"Over 100 tonnes",{"$f":"IF($C$24=\"\",\"\",\"Direct to a barge at Motuihe Anchorage\")","v":"Direct to a barge at Motuihe Anchorage"}]
[null,null,null,null,null,null,null,null,null,null,null,null,null,null,null,null,null,null,null,null,null,null,null,null,null,null,null,"0083","1.1D","EXPLOSIVE, BLASTING, TYPE C",null,null,"1.3K","EXPLOSIVES 1.3","What NEQ of Class 1?",{"$f":"IF($C$24=\"Select the wharf here\",\"\",\"Less than \"&VLOOKUP($C$24,wharf,2,FALSE)&\" tonnes\")","v":"Less than 36 tonnes"},{"$f":"IF($C$24=\"\",\"\",\"DMV - Direct to/from motor vehicle\")","v":"DMV - Direct to/from motor vehicle"},{"$f":"IF($C$24=\"Select the wharf here\",\"\",VLOOKUP($C$24,wharf,2,FALSE)&\" to 100 tonnes\")","v":"36 to 100 tonnes"},{"$f":"IF($C$24=\"\",\"\",\"Direct to a barge at Orakei Anchorage\")","v":"Direct to a barge at Orakei Anchorage"},"Over 100 tonnes",{"$f":"IF($C$24=\"\",\"\",\"Direct to a barge at Motuihe Anchorage\")","v":"Direct to a barge at Motuihe Anchorage"}]
[null,null,null,null,null,null,null,null,null,null,null,null,null,null,null,null,null,null,null,null,null,null,null,null,null,null,null,"0084","1.1D","EXPLOSIVE, BLASTING, TYPE D",null,null,"1.3L","EXPLOSIVES 1.3","What NEQ of Class 1?",{"$f":"IF($C$24=\"Select the wharf here\",\"\",\"Less than \"&VLOOKUP($C$24,wharf,2,FALSE)&\" tonnes\")","v":"Less than 36 tonnes"},{"$f":"IF($C$24=\"\",\"\",\"DMV - Direct to/from motor vehicle\")","v":"DMV - Direct to/from motor vehicle"},{"$f":"IF($C$24=\"Select the wharf here\",\"\",VLOOKUP($C$24,wharf,2,FALSE)&\" to 100 tonnes\")","v":"36 to 100 tonnes"},{"$f":"IF($C$24=\"\",\"\",\"Direct to a barge at Orakei Anchorage\")","v":"Direct to a barge at Orakei Anchorage"},"Over 100 tonnes",{"$f":"IF($C$24=\"\",\"\",\"Direct to a barge at Motuihe Anchorage\")","v":"Direct to a barge at Motuihe Anchorage"}]
[null,null,null,null,null,null,null,null,null,null,null,null,null,null,null,null,null,null,null,null,null,null,null,null,null,null,null,"0092","1.3G","FLARES, SURFACE",null,null,"1.4B","EXPLOSIVES 1.4","L&R within 24Hrs"]
[null,null,null,null,null,null,null,null,null,null,null,null,null,null,null,null,null,null,null,null,null,null,null,null,null,null,null,"0093","1.3G","FLARES, AERIAL",null,null,"1.4C","EXPLOSIVES 1.4","L&R within 24Hrs"]
[null,null,null,null,null,null,null,null,null,null,null,null,null,null,null,null,null,null,null,null,null,null,null,null,null,null,null,"0094","1.1G","FLASH POWDER",null,null,"1.4D","EXPLOSIVES 1.4","What NEQ of Class 1?",{"$f":"IF($C$24=\"Select the wharf here\",\"\",\"Less than \"&VLOOKUP($C$24,wharf,2,FALSE)&\" tonnes\")","v":"Less than 36 tonnes"},{"$f":"IF($C$24=\"\",\"\",\"DMV - Direct to/from motor vehicle\")","v":"DMV - Direct to/from motor vehicle"},{"$f":"IF($C$24=\"Select the wharf here\",\"\",VLOOKUP($C$24,wharf,2,FALSE)&\" to 100 tonnes\")","v":"36 to 100 tonnes"},{"$f":"IF($C$24=\"\",\"\",\"Direct to a barge at Orakei Anchorage\")","v":"Direct to a barge at Orakei Anchorage"},"Over 100 tonnes",{"$f":"IF($C$24=\"\",\"\",\"Direct to a barge at Motuihe Anchorage\")","v":"Direct to a barge at Motuihe Anchorage"}]
[null,null,null,null,null,null,null,null,null,null,null,null,null,null,null,null,null,null,null,null,null,null,null,null,null,null,null,"0099","1.1D","FRACTURING DEVICES,EXPLOSIVE",null,null,"1.4E","EXPLOSIVES 1.4","L&R within 24Hrs"]
[null,null,null,null,null,null,null,null,null,null,null,null,null,null,null,null,null,null,null,null,null,null,null,null,null,null,null,"0101","1.3G","FUSE, NON-DETONATING",null,null,"1.4F","EXPLOSIVES 1.4","What NEQ of Class 1?",{"$f":"IF($C$24=\"Select the wharf here\",\"\",\"Less than \"&VLOOKUP($C$24,wharf,2,FALSE)&\" tonnes\")","v":"Less than 36 tonnes"},{"$f":"IF($C$24=\"\",\"\",\"DMV - Direct to/from motor vehicle\")","v":"DMV - Direct to/from motor vehicle"},{"$f":"IF($C$24=\"Select the wharf here\",\"\",VLOOKUP($C$24,wharf,2,FALSE)&\" to 100 tonnes\")","v":"36 to 100 tonnes"},{"$f":"IF($C$24=\"\",\"\",\"Direct to a barge at Orakei Anchorage\")","v":"Direct to a barge at Orakei Anchorage"},"Over 100 tonnes",{"$f":"IF($C$24=\"\",\"\",\"Direct to a barge at Motuihe Anchorage\")","v":"Direct to a barge at Motuihe Anchorage"}]
[null,null,null,null,null,null,null,null,null,null,null,null,null,null,null,null,null,null,null,null,null,null,null,null,null,null,null,"0102","1.2D","CORD, DETONATING",null,null,"1.4G","EXPLOSIVES 1.4","L&R within 24Hrs"]
[null,null,null,null,null,null,null,null,null,null,null,null,null,null,null,null,null,null,null,null,null,null,null,null,null,null,null,"0103","1.4G","FUSE, IGNITER",null,null,"1.4S","EXPLOSIVES 1.4","L&R within 24Hrs"]
[null,null,null,null,null,null,null,null,null,null,null,null,null,null,null,null,null,null,null,null,null,null,null,null,null,null,null,"0104","1.4D","CORD, DETONATING, MILD EFFECT",null,null,"1.5D","EXPLOSIVES 1.5","What NEQ of Class 1?",{"$f":"IF($C$24=\"Select the wharf here\",\"\",\"Less than \"&VLOOKUP($C$24,wharf,2,FALSE)&\" tonnes\")","v":"Less than 36 tonnes"},{"$f":"IF($C$24=\"\",\"\",\"DMV - Direct to/from motor vehicle\")","v":"DMV - Direct to/from motor vehicle"},{"$f":"IF($C$24=\"Select the wharf here\",\"\",VLOOKUP($C$24,wharf,2,FALSE)&\" to 100 tonnes\")","v":"36 to 100 tonnes"},{"$f":"IF($C$24=\"\",\"\",\"Direct to a barge at Orakei Anchorage\")","v":"Direct to a barge at Orakei Anchorage"},"Over 100 tonnes",{"$f":"IF($C$24=\"\",\"\",\"Direct to a barge at Motuihe Anchorage\")","v":"Direct to a barge at Motuihe Anchorage"}]
[null,null,null,null,null,null,null,null,null,null,null,null,null,null,null,null,null,null,null,null,null,null,null,null,null,null,null,"0105","1.4S","FUSE, SAFETY",null,null,"1.6N","EXPLOSIVES 1.6","What NEQ of Class 1?",{"$f":"IF($C$24=\"Select the wharf here\",\"\",\"Less than \"&VLOOKUP($C$24,wharf,2,FALSE)&\" tonnes\")","v":"Less than 36 tonnes"},{"$f":"IF($C$24=\"\",\"\",\"DMV - Direct to/from motor vehicle\")","v":"DMV - Direct to/from motor vehicle"},{"$f":"IF($C$24=\"Select the wharf here\",\"\",VLOOKUP($C$24,wharf,2,FALSE)&\" to 100 tonnes\")","v":"36 to 100 tonnes"},{"$f":"IF($C$24=\"\",\"\",\"Direct to a barge at Orakei Anchorage\")","v":"Direct to a barge at Orakei Anchorage"},"Over 100 tonnes",{"$f":"IF($C$24=\"\",\"\",\"Direct to a barge at Motuihe Anchorage\")","v":"Direct to a barge at Motuihe Anchorage"}]
[null,null,null,null,null,null,null,null,null,null,null,null,null,null,null,null,null,null,null,null,null,null,null,null,null,null,null,"0106","1.1B","FUZES, DETONATING"]
[null,null,null,null,null,null,null,null,null,null,null,null,null,null,null,null,null,null,null,null,null,null,null,null,null,null,null,"0107","1.2B","FUZES, DETONATING"]
[null,null,null,null,null,null,null,null,null,null,null,null,null,null,null,null,null,null,null,null,null,null,null,null,null,null,null,"0110","1.4S","GRENADES, PRACTICE"]
[null,null,null,null,null,null,null,null,null,null,null,null,null,null,null,null,null,null,null,null,null,null,null,null,null,null,null,"0113","1.1A","GUANYL NITROSAMINOGUANYLIDENE HYDRAZINE, WETTED"]
[null,null,null,null,null,null,null,null,null,null,null,null,null,null,null,null,null,null,null,null,null,null,null,null,null,null,null,"0114","1.1A","GUANYL NITROSAMINOGUANYLTETRAZENE, WETTED"]
[null,null,null,null,null,null,null,null,null,null,null,null,null,null,null,null,null,null,null,null,null,null,null,null,null,null,null,"0118","1.1D","HEXOLITE"]
[null,null,null,null,null,null,null,null,null,null,null,null,null,null,null,null,null,null,null,null,null,null,null,null,null,null,null,"0121","1.1G","IGNITERS"]
[null,null,null,null,null,null,null,null,null,null,null,null,null,null,null,null,null,null,null,null,null,null,null,null,null,null,null,"0124","1.1D","JET PERFORATING GUNS, CHARGED"]
[null,null,null,null,null,null,null,null,null,null,null,null,null,null,null,null,null,null,null,null,null,null,null,null,null,null,null,"0129","1.1A","LEAD AZIDE, WETTED"]
[null,null,null,null,null,null,null,null,null,null,null,null,null,null,null,null,null,null,null,null,null,null,null,null,null,null,null,"0130","1.1A","LEAD STYPHNATE, WETTED"]
[null,null,null,null,null,null,null,null,null,null,null,null,null,null,null,null,null,null,null,null,null,null,null,null,null,null,null,"0131","1.4S","LIGHTERS, FUSE"]
[null,null,null,null,null,null,null,null,null,null,null,null,null,null,null,null,null,null,null,null,null,null,null,null,null,null,null,"0132","1.3C","DEFLAGRATING METAL SALTS OF AROMATIC NITRODERIVATIVES, N.O.S."]
[null,null,null,null,null,null,null,null,null,null,null,null,null,null,null,null,null,null,null,null,null,null,null,null,null,null,null,"0133","1.1D","MANNITOL HEXANITRATE, WETTED"]
[null,null,null,null,null,null,null,null,null,null,null,null,null,null,null,null,null,null,null,null,null,null,null,null,null,null,null,"0135","1.1A","MERCURY FULMINATE, WETTED"]
[null,null,null,null,null,null,null,null,null,null,null,null,null,null,null,null,null,null,null,null,null,null,null,null,null,null,null,"0136","1.1F","MINES"]
[null,null,null,null,null,null,null,null,null,null,null,null,null,null,null,null,null,null,null,null,null,null,null,null,null,null,null,"0137","1.1D","MINES"]
[null,null,null,null,null,null,null,null,null,null,null,null,null,null,null,null,null,null,null,null,null,null,null,null,null,null,null,"0138","1.2D","MINES"]
[null,null,null,null,null,null,null,null,null,null,null,null,null,null,null,null,null,null,null,null,null,null,null,null,null,null,null,"0143","1.1D","NITROGLYCERIN, DESENSITIZED"]
[null,null,null,null,null,null,null,null,null,null,null,null,null,null,null,null,null,null,null,null,null,null,null,null,null,null,null,"0144","1.1D","NITROGLYCERIN SOLUTION IN ALCOHOL"]
[null,null,null,null,null,null,null,null,null,null,null,null,null,null,null,null,null,null,null,null,null,null,null,null,null,null,null,"0146","1.1D","NITROSTARCH"]
[null,null,null,null,null,null,null,null,null,null,null,null,null,null,null,null,null,null,null,null,null,null,null,null,null,null,null,"0147","1.1D","NITRO UREA"]
[null,null,null,null,null,null,null,null,null,null,null,null,null,null,null,null,null,null,null,null,null,null,null,null,null,null,null,"0150","1.1D","PENTAERYTHRITE TETRANITRATE, WETTED"]
[null,null,null,null,null,null,null,null,null,null,null,null,null,null,null,null,null,null,null,null,null,null,null,null,null,null,null,"0151","1.1D","PENTOLITE"]
[null,null,null,null,null,null,null,null,null,null,null,null,null,null,null,null,null,null,null,null,null,null,null,null,null,null,null,"0153","1.1D","TRINITROANILINE"]
[null,null,null,null,null,null,null,null,null,null,null,null,null,null,null,null,null,null,null,null,null,null,null,null,null,null,null,"0154","1.1D","TRINITROPHENOL"]
[null,null,null,null,null,null,null,null,null,null,null,null,null,null,null,null,null,null,null,null,null,null,null,null,null,null,null,"0155","1.1D","TRINITROCHLOROBENZENE"]
[null,null,null,null,null,null,null,null,null,null,null,null,null,null,null,null,null,null,null,null,null,null,null,null,null,null,null,"0159","1.3C","POWDER CAKE, WETTED"]
[null,null,null,null,null,null,null,null,null,null,null,null,null,null,null,null,null,null,null,null,null,null,null,null,null,null,null,"0160","1.1C","POWDER, SMOKELESS"]
[null,null,null,null,null,null,null,null,null,null,null,null,null,null,null,null,null,null,null,null,null,null,null,null,null,null,null,"0161","1.3C","POWDER, SMOKELESS"]
[null,null,null,null,null,null,null,null,null,null,null,null,null,null,null,null,null,null,null,null,null,null,null,null,null,null,null,"0167","1.1F","PROJECTILES"]
[null,null,null,null,null,null,null,null,null,null,null,null,null,null,null,null,null,null,null,null,null,null,null,null,null,null,null,"0168","1.1D","PROJECTILES"]
[null,null,null,null,null,null,null,null,null,null,null,null,null,null,null,null,null,null,null,null,null,null,null,null,null,null,null,"0169","1.2D","PROJECTILES"]
[null,null,null,null,null,null,null,null,null,null,null,null,null,null,null,null,null,null,null,null,null,null,null,null,null,null,null,"0171","1.2G","AMMUNITION, ILLUMINATING"]
[null,null,null,null,null,null,null,null,null,null,null,null,null,null,null,null,null,null,null,null,null,null,null,null,null,null,null,"0173","1.4S","RELEASE DEVICES, EXPLOSIVE"]
[null,null,null,null,null,null,null,null,null,null,null,null,null,null,null,null,null,null,null,null,null,null,null,null,null,null,null,"0174","1.4S","RIVETS, EXPLOSIVE"]
[null,null,null,null,null,null,null,null,null,null,null,null,null,null,null,null,null,null,null,null,null,null,null,null,null,null,null,"0180","1.1F","ROCKETS"]
[null,null,null,null,null,null,null,null,null,null,null,null,null,null,null,null,null,null,null,null,null,null,null,null,null,null,null,"0181","1.1E","ROCKETS"]
[null,null,null,null,null,null,null,null,null,null,null,null,null,null,null,null,null,null,null,null,null,null,null,null,null,null,null,"0182","1.2E","ROCKETS"]
[null,null,null,null,null,null,null,null,null,null,null,null,null,null,null,null,null,null,null,null,null,null,null,null,null,null,null,"0183","1.3C","ROCKETS"]
[null,null,null,null,null,null,null,null,null,null,null,null,null,null,null,null,null,null,null,null,null,null,null,null,null,null,null,"0186","1.3C","ROCKET MOTORS"]
[null,null,null,null,null,null,null,null,null,null,null,null,null,null,null,null,null,null,null,null,null,null,null,null,null,null,null,"0190",1,"SAMPLES, EXPLOSIVE"]
[null,null,null,null,null,null,null,null,null,null,null,null,null,null,null,null,null,null,null,null,null,null,null,null,null,null,null,"0191","1.4G","SIGNAL DEVICES, HAND"]
[null,null,null,null,null,null,null,null,null,null,null,null,null,null,null,null,null,null,null,null,null,null,null,null,null,null,null,"0192","1.1G","SIGNALS, RAILWAY TRACK, EXPLOSIVE"]
[null,null,null,null,null,null,null,null,null,null,null,null,null,null,null,null,null,null,null,null,null,null,null,null,null,null,null,"0193","1.4S","SIGNALS, RAILWAY TRACK, EXPLOSIVE"]
[null,null,null,null,null,null,null,null,null,null,null,null,null,null,null,null,null,null,null,null,null,null,null,null,null,null,null,"0194","1.1G","SIGNALS, DISTRESS"]
[null,null,null,null,null,null,null,null,null,null,null,null,null,null,null,null,null,null,null,null,null,null,null,null,null,null,null,"0195","1.3G","SIGNALS, DISTRESS"]
[null,null,null,null,null,null,null,null,null,null,null,null,null,null,null,null,null,null,null,null,null,null,null,null,null,null,null,"0196","1.1G","SIGNALS, SMOKE"]
[null,null,null,null,null,null,null,null,null,null,null,null,null,null,null,null,null,null,null,null,null,null,null,null,null,null,null,"0197","1.4G","SIGNALS, SMOKE"]
[null,null,null,null,null,null,null,null,null,null,null,null,null,null,null,null,null,null,null,null,null,null,null,null,null,null,null,"0204","1.2F","SOUNDING DEVICES, EXPLOSIVE"]
[null,null,null,null,null,null,null,null,null,null,null,null,null,null,null,null,null,null,null,null,null,null,null,null,null,null,null,"0207","1.1D","TETRANITROANILINE"]
[null,null,null,null,null,null,null,null,null,null,null,null,null,null,null,null,null,null,null,null,null,null,null,null,null,null,null,"0208","1.1D","TRINITROPHENYLMETHYLNITRAMINE"]
[null,null,null,null,null,null,null,null,null,null,null,null,null,null,null,null,null,null,null,null,null,null,null,null,null,null,null,"0209","1.1D","TRINITROTOLUENE"]
[null,null,null,null,null,null,null,null,null,null,null,null,null,null,null,null,null,null,null,null,null,null,null,null,null,null,null,"0212","1.3G","TRACERS FOR AMMUNITION"]
[null,null,null,null,null,null,null,null,null,null,null,null,null,null,null,null,null,null,null,null,null,null,null,null,null,null,null,"0213","1.1D","TRINITROANISOLE"]
[null,null,null,null,null,null,null,null,null,null,null,null,null,null,null,null,null,null,null,null,null,null,null,null,null,null,null,"0214","1.1D","TRINITROBENZENE"]
[null,null,null,null,null,null,null,null,null,null,null,null,null,null,null,null,null,null,null,null,null,null,null,null,null,null,null,"0215","1.1D","TRINITROBENZOIC ACID"]
[null,null,null,null,null,null,null,null,null,null,null,null,null,null,null,null,null,null,null,null,null,null,null,null,null,null,null,"0216","1.1D","TRINITRO-m-CRESOL"]
[null,null,null,null,null,null,null,null,null,null,null,null,null,null,null,null,null,null,null,null,null,null,null,null,null,null,null,"0217","1.1D","TRINITRONAPHTHALENE"]
[null,null,null,null,null,null,null,null,null,null,null,null,null,null,null,null,null,null,null,null,null,null,null,null,null,null,null,"0218","1.1D","TRINITROPHENETOLE"]
[null,null,null,null,null,null,null,null,null,null,null,null,null,null,null,null,null,null,null,null,null,null,null,null,null,null,null,"0219","1.1D","TRINITRORESORCINOL"]
[null,null,null,null,null,null,null,null,null,null,null,null,null,null,null,null,null,null,null,null,null,null,null,null,null,null,null,"0220","1.1D","UREA NITRATE"]
[null,null,null,null,null,null,null,null,null,null,null,null,null,null,null,null,null,null,null,null,null,null,null,null,null,null,null,"0221","1.1D","WARHEADS, TORPEDO"]
[null,null,null,null,null,null,null,null,null,null,null,null,null,null,null,null,null,null,null,null,null,null,null,null,null,null,null,"0222","1.1D","AMMONIUM NITRATE"]
[null,null,null,null,null,null,null,null,null,null,null,null,null,null,null,null,null,null,null,null,null,null,null,null,null,null,null,"0224","1.1A","BARIUM AZIDE"]
[null,null,null,null,null,null,null,null,null,null,null,null,null,null,null,null,null,null,null,null,null,null,null,null,null,null,null,"0225","1.1B","BOOSTERS WITH DETONATOR"]
[null,null,null,null,null,null,null,null,null,null,null,null,null,null,null,null,null,null,null,null,null,null,null,null,null,null,null,"0226","1.1D","CYCLOTETRAMETHYLENETETRANITRAMINE, WETTED"]
[null,null,null,null,null,null,null,null,null,null,null,null,null,null,null,null,null,null,null,null,null,null,null,null,null,null,null,"0234","1.3C","SODIUM DINITRO-o-CRESOLATE"]
[null,null,null,null,null,null,null,null,null,null,null,null,null,null,null,null,null,null,null,null,null,null,null,null,null,null,null,"0235","1.3C","SODIUM PICRAMATE"]
[null,null,null,null,null,null,null,null,null,null,null,null,null,null,null,null,null,null,null,null,null,null,null,null,null,null,null,"0236","1.3C","ZIRCONIUM PICRAMATE"]
[null,null,null,null,null,null,null,null,null,null,null,null,null,null,null,null,null,null,null,null,null,null,null,null,null,null,null,"0237","1.4D","CHARGES, SHAPED, FLEXIBLE, LINEAR"]
[null,null,null,null,null,null,null,null,null,null,null,null,null,null,null,null,null,null,null,null,null,null,null,null,null,null,null,"0238","1.2G","ROCKETS, LINE-THROWING"]
[null,null,null,null,null,null,null,null,null,null,null,null,null,null,null,null,null,null,null,null,null,null,null,null,null,null,null,"0240","1.3G","ROCKETS, LINE-THROWING"]
[null,null,null,null,null,null,null,null,null,null,null,null,null,null,null,null,null,null,null,null,null,null,null,null,null,null,null,"0241","1.1D","EXPLOSIVE, BLASTING, TYPE E"]
[null,null,null,null,null,null,null,null,null,null,null,null,null,null,null,null,null,null,null,null,null,null,null,null,null,null,null,"0242","1.3C","CHARGES, PROPELLING, FOR CANNON"]
[null,null,null,null,null,null,null,null,null,null,null,null,null,null,null,null,null,null,null,null,null,null,null,null,null,null,null,"0243","1.2H","AMMUNITION, INCENDIARY, WHITE PHOSPHORUS"]
[null,null,null,null,null,null,null,null,null,null,null,null,null,null,null,null,null,null,null,null,null,null,null,null,null,null,null,"0244","1.3H","AMMUNITION, INCENDIARY, WHITE PHOSPHORUS"]
[null,null,null,null,null,null,null,null,null,null,null,null,null,null,null,null,null,null,null,null,null,null,null,null,null,null,null,"0245","1.2H","AMMUNITION, SMOKE, WHITE PHOSPHORUS"]
[null,null,null,null,null,null,null,null,null,null,null,null,null,null,null,null,null,null,null,null,null,null,null,null,null,null,null,"0246","1.3H","AMMUNITION, SMOKE, WHITE PHOSPHORUS"]
[null,null,null,null,null,null,null,null,null,null,null,null,null,null,null,null,null,null,null,null,null,null,null,null,null,null,null,"0247","1.3J","AMMUNITION, INCENDIARY"]
[null,null,null,null,null,null,null,null,null,null,null,null,null,null,null,null,null,null,null,null,null,null,null,null,null,null,null,"0248","1.2L","CONTRIVANCES, WATER-ACTIVATED"]
[null,null,null,null,null,null,null,null,null,null,null,null,null,null,null,null,null,null,null,null,null,null,null,null,null,null,null,"0249","1.3L","CONTRIVANCES, WATER-ACTIVATED"]
[null,null,null,null,null,null,null,null,null,null,null,null,null,null,null,null,null,null,null,null,null,null,null,null,null,null,null,"0250","1.3L","ROCKET MOTORS WITH HYPERGOLIC LIQUIDS"]
[null,null,null,null,null,null,null,null,null,null,null,null,null,null,null,null,null,null,null,null,null,null,null,null,null,null,null,"0254","1.3G","AMMUNITION, ILLUMINATING"]
[null,null,null,null,null,null,null,null,null,null,null,null,null,null,null,null,null,null,null,null,null,null,null,null,null,null,null,"0255","1.4B","DETONATORS, ELECTRIC"]
[null,null,null,null,null,null,null,null,null,null,null,null,null,null,null,null,null,null,null,null,null,null,null,null,null,null,null,"0257","1.4B","FUZES, DETONATING"]
[null,null,null,null,null,null,null,null,null,null,null,null,null,null,null,null,null,null,null,null,null,null,null,null,null,null,null,"0266","1.1D","OCTOLITE"]
[null,null,null,null,null,null,null,null,null,null,null,null,null,null,null,null,null,null,null,null,null,null,null,null,null,null,null,"0267","1.4B","DETONATORS, NON-ELECTRIC"]
[null,null,null,null,null,null,null,null,null,null,null,null,null,null,null,null,null,null,null,null,null,null,null,null,null,null,null,"0268","1.2B","BOOSTERS WITH DETONATOR"]
[null,null,null,null,null,null,null,null,null,null,null,null,null,null,null,null,null,null,null,null,null,null,null,null,null,null,null,"0271","1.1C","CHARGES, PROPELLING"]
[null,null,null,null,null,null,null,null,null,null,null,null,null,null,null,null,null,null,null,null,null,null,null,null,null,null,null,"0272","1.3C","CHARGES, PROPELLING"]
[null,null,null,null,null,null,null,null,null,null,null,null,null,null,null,null,null,null,null,null,null,null,null,null,null,null,null,"0275","1.3C","CARTRIDGES, POWER DEVICE"]
[null,null,null,null,null,null,null,null,null,null,null,null,null,null,null,null,null,null,null,null,null,null,null,null,null,null,null,"0276","1.4C","CARTRIDGES, POWER DEVICE"]
[null,null,null,null,null,null,null,null,null,null,null,null,null,null,null,null,null,null,null,null,null,null,null,null,null,null,null,"0277","1.3C","CARTRIDGES, OIL WELL"]
[null,null,null,null,null,null,null,null,null,null,null,null,null,null,null,null,null,null,null,null,null,null,null,null,null,null,null,"0278","1.4C","CARTRIDGES, OIL WELL"]
[null,null,null,null,null,null,null,null,null,null,null,null,null,null,null,null,null,null,null,null,null,null,null,null,null,null,null,"0279","1.1C","CHARGES, PROPELLING, FOR CANNON"]
[null,null,null,null,null,null,null,null,null,null,null,null,null,null,null,null,null,null,null,null,null,null,null,null,null,null,null,"0280","1.1C","ROCKET MOTORS"]
[null,null,null,null,null,null,null,null,null,null,null,null,null,null,null,null,null,null,null,null,null,null,null,null,null,null,null,"0281","1.2C","ROCKET MOTORS"]
[null,null,null,null,null,null,null,null,null,null,null,null,null,null,null,null,null,null,null,null,null,null,null,null,null,null,null,"0282","1.1D","NITROGUANIDINE"]
[null,null,null,null,null,null,null,null,null,null,null,null,null,null,null,null,null,null,null,null,null,null,null,null,null,null,null,"0283","1.2D","BOOSTERS"]
[null,null,null,null,null,null,null,null,null,null,null,null,null,null,null,null,null,null,null,null,null,null,null,null,null,null,null,"0284","1.1D","GRENADES"]
[null,null,null,null,null,null,null,null,null,null,null,null,null,null,null,null,null,null,null,null,null,null,null,null,null,null,null,"0285","1.2D","GRENADES"]
[null,null,null,null,null,null,null,null,null,null,null,null,null,null,null,null,null,null,null,null,null,null,null,null,null,null,null,"0286","1.1D","WARHEADS, ROCKET"]
[null,null,null,null,null,null,null,null,null,null,null,null,null,null,null,null,null,null,null,null,null,null,null,null,null,null,null,"0287","1.2D","WARHEADS, ROCKET"]
[null,null,null,null,null,null,null,null,null,null,null,null,null,null,null,null,null,null,null,null,null,null,null,null,null,null,null,"0288","1.1D","CHARGES, SHAPED, FLEXIBLE, LINEAR"]
[null,null,null,null,null,null,null,null,null,null,null,null,null,null,null,null,null,null,null,null,null,null,null,null,null,null,null,"0289","1.4D","CORD, DETONATING"]
[null,null,null,null,null,null,null,null,null,null,null,null,null,null,null,null,null,null,null,null,null,null,null,null,null,null,null,"0290","1.1D","CORD, DETONATING"]
[null,null,null,null,null,null,null,null,null,null,null,null,null,null,null,null,null,null,null,null,null,null,null,null,null,null,null,"0291","1.2F","BOMBS"]
[null,null,null,null,null,null,null,null,null,null,null,null,null,null,null,null,null,null,null,null,null,null,null,null,null,null,null,"0292","1.1F","GRENADES"]
[null,null,null,null,null,null,null,null,null,null,null,null,null,null,null,null,null,null,null,null,null,null,null,null,null,null,null,"0293","1.2F","GRENADES"]
[null,null,null,null,null,null,null,null,null,null,null,null,null,null,null,null,null,null,null,null,null,null,null,null,null,null,null,"0294","1.2F","MINES"]
[null,null,null,null,null,null,null,null,null,null,null,null,null,null,null,null,null,null,null,null,null,null,null,null,null,null,null,"0295","1.2F","ROCKETS"]
[null,null,null,null,null,null,null,null,null,null,null,null,null,null,null,null,null,null,null,null,null,null,null,null,null,null,null,"0296","1.1F","SOUNDING DEVICES, EXPLOSIVE"]
[null,null,null,null,null,null,null,null,null,null,null,null,null,null,null,null,null,null,null,null,null,null,null,null,null,null,null,"0297","1.4G","AMMUNITION, ILLUMINATING"]
[null,null,null,null,null,null,null,null,null,null,null,null,null,null,null,null,null,null,null,null,null,null,null,null,null,null,null,"0299","1.3G","BOMBS, PHOTO-FLASH"]
[null,null,null,null,null,null,null,null,null,null,null,null,null,null,null,null,null,null,null,null,null,null,null,null,null,null,null,"0300","1.4G","AMMUNITION, INCENDIARY"]
[null,null,null,null,null,null,null,null,null,null,null,null,null,null,null,null,null,null,null,null,null,null,null,null,null,null,null,"0301","1.4G","AMMUNITION, TEAR-PRODUCING"]
[null,null,null,null,null,null,null,null,null,null,null,null,null,null,null,null,null,null,null,null,null,null,null,null,null,null,null,"0303","1.4G","AMMUNITION, SMOKE"]
[null,null,null,null,null,null,null,null,null,null,null,null,null,null,null,null,null,null,null,null,null,null,null,null,null,null,null,"0305","1.3G","FLASH POWDER"]
[null,null,null,null,null,null,null,null,null,null,null,null,null,null,null,null,null,null,null,null,null,null,null,null,null,null,null,"0306","1.4G","TRACERS FOR AMMUNITION"]
[null,null,null,null,null,null,null,null,null,null,null,null,null,null,null,null,null,null,null,null,null,null,null,null,null,null,null,"0312","1.4G","CARTRIDGES, SIGNAL"]
[null,null,null,null,null,null,null,null,null,null,null,null,null,null,null,null,null,null,null,null,null,null,null,null,null,null,null,"0313","1.2G","SIGNALS, SMOKE"]
[null,null,null,null,null,null,null,null,null,null,null,null,null,null,null,null,null,null,null,null,null,null,null,null,null,null,null,"0314","1.2G","IGNITERS"]
[null,null,null,null,null,null,null,null,null,null,null,null,null,null,null,null,null,null,null,null,null,null,null,null,null,null,null,"0315","1.3G","IGNITERS"]
[null,null,null,null,null,null,null,null,null,null,null,null,null,null,null,null,null,null,null,null,null,null,null,null,null,null,null,"0316","1.3G","FUZES, IGNITING"]
[null,null,null,null,null,null,null,null,null,null,null,null,null,null,null,null,null,null,null,null,null,null,null,null,null,null,null,"0317","1.4G","FUZES, IGNITING"]
[null,null,null,null,null,null,null,null,null,null,null,null,null,null,null,null,null,null,null,null,null,null,null,null,null,null,null,"0318","1.3G","GRENADES, PRACTICE"]
[null,null,null,null,null,null,null,null,null,null,null,null,null,null,null,null,null,null,null,null,null,null,null,null,null,null,null,"0319","1.3G","PRIMERS, TUBULAR"]
[null,null,null,null,null,null,null,null,null,null,null,null,null,null,null,null,null,null,null,null,null,null,null,null,null,null,null,"0320","1.4G","PRIMERS, TUBULAR"]
[null,null,null,null,null,null,null,null,null,null,null,null,null,null,null,null,null,null,null,null,null,null,null,null,null,null,null,"0321","1.2E","CARTRIDGES FOR WEAPONS"]
[null,null,null,null,null,null,null,null,null,null,null,null,null,null,null,null,null,null,null,null,null,null,null,null,null,null,null,"0322","1.2L","ROCKET MOTORS WITH HYPERGOLIC LIQUIDS"]
[null,null,null,null,null,null,null,null,null,null,null,null,null,null,null,null,null,null,null,null,null,null,null,null,null,null,null,"0323","1.4S","CARTRIDGES, POWER DEVICE"]
[null,null,null,null,null,null,null,null,null,null,null,null,null,null,null,null,null,null,null,null,null,null,null,null,null,null,null,"0324","1.2F","PROJECTILES"]
[null,null,null,null,null,null,null,null,null,null,null,null,null,null,null,null,null,null,null,null,null,null,null,null,null,null,null,"0325","1.4G","IGNITERS"]
[null,null,null,null,null,null,null,null,null,null,null,null,null,null,null,null,null,null,null,null,null,null,null,null,null,null,null,"0326","1.1C","CARTRIDGES FOR WEAPONS, BLANK"]
[null,null,null,null,null,null,null,null,null,null,null,null,null,null,null,null,null,null,null,null,null,null,null,null,null,null,null,"0327","1.3C","CARTRIDGES FOR WEAPONS, BLANK"]
[null,null,null,null,null,null,null,null,null,null,null,null,null,null,null,null,null,null,null,null,null,null,null,null,null,null,null,"0328","1.2C","CARTRIDGES FOR WEAPONS, INERT PROJECTILE"]
[null,null,null,null,null,null,null,null,null,null,null,null,null,null,null,null,null,null,null,null,null,null,null,null,null,null,null,"0329","1.1E","TORPEDOES"]
[null,null,null,null,null,null,null,null,null,null,null,null,null,null,null,null,null,null,null,null,null,null,null,null,null,null,null,"0330","1.1F","TORPEDOES"]
[null,null,null,null,null,null,null,null,null,null,null,null,null,null,null,null,null,null,null,null,null,null,null,null,null,null,null,"0331","1.5D","EXPLOSIVE, BLASTING, TYPE B"]
[null,null,null,null,null,null,null,null,null,null,null,null,null,null,null,null,null,null,null,null,null,null,null,null,null,null,null,"0332","1.5D","EXPLOSIVE, BLASTING, TYPE E"]
[null,null,null,null,null,null,null,null,null,null,null,null,null,null,null,null,null,null,null,null,null,null,null,null,null,null,null,"0333","1.1G","FIREWORKS"]
[null,null,null,null,null,null,null,null,null,null,null,null,null,null,null,null,null,null,null,null,null,null,null,null,null,null,null,"0334","1.2G","FIREWORKS"]
[null,null,null,null,null,null,null,null,null,null,null,null,null,null,null,null,null,null,null,null,null,null,null,null,null,null,null,"0335","1.3G","FIREWORKS"]
[null,null,null,null,null,null,null,null,null,null,null,null,null,null,null,null,null,null,null,null,null,null,null,null,null,null,null,"0336","1.4G","FIREWORKS"]
[null,null,null,null,null,null,null,null,null,null,null,null,null,null,null,null,null,null,null,null,null,null,null,null,null,null,null,"0337","1.4S","FIREWORKS"]
[null,null,null,null,null,null,null,null,null,null,null,null,null,null,null,null,null,null,null,null,null,null,null,null,null,null,null,"0338","1.4C","CARTRIDGES FOR WEAPONS, BLANK"]
[null,null,null,null,null,null,null,null,null,null,null,null,null,null,null,null,null,null,null,null,null,null,null,null,null,null,null,"0339","1.4C","CARTRIDGES FOR WEAPONS, INERT PROJECTILE"]
[null,null,null,null,null,null,null,null,null,null,null,null,null,null,null,null,null,null,null,null,null,null,null,null,null,null,null,"0340","1.1D","NITROCELLULOSE"]
[null,null,null,null,null,null,null,null,null,null,null,null,null,null,null,null,null,null,null,null,null,null,null,null,null,null,null,"0341","1.1D","NITROCELLULOSE"]
[null,null,null,null,null,null,null,null,null,null,null,null,null,null,null,null,null,null,null,null,null,null,null,null,null,null,null,"0342","1.3C","NITROCELLULOSE, WETTED"]
[null,null,null,null,null,null,null,null,null,null,null,null,null,null,null,null,null,null,null,null,null,null,null,null,null,null,null,"0343","1.3C","NITROCELLULOSE, PLASTICIZED"]
[null,null,null,null,null,null,null,null,null,null,null,null,null,null,null,null,null,null,null,null,null,null,null,null,null,null,null,"0344","1.4D","PROJECTILES"]
[null,null,null,null,null,null,null,null,null,null,null,null,null,null,null,null,null,null,null,null,null,null,null,null,null,null,null,"0345","1.4S","PROJECTILES"]
[null,null,null,null,null,null,null,null,null,null,null,null,null,null,null,null,null,null,null,null,null,null,null,null,null,null,null,"0346","1.2D","PROJECTILES"]
[null,null,null,null,null,null,null,null,null,null,null,null,null,null,null,null,null,null,null,null,null,null,null,null,null,null,null,"0347","1.4D","PROJECTILES"]
[null,null,null,null,null,null,null,null,null,null,null,null,null,null,null,null,null,null,null,null,null,null,null,null,null,null,null,"0348","1.4F","CARTRIDGES FOR WEAPONS"]
[null,null,null,null,null,null,null,null,null,null,null,null,null,null,null,null,null,null,null,null,null,null,null,null,null,null,null,"0349","1.4S","ARTICLES, EXPLOSIVE, N.O.S."]
[null,null,null,null,null,null,null,null,null,null,null,null,null,null,null,null,null,null,null,null,null,null,null,null,null,null,null,"0350","1.4B","ARTICLES, EXPLOSIVE, N.O.S."]
[null,null,null,null,null,null,null,null,null,null,null,null,null,null,null,null,null,null,null,null,null,null,null,null,null,null,null,"0351","1.4C","ARTICLES, EXPLOSIVE, N.O.S."]
[null,null,null,null,null,null,null,null,null,null,null,null,null,null,null,null,null,null,null,null,null,null,null,null,null,null,null,"0352","1.4D","ARTICLES, EXPLOSIVE, N.O.S."]
[null,null,null,null,null,null,null,null,null,null,null,null,null,null,null,null,null,null,null,null,null,null,null,null,null,null,null,"0353","1.4G","ARTICLES, EXPLOSIVE, N.O.S."]
[null,null,null,null,null,null,null,null,null,null,null,null,null,null,null,null,null,null,null,null,null,null,null,null,null,null,null,"0354","1.1L","ARTICLES, EXPLOSIVE, N.O.S."]
[null,null,null,null,null,null,null,null,null,null,null,null,null,null,null,null,null,null,null,null,null,null,null,null,null,null,null,"0355","1.2L","ARTICLES, EXPLOSIVE, N.O.S."]
[null,null,null,null,null,null,null,null,null,null,null,null,null,null,null,null,null,null,null,null,null,null,null,null,null,null,null,"0356","1.3L","ARTICLES, EXPLOSIVE, N.O.S."]
[null,null,null,null,null,null,null,null,null,null,null,null,null,null,null,null,null,null,null,null,null,null,null,null,null,null,null,"0357","1.1L","SUBSTANCES, EXPLOSIVE, N.O.S."]
[null,null,null,null,null,null,null,null,null,null,null,null,null,null,null,null,null,null,null,null,null,null,null,null,null,null,null,"0358","1.2L","SUBSTANCES, EXPLOSIVE, N.O.S."]
[null,null,null,null,null,null,null,null,null,null,null,null,null,null,null,null,null,null,null,null,null,null,null,null,null,null,null,"0359","1.3L","SUBSTANCES, EXPLOSIVE, N.O.S."]
[null,null,null,null,null,null,null,null,null,null,null,null,null,null,null,null,null,null,null,null,null,null,null,null,null,null,null,"0360","1.1B","DETONATOR ASSEMBLIES, NON-ELECTRIC"]
[null,null,null,null,null,null,null,null,null,null,null,null,null,null,null,null,null,null,null,null,null,null,null,null,null,null,null,"0361","1.4B","DETONATOR ASSEMBLIES, NON-ELECTRIC"]
[null,null,null,null,null,null,null,null,null,null,null,null,null,null,null,null,null,null,null,null,null,null,null,null,null,null,null,"0362","1.4G","AMMUNITION, PRACTICE"]
[null,null,null,null,null,null,null,null,null,null,null,null,null,null,null,null,null,null,null,null,null,null,null,null,null,null,null,"0363","1.4G","AMMUNITION, PROOF"]
[null,null,null,null,null,null,null,null,null,null,null,null,null,null,null,null,null,null,null,null,null,null,null,null,null,null,null,"0364","1.2B","DETONATORS FOR AMMUNITION"]
[null,null,null,null,null,null,null,null,null,null,null,null,null,null,null,null,null,null,null,null,null,null,null,null,null,null,null,"0365","1.4B","DETONATORS FOR AMMUNITION"]
[null,null,null,null,null,null,null,null,null,null,null,null,null,null,null,null,null,null,null,null,null,null,null,null,null,null,null,"0366","1.4S","DETONATORS FOR AMMUNITION"]
[null,null,null,null,null,null,null,null,null,null,null,null,null,null,null,null,null,null,null,null,null,null,null,null,null,null,null,"0367","1.4S","FUZES, DETONATING"]
[null,null,null,null,null,null,null,null,null,null,null,null,null,null,null,null,null,null,null,null,null,null,null,null,null,null,null,"0368","1.4S","FUZES, IGNITING"]
[null,null,null,null,null,null,null,null,null,null,null,null,null,null,null,null,null,null,null,null,null,null,null,null,null,null,null,"0369","1.1F","WARHEADS, ROCKET"]
[null,null,null,null,null,null,null,null,null,null,null,null,null,null,null,null,null,null,null,null,null,null,null,null,null,null,null,"0370","1.4D","WARHEADS, ROCKET"]
[null,null,null,null,null,null,null,null,null,null,null,null,null,null,null,null,null,null,null,null,null,null,null,null,null,null,null,"0371","1.4F","WARHEADS, ROCKET"]
[null,null,null,null,null,null,null,null,null,null,null,null,null,null,null,null,null,null,null,null,null,null,null,null,null,null,null,"0372","1.2G","GRENADES, PRACTICE"]
[null,null,null,null,null,null,null,null,null,null,null,null,null,null,null,null,null,null,null,null,null,null,null,null,null,null,null,"0373","1.4S","SIGNAL DEVICES, HAND"]
[null,null,null,null,null,null,null,null,null,null,null,null,null,null,null,null,null,null,null,null,null,null,null,null,null,null,null,"0374","1.1D","SOUNDING DEVICES, EXPLOSIVE"]
[null,null,null,null,null,null,null,null,null,null,null,null,null,null,null,null,null,null,null,null,null,null,null,null,null,null,null,"0375","1.2D","SOUNDING DEVICES, EXPLOSIVE"]
[null,null,null,null,null,null,null,null,null,null,null,null,null,null,null,null,null,null,null,null,null,null,null,null,null,null,null,"0376","1.4S","PRIMERS, TUBULAR"]
[null,null,null,null,null,null,null,null,null,null,null,null,null,null,null,null,null,null,null,null,null,null,null,null,null,null,null,"0377","1.1B","PRIMERS, CAP TYPE"]
[null,null,null,null,null,null,null,null,null,null,null,null,null,null,null,null,null,null,null,null,null,null,null,null,null,null,null,"0378","1.4B","PRIMERS, CAP TYPE"]
[null,null,null,null,null,null,null,null,null,null,null,null,null,null,null,null,null,null,null,null,null,null,null,null,null,null,null,"0379","1.4C","CASES, CARTRIDGE, EMPTY, WITH PRIMER"]
[null,null,null,null,null,null,null,null,null,null,null,null,null,null,null,null,null,null,null,null,null,null,null,null,null,null,null,"0380","1.2L","ARTICLES, PYROPHORIC"]
[null,null,null,null,null,null,null,null,null,null,null,null,null,null,null,null,null,null,null,null,null,null,null,null,null,null,null,"0381","1.2C","CARTRIDGES, POWER DEVICE"]
[null,null,null,null,null,null,null,null,null,null,null,null,null,null,null,null,null,null,null,null,null,null,null,null,null,null,null,"0382","1.2B","COMPONENTS, EXPLOSIVE TRAIN, N.O.S."]
[null,null,null,null,null,null,null,null,null,null,null,null,null,null,null,null,null,null,null,null,null,null,null,null,null,null,null,"0383","1.4B","COMPONENTS, EXPLOSIVE TRAIN, N.O.S."]
[null,null,null,null,null,null,null,null,null,null,null,null,null,null,null,null,null,null,null,null,null,null,null,null,null,null,null,"0384","1.4S","COMPONENTS, EXPLOSIVE TRAIN, N.O.S."]
[null,null,null,null,null,null,null,null,null,null,null,null,null,null,null,null,null,null,null,null,null,null,null,null,null,null,null,"0385","1.1D","5-NITROBENZOTRIAZOL"]
[null,null,null,null,null,null,null,null,null,null,null,null,null,null,null,null,null,null,null,null,null,null,null,null,null,null,null,"0386","1.1D","TRINITROBENZENESULPHONIC ACID"]
[null,null,null,null,null,null,null,null,null,null,null,null,null,null,null,null,null,null,null,null,null,null,null,null,null,null,null,"0387","1.1D","TRINITROFLUORENONE"]
[null,null,null,null,null,null,null,null,null,null,null,null,null,null,null,null,null,null,null,null,null,null,null,null,null,null,null,"0388","1.1D","TRINITROTOLUENE AND TRINITROBENZENE MIXTURE"]
[null,null,null,null,null,null,null,null,null,null,null,null,null,null,null,null,null,null,null,null,null,null,null,null,null,null,null,"0389","1.1D","TRINITROTOLUENE MIXTURE CONTAINING TRINITROBENZENE AND HEXANITROSTILBENE"]
[null,null,null,null,null,null,null,null,null,null,null,null,null,null,null,null,null,null,null,null,null,null,null,null,null,null,null,"0390","1.1D","TRITONAL"]
[null,null,null,null,null,null,null,null,null,null,null,null,null,null,null,null,null,null,null,null,null,null,null,null,null,null,null,"0391","1.1D","CYCLOTRIMETHYLENETRINITRAMINE AND CYCLOTETRAMETHYLENETETRANITRAMINE MIXTURE, WETTED"]
[null,null,null,null,null,null,null,null,null,null,null,null,null,null,null,null,null,null,null,null,null,null,null,null,null,null,null,"0392","1.1D","HEXANITROSTILBENE"]
[null,null,null,null,null,null,null,null,null,null,null,null,null,null,null,null,null,null,null,null,null,null,null,null,null,null,null,"0393","1.1D","HEXOTONAL"]
[null,null,null,null,null,null,null,null,null,null,null,null,null,null,null,null,null,null,null,null,null,null,null,null,null,null,null,"0394","1.1D","TRINITRORESORCINOL, WETTED"]
[null,null,null,null,null,null,null,null,null,null,null,null,null,null,null,null,null,null,null,null,null,null,null,null,null,null,null,"0395","1.2J","ROCKET MOTORS, LIQUID FUELLED"]
[null,null,null,null,null,null,null,null,null,null,null,null,null,null,null,null,null,null,null,null,null,null,null,null,null,null,null,"0396","1.3J","ROCKET MOTORS, LIQUID FUELLED"]
[null,null,null,null,null,null,null,null,null,null,null,null,null,null,null,null,null,null,null,null,null,null,null,null,null,null,null,"0397","1.1J","ROCKETS, LIQUID FUELLED"]
[null,null,null,null,null,null,null,null,null,null,null,null,null,null,null,null,null,null,null,null,null,null,null,null,null,null,null,"0398","1.2J","ROCKETS, LIQUID FUELLED"]
[null,null,null,null,null,null,null,null,null,null,null,null,null,null,null,null,null,null,null,null,null,null,null,null,null,null,null,"0399","1.1J","BOMBS WITH FLAMMABLE LIQUID"]
[null,null,null,null,null,null,null,null,null,null,null,null,null,null,null,null,null,null,null,null,null,null,null,null,null,null,null,"0400","1.2J","BOMBS WITH FLAMMABLE LIQUID"]
[null,null,null,null,null,null,null,null,null,null,null,null,null,null,null,null,null,null,null,null,null,null,null,null,null,null,null,"0401","1.1D","DIPICRYL SULPHIDE"]
[null,null,null,null,null,null,null,null,null,null,null,null,null,null,null,null,null,null,null,null,null,null,null,null,null,null,null,"0402","1.1D","AMMONIUM PERCHLORATE"]
[null,null,null,null,null,null,null,null,null,null,null,null,null,null,null,null,null,null,null,null,null,null,null,null,null,null,null,"0403","1.4G","FLARES, AERIAL"]
[null,null,null,null,null,null,null,null,null,null,null,null,null,null,null,null,null,null,null,null,null,null,null,null,null,null,null,"0404","1.4S","FLARES, AERIAL"]
[null,null,null,null,null,null,null,null,null,null,null,null,null,null,null,null,null,null,null,null,null,null,null,null,null,null,null,"0405","1.4S","CARTRIDGES, SIGNAL"]
[null,null,null,null,null,null,null,null,null,null,null,null,null,null,null,null,null,null,null,null,null,null,null,null,null,null,null,"0406","1.3C","DINITROSOBENZENE"]
[null,null,null,null,null,null,null,null,null,null,null,null,null,null,null,null,null,null,null,null,null,null,null,null,null,null,null,"0407","1.4C","TETRAZOL-1-ACETIC ACID"]
[null,null,null,null,null,null,null,null,null,null,null,null,null,null,null,null,null,null,null,null,null,null,null,null,null,null,null,"0408","1.1D","FUZES, DETONATING"]
[null,null,null,null,null,null,null,null,null,null,null,null,null,null,null,null,null,null,null,null,null,null,null,null,null,null,null,"0409","1.2D","FUZES, DETONATING"]
[null,null,null,null,null,null,null,null,null,null,null,null,null,null,null,null,null,null,null,null,null,null,null,null,null,null,null,"0410","1.4D","FUZES, DETONATING"]
[null,null,null,null,null,null,null,null,null,null,null,null,null,null,null,null,null,null,null,null,null,null,null,null,null,null,null,"0411","1.1D","PENTAERYTHRITE TETRANITRATE"]
[null,null,null,null,null,null,null,null,null,null,null,null,null,null,null,null,null,null,null,null,null,null,null,null,null,null,null,"0412","1.4E","CARTRIDGES FOR WEAPONS"]
[null,null,null,null,null,null,null,null,null,null,null,null,null,null,null,null,null,null,null,null,null,null,null,null,null,null,null,"0413","1.2C","CARTRIDGES FOR WEAPONS, BLANK"]
[null,null,null,null,null,null,null,null,null,null,null,null,null,null,null,null,null,null,null,null,null,null,null,null,null,null,null,"0414","1.2C","CHARGES, PROPELLING, FOR CANNON"]
[null,null,null,null,null,null,null,null,null,null,null,null,null,null,null,null,null,null,null,null,null,null,null,null,null,null,null,"0415","1.2C","CHARGES, PROPELLING"]
[null,null,null,null,null,null,null,null,null,null,null,null,null,null,null,null,null,null,null,null,null,null,null,null,null,null,null,"0417","1.3C","CARTRIDGES FOR WEAPONS, INERT PROJECTILE"]
[null,null,null,null,null,null,null,null,null,null,null,null,null,null,null,null,null,null,null,null,null,null,null,null,null,null,null,"0418","1.1G","FLARES, SURFACE"]
[null,null,null,null,null,null,null,null,null,null,null,null,null,null,null,null,null,null,null,null,null,null,null,null,null,null,null,"0419","1.2G","FLARES, SURFACE"]
[null,null,null,null,null,null,null,null,null,null,null,null,null,null,null,null,null,null,null,null,null,null,null,null,null,null,null,"0420","1.1G","FLARES, AERIAL"]
[null,null,null,null,null,null,null,null,null,null,null,null,null,null,null,null,null,null,null,null,null,null,null,null,null,null,null,"0421","1.2G","FLARES, AERIAL"]
[null,null,null,null,null,null,null,null,null,null,null,null,null,null,null,null,null,null,null,null,null,null,null,null,null,null,null,"0424","1.3G","PROJECTILES"]
[null,null,null,null,null,null,null,null,null,null,null,null,null,null,null,null,null,null,null,null,null,null,null,null,null,null,null,"0425","1.4G","PROJECTILES"]
[null,null,null,null,null,null,null,null,null,null,null,null,null,null,null,null,null,null,null,null,null,null,null,null,null,null,null,"0426","1.2F","PROJECTILES"]
[null,null,null,null,null,null,null,null,null,null,null,null,null,null,null,null,null,null,null,null,null,null,null,null,null,null,null,"0427","1.4F","PROJECTILES"]
[null,null,null,null,null,null,null,null,null,null,null,null,null,null,null,null,null,null,null,null,null,null,null,null,null,null,null,"0428","1.1G","ARTICLES, PYROTECHNIC"]
[null,null,null,null,null,null,null,null,null,null,null,null,null,null,null,null,null,null,null,null,null,null,null,null,null,null,null,"0429","1.2G","ARTICLES, PYROTECHNIC"]
[null,null,null,null,null,null,null,null,null,null,null,null,null,null,null,null,null,null,null,null,null,null,null,null,null,null,null,"0430","1.3G","ARTICLES, PYROTECHNIC"]
[null,null,null,null,null,null,null,null,null,null,null,null,null,null,null,null,null,null,null,null,null,null,null,null,null,null,null,"0431","1.4G","ARTICLES, PYROTECHNIC"]
[null,null,null,null,null,null,null,null,null,null,null,null,null,null,null,null,null,null,null,null,null,null,null,null,null,null,null,"0432","1.4S","ARTICLES, PYROTECHNIC"]
[null,null,null,null,null,null,null,null,null,null,null,null,null,null,null,null,null,null,null,null,null,null,null,null,null,null,null,"0433","1.1C","POWDER CAKE, WETTED"]
[null,null,null,null,null,null,null,null,null,null,null,null,null,null,null,null,null,null,null,null,null,null,null,null,null,null,null,"0434","1.2G","PROJECTILES"]
[null,null,null,null,null,null,null,null,null,null,null,null,null,null,null,null,null,null,null,null,null,null,null,null,null,null,null,"0435","1.4G","PROJECTILES"]
[null,null,null,null,null,null,null,null,null,null,null,null,null,null,null,null,null,null,null,null,null,null,null,null,null,null,null,"0436","1.2C","ROCKETS"]
[null,null,null,null,null,null,null,null,null,null,null,null,null,null,null,null,null,null,null,null,null,null,null,null,null,null,null,"0437","1.3C","ROCKETS"]
[null,null,null,null,null,null,null,null,null,null,null,null,null,null,null,null,null,null,null,null,null,null,null,null,null,null,null,"0438","1.4C","ROCKETS"]
[null,null,null,null,null,null,null,null,null,null,null,null,null,null,null,null,null,null,null,null,null,null,null,null,null,null,null,"0439","1.2D","CHARGES, SHAPED"]
[null,null,null,null,null,null,null,null,null,null,null,null,null,null,null,null,null,null,null,null,null,null,null,null,null,null,null,"0440","1.4D","CHARGES, SHAPED"]
[null,null,null,null,null,null,null,null,null,null,null,null,null,null,null,null,null,null,null,null,null,null,null,null,null,null,null,"0441","1.4S","CHARGES, SHAPED"]
[null,null,null,null,null,null,null,null,null,null,null,null,null,null,null,null,null,null,null,null,null,null,null,null,null,null,null,"0442","1.1D","CHARGES, EXPLOSIVE, COMMERCIAL"]
[null,null,null,null,null,null,null,null,null,null,null,null,null,null,null,null,null,null,null,null,null,null,null,null,null,null,null,"0443","1.2D","CHARGES, EXPLOSIVE, COMMERCIAL"]
[null,null,null,null,null,null,null,null,null,null,null,null,null,null,null,null,null,null,null,null,null,null,null,null,null,null,null,"0444","1.4D","CHARGES, EXPLOSIVE, COMMERCIAL"]
[null,null,null,null,null,null,null,null,null,null,null,null,null,null,null,null,null,null,null,null,null,null,null,null,null,null,null,"0445","1.4S","CHARGES, EXPLOSIVE, COMMERCIAL"]
[null,null,null,null,null,null,null,null,null,null,null,null,null,null,null,null,null,null,null,null,null,null,null,null,null,null,null,"0446","1.4C","CASES, COMBUSTIBLE, EMPTY, WITHOUT PRIMER"]
[null,null,null,null,null,null,null,null,null,null,null,null,null,null,null,null,null,null,null,null,null,null,null,null,null,null,null,"0447","1.3C","CASES, COMBUSTIBLE, EMPTY, WITHOUT PRIMER"]
[null,null,null,null,null,null,null,null,null,null,null,null,null,null,null,null,null,null,null,null,null,null,null,null,null,null,null,"0448","1.4C","5-MERCAPTOTETRAZOL-1-ACETIC ACID"]
[null,null,null,null,null,null,null,null,null,null,null,null,null,null,null,null,null,null,null,null,null,null,null,null,null,null,null,"0449","1.1J","TORPEDOES, LIQUID FUELLED"]
[null,null,null,null,null,null,null,null,null,null,null,null,null,null,null,null,null,null,null,null,null,null,null,null,null,null,null,"0450","1.3J","TORPEDOES, LIQUID FUELLED"]
[null,null,null,null,null,null,null,null,null,null,null,null,null,null,null,null,null,null,null,null,null,null,null,null,null,null,null,"0451","1.1D","TORPEDOES"]
[null,null,null,null,null,null,null,null,null,null,null,null,null,null,null,null,null,null,null,null,null,null,null,null,null,null,null,"0452","1.4G","GRENADES, PRACTICE"]
[null,null,null,null,null,null,null,null,null,null,null,null,null,null,null,null,null,null,null,null,null,null,null,null,null,null,null,"0453","1.4G","ROCKETS, LINE-THROWING"]
[null,null,null,null,null,null,null,null,null,null,null,null,null,null,null,null,null,null,null,null,null,null,null,null,null,null,null,"0454","1.4S","IGNITERS"]
[null,null,null,null,null,null,null,null,null,null,null,null,null,null,null,null,null,null,null,null,null,null,null,null,null,null,null,"0455","1.4S","DETONATORS, NON-ELECTRIC"]
[null,null,null,null,null,null,null,null,null,null,null,null,null,null,null,null,null,null,null,null,null,null,null,null,null,null,null,"0456","1.4S","DETONATORS, ELECTRIC"]
[null,null,null,null,null,null,null,null,null,null,null,null,null,null,null,null,null,null,null,null,null,null,null,null,null,null,null,"0457","1.1D","CHARGES, BURSTING, PLASTICS BONDED"]
[null,null,null,null,null,null,null,null,null,null,null,null,null,null,null,null,null,null,null,null,null,null,null,null,null,null,null,"0458","1.2D","CHARGES, BURSTING, PLASTICS BONDED"]
[null,null,null,null,null,null,null,null,null,null,null,null,null,null,null,null,null,null,null,null,null,null,null,null,null,null,null,"0459","1.4D","CHARGES, BURSTING, PLASTICS BONDED"]
[null,null,null,null,null,null,null,null,null,null,null,null,null,null,null,null,null,null,null,null,null,null,null,null,null,null,null,"0460","1.4S","CHARGES, BURSTING, PLASTICS BONDED"]
[null,null,null,null,null,null,null,null,null,null,null,null,null,null,null,null,null,null,null,null,null,null,null,null,null,null,null,"0461","1.1B","COMPONENTS, EXPLOSIVE TRAIN, N.O.S."]
[null,null,null,null,null,null,null,null,null,null,null,null,null,null,null,null,null,null,null,null,null,null,null,null,null,null,null,"0462","1.1C","ARTICLES, EXPLOSIVE, N.O.S."]
[null,null,null,null,null,null,null,null,null,null,null,null,null,null,null,null,null,null,null,null,null,null,null,null,null,null,null,"0463","1.1D","ARTICLES, EXPLOSIVE, N.O.S."]
[null,null,null,null,null,null,null,null,null,null,null,null,null,null,null,null,null,null,null,null,null,null,null,null,null,null,null,"0464","1.1E","ARTICLES, EXPLOSIVE, N.O.S."]
[null,null,null,null,null,null,null,null,null,null,null,null,null,null,null,null,null,null,null,null,null,null,null,null,null,null,null,"0465","1.1F","ARTICLES, EXPLOSIVE, N.O.S."]
[null,null,null,null,null,null,null,null,null,null,null,null,null,null,null,null,null,null,null,null,null,null,null,null,null,null,null,"0466","1.2C","ARTICLES, EXPLOSIVE, N.O.S."]
[null,null,null,null,null,null,null,null,null,null,null,null,null,null,null,null,null,null,null,null,null,null,null,null,null,null,null,"0467","1.2D","ARTICLES, EXPLOSIVE, N.O.S."]
[null,null,null,null,null,null,null,null,null,null,null,null,null,null,null,null,null,null,null,null,null,null,null,null,null,null,null,"0468","1.2E","ARTICLES, EXPLOSIVE, N.O.S."]
[null,null,null,null,null,null,null,null,null,null,null,null,null,null,null,null,null,null,null,null,null,null,null,null,null,null,null,"0469","1.2F","ARTICLES, EXPLOSIVE, N.O.S."]
[null,null,null,null,null,null,null,null,null,null,null,null,null,null,null,null,null,null,null,null,null,null,null,null,null,null,null,"0470","1.3C","ARTICLES, EXPLOSIVE, N.O.S."]
[null,null,null,null,null,null,null,null,null,null,null,null,null,null,null,null,null,null,null,null,null,null,null,null,null,null,null,"0471","1.4E","ARTICLES, EXPLOSIVE, N.O.S."]
[null,null,null,null,null,null,null,null,null,null,null,null,null,null,null,null,null,null,null,null,null,null,null,null,null,null,null,"0472","1.4F","ARTICLES, EXPLOSIVE, N.O.S."]
[null,null,null,null,null,null,null,null,null,null,null,null,null,null,null,null,null,null,null,null,null,null,null,null,null,null,null,"0473","1.1A","SUBSTANCES, EXPLOSIVE, N.O.S."]
[null,null,null,null,null,null,null,null,null,null,null,null,null,null,null,null,null,null,null,null,null,null,null,null,null,null,null,"0474","1.1C","SUBSTANCES, EXPLOSIVE, N.O.S."]
[null,null,null,null,null,null,null,null,null,null,null,null,null,null,null,null,null,null,null,null,null,null,null,null,null,null,null,"0475","1.1D","SUBSTANCES, EXPLOSIVE, N.O.S."]
[null,null,null,null,null,null,null,null,null,null,null,null,null,null,null,null,null,null,null,null,null,null,null,null,null,null,null,"0476","1.1G","SUBSTANCES, EXPLOSIVE, N.O.S."]
[null,null,null,null,null,null,null,null,null,null,null,null,null,null,null,null,null,null,null,null,null,null,null,null,null,null,null,"0477","1.3C","SUBSTANCES, EXPLOSIVE, N.O.S."]
[null,null,null,null,null,null,null,null,null,null,null,null,null,null,null,null,null,null,null,null,null,null,null,null,null,null,null,"0478","1.3G","SUBSTANCES, EXPLOSIVE, N.O.S."]
[null,null,null,null,null,null,null,null,null,null,null,null,null,null,null,null,null,null,null,null,null,null,null,null,null,null,null,"0479","1.4C","SUBSTANCES, EXPLOSIVE, N.O.S."]
[null,null,null,null,null,null,null,null,null,null,null,null,null,null,null,null,null,null,null,null,null,null,null,null,null,null,null,"0480","1.4D","SUBSTANCES, EXPLOSIVE, N.O.S."]
[null,null,null,null,null,null,null,null,null,null,null,null,null,null,null,null,null,null,null,null,null,null,null,null,null,null,null,"0481","1.4S","SUBSTANCES, EXPLOSIVE, N.O.S."]
[null,null,null,null,null,null,null,null,null,null,null,null,null,null,null,null,null,null,null,null,null,null,null,null,null,null,null,"0482","1.5D","SUBSTANCES, EXPLOSIVE, VERY INSENSITIVE, N.O.S."]
[null,null,null,null,null,null,null,null,null,null,null,null,null,null,null,null,null,null,null,null,null,null,null,null,null,null,null,"0483","1.1D","CYCLOTRIMETHYLENETRINITRAMINE, DESENSITIZED"]
[null,null,null,null,null,null,null,null,null,null,null,null,null,null,null,null,null,null,null,null,null,null,null,null,null,null,null,"0484","1.1D","CYCLOTETRAMETHYLENETETRANITRAMINE, DESENSITIZED"]
[null,null,null,null,null,null,null,null,null,null,null,null,null,null,null,null,null,null,null,null,null,null,null,null,null,null,null,"0485","1.4G","SUBSTANCES, EXPLOSIVE, N.O.S."]
[null,null,null,null,null,null,null,null,null,null,null,null,null,null,null,null,null,null,null,null,null,null,null,null,null,null,null,"0486","1.6N","ARTICLES, EXPLOSIVE, EXTREMELY INSENSITIVE"]
[null,null,null,null,null,null,null,null,null,null,null,null,null,null,null,null,null,null,null,null,null,null,null,null,null,null,null,"0487","1.3G","SIGNALS, SMOKE"]
[null,null,null,null,null,null,null,null,null,null,null,null,null,null,null,null,null,null,null,null,null,null,null,null,null,null,null,"0488","1.3G","AMMUNITION, PRACTICE"]
[null,null,null,null,null,null,null,null,null,null,null,null,null,null,null,null,null,null,null,null,null,null,null,null,null,null,null,"0489","1.1D","DINITROGLYCOLURIL"]
[null,null,null,null,null,null,null,null,null,null,null,null,null,null,null,null,null,null,null,null,null,null,null,null,null,null,null,"0490","1.1D","NITROTRIAZOLONE"]
[null,null,null,null,null,null,null,null,null,null,null,null,null,null,null,null,null,null,null,null,null,null,null,null,null,null,null,"0491","1.4C","CHARGES, PROPELLING"]
[null,null,null,null,null,null,null,null,null,null,null,null,null,null,null,null,null,null,null,null,null,null,null,null,null,null,null,"0492","1.3G","SIGNALS, RAILWAY TRACK, EXPLOSIVE"]
[null,null,null,null,null,null,null,null,null,null,null,null,null,null,null,null,null,null,null,null,null,null,null,null,null,null,null,"0493","1.4G","SIGNALS, RAILWAY TRACK, EXPLOSIVE"]
[null,null,null,null,null,null,null,null,null,null,null,null,null,null,null,null,null,null,null,null,null,null,null,null,null,null,null,"0494","1.4D","JET PERFORATING GUNS, CHARGED"]
[null,null,null,null,null,null,null,null,null,null,null,null,null,null,null,null,null,null,null,null,null,null,null,null,null,null,null,"0495","1.3C","PROPELLANT, LIQUID"]
[null,null,null,null,null,null,null,null,null,null,null,null,null,null,null,null,null,null,null,null,null,null,null,null,null,null,null,"0496","1.1D","OCTONAL"]
[null,null,null,null,null,null,null,null,null,null,null,null,null,null,null,null,null,null,null,null,null,null,null,null,null,null,null,"0497","1.1C","PROPELLANT, LIQUID"]
[null,null,null,null,null,null,null,null,null,null,null,null,null,null,null,null,null,null,null,null,null,null,null,null,null,null,null,"0498","1.1C","PROPELLANT, SOLID"]
[null,null,null,null,null,null,null,null,null,null,null,null,null,null,null,null,null,null,null,null,null,null,null,null,null,null,null,"0499","1.3C","PROPELLANT, SOLID"]
[null,null,null,null,null,null,null,null,null,null,null,null,null,null,null,null,null,null,null,null,null,null,null,null,null,null,null,"0500","1.4S","DETONATOR ASSEMBLIES, NON-ELECTRIC"]
[null,null,null,null,null,null,null,null,null,null,null,null,null,null,null,null,null,null,null,null,null,null,null,null,null,null,null,"0501","1.4C","PROPELLANT, SOLID"]
[null,null,null,null,null,null,null,null,null,null,null,null,null,null,null,null,null,null,null,null,null,null,null,null,null,null,null,"0502","1.2C","ROCKETS"]
[null,null,null,null,null,null,null,null,null,null,null,null,null,null,null,null,null,null,null,null,null,null,null,null,null,null,null,"0503","1.4G","SAFETY DEVICES, PYROTECHNIC"]
[null,null,null,null,null,null,null,null,null,null,null,null,null,null,null,null,null,null,null,null,null,null,null,null,null,null,null,"0504","1.1D","1H-TETRAZOLE"]
[null,null,null,null,null,null,null,null,null,null,null,null,null,null,null,null,null,null,null,null,null,null,null,null,null,null,null,"0505","1.4G","SIGNALS, DISTRESS"]
[null,null,null,null,null,null,null,null,null,null,null,null,null,null,null,null,null,null,null,null,null,null,null,null,null,null,null,"0506","1.4S","SIGNALS, DISTRESS"]
[null,null,null,null,null,null,null,null,null,null,null,null,null,null,null,null,null,null,null,null,null,null,null,null,null,null,null,"0507","1.4S","SIGNALS, SMOKE"]
[null,null,null,null,null,null,null,null,null,null,null,null,null,null,null,null,null,null,null,null,null,null,null,null,null,null,null,"0508","1.3C","1-HYDROXYBENZOTRIAZOLE, ANHYDROUS"]
[null,null,null,null,null,null,null,null,null,null,null,null,null,null,null,null,null,null,null,null,null,null,null,null,null,null,null,"0509","1.4C","POWDER, SMOKELESS"]
[null,null,null,null,null,null,null,null,null,null,null,null,null,null,null,null,null,null,null,null,null,null,null,null,null,null,null,"1001",2.1,"ACETYLENE, DISSOLVED"]
[null,null,null,null,null,null,null,null,null,null,null,null,null,null,null,null,null,null,null,null,null,null,null,null,null,null,null,"1002",2.2000000000000002,"AIR, COMPRESSED"]
[null,null,null,null,null,null,null,null,null,null,null,null,null,null,null,null,null,null,null,null,null,null,null,null,null,null,null,"1003",2.2000000000000002,"AIR, REFRIGERATED LIQUID"]
[null,null,null,null,null,null,null,null,null,null,null,null,null,null,null,null,null,null,null,null,null,null,null,null,null,null,null,"1005",2.2999999999999998,"AMMONIA, ANHYDROUS"]
[null,null,null,null,null,null,null,null,null,null,null,null,null,null,null,null,null,null,null,null,null,null,null,null,null,null,null,"1006",2.2000000000000002,"ARGON, COMPRESSED"]
[null,null,null,null,null,null,null,null,null,null,null,null,null,null,null,null,null,null,null,null,null,null,null,null,null,null,null,"1008",2.2999999999999998,"BORON TRIFLUORIDE"]
[null,null,null,null,null,null,null,null,null,null,null,null,null,null,null,null,null,null,null,null,null,null,null,null,null,null,null,"1009",2.2000000000000002,"BROMOTRIFLUOROMETHANE"]
[null,null,null,null,null,null,null,null,null,null,null,null,null,null,null,null,null,null,null,null,null,null,null,null,null,null,null,"1010",2.1,"BUTADIENES, STABILIZED"]
[null,null,null,null,null,null,null,null,null,null,null,null,null,null,null,null,null,null,null,null,null,null,null,null,null,null,null,"1011",2.1,"BUTANE"]
[null,null,null,null,null,null,null,null,null,null,null,null,null,null,null,null,null,null,null,null,null,null,null,null,null,null,null,"1012",2.1,"BUTYLENE"]
[null,null,null,null,null,null,null,null,null,null,null,null,null,null,null,null,null,null,null,null,null,null,null,null,null,null,null,"1013",2.2000000000000002,"CARBON DIOXIDE"]
[null,null,null,null,null,null,null,null,null,null,null,null,null,null,null,null,null,null,null,null,null,null,null,null,null,null,null,"1016",2.2999999999999998,"CARBON MONOXIDE, COMPRESSED"]
[null,null,null,null,null,null,null,null,null,null,null,null,null,null,null,null,null,null,null,null,null,null,null,null,null,null,null,"1017",2.2999999999999998,"CHLORINE"]
[null,null,null,null,null,null,null,null,null,null,null,null,null,null,null,null,null,null,null,null,null,null,null,null,null,null,null,"1018",2.2000000000000002,"CHLORODIFLUOROMETHANE"]
[null,null,null,null,null,null,null,null,null,null,null,null,null,null,null,null,null,null,null,null,null,null,null,null,null,null,null,"1020",2.2000000000000002,"CHLOROPENTAFLUOROETHANE"]
[null,null,null,null,null,null,null,null,null,null,null,null,null,null,null,null,null,null,null,null,null,null,null,null,null,null,null,"1021",2.2000000000000002,"1-CHLORO-1,2,2,2-TETRAFLUOROETHANE"]
[null,null,null,null,null,null,null,null,null,null,null,null,null,null,null,null,null,null,null,null,null,null,null,null,null,null,null,"1022",2.2000000000000002,"CHLOROTRIFLUOROMETHANE"]
[null,null,null,null,null,null,null,null,null,null,null,null,null,null,null,null,null,null,null,null,null,null,null,null,null,null,null,"1023",2.2999999999999998,"COAL GAS, COMPRESSED"]
[null,null,null,null,null,null,null,null,null,null,null,null,null,null,null,null,null,null,null,null,null,null,null,null,null,null,null,"1026",2.2999999999999998,"CYANOGEN"]
[null,null,null,null,null,null,null,null,null,null,null,null,null,null,null,null,null,null,null,null,null,null,null,null,null,null,null,"1027",2.1,"CYCLOPROPANE"]
[null,null,null,null,null,null,null,null,null,null,null,null,null,null,null,null,null,null,null,null,null,null,null,null,null,null,null,"1028",2.2000000000000002,"DICHLORODIFLUOROMETHANE"]
[null,null,null,null,null,null,null,null,null,null,null,null,null,null,null,null,null,null,null,null,null,null,null,null,null,null,null,"1029",2.2000000000000002,"DICHLOROFLUOROMETHANE"]
[null,null,null,null,null,null,null,null,null,null,null,null,null,null,null,null,null,null,null,null,null,null,null,null,null,null,null,"1030",2.1,"1,1-DIFLUOROETHANE"]
[null,null,null,null,null,null,null,null,null,null,null,null,null,null,null,null,null,null,null,null,null,null,null,null,null,null,null,"1032",2.1,"DIMETHYLAMINE, ANHYDROUS"]
[null,null,null,null,null,null,null,null,null,null,null,null,null,null,null,null,null,null,null,null,null,null,null,null,null,null,null,"1033",2.1,"DIMETHYL ETHER"]
[null,null,null,null,null,null,null,null,null,null,null,null,null,null,null,null,null,null,null,null,null,null,null,null,null,null,null,"1035",2.1,"ETHANE"]
[null,null,null,null,null,null,null,null,null,null,null,null,null,null,null,null,null,null,null,null,null,null,null,null,null,null,null,"1036",2.1,"ETHYLAMINE"]
[null,null,null,null,null,null,null,null,null,null,null,null,null,null,null,null,null,null,null,null,null,null,null,null,null,null,null,"1037",2.1,"ETHYL CHLORIDE"]
[null,null,null,null,null,null,null,null,null,null,null,null,null,null,null,null,null,null,null,null,null,null,null,null,null,null,null,"1038",2.1,"ETHYLENE, REFRIGERATED LIQUID"]
[null,null,null,null,null,null,null,null,null,null,null,null,null,null,null,null,null,null,null,null,null,null,null,null,null,null,null,"1039",2.1,"ETHYL METHYL ETHER"]
[null,null,null,null,null,null,null,null,null,null,null,null,null,null,null,null,null,null,null,null,null,null,null,null,null,null,null,"1040",2.2999999999999998,"ETHYLENE OXIDE"]
[null,null,null,null,null,null,null,null,null,null,null,null,null,null,null,null,null,null,null,null,null,null,null,null,null,null,null,"1041",2.1,"ETHYLENE OXIDE AND CARBON DIOXIDE MIXTURE"]
[null,null,null,null,null,null,null,null,null,null,null,null,null,null,null,null,null,null,null,null,null,null,null,null,null,null,null,"1043",2.2000000000000002,"FERTILIZER AMMONIATING SOLUTION"]
[null,null,null,null,null,null,null,null,null,null,null,null,null,null,null,null,null,null,null,null,null,null,null,null,null,null,null,"1044",2.2000000000000002,"FIRE EXTINGUISHERS"]
[null,null,null,null,null,null,null,null,null,null,null,null,null,null,null,null,null,null,null,null,null,null,null,null,null,null,null,"1045",2.2999999999999998,"FLUORINE, COMPRESSED"]
[null,null,null,null,null,null,null,null,null,null,null,null,null,null,null,null,null,null,null,null,null,null,null,null,null,null,null,"1046",2.2000000000000002,"HELIUM, COMPRESSED"]
[null,null,null,null,null,null,null,null,null,null,null,null,null,null,null,null,null,null,null,null,null,null,null,null,null,null,null,"1048",2.2999999999999998,"HYDROGEN BROMIDE, ANHYDROUS"]
[null,null,null,null,null,null,null,null,null,null,null,null,null,null,null,null,null,null,null,null,null,null,null,null,null,null,null,"1049",2.1,"HYDROGEN, COMPRESSED"]
[null,null,null,null,null,null,null,null,null,null,null,null,null,null,null,null,null,null,null,null,null,null,null,null,null,null,null,"1050",2.2999999999999998,"HYDROGEN CHLORIDE, ANHYDROUS"]
[null,null,null,null,null,null,null,null,null,null,null,null,null,null,null,null,null,null,null,null,null,null,null,null,null,null,null,"1051",6.1,"HYDROGEN CYANIDE, STABILIZED"]
[null,null,null,null,null,null,null,null,null,null,null,null,null,null,null,null,null,null,null,null,null,null,null,null,null,null,null,"1052",8,"HYDROGEN FLUORIDE, ANHYDROUS"]
[null,null,null,null,null,null,null,null,null,null,null,null,null,null,null,null,null,null,null,null,null,null,null,null,null,null,null,"1053",2.2999999999999998,"HYDROGEN SULPHIDE"]
[null,null,null,null,null,null,null,null,null,null,null,null,null,null,null,null,null,null,null,null,null,null,null,null,null,null,null,"1055",2.1,"ISOBUTYLENE"]
[null,null,null,null,null,null,null,null,null,null,null,null,null,null,null,null,null,null,null,null,null,null,null,null,null,null,null,"1056",2.2000000000000002,"KRYPTON, COMPRESSED"]
[null,null,null,null,null,null,null,null,null,null,null,null,null,null,null,null,null,null,null,null,null,null,null,null,null,null,null,"1057",2.1,"LIGHTERS"]
[null,null,null,null,null,null,null,null,null,null,null,null,null,null,null,null,null,null,null,null,null,null,null,null,null,null,null,"1058",2.2000000000000002,"LIQUEFIED GASES"]
[null,null,null,null,null,null,null,null,null,null,null,null,null,null,null,null,null,null,null,null,null,null,null,null,null,null,null,"1060",2.1,"METHYLACETYLENE AND PROPADIENE MIXTURE, STABILIZED"]
[null,null,null,null,null,null,null,null,null,null,null,null,null,null,null,null,null,null,null,null,null,null,null,null,null,null,null,"1061",2.1,"METHYLAMINE, ANHYDROUS"]
[null,null,null,null,null,null,null,null,null,null,null,null,null,null,null,null,null,null,null,null,null,null,null,null,null,null,null,"1062",2.2999999999999998,"METHYL BROMIDE"]
[null,null,null,null,null,null,null,null,null,null,null,null,null,null,null,null,null,null,null,null,null,null,null,null,null,null,null,"1063",2.1,"METHYL CHLORIDE"]
[null,null,null,null,null,null,null,null,null,null,null,null,null,null,null,null,null,null,null,null,null,null,null,null,null,null,null,"1064",2.2999999999999998,"METHYL MERCAPTAN"]
[null,null,null,null,null,null,null,null,null,null,null,null,null,null,null,null,null,null,null,null,null,null,null,null,null,null,null,"1065",2.2000000000000002,"NEON, COMPRESSED"]
[null,null,null,null,null,null,null,null,null,null,null,null,null,null,null,null,null,null,null,null,null,null,null,null,null,null,null,"1066",2.2000000000000002,"NITROGEN, COMPRESSED"]
[null,null,null,null,null,null,null,null,null,null,null,null,null,null,null,null,null,null,null,null,null,null,null,null,null,null,null,"1067",2.2999999999999998,"DINITROGEN TETROXIDE"]
[null,null,null,null,null,null,null,null,null,null,null,null,null,null,null,null,null,null,null,null,null,null,null,null,null,null,null,"1069",2.2999999999999998,"NITROSYL CHLORIDE"]
[null,null,null,null,null,null,null,null,null,null,null,null,null,null,null,null,null,null,null,null,null,null,null,null,null,null,null,"1070",2.2000000000000002,"NITROUS OXIDE"]
[null,null,null,null,null,null,null,null,null,null,null,null,null,null,null,null,null,null,null,null,null,null,null,null,null,null,null,"1071",2.2999999999999998,"OIL GAS, COMPRESSED"]
[null,null,null,null,null,null,null,null,null,null,null,null,null,null,null,null,null,null,null,null,null,null,null,null,null,null,null,"1072",2.2000000000000002,"OXYGEN, COMPRESSED"]
[null,null,null,null,null,null,null,null,null,null,null,null,null,null,null,null,null,null,null,null,null,null,null,null,null,null,null,"1073",2.2000000000000002,"OXYGEN, REFRIGERATED LIQUID"]
[null,null,null,null,null,null,null,null,null,null,null,null,null,null,null,null,null,null,null,null,null,null,null,null,null,null,null,"1075",2.1,"PETROLEUM GASES, LIQUEFIED"]
[null,null,null,null,null,null,null,null,null,null,null,null,null,null,null,null,null,null,null,null,null,null,null,null,null,null,null,"1076",2.2999999999999998,"PHOSGENE"]
[null,null,null,null,null,null,null,null,null,null,null,null,null,null,null,null,null,null,null,null,null,null,null,null,null,null,null,"1077",2.1,"PROPYLENE"]
[null,null,null,null,null,null,null,null,null,null,null,null,null,null,null,null,null,null,null,null,null,null,null,null,null,null,null,"1078",2.2000000000000002,"REFRIGERANT GAS, N.O.S."]
[null,null,null,null,null,null,null,null,null,null,null,null,null,null,null,null,null,null,null,null,null,null,null,null,null,null,null,"1079",2.2999999999999998,"SULPHUR DIOXIDE"]
[null,null,null,null,null,null,null,null,null,null,null,null,null,null,null,null,null,null,null,null,null,null,null,null,null,null,null,"1080",2.2000000000000002,"SULPHUR HEXAFLUORIDE"]
[null,null,null,null,null,null,null,null,null,null,null,null,null,null,null,null,null,null,null,null,null,null,null,null,null,null,null,"1081",2.1,"TETRAFLUOROETHYLENE, STABILIZED"]
[null,null,null,null,null,null,null,null,null,null,null,null,null,null,null,null,null,null,null,null,null,null,null,null,null,null,null,"1082",2.2999999999999998,"TRIFLUOROCHLOROETHYLENE, STABILIZED"]
[null,null,null,null,null,null,null,null,null,null,null,null,null,null,null,null,null,null,null,null,null,null,null,null,null,null,null,"1083",2.1,"TRIMETHYLAMINE, ANHYDROUS"]
[null,null,null,null,null,null,null,null,null,null,null,null,null,null,null,null,null,null,null,null,null,null,null,null,null,null,null,"1085",2.1,"VINYL BROMIDE, STABILIZED"]
[null,null,null,null,null,null,null,null,null,null,null,null,null,null,null,null,null,null,null,null,null,null,null,null,null,null,null,"1086",2.1,"VINYL CHLORIDE, STABILIZED"]
[null,null,null,null,null,null,null,null,null,null,null,null,null,null,null,null,null,null,null,null,null,null,null,null,null,null,null,"1087",2.1,"VINYL METHYL ETHER, STABILIZED"]
[null,null,null,null,null,null,null,null,null,null,null,null,null,null,null,null,null,null,null,null,null,null,null,null,null,null,null,"1088",3,"ACETAL"]
[null,null,null,null,null,null,null,null,null,null,null,null,null,null,null,null,null,null,null,null,null,null,null,null,null,null,null,"1089",3,"ACETALDEHYDE"]
[null,null,null,null,null,null,null,null,null,null,null,null,null,null,null,null,null,null,null,null,null,null,null,null,null,null,null,"1090",3,"ACETONE"]
[null,null,null,null,null,null,null,null,null,null,null,null,null,null,null,null,null,null,null,null,null,null,null,null,null,null,null,"1091",3,"ACETONE OILS"]
[null,null,null,null,null,null,null,null,null,null,null,null,null,null,null,null,null,null,null,null,null,null,null,null,null,null,null,"1092",6.1,"ACROLEIN, STABILIZED"]
[null,null,null,null,null,null,null,null,null,null,null,null,null,null,null,null,null,null,null,null,null,null,null,null,null,null,null,"1093",3,"ACRYLONITRILE, STABILIZED"]
[null,null,null,null,null,null,null,null,null,null,null,null,null,null,null,null,null,null,null,null,null,null,null,null,null,null,null,"1098",6.1,"ALLYL ALCOHOL"]
[null,null,null,null,null,null,null,null,null,null,null,null,null,null,null,null,null,null,null,null,null,null,null,null,null,null,null,"1099",3,"ALLYL BROMIDE"]
[null,null,null,null,null,null,null,null,null,null,null,null,null,null,null,null,null,null,null,null,null,null,null,null,null,null,null,"1100",3,"ALLYL CHLORIDE"]
[null,null,null,null,null,null,null,null,null,null,null,null,null,null,null,null,null,null,null,null,null,null,null,null,null,null,null,"1104",3,"AMYL ACETATES"]
[null,null,null,null,null,null,null,null,null,null,null,null,null,null,null,null,null,null,null,null,null,null,null,null,null,null,null,"1105",3,"PENTANOLS"]
[null,null,null,null,null,null,null,null,null,null,null,null,null,null,null,null,null,null,null,null,null,null,null,null,null,null,null,"1106",3,"AMYLAMINE"]
[null,null,null,null,null,null,null,null,null,null,null,null,null,null,null,null,null,null,null,null,null,null,null,null,null,null,null,"1107",3,"AMYL CHLORIDE"]
[null,null,null,null,null,null,null,null,null,null,null,null,null,null,null,null,null,null,null,null,null,null,null,null,null,null,null,"1108",3,"1-PENTENE"]
[null,null,null,null,null,null,null,null,null,null,null,null,null,null,null,null,null,null,null,null,null,null,null,null,null,null,null,"1109",3,"AMYL FORMATES"]
[null,null,null,null,null,null,null,null,null,null,null,null,null,null,null,null,null,null,null,null,null,null,null,null,null,null,null,"1110",3,"n-AMYL METHYL KETONE"]
[null,null,null,null,null,null,null,null,null,null,null,null,null,null,null,null,null,null,null,null,null,null,null,null,null,null,null,"1111",3,"AMYL MERCAPTAN"]
[null,null,null,null,null,null,null,null,null,null,null,null,null,null,null,null,null,null,null,null,null,null,null,null,null,null,null,"1112",3,"AMYL NITRATE"]
[null,null,null,null,null,null,null,null,null,null,null,null,null,null,null,null,null,null,null,null,null,null,null,null,null,null,null,"1113",3,"AMYL NITRITE"]
[null,null,null,null,null,null,null,null,null,null,null,null,null,null,null,null,null,null,null,null,null,null,null,null,null,null,null,"1114",3,"BENZENE"]
[null,null,null,null,null,null,null,null,null,null,null,null,null,null,null,null,null,null,null,null,null,null,null,null,null,null,null,"1120",3,"BUTANOLS"]
[null,null,null,null,null,null,null,null,null,null,null,null,null,null,null,null,null,null,null,null,null,null,null,null,null,null,null,"1123",3,"BUTYL ACETATES"]
[null,null,null,null,null,null,null,null,null,null,null,null,null,null,null,null,null,null,null,null,null,null,null,null,null,null,null,"1125",3,"n-BUTYLAMINE"]
[null,null,null,null,null,null,null,null,null,null,null,null,null,null,null,null,null,null,null,null,null,null,null,null,null,null,null,"1126",3,"1-BROMOBUTANE"]
[null,null,null,null,null,null,null,null,null,null,null,null,null,null,null,null,null,null,null,null,null,null,null,null,null,null,null,"1127",3,"CHLOROBUTANES"]
[null,null,null,null,null,null,null,null,null,null,null,null,null,null,null,null,null,null,null,null,null,null,null,null,null,null,null,"1128",3,"n-BUTYL FORMATE"]
[null,null,null,null,null,null,null,null,null,null,null,null,null,null,null,null,null,null,null,null,null,null,null,null,null,null,null,"1129",3,"BUTYRALDEHYDE"]
[null,null,null,null,null,null,null,null,null,null,null,null,null,null,null,null,null,null,null,null,null,null,null,null,null,null,null,"1130",3,"CAMPHOR OIL"]
[null,null,null,null,null,null,null,null,null,null,null,null,null,null,null,null,null,null,null,null,null,null,null,null,null,null,null,"1131",3,"CARBON DISULPHIDE"]
[null,null,null,null,null,null,null,null,null,null,null,null,null,null,null,null,null,null,null,null,null,null,null,null,null,null,null,"1133",3,"ADHESIVES"]
[null,null,null,null,null,null,null,null,null,null,null,null,null,null,null,null,null,null,null,null,null,null,null,null,null,null,null,"1134",3,"CHLOROBENZENE"]
[null,null,null,null,null,null,null,null,null,null,null,null,null,null,null,null,null,null,null,null,null,null,null,null,null,null,null,"1135",6.1,"ETHYLENE CHLOROHYDRIN"]
[null,null,null,null,null,null,null,null,null,null,null,null,null,null,null,null,null,null,null,null,null,null,null,null,null,null,null,"1136",3,"COAL TAR DISTILLATES, FLAMMABLE"]
[null,null,null,null,null,null,null,null,null,null,null,null,null,null,null,null,null,null,null,null,null,null,null,null,null,null,null,"1139",3,"COATING SOLUTION"]
[null,null,null,null,null,null,null,null,null,null,null,null,null,null,null,null,null,null,null,null,null,null,null,null,null,null,null,"1143",6.1,"CROTONALDEHYDE"]
[null,null,null,null,null,null,null,null,null,null,null,null,null,null,null,null,null,null,null,null,null,null,null,null,null,null,null,"1144",3,"CROTONYLENE"]
[null,null,null,null,null,null,null,null,null,null,null,null,null,null,null,null,null,null,null,null,null,null,null,null,null,null,null,"1145",3,"CYCLOHEXANE"]
[null,null,null,null,null,null,null,null,null,null,null,null,null,null,null,null,null,null,null,null,null,null,null,null,null,null,null,"1146",3,"CYCLOPENTANE"]
[null,null,null,null,null,null,null,null,null,null,null,null,null,null,null,null,null,null,null,null,null,null,null,null,null,null,null,"1147",3,"DECAHYDRONAPHTHALENE"]
[null,null,null,null,null,null,null,null,null,null,null,null,null,null,null,null,null,null,null,null,null,null,null,null,null,null,null,"1148",3,"DIACETONE ALCOHOL"]
[null,null,null,null,null,null,null,null,null,null,null,null,null,null,null,null,null,null,null,null,null,null,null,null,null,null,null,"1149",3,"DIBUTYL ETHERS"]
[null,null,null,null,null,null,null,null,null,null,null,null,null,null,null,null,null,null,null,null,null,null,null,null,null,null,null,"1150",3,"1,2-DICHLOROETHYLENE"]
[null,null,null,null,null,null,null,null,null,null,null,null,null,null,null,null,null,null,null,null,null,null,null,null,null,null,null,"1152",3,"DICHLOROPENTANES"]
[null,null,null,null,null,null,null,null,null,null,null,null,null,null,null,null,null,null,null,null,null,null,null,null,null,null,null,"1153",3,"ETHYLENE GLYCOL DIETHYL ETHER"]
[null,null,null,null,null,null,null,null,null,null,null,null,null,null,null,null,null,null,null,null,null,null,null,null,null,null,null,"1154",3,"DIETHYLAMINE"]
[null,null,null,null,null,null,null,null,null,null,null,null,null,null,null,null,null,null,null,null,null,null,null,null,null,null,null,"1155",3,"DIETHYL ETHER"]
[null,null,null,null,null,null,null,null,null,null,null,null,null,null,null,null,null,null,null,null,null,null,null,null,null,null,null,"1156",3,"DIETHYL KETONE"]
[null,null,null,null,null,null,null,null,null,null,null,null,null,null,null,null,null,null,null,null,null,null,null,null,null,null,null,"1157",3,"DIISOBUTYL KETONE"]
[null,null,null,null,null,null,null,null,null,null,null,null,null,null,null,null,null,null,null,null,null,null,null,null,null,null,null,"1158",3,"DIISOPROPYLAMINE"]
[null,null,null,null,null,null,null,null,null,null,null,null,null,null,null,null,null,null,null,null,null,null,null,null,null,null,null,"1159",3,"DIISOPROPYL ETHER"]
[null,null,null,null,null,null,null,null,null,null,null,null,null,null,null,null,null,null,null,null,null,null,null,null,null,null,null,"1160",3,"DIMETHYLAMINE, AQUEOUS SOLUTION"]
[null,null,null,null,null,null,null,null,null,null,null,null,null,null,null,null,null,null,null,null,null,null,null,null,null,null,null,"1161",3,"DIMETHYL CARBONATE"]
[null,null,null,null,null,null,null,null,null,null,null,null,null,null,null,null,null,null,null,null,null,null,null,null,null,null,null,"1162",3,"DIMETHYLDICHLOROSILANE"]
[null,null,null,null,null,null,null,null,null,null,null,null,null,null,null,null,null,null,null,null,null,null,null,null,null,null,null,"1163",6.1,"DIMETHYLHYDRAZINE, UNSYMMETRICAL"]
[null,null,null,null,null,null,null,null,null,null,null,null,null,null,null,null,null,null,null,null,null,null,null,null,null,null,null,"1164",3,"DIMETHYL SULPHIDE"]
[null,null,null,null,null,null,null,null,null,null,null,null,null,null,null,null,null,null,null,null,null,null,null,null,null,null,null,"1165",3,"DIOXANE"]
[null,null,null,null,null,null,null,null,null,null,null,null,null,null,null,null,null,null,null,null,null,null,null,null,null,null,null,"1166",3,"DIOXOLANE"]
[null,null,null,null,null,null,null,null,null,null,null,null,null,null,null,null,null,null,null,null,null,null,null,null,null,null,null,"1167",3,"DIVINYL ETHER, STABILIZED"]
[null,null,null,null,null,null,null,null,null,null,null,null,null,null,null,null,null,null,null,null,null,null,null,null,null,null,null,"1169",3,"EXTRACTS, AROMATIC, LIQUID"]
[null,null,null,null,null,null,null,null,null,null,null,null,null,null,null,null,null,null,null,null,null,null,null,null,null,null,null,"1170",3,"ETHANOL"]
[null,null,null,null,null,null,null,null,null,null,null,null,null,null,null,null,null,null,null,null,null,null,null,null,null,null,null,"1171",3,"ETHYLENE GLYCOL MONOETHYL ETHER"]
[null,null,null,null,null,null,null,null,null,null,null,null,null,null,null,null,null,null,null,null,null,null,null,null,null,null,null,"1172",3,"ETHYLENE GLYCOL MONOETHYL ETHER ACETATE"]
[null,null,null,null,null,null,null,null,null,null,null,null,null,null,null,null,null,null,null,null,null,null,null,null,null,null,null,"1173",3,"ETHYL ACETATE"]
[null,null,null,null,null,null,null,null,null,null,null,null,null,null,null,null,null,null,null,null,null,null,null,null,null,null,null,"1175",3,"ETHYLBENZENE"]
[null,null,null,null,null,null,null,null,null,null,null,null,null,null,null,null,null,null,null,null,null,null,null,null,null,null,null,"1176",3,"ETHYL BORATE"]
[null,null,null,null,null,null,null,null,null,null,null,null,null,null,null,null,null,null,null,null,null,null,null,null,null,null,null,"1177",3,"2-ETHYLBUTYL ACETATE"]
[null,null,null,null,null,null,null,null,null,null,null,null,null,null,null,null,null,null,null,null,null,null,null,null,null,null,null,"1178",3,"2-ETHYLBUTYRALDEHYDE"]
[null,null,null,null,null,null,null,null,null,null,null,null,null,null,null,null,null,null,null,null,null,null,null,null,null,null,null,"1179",3,"ETHYL BUTYL ETHER"]
[null,null,null,null,null,null,null,null,null,null,null,null,null,null,null,null,null,null,null,null,null,null,null,null,null,null,null,"1180",3,"ETHYL BUTYRATE"]
[null,null,null,null,null,null,null,null,null,null,null,null,null,null,null,null,null,null,null,null,null,null,null,null,null,null,null,"1181",6.1,"ETHYL CHLOROACETATE"]
[null,null,null,null,null,null,null,null,null,null,null,null,null,null,null,null,null,null,null,null,null,null,null,null,null,null,null,"1182",6.1,"ETHYL CHLOROFORMATE"]
[null,null,null,null,null,null,null,null,null,null,null,null,null,null,null,null,null,null,null,null,null,null,null,null,null,null,null,"1183",4.3,"ETHYLDICHLOROSILANE"]
[null,null,null,null,null,null,null,null,null,null,null,null,null,null,null,null,null,null,null,null,null,null,null,null,null,null,null,"1184",3,"ETHYLENE DICHLORIDE"]
[null,null,null,null,null,null,null,null,null,null,null,null,null,null,null,null,null,null,null,null,null,null,null,null,null,null,null,"1185",6.1,"ETHYLENEIMINE, STABILIZED"]
[null,null,null,null,null,null,null,null,null,null,null,null,null,null,null,null,null,null,null,null,null,null,null,null,null,null,null,"1188",3,"ETHYLENE GLYCOL MONOMETHYL ETHER"]
[null,null,null,null,null,null,null,null,null,null,null,null,null,null,null,null,null,null,null,null,null,null,null,null,null,null,null,"1189",3,"ETHYLENE GLYCOL MONOMETHYL ETHER ACETATE"]
[null,null,null,null,null,null,null,null,null,null,null,null,null,null,null,null,null,null,null,null,null,null,null,null,null,null,null,"1190",3,"ETHYL FORMATE"]
[null,null,null,null,null,null,null,null,null,null,null,null,null,null,null,null,null,null,null,null,null,null,null,null,null,null,null,"1191",3,"OCTYL ALDEHYDES"]
[null,null,null,null,null,null,null,null,null,null,null,null,null,null,null,null,null,null,null,null,null,null,null,null,null,null,null,"1192",3,"ETHYL LACTATE"]
[null,null,null,null,null,null,null,null,null,null,null,null,null,null,null,null,null,null,null,null,null,null,null,null,null,null,null,"1193",3,"ETHYL METHYL KETONE"]
[null,null,null,null,null,null,null,null,null,null,null,null,null,null,null,null,null,null,null,null,null,null,null,null,null,null,null,"1194",3,"ETHYL NITRITE SOLUTION"]
[null,null,null,null,null,null,null,null,null,null,null,null,null,null,null,null,null,null,null,null,null,null,null,null,null,null,null,"1195",3,"ETHYL PROPIONATE"]
[null,null,null,null,null,null,null,null,null,null,null,null,null,null,null,null,null,null,null,null,null,null,null,null,null,null,null,"1196",3,"ETHYLTRICHLOROSILANE"]
[null,null,null,null,null,null,null,null,null,null,null,null,null,null,null,null,null,null,null,null,null,null,null,null,null,null,null,"1197",3,"EXTRACTS, FLAVOURING, LIQUID"]
[null,null,null,null,null,null,null,null,null,null,null,null,null,null,null,null,null,null,null,null,null,null,null,null,null,null,null,"1198",3,"FORMALDEHYDE SOLUTION, FLAMMABLE"]
[null,null,null,null,null,null,null,null,null,null,null,null,null,null,null,null,null,null,null,null,null,null,null,null,null,null,null,"1199",6.1,"FURALDEHYDES"]
[null,null,null,null,null,null,null,null,null,null,null,null,null,null,null,null,null,null,null,null,null,null,null,null,null,null,null,"1201",3,"FUSEL OIL"]
[null,null,null,null,null,null,null,null,null,null,null,null,null,null,null,null,null,null,null,null,null,null,null,null,null,null,null,"1202",3,"GAS OIL"]
[null,null,null,null,null,null,null,null,null,null,null,null,null,null,null,null,null,null,null,null,null,null,null,null,null,null,null,"1203",3,"MOTOR SPIRIT"]
[null,null,null,null,null,null,null,null,null,null,null,null,null,null,null,null,null,null,null,null,null,null,null,null,null,null,null,"1204",3,"NITROGLYCERIN SOLUTION IN ALCOHOL"]
[null,null,null,null,null,null,null,null,null,null,null,null,null,null,null,null,null,null,null,null,null,null,null,null,null,null,null,"1206",3,"HEPTANES"]
[null,null,null,null,null,null,null,null,null,null,null,null,null,null,null,null,null,null,null,null,null,null,null,null,null,null,null,"1207",3,"HEXALDEHYDE"]
[null,null,null,null,null,null,null,null,null,null,null,null,null,null,null,null,null,null,null,null,null,null,null,null,null,null,null,"1208",3,"HEXANES"]
[null,null,null,null,null,null,null,null,null,null,null,null,null,null,null,null,null,null,null,null,null,null,null,null,null,null,null,"1210",3,"PRINTING INK"]
[null,null,null,null,null,null,null,null,null,null,null,null,null,null,null,null,null,null,null,null,null,null,null,null,null,null,null,"1212",3,"ISOBUTANOL"]
[null,null,null,null,null,null,null,null,null,null,null,null,null,null,null,null,null,null,null,null,null,null,null,null,null,null,null,"1213",3,"ISOBUTYL ACETATE"]
[null,null,null,null,null,null,null,null,null,null,null,null,null,null,null,null,null,null,null,null,null,null,null,null,null,null,null,"1214",3,"ISOBUTYLAMINE"]
[null,null,null,null,null,null,null,null,null,null,null,null,null,null,null,null,null,null,null,null,null,null,null,null,null,null,null,"1216",3,"ISOOCTENES"]
[null,null,null,null,null,null,null,null,null,null,null,null,null,null,null,null,null,null,null,null,null,null,null,null,null,null,null,"1218",3,"ISOPRENE, STABILIZED"]
[null,null,null,null,null,null,null,null,null,null,null,null,null,null,null,null,null,null,null,null,null,null,null,null,null,null,null,"1219",3,"ISOPROPANOL"]
[null,null,null,null,null,null,null,null,null,null,null,null,null,null,null,null,null,null,null,null,null,null,null,null,null,null,null,"1220",3,"ISOPROPYL ACETATE"]
[null,null,null,null,null,null,null,null,null,null,null,null,null,null,null,null,null,null,null,null,null,null,null,null,null,null,null,"1221",3,"ISOPROPYLAMINE"]
[null,null,null,null,null,null,null,null,null,null,null,null,null,null,null,null,null,null,null,null,null,null,null,null,null,null,null,"1222",3,"ISOPROPYL NITRATE"]
[null,null,null,null,null,null,null,null,null,null,null,null,null,null,null,null,null,null,null,null,null,null,null,null,null,null,null,"1223",3,"KEROSENE"]
[null,null,null,null,null,null,null,null,null,null,null,null,null,null,null,null,null,null,null,null,null,null,null,null,null,null,null,"1224",3,"KETONES, LIQUID, N.O.S."]
[null,null,null,null,null,null,null,null,null,null,null,null,null,null,null,null,null,null,null,null,null,null,null,null,null,null,null,"1228",3,"MERCAPTANS, LIQUID, FLAMMABLE, TOXIC, N.O.S."]
[null,null,null,null,null,null,null,null,null,null,null,null,null,null,null,null,null,null,null,null,null,null,null,null,null,null,null,"1229",3,"MESITYL OXIDE"]
[null,null,null,null,null,null,null,null,null,null,null,null,null,null,null,null,null,null,null,null,null,null,null,null,null,null,null,"1230",3,"METHANOL"]
[null,null,null,null,null,null,null,null,null,null,null,null,null,null,null,null,null,null,null,null,null,null,null,null,null,null,null,"1231",3,"METHYL ACETATE"]
[null,null,null,null,null,null,null,null,null,null,null,null,null,null,null,null,null,null,null,null,null,null,null,null,null,null,null,"1233",3,"METHYLAMYL ACETATE"]
[null,null,null,null,null,null,null,null,null,null,null,null,null,null,null,null,null,null,null,null,null,null,null,null,null,null,null,"1234",3,"METHYLAL"]
[null,null,null,null,null,null,null,null,null,null,null,null,null,null,null,null,null,null,null,null,null,null,null,null,null,null,null,"1235",3,"METHYLAMINE, AQUEOUS SOLUTION"]
[null,null,null,null,null,null,null,null,null,null,null,null,null,null,null,null,null,null,null,null,null,null,null,null,null,null,null,"1237",3,"METHYL BUTYRATE"]
[null,null,null,null,null,null,null,null,null,null,null,null,null,null,null,null,null,null,null,null,null,null,null,null,null,null,null,"1238",6.1,"METHYL CHLOROFORMATE"]
[null,null,null,null,null,null,null,null,null,null,null,null,null,null,null,null,null,null,null,null,null,null,null,null,null,null,null,"1239",6.1,"METHYL CHLOROMETHYL ETHER"]
[null,null,null,null,null,null,null,null,null,null,null,null,null,null,null,null,null,null,null,null,null,null,null,null,null,null,null,"1242",4.3,"METHYLDICHLOROSILANE"]
[null,null,null,null,null,null,null,null,null,null,null,null,null,null,null,null,null,null,null,null,null,null,null,null,null,null,null,"1243",3,"METHYL FORMATE"]
[null,null,null,null,null,null,null,null,null,null,null,null,null,null,null,null,null,null,null,null,null,null,null,null,null,null,null,"1244",6.1,"METHYLHYDRAZINE"]
[null,null,null,null,null,null,null,null,null,null,null,null,null,null,null,null,null,null,null,null,null,null,null,null,null,null,null,"1245",3,"METHYL ISOBUTYL KETONE"]
[null,null,null,null,null,null,null,null,null,null,null,null,null,null,null,null,null,null,null,null,null,null,null,null,null,null,null,"1246",3,"METHYL ISOPROPENYL KETONE, STABILIZED"]
[null,null,null,null,null,null,null,null,null,null,null,null,null,null,null,null,null,null,null,null,null,null,null,null,null,null,null,"1247",3,"METHYL METHACRYLATE MONOMER, STABILIZED"]
[null,null,null,null,null,null,null,null,null,null,null,null,null,null,null,null,null,null,null,null,null,null,null,null,null,null,null,"1248",3,"METHYL PROPIONATE"]
[null,null,null,null,null,null,null,null,null,null,null,null,null,null,null,null,null,null,null,null,null,null,null,null,null,null,null,"1249",3,"METHYL PROPYL KETONE"]
[null,null,null,null,null,null,null,null,null,null,null,null,null,null,null,null,null,null,null,null,null,null,null,null,null,null,null,"1250",3,"METHYLTRICHLOROSILANE"]
[null,null,null,null,null,null,null,null,null,null,null,null,null,null,null,null,null,null,null,null,null,null,null,null,null,null,null,"1251",6.1,"METHYL VINYL KETONE, STABILIZED"]
[null,null,null,null,null,null,null,null,null,null,null,null,null,null,null,null,null,null,null,null,null,null,null,null,null,null,null,"1259",6.1,"NICKEL CARBONYL"]
[null,null,null,null,null,null,null,null,null,null,null,null,null,null,null,null,null,null,null,null,null,null,null,null,null,null,null,"1261",3,"NITROMETHANE"]
[null,null,null,null,null,null,null,null,null,null,null,null,null,null,null,null,null,null,null,null,null,null,null,null,null,null,null,"1262",3,"OCTANES"]
[null,null,null,null,null,null,null,null,null,null,null,null,null,null,null,null,null,null,null,null,null,null,null,null,null,null,null,"1263",3,"PAINT"]
[null,null,null,null,null,null,null,null,null,null,null,null,null,null,null,null,null,null,null,null,null,null,null,null,null,null,null,"1264",3,"PARALDEHYDE"]
[null,null,null,null,null,null,null,null,null,null,null,null,null,null,null,null,null,null,null,null,null,null,null,null,null,null,null,"1265",3,"PENTANES"]
[null,null,null,null,null,null,null,null,null,null,null,null,null,null,null,null,null,null,null,null,null,null,null,null,null,null,null,"1266",3,"PERFUMERY PRODUCTS"]
[null,null,null,null,null,null,null,null,null,null,null,null,null,null,null,null,null,null,null,null,null,null,null,null,null,null,null,"1267",3,"PETROLEUM CRUDE OIL"]
[null,null,null,null,null,null,null,null,null,null,null,null,null,null,null,null,null,null,null,null,null,null,null,null,null,null,null,"1268",3,"PETROLEUM DISTILLATES, N.O.S."]
[null,null,null,null,null,null,null,null,null,null,null,null,null,null,null,null,null,null,null,null,null,null,null,null,null,null,null,"1272",3,"PINE OIL"]
[null,null,null,null,null,null,null,null,null,null,null,null,null,null,null,null,null,null,null,null,null,null,null,null,null,null,null,"1274",3,"n-PROPANOL"]
[null,null,null,null,null,null,null,null,null,null,null,null,null,null,null,null,null,null,null,null,null,null,null,null,null,null,null,"1275",3,"PROPIONALDEHYDE"]
[null,null,null,null,null,null,null,null,null,null,null,null,null,null,null,null,null,null,null,null,null,null,null,null,null,null,null,"1276",3,"n-PROPYL ACETATE"]
[null,null,null,null,null,null,null,null,null,null,null,null,null,null,null,null,null,null,null,null,null,null,null,null,null,null,null,"1277",3,"PROPYLAMINE"]
[null,null,null,null,null,null,null,null,null,null,null,null,null,null,null,null,null,null,null,null,null,null,null,null,null,null,null,"1278",3,"1-CHLOROPROPANE"]
[null,null,null,null,null,null,null,null,null,null,null,null,null,null,null,null,null,null,null,null,null,null,null,null,null,null,null,"1279",3,"1,2-DICHLOROPROPANE"]
[null,null,null,null,null,null,null,null,null,null,null,null,null,null,null,null,null,null,null,null,null,null,null,null,null,null,null,"1280",3,"PROPYLENE OXIDE"]
[null,null,null,null,null,null,null,null,null,null,null,null,null,null,null,null,null,null,null,null,null,null,null,null,null,null,null,"1281",3,"PROPYL FORMATES"]
[null,null,null,null,null,null,null,null,null,null,null,null,null,null,null,null,null,null,null,null,null,null,null,null,null,null,null,"1282",3,"PYRIDINE"]
[null,null,null,null,null,null,null,null,null,null,null,null,null,null,null,null,null,null,null,null,null,null,null,null,null,null,null,"1286",3,"ROSIN OIL"]
[null,null,null,null,null,null,null,null,null,null,null,null,null,null,null,null,null,null,null,null,null,null,null,null,null,null,null,"1287",3,"RUBBER SOLUTION"]
[null,null,null,null,null,null,null,null,null,null,null,null,null,null,null,null,null,null,null,null,null,null,null,null,null,null,null,"1288",3,"SHALE OIL"]
[null,null,null,null,null,null,null,null,null,null,null,null,null,null,null,null,null,null,null,null,null,null,null,null,null,null,null,"1289",3,"SODIUM METHYLATE SOLUTION"]
[null,null,null,null,null,null,null,null,null,null,null,null,null,null,null,null,null,null,null,null,null,null,null,null,null,null,null,"1292",3,"TETRAETHYL SILICATE"]
[null,null,null,null,null,null,null,null,null,null,null,null,null,null,null,null,null,null,null,null,null,null,null,null,null,null,null,"1293",3,"TINCTURES, MEDICINAL"]
[null,null,null,null,null,null,null,null,null,null,null,null,null,null,null,null,null,null,null,null,null,null,null,null,null,null,null,"1294",3,"TOLUENE"]
[null,null,null,null,null,null,null,null,null,null,null,null,null,null,null,null,null,null,null,null,null,null,null,null,null,null,null,"1295",4.3,"TRICHLOROSILANE"]
[null,null,null,null,null,null,null,null,null,null,null,null,null,null,null,null,null,null,null,null,null,null,null,null,null,null,null,"1296",3,"TRIETHYLAMINE"]
[null,null,null,null,null,null,null,null,null,null,null,null,null,null,null,null,null,null,null,null,null,null,null,null,null,null,null,"1297",3,"TRIMETHYLAMINE, AQUEOUS SOLUTION"]
[null,null,null,null,null,null,null,null,null,null,null,null,null,null,null,null,null,null,null,null,null,null,null,null,null,null,null,"1298",3,"TRIMETHYLCHLOROSILANE"]
[null,null,null,null,null,null,null,null,null,null,null,null,null,null,null,null,null,null,null,null,null,null,null,null,null,null,null,"1299",3,"TURPENTINE"]
[null,null,null,null,null,null,null,null,null,null,null,null,null,null,null,null,null,null,null,null,null,null,null,null,null,null,null,"1300",3,"TURPENTINE SUBSTITUTE"]
[null,null,null,null,null,null,null,null,null,null,null,null,null,null,null,null,null,null,null,null,null,null,null,null,null,null,null,"1301",3,"VINYL ACETATE, STABILIZED"]
[null,null,null,null,null,null,null,null,null,null,null,null,null,null,null,null,null,null,null,null,null,null,null,null,null,null,null,"1302",3,"VINYL ETHYL ETHER, STABILIZED"]
[null,null,null,null,null,null,null,null,null,null,null,null,null,null,null,null,null,null,null,null,null,null,null,null,null,null,null,"1303",3,"VINYLIDENE CHLORIDE, STABILIZED"]
[null,null,null,null,null,null,null,null,null,null,null,null,null,null,null,null,null,null,null,null,null,null,null,null,null,null,null,"1304",3,"VINYL ISOBUTYL ETHER, STABILIZED"]
[null,null,null,null,null,null,null,null,null,null,null,null,null,null,null,null,null,null,null,null,null,null,null,null,null,null,null,"1305",3,"VINYLTRICHLOROSILANE"]
[null,null,null,null,null,null,null,null,null,null,null,null,null,null,null,null,null,null,null,null,null,null,null,null,null,null,null,"1306",3,"WOOD PRESERVATIVES, LIQUID"]
[null,null,null,null,null,null,null,null,null,null,null,null,null,null,null,null,null,null,null,null,null,null,null,null,null,null,null,"1307",3,"XYLENES"]
[null,null,null,null,null,null,null,null,null,null,null,null,null,null,null,null,null,null,null,null,null,null,null,null,null,null,null,"1308",3,"ZIRCONIUM, SUSPENDED IN A FLAMMABLE LIQUID"]
[null,null,null,null,null,null,null,null,null,null,null,null,null,null,null,null,null,null,null,null,null,null,null,null,null,null,null,"1309",4.0999999999999996,"ALUMINIUM POWDER, COATED"]
[null,null,null,null,null,null,null,null,null,null,null,null,null,null,null,null,null,null,null,null,null,null,null,null,null,null,null,"1310",4.0999999999999996,"AMMONIUM PICRATE, WETTED"]
[null,null,null,null,null,null,null,null,null,null,null,null,null,null,null,null,null,null,null,null,null,null,null,null,null,null,null,"1312",4.0999999999999996,"BORNEOL"]
[null,null,null,null,null,null,null,null,null,null,null,null,null,null,null,null,null,null,null,null,null,null,null,null,null,null,null,"1313",4.0999999999999996,"CALCIUM RESINATE"]
[null,null,null,null,null,null,null,null,null,null,null,null,null,null,null,null,null,null,null,null,null,null,null,null,null,null,null,"1314",4.0999999999999996,"CALCIUM RESINATE, FUSED"]
[null,null,null,null,null,null,null,null,null,null,null,null,null,null,null,null,null,null,null,null,null,null,null,null,null,null,null,"1318",4.0999999999999996,"COBALT RESINATE, PRECIPITATED"]
[null,null,null,null,null,null,null,null,null,null,null,null,null,null,null,null,null,null,null,null,null,null,null,null,null,null,null,"1320",4.0999999999999996,"DINITROPHENOL, WETTED"]
[null,null,null,null,null,null,null,null,null,null,null,null,null,null,null,null,null,null,null,null,null,null,null,null,null,null,null,"1321",4.0999999999999996,"DINITROPHENOLATES, WETTED"]
[null,null,null,null,null,null,null,null,null,null,null,null,null,null,null,null,null,null,null,null,null,null,null,null,null,null,null,"1322",4.0999999999999996,"DINITRORESORCINOL, WETTED"]
[null,null,null,null,null,null,null,null,null,null,null,null,null,null,null,null,null,null,null,null,null,null,null,null,null,null,null,"1323",4.0999999999999996,"FERROCERIUM"]
[null,null,null,null,null,null,null,null,null,null,null,null,null,null,null,null,null,null,null,null,null,null,null,null,null,null,null,"1324",4.0999999999999996,"FILMS, NITROCELLULOSE BASE"]
[null,null,null,null,null,null,null,null,null,null,null,null,null,null,null,null,null,null,null,null,null,null,null,null,null,null,null,"1325",4.0999999999999996,"FLAMMABLE SOLID, ORGANIC, N.O.S."]
[null,null,null,null,null,null,null,null,null,null,null,null,null,null,null,null,null,null,null,null,null,null,null,null,null,null,null,"1326",4.0999999999999996,"HAFNIUM POWDER, WETTED"]
[null,null,null,null,null,null,null,null,null,null,null,null,null,null,null,null,null,null,null,null,null,null,null,null,null,null,null,"1327",4.0999999999999996,"HAY"]
[null,null,null,null,null,null,null,null,null,null,null,null,null,null,null,null,null,null,null,null,null,null,null,null,null,null,null,"1328",4.0999999999999996,"HEXAMETHYLENETETRAMINE"]
[null,null,null,null,null,null,null,null,null,null,null,null,null,null,null,null,null,null,null,null,null,null,null,null,null,null,null,"1330",4.0999999999999996,"MANGANESE RESINATE"]
[null,null,null,null,null,null,null,null,null,null,null,null,null,null,null,null,null,null,null,null,null,null,null,null,null,null,null,"1331",4.0999999999999996,"MATCHES, STRIKE ANYWHERE"]
[null,null,null,null,null,null,null,null,null,null,null,null,null,null,null,null,null,null,null,null,null,null,null,null,null,null,null,"1332",4.0999999999999996,"METALDEHYDE"]
[null,null,null,null,null,null,null,null,null,null,null,null,null,null,null,null,null,null,null,null,null,null,null,null,null,null,null,"1333",4.0999999999999996,"CERIUM"]
[null,null,null,null,null,null,null,null,null,null,null,null,null,null,null,null,null,null,null,null,null,null,null,null,null,null,null,"1334",4.0999999999999996,"NAPHTHALENE, CRUDE"]
[null,null,null,null,null,null,null,null,null,null,null,null,null,null,null,null,null,null,null,null,null,null,null,null,null,null,null,"1336",4.0999999999999996,"NITROGUANIDINE, WETTED"]
[null,null,null,null,null,null,null,null,null,null,null,null,null,null,null,null,null,null,null,null,null,null,null,null,null,null,null,"1337",4.0999999999999996,"NITROSTARCH, WETTED"]
[null,null,null,null,null,null,null,null,null,null,null,null,null,null,null,null,null,null,null,null,null,null,null,null,null,null,null,"1338",4.0999999999999996,"PHOSPHORUS, AMORPHOUS"]
[null,null,null,null,null,null,null,null,null,null,null,null,null,null,null,null,null,null,null,null,null,null,null,null,null,null,null,"1339",4.0999999999999996,"PHOSPHORUS HEPTASULPHIDE"]
[null,null,null,null,null,null,null,null,null,null,null,null,null,null,null,null,null,null,null,null,null,null,null,null,null,null,null,"1340",4.3,"PHOSPHORUS PENTASULPHIDE"]
[null,null,null,null,null,null,null,null,null,null,null,null,null,null,null,null,null,null,null,null,null,null,null,null,null,null,null,"1341",4.0999999999999996,"PHOSPHORUS SESQUISULPHIDE"]
[null,null,null,null,null,null,null,null,null,null,null,null,null,null,null,null,null,null,null,null,null,null,null,null,null,null,null,"1343",4.0999999999999996,"PHOSPHORUS TRISULPHIDE"]
[null,null,null,null,null,null,null,null,null,null,null,null,null,null,null,null,null,null,null,null,null,null,null,null,null,null,null,"1344",4.0999999999999996,"TRINITROPHENOL, WETTED"]
[null,null,null,null,null,null,null,null,null,null,null,null,null,null,null,null,null,null,null,null,null,null,null,null,null,null,null,"1345",4.0999999999999996,"RUBBER SCRAP"]
[null,null,null,null,null,null,null,null,null,null,null,null,null,null,null,null,null,null,null,null,null,null,null,null,null,null,null,"1346",4.0999999999999996,"SILICON POWDER, AMORPHOUS"]
[null,null,null,null,null,null,null,null,null,null,null,null,null,null,null,null,null,null,null,null,null,null,null,null,null,null,null,"1347",4.0999999999999996,"SILVER PICRATE, WETTED"]
[null,null,null,null,null,null,null,null,null,null,null,null,null,null,null,null,null,null,null,null,null,null,null,null,null,null,null,"1348",4.0999999999999996,"SODIUM DINITRO-o-CRESOLATE, WETTED"]
[null,null,null,null,null,null,null,null,null,null,null,null,null,null,null,null,null,null,null,null,null,null,null,null,null,null,null,"1349",4.0999999999999996,"SODIUM PICRAMATE, WETTED"]
[null,null,null,null,null,null,null,null,null,null,null,null,null,null,null,null,null,null,null,null,null,null,null,null,null,null,null,"1350",4.0999999999999996,"SULPHUR"]
[null,null,null,null,null,null,null,null,null,null,null,null,null,null,null,null,null,null,null,null,null,null,null,null,null,null,null,"1352",4.0999999999999996,"TITANIUM POWDER, WETTED"]
[null,null,null,null,null,null,null,null,null,null,null,null,null,null,null,null,null,null,null,null,null,null,null,null,null,null,null,"1353",4.0999999999999996,"FIBRES IMPREGNATED WITH WEAKLY NITRATED NITROCELLULOSE, N.O.S."]
[null,null,null,null,null,null,null,null,null,null,null,null,null,null,null,null,null,null,null,null,null,null,null,null,null,null,null,"1354",4.0999999999999996,"TRINITROBENZENE, WETTED"]
[null,null,null,null,null,null,null,null,null,null,null,null,null,null,null,null,null,null,null,null,null,null,null,null,null,null,null,"1355",4.0999999999999996,"TRINITROBENZOIC ACID, WETTED"]
[null,null,null,null,null,null,null,null,null,null,null,null,null,null,null,null,null,null,null,null,null,null,null,null,null,null,null,"1356",4.0999999999999996,"TRINITROTOLUENE, WETTED"]
[null,null,null,null,null,null,null,null,null,null,null,null,null,null,null,null,null,null,null,null,null,null,null,null,null,null,null,"1357",4.0999999999999996,"UREA NITRATE, WETTED"]
[null,null,null,null,null,null,null,null,null,null,null,null,null,null,null,null,null,null,null,null,null,null,null,null,null,null,null,"1358",4.0999999999999996,"ZIRCONIUM POWDER, WETTED"]
[null,null,null,null,null,null,null,null,null,null,null,null,null,null,null,null,null,null,null,null,null,null,null,null,null,null,null,"1360",4.3,"CALCIUM PHOSPHIDE"]
[null,null,null,null,null,null,null,null,null,null,null,null,null,null,null,null,null,null,null,null,null,null,null,null,null,null,null,"1361",4.2,"CARBON"]
[null,null,null,null,null,null,null,null,null,null,null,null,null,null,null,null,null,null,null,null,null,null,null,null,null,null,null,"1362",4.2,"CARBON, ACTIVATED"]
[null,null,null,null,null,null,null,null,null,null,null,null,null,null,null,null,null,null,null,null,null,null,null,null,null,null,null,"1363",4.2,"COPRA"]
[null,null,null,null,null,null,null,null,null,null,null,null,null,null,null,null,null,null,null,null,null,null,null,null,null,null,null,"1364",4.2,"COTTON WASTE, OILY"]
[null,null,null,null,null,null,null,null,null,null,null,null,null,null,null,null,null,null,null,null,null,null,null,null,null,null,null,"1365",4.2,"COTTON, WET"]
[null,null,null,null,null,null,null,null,null,null,null,null,null,null,null,null,null,null,null,null,null,null,null,null,null,null,null,"1369",4.2,"p-NITROSODIMETHYLANILINE"]
[null,null,null,null,null,null,null,null,null,null,null,null,null,null,null,null,null,null,null,null,null,null,null,null,null,null,null,"1372",4.2,"FIBRES ANIMAL"]
[null,null,null,null,null,null,null,null,null,null,null,null,null,null,null,null,null,null,null,null,null,null,null,null,null,null,null,"1373",4.2,"FIBRES, ANIMAL, N.O.S."]
[null,null,null,null,null,null,null,null,null,null,null,null,null,null,null,null,null,null,null,null,null,null,null,null,null,null,null,"1374",4.2,"FISHMEAL, UNSTABILIZED"]
[null,null,null,null,null,null,null,null,null,null,null,null,null,null,null,null,null,null,null,null,null,null,null,null,null,null,null,"1376",4.2,"IRON OXIDE, SPENT"]
[null,null,null,null,null,null,null,null,null,null,null,null,null,null,null,null,null,null,null,null,null,null,null,null,null,null,null,"1378",4.2,"METAL CATALYST, WETTED"]
[null,null,null,null,null,null,null,null,null,null,null,null,null,null,null,null,null,null,null,null,null,null,null,null,null,null,null,"1379",4.2,"PAPER, UNSATURATED OIL TREATED"]
[null,null,null,null,null,null,null,null,null,null,null,null,null,null,null,null,null,null,null,null,null,null,null,null,null,null,null,"1380",4.2,"PENTABORANE"]
[null,null,null,null,null,null,null,null,null,null,null,null,null,null,null,null,null,null,null,null,null,null,null,null,null,null,null,"1381",4.2,"PHOSPHORUS, WHITE, DRY"]
[null,null,null,null,null,null,null,null,null,null,null,null,null,null,null,null,null,null,null,null,null,null,null,null,null,null,null,"1382",4.2,"POTASSIUM SULPHIDE, ANHYDROUS"]
[null,null,null,null,null,null,null,null,null,null,null,null,null,null,null,null,null,null,null,null,null,null,null,null,null,null,null,"1383",4.2,"PYROPHORIC METAL, N.O.S."]
[null,null,null,null,null,null,null,null,null,null,null,null,null,null,null,null,null,null,null,null,null,null,null,null,null,null,null,"1384",4.2,"SODIUM DITHIONITE"]
[null,null,null,null,null,null,null,null,null,null,null,null,null,null,null,null,null,null,null,null,null,null,null,null,null,null,null,"1385",4.2,"SODIUM SULPHIDE, ANHYDROUS"]
[null,null,null,null,null,null,null,null,null,null,null,null,null,null,null,null,null,null,null,null,null,null,null,null,null,null,null,"1386",4.2,"SEED CAKE"]
[null,null,null,null,null,null,null,null,null,null,null,null,null,null,null,null,null,null,null,null,null,null,null,null,null,null,null,"1387",4.2,"WOOL WASTE, WET"]
[null,null,null,null,null,null,null,null,null,null,null,null,null,null,null,null,null,null,null,null,null,null,null,null,null,null,null,"1389",4.3,"ALKALI METAL AMALGAM, LIQUID"]
[null,null,null,null,null,null,null,null,null,null,null,null,null,null,null,null,null,null,null,null,null,null,null,null,null,null,null,"1390",4.3,"ALKALI METAL AMIDE"]
[null,null,null,null,null,null,null,null,null,null,null,null,null,null,null,null,null,null,null,null,null,null,null,null,null,null,null,"1391",4.3,"ALKALI METAL DISPERSION"]
[null,null,null,null,null,null,null,null,null,null,null,null,null,null,null,null,null,null,null,null,null,null,null,null,null,null,null,"1392",4.3,"ALKALINE EARTH METAL AMALGAM, LIQUID"]
[null,null,null,null,null,null,null,null,null,null,null,null,null,null,null,null,null,null,null,null,null,null,null,null,null,null,null,"1393",4.3,"ALKALINE EARTH METAL ALLOY, N.O.S."]
[null,null,null,null,null,null,null,null,null,null,null,null,null,null,null,null,null,null,null,null,null,null,null,null,null,null,null,"1394",4.3,"ALUMINIUM CARBIDE"]
[null,null,null,null,null,null,null,null,null,null,null,null,null,null,null,null,null,null,null,null,null,null,null,null,null,null,null,"1395",4.3,"ALUMINIUM FERROSILICON POWDER"]
[null,null,null,null,null,null,null,null,null,null,null,null,null,null,null,null,null,null,null,null,null,null,null,null,null,null,null,"1396",4.3,"ALUMINIUM POWDER, UNCOATED"]
[null,null,null,null,null,null,null,null,null,null,null,null,null,null,null,null,null,null,null,null,null,null,null,null,null,null,null,"1397",4.3,"ALUMINIUM PHOSPHIDE"]
[null,null,null,null,null,null,null,null,null,null,null,null,null,null,null,null,null,null,null,null,null,null,null,null,null,null,null,"1398",4.3,"ALUMINIUM SILICON POWDER, UNCOATED"]
[null,null,null,null,null,null,null,null,null,null,null,null,null,null,null,null,null,null,null,null,null,null,null,null,null,null,null,"1400",4.3,"BARIUM"]
[null,null,null,null,null,null,null,null,null,null,null,null,null,null,null,null,null,null,null,null,null,null,null,null,null,null,null,"1401",4.3,"CALCIUM"]
[null,null,null,null,null,null,null,null,null,null,null,null,null,null,null,null,null,null,null,null,null,null,null,null,null,null,null,"1402",4.3,"CALCIUM CARBIDE"]
[null,null,null,null,null,null,null,null,null,null,null,null,null,null,null,null,null,null,null,null,null,null,null,null,null,null,null,"1403",4.3,"CALCIUM CYANAMIDE"]
[null,null,null,null,null,null,null,null,null,null,null,null,null,null,null,null,null,null,null,null,null,null,null,null,null,null,null,"1404",4.3,"CALCIUM HYDRIDE"]
[null,null,null,null,null,null,null,null,null,null,null,null,null,null,null,null,null,null,null,null,null,null,null,null,null,null,null,"1405",4.3,"CALCIUM SILICIDE"]
[null,null,null,null,null,null,null,null,null,null,null,null,null,null,null,null,null,null,null,null,null,null,null,null,null,null,null,"1407",4.3,"CAESIUM"]
[null,null,null,null,null,null,null,null,null,null,null,null,null,null,null,null,null,null,null,null,null,null,null,null,null,null,null,"1408",4.3,"FERROSILICON"]
[null,null,null,null,null,null,null,null,null,null,null,null,null,null,null,null,null,null,null,null,null,null,null,null,null,null,null,"1409",4.3,"METAL HYDRIDES, WATER-REACTIVE, N.O.S."]
[null,null,null,null,null,null,null,null,null,null,null,null,null,null,null,null,null,null,null,null,null,null,null,null,null,null,null,"1410",4.3,"LITHIUM ALUMINIUM HYDRIDE"]
[null,null,null,null,null,null,null,null,null,null,null,null,null,null,null,null,null,null,null,null,null,null,null,null,null,null,null,"1411",4.3,"LITHIUM ALUMINIUM HYDRIDE, ETHEREAL"]
[null,null,null,null,null,null,null,null,null,null,null,null,null,null,null,null,null,null,null,null,null,null,null,null,null,null,null,"1413",4.3,"LITHIUM BOROHYDRIDE"]
[null,null,null,null,null,null,null,null,null,null,null,null,null,null,null,null,null,null,null,null,null,null,null,null,null,null,null,"1414",4.3,"LITHIUM HYDRIDE"]
[null,null,null,null,null,null,null,null,null,null,null,null,null,null,null,null,null,null,null,null,null,null,null,null,null,null,null,"1415",4.3,"LITHIUM"]
[null,null,null,null,null,null,null,null,null,null,null,null,null,null,null,null,null,null,null,null,null,null,null,null,null,null,null,"1417",4.3,"LITHIUM SILICON"]
[null,null,null,null,null,null,null,null,null,null,null,null,null,null,null,null,null,null,null,null,null,null,null,null,null,null,null,"1418",4.3,"MAGNESIUM POWDER"]
[null,null,null,null,null,null,null,null,null,null,null,null,null,null,null,null,null,null,null,null,null,null,null,null,null,null,null,"1419",4.3,"MAGNESIUM ALUMINIUM PHOSPHIDE"]
[null,null,null,null,null,null,null,null,null,null,null,null,null,null,null,null,null,null,null,null,null,null,null,null,null,null,null,"1420",4.3,"POTASSIUM METAL ALLOYS, LIQUID"]
[null,null,null,null,null,null,null,null,null,null,null,null,null,null,null,null,null,null,null,null,null,null,null,null,null,null,null,"1421",4.3,"ALKALI METAL ALLOY, LIQUID, N.O.S."]
[null,null,null,null,null,null,null,null,null,null,null,null,null,null,null,null,null,null,null,null,null,null,null,null,null,null,null,"1422",4.3,"POTASSIUM SODIUM ALLOYS, LIQUID"]
[null,null,null,null,null,null,null,null,null,null,null,null,null,null,null,null,null,null,null,null,null,null,null,null,null,null,null,"1423",4.3,"RUBIDIUM"]
[null,null,null,null,null,null,null,null,null,null,null,null,null,null,null,null,null,null,null,null,null,null,null,null,null,null,null,"1426",4.3,"SODIUM BOROHYDRIDE"]
[null,null,null,null,null,null,null,null,null,null,null,null,null,null,null,null,null,null,null,null,null,null,null,null,null,null,null,"1427",4.3,"SODIUM HYDRIDE"]
[null,null,null,null,null,null,null,null,null,null,null,null,null,null,null,null,null,null,null,null,null,null,null,null,null,null,null,"1428",4.3,"SODIUM"]
[null,null,null,null,null,null,null,null,null,null,null,null,null,null,null,null,null,null,null,null,null,null,null,null,null,null,null,"1431",4.2,"SODIUM METHYLATE"]
[null,null,null,null,null,null,null,null,null,null,null,null,null,null,null,null,null,null,null,null,null,null,null,null,null,null,null,"1432",4.3,"SODIUM PHOSPHIDE"]
[null,null,null,null,null,null,null,null,null,null,null,null,null,null,null,null,null,null,null,null,null,null,null,null,null,null,null,"1433",4.3,"STANNIC PHOSPHIDE"]
[null,null,null,null,null,null,null,null,null,null,null,null,null,null,null,null,null,null,null,null,null,null,null,null,null,null,null,"1435",4.3,"ZINC ASHES"]
[null,null,null,null,null,null,null,null,null,null,null,null,null,null,null,null,null,null,null,null,null,null,null,null,null,null,null,"1436",4.3,"ZINC POWDER"]
[null,null,null,null,null,null,null,null,null,null,null,null,null,null,null,null,null,null,null,null,null,null,null,null,null,null,null,"1437",4.0999999999999996,"ZIRCONIUM HYDRIDE"]
[null,null,null,null,null,null,null,null,null,null,null,null,null,null,null,null,null,null,null,null,null,null,null,null,null,null,null,"1438",5.0999999999999996,"ALUMINIUM NITRATE"]
[null,null,null,null,null,null,null,null,null,null,null,null,null,null,null,null,null,null,null,null,null,null,null,null,null,null,null,"1439",5.0999999999999996,"AMMONIUM DICHROMATE"]
[null,null,null,null,null,null,null,null,null,null,null,null,null,null,null,null,null,null,null,null,null,null,null,null,null,null,null,"1442",5.0999999999999996,"AMMONIUM PERCHLORATE"]
[null,null,null,null,null,null,null,null,null,null,null,null,null,null,null,null,null,null,null,null,null,null,null,null,null,null,null,"1444",5.0999999999999996,"AMMONIUM PERSULPHATE"]
[null,null,null,null,null,null,null,null,null,null,null,null,null,null,null,null,null,null,null,null,null,null,null,null,null,null,null,"1445",5.0999999999999996,"BARIUM CHLORATE, SOLID"]
[null,null,null,null,null,null,null,null,null,null,null,null,null,null,null,null,null,null,null,null,null,null,null,null,null,null,null,"1446",5.0999999999999996,"BARIUM NITRATE"]
[null,null,null,null,null,null,null,null,null,null,null,null,null,null,null,null,null,null,null,null,null,null,null,null,null,null,null,"1447",5.0999999999999996,"BARIUM PERCHLORATE, SOLID"]
[null,null,null,null,null,null,null,null,null,null,null,null,null,null,null,null,null,null,null,null,null,null,null,null,null,null,null,"1448",5.0999999999999996,"BARIUM PERMANGANATE"]
[null,null,null,null,null,null,null,null,null,null,null,null,null,null,null,null,null,null,null,null,null,null,null,null,null,null,null,"1449",5.0999999999999996,"BARIUM PEROXIDE"]
[null,null,null,null,null,null,null,null,null,null,null,null,null,null,null,null,null,null,null,null,null,null,null,null,null,null,null,"1450",5.0999999999999996,"BROMATES, INORGANIC, N.O.S."]
[null,null,null,null,null,null,null,null,null,null,null,null,null,null,null,null,null,null,null,null,null,null,null,null,null,null,null,"1451",5.0999999999999996,"CAESIUM NITRATE"]
[null,null,null,null,null,null,null,null,null,null,null,null,null,null,null,null,null,null,null,null,null,null,null,null,null,null,null,"1452",5.0999999999999996,"CALCIUM CHLORATE"]
[null,null,null,null,null,null,null,null,null,null,null,null,null,null,null,null,null,null,null,null,null,null,null,null,null,null,null,"1453",5.0999999999999996,"CALCIUM CHLORITE"]
[null,null,null,null,null,null,null,null,null,null,null,null,null,null,null,null,null,null,null,null,null,null,null,null,null,null,null,"1454",5.0999999999999996,"CALCIUM NITRATE"]
[null,null,null,null,null,null,null,null,null,null,null,null,null,null,null,null,null,null,null,null,null,null,null,null,null,null,null,"1455",5.0999999999999996,"CALCIUM PERCHLORATE"]
[null,null,null,null,null,null,null,null,null,null,null,null,null,null,null,null,null,null,null,null,null,null,null,null,null,null,null,"1456",5.0999999999999996,"CALCIUM PERMANGANATE"]
[null,null,null,null,null,null,null,null,null,null,null,null,null,null,null,null,null,null,null,null,null,null,null,null,null,null,null,"1457",5.0999999999999996,"CALCIUM PEROXIDE"]
[null,null,null,null,null,null,null,null,null,null,null,null,null,null,null,null,null,null,null,null,null,null,null,null,null,null,null,"1458",5.0999999999999996,"CHLORATE AND BORATE MIXTURE"]
[null,null,null,null,null,null,null,null,null,null,null,null,null,null,null,null,null,null,null,null,null,null,null,null,null,null,null,"1459",5.0999999999999996,"CHLORATE AND MAGNESIUM CHLORIDE MIXTURE, SOLID"]
[null,null,null,null,null,null,null,null,null,null,null,null,null,null,null,null,null,null,null,null,null,null,null,null,null,null,null,"1461",5.0999999999999996,"CHLORATES, INORGANIC, N.O.S."]
[null,null,null,null,null,null,null,null,null,null,null,null,null,null,null,null,null,null,null,null,null,null,null,null,null,null,null,"1462",5.0999999999999996,"CHLORITES, INORGANIC, N.O.S."]
[null,null,null,null,null,null,null,null,null,null,null,null,null,null,null,null,null,null,null,null,null,null,null,null,null,null,null,"1463",5.0999999999999996,"CHROMIUM TRIOXIDE, ANHYDROUS"]
[null,null,null,null,null,null,null,null,null,null,null,null,null,null,null,null,null,null,null,null,null,null,null,null,null,null,null,"1465",5.0999999999999996,"DIDYMIUM NITRATE"]
[null,null,null,null,null,null,null,null,null,null,null,null,null,null,null,null,null,null,null,null,null,null,null,null,null,null,null,"1466",5.0999999999999996,"FERRIC NITRATE"]
[null,null,null,null,null,null,null,null,null,null,null,null,null,null,null,null,null,null,null,null,null,null,null,null,null,null,null,"1467",5.0999999999999996,"GUANIDINE NITRATE"]
[null,null,null,null,null,null,null,null,null,null,null,null,null,null,null,null,null,null,null,null,null,null,null,null,null,null,null,"1469",5.0999999999999996,"LEAD NITRATE"]
[null,null,null,null,null,null,null,null,null,null,null,null,null,null,null,null,null,null,null,null,null,null,null,null,null,null,null,"1470",5.0999999999999996,"LEAD PERCHLORATE, SOLID"]
[null,null,null,null,null,null,null,null,null,null,null,null,null,null,null,null,null,null,null,null,null,null,null,null,null,null,null,"1471",5.0999999999999996,"LITHIUM HYPOCHLORITE, DRY"]
[null,null,null,null,null,null,null,null,null,null,null,null,null,null,null,null,null,null,null,null,null,null,null,null,null,null,null,"1472",5.0999999999999996,"LITHIUM PEROXIDE"]
[null,null,null,null,null,null,null,null,null,null,null,null,null,null,null,null,null,null,null,null,null,null,null,null,null,null,null,"1473",5.0999999999999996,"MAGNESIUM BROMATE"]
[null,null,null,null,null,null,null,null,null,null,null,null,null,null,null,null,null,null,null,null,null,null,null,null,null,null,null,"1474",5.0999999999999996,"MAGNESIUM NITRATE"]
[null,null,null,null,null,null,null,null,null,null,null,null,null,null,null,null,null,null,null,null,null,null,null,null,null,null,null,"1475",5.0999999999999996,"MAGNESIUM PERCHLORATE"]
[null,null,null,null,null,null,null,null,null,null,null,null,null,null,null,null,null,null,null,null,null,null,null,null,null,null,null,"1476",5.0999999999999996,"MAGNESIUM PEROXIDE"]
[null,null,null,null,null,null,null,null,null,null,null,null,null,null,null,null,null,null,null,null,null,null,null,null,null,null,null,"1477",5.0999999999999996,"NITRATES, INORGANIC, N.O.S."]
[null,null,null,null,null,null,null,null,null,null,null,null,null,null,null,null,null,null,null,null,null,null,null,null,null,null,null,"1479",5.0999999999999996,"OXIDIZING SOLID, N.O.S."]
[null,null,null,null,null,null,null,null,null,null,null,null,null,null,null,null,null,null,null,null,null,null,null,null,null,null,null,"1481",5.0999999999999996,"PERCHLORATES, INORGANIC, N.O.S."]
[null,null,null,null,null,null,null,null,null,null,null,null,null,null,null,null,null,null,null,null,null,null,null,null,null,null,null,"1482",5.0999999999999996,"PERMANGANATES, INORGANIC, N.O.S."]
[null,null,null,null,null,null,null,null,null,null,null,null,null,null,null,null,null,null,null,null,null,null,null,null,null,null,null,"1483",5.0999999999999996,"PEROXIDES, INORGANIC, N.O.S."]
[null,null,null,null,null,null,null,null,null,null,null,null,null,null,null,null,null,null,null,null,null,null,null,null,null,null,null,"1484",5.0999999999999996,"POTASSIUM BROMATE"]
[null,null,null,null,null,null,null,null,null,null,null,null,null,null,null,null,null,null,null,null,null,null,null,null,null,null,null,"1485",5.0999999999999996,"POTASSIUM CHLORATE"]
[null,null,null,null,null,null,null,null,null,null,null,null,null,null,null,null,null,null,null,null,null,null,null,null,null,null,null,"1486",5.0999999999999996,"POTASSIUM NITRATE"]
[null,null,null,null,null,null,null,null,null,null,null,null,null,null,null,null,null,null,null,null,null,null,null,null,null,null,null,"1487",5.0999999999999996,"POTASSIUM NITRATE AND SODIUM NITRITE MIXTURE"]
[null,null,null,null,null,null,null,null,null,null,null,null,null,null,null,null,null,null,null,null,null,null,null,null,null,null,null,"1488",5.0999999999999996,"POTASSIUM NITRITE"]
[null,null,null,null,null,null,null,null,null,null,null,null,null,null,null,null,null,null,null,null,null,null,null,null,null,null,null,"1489",5.0999999999999996,"POTASSIUM PERCHLORATE"]
[null,null,null,null,null,null,null,null,null,null,null,null,null,null,null,null,null,null,null,null,null,null,null,null,null,null,null,"1490",5.0999999999999996,"POTASSIUM PERMANGANATE"]
[null,null,null,null,null,null,null,null,null,null,null,null,null,null,null,null,null,null,null,null,null,null,null,null,null,null,null,"1491",5.0999999999999996,"POTASSIUM PEROXIDE"]
[null,null,null,null,null,null,null,null,null,null,null,null,null,null,null,null,null,null,null,null,null,null,null,null,null,null,null,"1492",5.0999999999999996,"POTASSIUM PERSULPHATE"]
[null,null,null,null,null,null,null,null,null,null,null,null,null,null,null,null,null,null,null,null,null,null,null,null,null,null,null,"1493",5.0999999999999996,"SILVER NITRATE"]
[null,null,null,null,null,null,null,null,null,null,null,null,null,null,null,null,null,null,null,null,null,null,null,null,null,null,null,"1494",5.0999999999999996,"SODIUM BROMATE"]
[null,null,null,null,null,null,null,null,null,null,null,null,null,null,null,null,null,null,null,null,null,null,null,null,null,null,null,"1495",5.0999999999999996,"SODIUM CHLORATE"]
[null,null,null,null,null,null,null,null,null,null,null,null,null,null,null,null,null,null,null,null,null,null,null,null,null,null,null,"1496",5.0999999999999996,"SODIUM CHLORITE"]
[null,null,null,null,null,null,null,null,null,null,null,null,null,null,null,null,null,null,null,null,null,null,null,null,null,null,null,"1498",5.0999999999999996,"SODIUM NITRATE"]
[null,null,null,null,null,null,null,null,null,null,null,null,null,null,null,null,null,null,null,null,null,null,null,null,null,null,null,"1499",5.0999999999999996,"SODIUM NITRATE AND POTASSIUM NITRATE MIXTURE"]
[null,null,null,null,null,null,null,null,null,null,null,null,null,null,null,null,null,null,null,null,null,null,null,null,null,null,null,"1500",5.0999999999999996,"SODIUM NITRITE"]
[null,null,null,null,null,null,null,null,null,null,null,null,null,null,null,null,null,null,null,null,null,null,null,null,null,null,null,"1502",5.0999999999999996,"SODIUM PERCHLORATE"]
[null,null,null,null,null,null,null,null,null,null,null,null,null,null,null,null,null,null,null,null,null,null,null,null,null,null,null,"1503",5.0999999999999996,"SODIUM PERMANGANATE"]
[null,null,null,null,null,null,null,null,null,null,null,null,null,null,null,null,null,null,null,null,null,null,null,null,null,null,null,"1504",5.0999999999999996,"SODIUM PEROXIDE"]
[null,null,null,null,null,null,null,null,null,null,null,null,null,null,null,null,null,null,null,null,null,null,null,null,null,null,null,"1505",5.0999999999999996,"SODIUM PERSULPHATE"]
[null,null,null,null,null,null,null,null,null,null,null,null,null,null,null,null,null,null,null,null,null,null,null,null,null,null,null,"1506",5.0999999999999996,"STRONTIUM CHLORATE"]
[null,null,null,null,null,null,null,null,null,null,null,null,null,null,null,null,null,null,null,null,null,null,null,null,null,null,null,"1507",5.0999999999999996,"STRONTIUM NITRATE"]
[null,null,null,null,null,null,null,null,null,null,null,null,null,null,null,null,null,null,null,null,null,null,null,null,null,null,null,"1508",5.0999999999999996,"STRONTIUM PERCHLORATE"]
[null,null,null,null,null,null,null,null,null,null,null,null,null,null,null,null,null,null,null,null,null,null,null,null,null,null,null,"1509",5.0999999999999996,"STRONTIUM PEROXIDE"]
[null,null,null,null,null,null,null,null,null,null,null,null,null,null,null,null,null,null,null,null,null,null,null,null,null,null,null,"1510",6.1,"TETRANITROMETHANE"]
[null,null,null,null,null,null,null,null,null,null,null,null,null,null,null,null,null,null,null,null,null,null,null,null,null,null,null,"1511",5.0999999999999996,"UREA HYDROGEN PEROXIDE"]
[null,null,null,null,null,null,null,null,null,null,null,null,null,null,null,null,null,null,null,null,null,null,null,null,null,null,null,"1512",5.0999999999999996,"ZINC AMMONIUM NITRITE"]
[null,null,null,null,null,null,null,null,null,null,null,null,null,null,null,null,null,null,null,null,null,null,null,null,null,null,null,"1513",5.0999999999999996,"ZINC CHLORATE"]
[null,null,null,null,null,null,null,null,null,null,null,null,null,null,null,null,null,null,null,null,null,null,null,null,null,null,null,"1514",5.0999999999999996,"ZINC NITRATE"]
[null,null,null,null,null,null,null,null,null,null,null,null,null,null,null,null,null,null,null,null,null,null,null,null,null,null,null,"1515",5.0999999999999996,"ZINC PERMANGANATE"]
[null,null,null,null,null,null,null,null,null,null,null,null,null,null,null,null,null,null,null,null,null,null,null,null,null,null,null,"1516",5.0999999999999996,"ZINC PEROXIDE"]
[null,null,null,null,null,null,null,null,null,null,null,null,null,null,null,null,null,null,null,null,null,null,null,null,null,null,null,"1517",4.0999999999999996,"ZIRCONIUM PICRAMATE, WETTED"]
[null,null,null,null,null,null,null,null,null,null,null,null,null,null,null,null,null,null,null,null,null,null,null,null,null,null,null,"1541",6.1,"ACETONE CYANOHYDRIN, STABILIZED"]
[null,null,null,null,null,null,null,null,null,null,null,null,null,null,null,null,null,null,null,null,null,null,null,null,null,null,null,"1544",6.1,"ALKALOIDS, SOLID, N.O.S."]
[null,null,null,null,null,null,null,null,null,null,null,null,null,null,null,null,null,null,null,null,null,null,null,null,null,null,null,"1545",6.1,"ALLYL ISOTHIOCYANATE, STABILIZED"]
[null,null,null,null,null,null,null,null,null,null,null,null,null,null,null,null,null,null,null,null,null,null,null,null,null,null,null,"1546",6.1,"AMMONIUM ARSENATE"]
[null,null,null,null,null,null,null,null,null,null,null,null,null,null,null,null,null,null,null,null,null,null,null,null,null,null,null,"1547",6.1,"ANILINE"]
[null,null,null,null,null,null,null,null,null,null,null,null,null,null,null,null,null,null,null,null,null,null,null,null,null,null,null,"1548",6.1,"ANILINE HYDROCHLORIDE"]
[null,null,null,null,null,null,null,null,null,null,null,null,null,null,null,null,null,null,null,null,null,null,null,null,null,null,null,"1549",6.1,"ANTIMONY COMPOUND, INORGANIC, SOLID, N.O.S."]
[null,null,null,null,null,null,null,null,null,null,null,null,null,null,null,null,null,null,null,null,null,null,null,null,null,null,null,"1550",6.1,"ANTIMONY LACTATE"]
[null,null,null,null,null,null,null,null,null,null,null,null,null,null,null,null,null,null,null,null,null,null,null,null,null,null,null,"1551",6.1,"ANTIMONY POTASSIUM TARTRATE"]
[null,null,null,null,null,null,null,null,null,null,null,null,null,null,null,null,null,null,null,null,null,null,null,null,null,null,null,"1553",6.1,"ARSENIC ACID, LIQUID"]
[null,null,null,null,null,null,null,null,null,null,null,null,null,null,null,null,null,null,null,null,null,null,null,null,null,null,null,"1554",6.1,"ARSENIC ACID, SOLID"]
[null,null,null,null,null,null,null,null,null,null,null,null,null,null,null,null,null,null,null,null,null,null,null,null,null,null,null,"1555",6.1,"ARSENIC BROMIDE"]
[null,null,null,null,null,null,null,null,null,null,null,null,null,null,null,null,null,null,null,null,null,null,null,null,null,null,null,"1556",6.1,"ARSENIC COMPOUND, LIQUID, N.O.S."]
[null,null,null,null,null,null,null,null,null,null,null,null,null,null,null,null,null,null,null,null,null,null,null,null,null,null,null,"1557",6.1,"ARSENIC COMPOUND, SOLID, N.O.S."]
[null,null,null,null,null,null,null,null,null,null,null,null,null,null,null,null,null,null,null,null,null,null,null,null,null,null,null,"1558",6.1,"ARSENIC"]
[null,null,null,null,null,null,null,null,null,null,null,null,null,null,null,null,null,null,null,null,null,null,null,null,null,null,null,"1559",6.1,"ARSENIC PENTOXIDE"]
[null,null,null,null,null,null,null,null,null,null,null,null,null,null,null,null,null,null,null,null,null,null,null,null,null,null,null,"1560",6.1,"ARSENIC TRICHLORIDE"]
[null,null,null,null,null,null,null,null,null,null,null,null,null,null,null,null,null,null,null,null,null,null,null,null,null,null,null,"1561",6.1,"ARSENIC TRIOXIDE"]
[null,null,null,null,null,null,null,null,null,null,null,null,null,null,null,null,null,null,null,null,null,null,null,null,null,null,null,"1562",6.1,"ARSENICAL DUST"]
[null,null,null,null,null,null,null,null,null,null,null,null,null,null,null,null,null,null,null,null,null,null,null,null,null,null,null,"1564",6.1,"BARIUM COMPOUND, N.O.S."]
[null,null,null,null,null,null,null,null,null,null,null,null,null,null,null,null,null,null,null,null,null,null,null,null,null,null,null,"1565",6.1,"BARIUM CYANIDE"]
[null,null,null,null,null,null,null,null,null,null,null,null,null,null,null,null,null,null,null,null,null,null,null,null,null,null,null,"1566",6.1,"BERYLLIUM COMPOUND, N.O.S."]
[null,null,null,null,null,null,null,null,null,null,null,null,null,null,null,null,null,null,null,null,null,null,null,null,null,null,null,"1567",6.1,"BERYLLIUM POWDER"]
[null,null,null,null,null,null,null,null,null,null,null,null,null,null,null,null,null,null,null,null,null,null,null,null,null,null,null,"1569",6.1,"BROMOACETONE"]
[null,null,null,null,null,null,null,null,null,null,null,null,null,null,null,null,null,null,null,null,null,null,null,null,null,null,null,"1570",6.1,"BRUCINE"]
[null,null,null,null,null,null,null,null,null,null,null,null,null,null,null,null,null,null,null,null,null,null,null,null,null,null,null,"1571",4.0999999999999996,"BARIUM AZIDE, WETTED"]
[null,null,null,null,null,null,null,null,null,null,null,null,null,null,null,null,null,null,null,null,null,null,null,null,null,null,null,"1572",6.1,"CACODYLIC ACID"]
[null,null,null,null,null,null,null,null,null,null,null,null,null,null,null,null,null,null,null,null,null,null,null,null,null,null,null,"1573",6.1,"CALCIUM ARSENATE"]
[null,null,null,null,null,null,null,null,null,null,null,null,null,null,null,null,null,null,null,null,null,null,null,null,null,null,null,"1574",6.1,"CALCIUM ARSENATE AND CALCIUM ARSENITE MIXTURE, SOLID"]
[null,null,null,null,null,null,null,null,null,null,null,null,null,null,null,null,null,null,null,null,null,null,null,null,null,null,null,"1575",6.1,"CALCIUM CYANIDE"]
[null,null,null,null,null,null,null,null,null,null,null,null,null,null,null,null,null,null,null,null,null,null,null,null,null,null,null,"1577",6.1,"CHLORODINITROBENZENES, LIQUID"]
[null,null,null,null,null,null,null,null,null,null,null,null,null,null,null,null,null,null,null,null,null,null,null,null,null,null,null,"1578",6.1,"CHLORONITROBENZENES, SOLID"]
[null,null,null,null,null,null,null,null,null,null,null,null,null,null,null,null,null,null,null,null,null,null,null,null,null,null,null,"1579",6.1,"4-CHLORO-o-TOLUIDINE HYDROCHLORIDE, SOLID"]
[null,null,null,null,null,null,null,null,null,null,null,null,null,null,null,null,null,null,null,null,null,null,null,null,null,null,null,"1580",6.1,"CHLOROPICRIN"]
[null,null,null,null,null,null,null,null,null,null,null,null,null,null,null,null,null,null,null,null,null,null,null,null,null,null,null,"1581",2.2999999999999998,"CHLOROPICRIN AND METHYL BROMIDE MIXTURE"]
[null,null,null,null,null,null,null,null,null,null,null,null,null,null,null,null,null,null,null,null,null,null,null,null,null,null,null,"1582",2.2999999999999998,"CHLOROPICRIN AND METHYL CHLORIDE MIXTURE"]
[null,null,null,null,null,null,null,null,null,null,null,null,null,null,null,null,null,null,null,null,null,null,null,null,null,null,null,"1583",6.1,"CHLOROPICRIN MIXTURE, N.O.S."]
[null,null,null,null,null,null,null,null,null,null,null,null,null,null,null,null,null,null,null,null,null,null,null,null,null,null,null,"1585",6.1,"COPPER ACETOARSENITE"]
[null,null,null,null,null,null,null,null,null,null,null,null,null,null,null,null,null,null,null,null,null,null,null,null,null,null,null,"1586",6.1,"COPPER ARSENITE"]
[null,null,null,null,null,null,null,null,null,null,null,null,null,null,null,null,null,null,null,null,null,null,null,null,null,null,null,"1587",6.1,"COPPER CYANIDE"]
[null,null,null,null,null,null,null,null,null,null,null,null,null,null,null,null,null,null,null,null,null,null,null,null,null,null,null,"1588",6.1,"CYANIDES, INORGANIC, SOLID, N.O.S."]
[null,null,null,null,null,null,null,null,null,null,null,null,null,null,null,null,null,null,null,null,null,null,null,null,null,null,null,"1589",2.2999999999999998,"CYANOGEN CHLORIDE, STABILIZED"]
[null,null,null,null,null,null,null,null,null,null,null,null,null,null,null,null,null,null,null,null,null,null,null,null,null,null,null,"1590",6.1,"DICHLOROANILINES, LIQUID"]
[null,null,null,null,null,null,null,null,null,null,null,null,null,null,null,null,null,null,null,null,null,null,null,null,null,null,null,"1591",6.1,"o-DICHLOROBENZENE"]
[null,null,null,null,null,null,null,null,null,null,null,null,null,null,null,null,null,null,null,null,null,null,null,null,null,null,null,"1593",6.1,"DICHLOROMETHANE"]
[null,null,null,null,null,null,null,null,null,null,null,null,null,null,null,null,null,null,null,null,null,null,null,null,null,null,null,"1594",6.1,"DIETHYL SULPHATE"]
[null,null,null,null,null,null,null,null,null,null,null,null,null,null,null,null,null,null,null,null,null,null,null,null,null,null,null,"1595",6.1,"DIMETHYL SULPHATE"]
[null,null,null,null,null,null,null,null,null,null,null,null,null,null,null,null,null,null,null,null,null,null,null,null,null,null,null,"1596",6.1,"DINITROANILINES"]
[null,null,null,null,null,null,null,null,null,null,null,null,null,null,null,null,null,null,null,null,null,null,null,null,null,null,null,"1597",6.1,"DINITROBENZENES, LIQUID"]
[null,null,null,null,null,null,null,null,null,null,null,null,null,null,null,null,null,null,null,null,null,null,null,null,null,null,null,"1598",6.1,"DINITRO-o-CRESOL"]
[null,null,null,null,null,null,null,null,null,null,null,null,null,null,null,null,null,null,null,null,null,null,null,null,null,null,null,"1599",6.1,"DINITROPHENOL SOLUTION"]
[null,null,null,null,null,null,null,null,null,null,null,null,null,null,null,null,null,null,null,null,null,null,null,null,null,null,null,"1600",6.1,"DINITROTOLUENES, MOLTEN"]
[null,null,null,null,null,null,null,null,null,null,null,null,null,null,null,null,null,null,null,null,null,null,null,null,null,null,null,"1601",6.1,"DISINFECTANT, SOLID, TOXIC, N.O.S."]
[null,null,null,null,null,null,null,null,null,null,null,null,null,null,null,null,null,null,null,null,null,null,null,null,null,null,null,"1602",6.1,"DYE, LIQUID, TOXIC, N.O.S."]
[null,null,null,null,null,null,null,null,null,null,null,null,null,null,null,null,null,null,null,null,null,null,null,null,null,null,null,"1603",6.1,"ETHYL BROMOACETATE"]
[null,null,null,null,null,null,null,null,null,null,null,null,null,null,null,null,null,null,null,null,null,null,null,null,null,null,null,"1604",8,"ETHYLENEDIAMINE"]
[null,null,null,null,null,null,null,null,null,null,null,null,null,null,null,null,null,null,null,null,null,null,null,null,null,null,null,"1605",6.1,"ETHYLENE DIBROMIDE"]
[null,null,null,null,null,null,null,null,null,null,null,null,null,null,null,null,null,null,null,null,null,null,null,null,null,null,null,"1606",6.1,"FERRIC ARSENATE"]
[null,null,null,null,null,null,null,null,null,null,null,null,null,null,null,null,null,null,null,null,null,null,null,null,null,null,null,"1607",6.1,"FERRIC ARSENITE"]
[null,null,null,null,null,null,null,null,null,null,null,null,null,null,null,null,null,null,null,null,null,null,null,null,null,null,null,"1608",6.1,"FERROUS ARSENATE"]
[null,null,null,null,null,null,null,null,null,null,null,null,null,null,null,null,null,null,null,null,null,null,null,null,null,null,null,"1611",6.1,"HEXAETHYL TETRAPHOSPHATE"]
[null,null,null,null,null,null,null,null,null,null,null,null,null,null,null,null,null,null,null,null,null,null,null,null,null,null,null,"1612",2.2999999999999998,"HEXAETHYL TETRAPHOSPHATE AND COMPRESSED GAS MIXTURE"]
[null,null,null,null,null,null,null,null,null,null,null,null,null,null,null,null,null,null,null,null,null,null,null,null,null,null,null,"1613",6.1,"HYDROCYANIC ACID, AQUEOUS SOLUTION"]
[null,null,null,null,null,null,null,null,null,null,null,null,null,null,null,null,null,null,null,null,null,null,null,null,null,null,null,"1614",6.1,"HYDROGEN CYANIDE, STABILIZED"]
[null,null,null,null,null,null,null,null,null,null,null,null,null,null,null,null,null,null,null,null,null,null,null,null,null,null,null,"1616",6.1,"LEAD ACETATE"]
[null,null,null,null,null,null,null,null,null,null,null,null,null,null,null,null,null,null,null,null,null,null,null,null,null,null,null,"1617",6.1,"LEAD ARSENATES"]
[null,null,null,null,null,null,null,null,null,null,null,null,null,null,null,null,null,null,null,null,null,null,null,null,null,null,null,"1618",6.1,"LEAD ARSENITES"]
[null,null,null,null,null,null,null,null,null,null,null,null,null,null,null,null,null,null,null,null,null,null,null,null,null,null,null,"1620",6.1,"LEAD CYANIDE"]
[null,null,null,null,null,null,null,null,null,null,null,null,null,null,null,null,null,null,null,null,null,null,null,null,null,null,null,"1621",6.1,"LONDON PURPLE"]
[null,null,null,null,null,null,null,null,null,null,null,null,null,null,null,null,null,null,null,null,null,null,null,null,null,null,null,"1622",6.1,"MAGNESIUM ARSENATE"]
[null,null,null,null,null,null,null,null,null,null,null,null,null,null,null,null,null,null,null,null,null,null,null,null,null,null,null,"1623",6.1,"MERCURIC ARSENATE"]
[null,null,null,null,null,null,null,null,null,null,null,null,null,null,null,null,null,null,null,null,null,null,null,null,null,null,null,"1624",6.1,"MERCURIC CHLORIDE"]
[null,null,null,null,null,null,null,null,null,null,null,null,null,null,null,null,null,null,null,null,null,null,null,null,null,null,null,"1625",6.1,"MERCURIC NITRATE"]
[null,null,null,null,null,null,null,null,null,null,null,null,null,null,null,null,null,null,null,null,null,null,null,null,null,null,null,"1626",6.1,"MERCURIC POTASSIUM CYANIDE"]
[null,null,null,null,null,null,null,null,null,null,null,null,null,null,null,null,null,null,null,null,null,null,null,null,null,null,null,"1627",6.1,"MERCUROUS NITRATE"]
[null,null,null,null,null,null,null,null,null,null,null,null,null,null,null,null,null,null,null,null,null,null,null,null,null,null,null,"1629",6.1,"MERCURY ACETATE"]
[null,null,null,null,null,null,null,null,null,null,null,null,null,null,null,null,null,null,null,null,null,null,null,null,null,null,null,"1630",6.1,"MERCURY AMMONIUM CHLORIDE"]
[null,null,null,null,null,null,null,null,null,null,null,null,null,null,null,null,null,null,null,null,null,null,null,null,null,null,null,"1631",6.1,"MERCURY BENZOATE"]
[null,null,null,null,null,null,null,null,null,null,null,null,null,null,null,null,null,null,null,null,null,null,null,null,null,null,null,"1634",6.1,"MERCURY BROMIDES"]
[null,null,null,null,null,null,null,null,null,null,null,null,null,null,null,null,null,null,null,null,null,null,null,null,null,null,null,"1636",6.1,"MERCURY CYANIDE"]
[null,null,null,null,null,null,null,null,null,null,null,null,null,null,null,null,null,null,null,null,null,null,null,null,null,null,null,"1637",6.1,"MERCURY GLUCONATE"]
[null,null,null,null,null,null,null,null,null,null,null,null,null,null,null,null,null,null,null,null,null,null,null,null,null,null,null,"1638",6.1,"MERCURY IODIDE"]
[null,null,null,null,null,null,null,null,null,null,null,null,null,null,null,null,null,null,null,null,null,null,null,null,null,null,null,"1639",6.1,"MERCURY NUCLEATE"]
[null,null,null,null,null,null,null,null,null,null,null,null,null,null,null,null,null,null,null,null,null,null,null,null,null,null,null,"1640",6.1,"MERCURY OLEATE"]
[null,null,null,null,null,null,null,null,null,null,null,null,null,null,null,null,null,null,null,null,null,null,null,null,null,null,null,"1641",6.1,"MERCURY OXIDE"]
[null,null,null,null,null,null,null,null,null,null,null,null,null,null,null,null,null,null,null,null,null,null,null,null,null,null,null,"1642",6.1,"MERCURY OXYCYANIDE, DESENSITIZED"]
[null,null,null,null,null,null,null,null,null,null,null,null,null,null,null,null,null,null,null,null,null,null,null,null,null,null,null,"1643",6.1,"MERCURY POTASSIUM IODIDE"]
[null,null,null,null,null,null,null,null,null,null,null,null,null,null,null,null,null,null,null,null,null,null,null,null,null,null,null,"1644",6.1,"MERCURY SALICYLATE"]
[null,null,null,null,null,null,null,null,null,null,null,null,null,null,null,null,null,null,null,null,null,null,null,null,null,null,null,"1645",6.1,"MERCURY SULPHATE"]
[null,null,null,null,null,null,null,null,null,null,null,null,null,null,null,null,null,null,null,null,null,null,null,null,null,null,null,"1646",6.1,"MERCURY THIOCYANATE"]
[null,null,null,null,null,null,null,null,null,null,null,null,null,null,null,null,null,null,null,null,null,null,null,null,null,null,null,"1647",6.1,"METHYL BROMIDE AND ETHYLENE DIBROMIDE MIXTURE, LIQUID"]
[null,null,null,null,null,null,null,null,null,null,null,null,null,null,null,null,null,null,null,null,null,null,null,null,null,null,null,"1648",3,"ACETONITRILE"]
[null,null,null,null,null,null,null,null,null,null,null,null,null,null,null,null,null,null,null,null,null,null,null,null,null,null,null,"1649",6.1,"MOTOR FUEL ANTI-KNOCK MIXTURE"]
[null,null,null,null,null,null,null,null,null,null,null,null,null,null,null,null,null,null,null,null,null,null,null,null,null,null,null,"1650",6.1,"beta-NAPHTHYLAMINE, SOLID"]
[null,null,null,null,null,null,null,null,null,null,null,null,null,null,null,null,null,null,null,null,null,null,null,null,null,null,null,"1651",6.1,"NAPHTHYLTHIOUREA"]
[null,null,null,null,null,null,null,null,null,null,null,null,null,null,null,null,null,null,null,null,null,null,null,null,null,null,null,"1652",6.1,"NAPHTHYLUREA"]
[null,null,null,null,null,null,null,null,null,null,null,null,null,null,null,null,null,null,null,null,null,null,null,null,null,null,null,"1653",6.1,"NICKEL CYANIDE"]
[null,null,null,null,null,null,null,null,null,null,null,null,null,null,null,null,null,null,null,null,null,null,null,null,null,null,null,"1654",6.1,"NICOTINE"]
[null,null,null,null,null,null,null,null,null,null,null,null,null,null,null,null,null,null,null,null,null,null,null,null,null,null,null,"1655",6.1,"NICOTINE COMPOUND, SOLID, N.O.S."]
[null,null,null,null,null,null,null,null,null,null,null,null,null,null,null,null,null,null,null,null,null,null,null,null,null,null,null,"1656",6.1,"NICOTINE HYDROCHLORIDE, LIQUID"]
[null,null,null,null,null,null,null,null,null,null,null,null,null,null,null,null,null,null,null,null,null,null,null,null,null,null,null,"1657",6.1,"NICOTINE SALICYLATE"]
[null,null,null,null,null,null,null,null,null,null,null,null,null,null,null,null,null,null,null,null,null,null,null,null,null,null,null,"1658",6.1,"NICOTINE SULPHATE SOLUTION"]
[null,null,null,null,null,null,null,null,null,null,null,null,null,null,null,null,null,null,null,null,null,null,null,null,null,null,null,"1659",6.1,"NICOTINE TARTRATE"]
[null,null,null,null,null,null,null,null,null,null,null,null,null,null,null,null,null,null,null,null,null,null,null,null,null,null,null,"1660",2.2999999999999998,"NITRIC OXIDE, COMPRESSED"]
[null,null,null,null,null,null,null,null,null,null,null,null,null,null,null,null,null,null,null,null,null,null,null,null,null,null,null,"1661",6.1,"NITROANILINES"]
[null,null,null,null,null,null,null,null,null,null,null,null,null,null,null,null,null,null,null,null,null,null,null,null,null,null,null,"1662",6.1,"NITROBENZENE"]
[null,null,null,null,null,null,null,null,null,null,null,null,null,null,null,null,null,null,null,null,null,null,null,null,null,null,null,"1663",6.1,"NITROPHENOLS"]
[null,null,null,null,null,null,null,null,null,null,null,null,null,null,null,null,null,null,null,null,null,null,null,null,null,null,null,"1664",6.1,"NITROTOLUENES, LIQUID"]
[null,null,null,null,null,null,null,null,null,null,null,null,null,null,null,null,null,null,null,null,null,null,null,null,null,null,null,"1665",6.1,"NITROXYLENES, LIQUID"]
[null,null,null,null,null,null,null,null,null,null,null,null,null,null,null,null,null,null,null,null,null,null,null,null,null,null,null,"1669",6.1,"PENTACHLOROETHANE"]
[null,null,null,null,null,null,null,null,null,null,null,null,null,null,null,null,null,null,null,null,null,null,null,null,null,null,null,"1670",6.1,"PERCHLOROMETHYL MERCAPTAN"]
[null,null,null,null,null,null,null,null,null,null,null,null,null,null,null,null,null,null,null,null,null,null,null,null,null,null,null,"1671",6.1,"PHENOL, SOLID"]
[null,null,null,null,null,null,null,null,null,null,null,null,null,null,null,null,null,null,null,null,null,null,null,null,null,null,null,"1672",6.1,"PHENYLCARBYLAMINE CHLORIDE"]
[null,null,null,null,null,null,null,null,null,null,null,null,null,null,null,null,null,null,null,null,null,null,null,null,null,null,null,"1673",6.1,"PHENYLENEDIAMINES"]
[null,null,null,null,null,null,null,null,null,null,null,null,null,null,null,null,null,null,null,null,null,null,null,null,null,null,null,"1674",6.1,"PHENYLMERCURIC ACETATE"]
[null,null,null,null,null,null,null,null,null,null,null,null,null,null,null,null,null,null,null,null,null,null,null,null,null,null,null,"1677",6.1,"POTASSIUM ARSENATE"]
[null,null,null,null,null,null,null,null,null,null,null,null,null,null,null,null,null,null,null,null,null,null,null,null,null,null,null,"1678",6.1,"POTASSIUM ARSENITE"]
[null,null,null,null,null,null,null,null,null,null,null,null,null,null,null,null,null,null,null,null,null,null,null,null,null,null,null,"1679",6.1,"POTASSIUM CUPROCYANIDE"]
[null,null,null,null,null,null,null,null,null,null,null,null,null,null,null,null,null,null,null,null,null,null,null,null,null,null,null,"1680",6.1,"POTASSIUM CYANIDE, SOLID"]
[null,null,null,null,null,null,null,null,null,null,null,null,null,null,null,null,null,null,null,null,null,null,null,null,null,null,null,"1683",6.1,"SILVER ARSENITE"]
[null,null,null,null,null,null,null,null,null,null,null,null,null,null,null,null,null,null,null,null,null,null,null,null,null,null,null,"1684",6.1,"SILVER CYANIDE"]
[null,null,null,null,null,null,null,null,null,null,null,null,null,null,null,null,null,null,null,null,null,null,null,null,null,null,null,"1685",6.1,"SODIUM ARSENATE"]
[null,null,null,null,null,null,null,null,null,null,null,null,null,null,null,null,null,null,null,null,null,null,null,null,null,null,null,"1686",6.1,"SODIUM ARSENITE, AQUEOUS SOLUTION"]
[null,null,null,null,null,null,null,null,null,null,null,null,null,null,null,null,null,null,null,null,null,null,null,null,null,null,null,"1687",6.1,"SODIUM AZIDE"]
[null,null,null,null,null,null,null,null,null,null,null,null,null,null,null,null,null,null,null,null,null,null,null,null,null,null,null,"1688",6.1,"SODIUM CACODYLATE"]
[null,null,null,null,null,null,null,null,null,null,null,null,null,null,null,null,null,null,null,null,null,null,null,null,null,null,null,"1689",6.1,"SODIUM CYANIDE, SOLID"]
[null,null,null,null,null,null,null,null,null,null,null,null,null,null,null,null,null,null,null,null,null,null,null,null,null,null,null,"1690",6.1,"SODIUM FLUORIDE, SOLID"]
[null,null,null,null,null,null,null,null,null,null,null,null,null,null,null,null,null,null,null,null,null,null,null,null,null,null,null,"1691",6.1,"STRONTIUM ARSENITE"]
[null,null,null,null,null,null,null,null,null,null,null,null,null,null,null,null,null,null,null,null,null,null,null,null,null,null,null,"1692",6.1,"STRYCHNINE"]
[null,null,null,null,null,null,null,null,null,null,null,null,null,null,null,null,null,null,null,null,null,null,null,null,null,null,null,"1693",6.1,"TEAR GAS SUBSTANCE, LIQUID, N.O.S."]
[null,null,null,null,null,null,null,null,null,null,null,null,null,null,null,null,null,null,null,null,null,null,null,null,null,null,null,"1694",6.1,"BROMOBENZYL CYANIDES, LIQUID"]
[null,null,null,null,null,null,null,null,null,null,null,null,null,null,null,null,null,null,null,null,null,null,null,null,null,null,null,"1695",6.1,"CHLOROACETONE, STABILIZED"]
[null,null,null,null,null,null,null,null,null,null,null,null,null,null,null,null,null,null,null,null,null,null,null,null,null,null,null,"1697",6.1,"CHLOROACETOPHENONE, SOLID"]
[null,null,null,null,null,null,null,null,null,null,null,null,null,null,null,null,null,null,null,null,null,null,null,null,null,null,null,"1698",6.1,"DIPHENYLAMINE CHLOROARSINE"]
[null,null,null,null,null,null,null,null,null,null,null,null,null,null,null,null,null,null,null,null,null,null,null,null,null,null,null,"1699",6.1,"DIPHENYLCHLOROARSINE, LIQUID"]
[null,null,null,null,null,null,null,null,null,null,null,null,null,null,null,null,null,null,null,null,null,null,null,null,null,null,null,"1700",6.1,"TEAR GAS CANDLES"]
[null,null,null,null,null,null,null,null,null,null,null,null,null,null,null,null,null,null,null,null,null,null,null,null,null,null,null,"1701",6.1,"XYLYL BROMIDE, LIQUID"]
[null,null,null,null,null,null,null,null,null,null,null,null,null,null,null,null,null,null,null,null,null,null,null,null,null,null,null,"1702",6.1,"1,1,2,2-TETRACHLOROETHANE"]
[null,null,null,null,null,null,null,null,null,null,null,null,null,null,null,null,null,null,null,null,null,null,null,null,null,null,null,"1704",6.1,"TETRAETHYL DITHIOPYROPHOSPHATE"]
[null,null,null,null,null,null,null,null,null,null,null,null,null,null,null,null,null,null,null,null,null,null,null,null,null,null,null,"1707",6.1,"THALLIUM COMPOUND, N.O.S."]
[null,null,null,null,null,null,null,null,null,null,null,null,null,null,null,null,null,null,null,null,null,null,null,null,null,null,null,"1708",6.1,"TOLUIDINES, LIQUID"]
[null,null,null,null,null,null,null,null,null,null,null,null,null,null,null,null,null,null,null,null,null,null,null,null,null,null,null,"1709",6.1,"2,4-TOLUYLENEDIAMINE, SOLID"]
[null,null,null,null,null,null,null,null,null,null,null,null,null,null,null,null,null,null,null,null,null,null,null,null,null,null,null,"1710",6.1,"TRICHLOROETHYLENE"]
[null,null,null,null,null,null,null,null,null,null,null,null,null,null,null,null,null,null,null,null,null,null,null,null,null,null,null,"1711",6.1,"XYLIDINES, LIQUID"]
[null,null,null,null,null,null,null,null,null,null,null,null,null,null,null,null,null,null,null,null,null,null,null,null,null,null,null,"1712",6.1,"ZINC ARSENATE"]
[null,null,null,null,null,null,null,null,null,null,null,null,null,null,null,null,null,null,null,null,null,null,null,null,null,null,null,"1713",6.1,"ZINC CYANIDE"]
[null,null,null,null,null,null,null,null,null,null,null,null,null,null,null,null,null,null,null,null,null,null,null,null,null,null,null,"1714",4.3,"ZINC PHOSPHIDE"]
[null,null,null,null,null,null,null,null,null,null,null,null,null,null,null,null,null,null,null,null,null,null,null,null,null,null,null,"1715",8,"ACETIC ANHYDRIDE"]
[null,null,null,null,null,null,null,null,null,null,null,null,null,null,null,null,null,null,null,null,null,null,null,null,null,null,null,"1716",8,"ACETYL BROMIDE"]
[null,null,null,null,null,null,null,null,null,null,null,null,null,null,null,null,null,null,null,null,null,null,null,null,null,null,null,"1717",3,"ACETYL CHLORIDE"]
[null,null,null,null,null,null,null,null,null,null,null,null,null,null,null,null,null,null,null,null,null,null,null,null,null,null,null,"1718",8,"BUTYL ACID PHOSPHATE"]
[null,null,null,null,null,null,null,null,null,null,null,null,null,null,null,null,null,null,null,null,null,null,null,null,null,null,null,"1719",8,"CAUSTIC ALKALI LIQUID, N.O.S."]
[null,null,null,null,null,null,null,null,null,null,null,null,null,null,null,null,null,null,null,null,null,null,null,null,null,null,null,"1722",6.1,"ALLYL CHLOROFORMATE"]
[null,null,null,null,null,null,null,null,null,null,null,null,null,null,null,null,null,null,null,null,null,null,null,null,null,null,null,"1723",3,"ALLYL IODIDE"]
[null,null,null,null,null,null,null,null,null,null,null,null,null,null,null,null,null,null,null,null,null,null,null,null,null,null,null,"1724",8,"ALLYLTRICHLOROSILANE, STABILIZED"]
[null,null,null,null,null,null,null,null,null,null,null,null,null,null,null,null,null,null,null,null,null,null,null,null,null,null,null,"1725",8,"ALUMINIUM BROMIDE, ANHYDROUS"]
[null,null,null,null,null,null,null,null,null,null,null,null,null,null,null,null,null,null,null,null,null,null,null,null,null,null,null,"1726",8,"ALUMINIUM CHLORIDE, ANHYDROUS"]
[null,null,null,null,null,null,null,null,null,null,null,null,null,null,null,null,null,null,null,null,null,null,null,null,null,null,null,"1727",8,"AMMONIUM HYDROGENDIFLUORIDE, SOLID"]
[null,null,null,null,null,null,null,null,null,null,null,null,null,null,null,null,null,null,null,null,null,null,null,null,null,null,null,"1728",8,"AMYLTRICHLOROSILANE"]
[null,null,null,null,null,null,null,null,null,null,null,null,null,null,null,null,null,null,null,null,null,null,null,null,null,null,null,"1729",8,"ANISOYL CHLORIDE"]
[null,null,null,null,null,null,null,null,null,null,null,null,null,null,null,null,null,null,null,null,null,null,null,null,null,null,null,"1730",8,"ANTIMONY PENTACHLORIDE, LIQUID"]
[null,null,null,null,null,null,null,null,null,null,null,null,null,null,null,null,null,null,null,null,null,null,null,null,null,null,null,"1731",8,"ANTIMONY PENTACHLORIDE SOLUTION"]
[null,null,null,null,null,null,null,null,null,null,null,null,null,null,null,null,null,null,null,null,null,null,null,null,null,null,null,"1732",8,"ANTIMONY PENTAFLUORIDE"]
[null,null,null,null,null,null,null,null,null,null,null,null,null,null,null,null,null,null,null,null,null,null,null,null,null,null,null,"1733",8,"ANTIMONY TRICHLORIDE"]
[null,null,null,null,null,null,null,null,null,null,null,null,null,null,null,null,null,null,null,null,null,null,null,null,null,null,null,"1736",8,"BENZOYL CHLORIDE"]
[null,null,null,null,null,null,null,null,null,null,null,null,null,null,null,null,null,null,null,null,null,null,null,null,null,null,null,"1737",6.1,"BENZYL BROMIDE"]
[null,null,null,null,null,null,null,null,null,null,null,null,null,null,null,null,null,null,null,null,null,null,null,null,null,null,null,"1738",6.1,"BENZYL CHLORIDE"]
[null,null,null,null,null,null,null,null,null,null,null,null,null,null,null,null,null,null,null,null,null,null,null,null,null,null,null,"1739",8,"BENZYL CHLOROFORMATE"]
[null,null,null,null,null,null,null,null,null,null,null,null,null,null,null,null,null,null,null,null,null,null,null,null,null,null,null,"1740",8,"HYDROGENDIFLUORIDES, SOLID, N.O.S."]
[null,null,null,null,null,null,null,null,null,null,null,null,null,null,null,null,null,null,null,null,null,null,null,null,null,null,null,"1741",2.2999999999999998,"BORON TRICHLORIDE"]
[null,null,null,null,null,null,null,null,null,null,null,null,null,null,null,null,null,null,null,null,null,null,null,null,null,null,null,"1742",8,"BORON TRIFLUORIDE ACETIC ACID COMPLEX, LIQUID"]
[null,null,null,null,null,null,null,null,null,null,null,null,null,null,null,null,null,null,null,null,null,null,null,null,null,null,null,"1743",8,"BORON TRIFLUORIDE PROPIONIC ACID COMPLEX, LIQUID"]
[null,null,null,null,null,null,null,null,null,null,null,null,null,null,null,null,null,null,null,null,null,null,null,null,null,null,null,"1744",8,"BROMINE"]
[null,null,null,null,null,null,null,null,null,null,null,null,null,null,null,null,null,null,null,null,null,null,null,null,null,null,null,"1745",5.0999999999999996,"BROMINE PENTAFLUORIDE"]
[null,null,null,null,null,null,null,null,null,null,null,null,null,null,null,null,null,null,null,null,null,null,null,null,null,null,null,"1746",5.0999999999999996,"BROMINE TRIFLUORIDE"]
[null,null,null,null,null,null,null,null,null,null,null,null,null,null,null,null,null,null,null,null,null,null,null,null,null,null,null,"1747",8,"BUTYLTRICHLOROSILANE"]
[null,null,null,null,null,null,null,null,null,null,null,null,null,null,null,null,null,null,null,null,null,null,null,null,null,null,null,"1748",5.0999999999999996,"CALCIUM HYPOCHLORITE, DRY"]
[null,null,null,null,null,null,null,null,null,null,null,null,null,null,null,null,null,null,null,null,null,null,null,null,null,null,null,"1749",2.2999999999999998,"CHLORINE TRIFLUORIDE"]
[null,null,null,null,null,null,null,null,null,null,null,null,null,null,null,null,null,null,null,null,null,null,null,null,null,null,null,"1750",6.1,"CHLOROACETIC ACID SOLUTION"]
[null,null,null,null,null,null,null,null,null,null,null,null,null,null,null,null,null,null,null,null,null,null,null,null,null,null,null,"1751",6.1,"CHLOROACETIC ACID, SOLID"]
[null,null,null,null,null,null,null,null,null,null,null,null,null,null,null,null,null,null,null,null,null,null,null,null,null,null,null,"1752",6.1,"CHLOROACETYL CHLORIDE"]
[null,null,null,null,null,null,null,null,null,null,null,null,null,null,null,null,null,null,null,null,null,null,null,null,null,null,null,"1753",8,"CHLOROPHENYLTRICHLOROSILANE"]
[null,null,null,null,null,null,null,null,null,null,null,null,null,null,null,null,null,null,null,null,null,null,null,null,null,null,null,"1754",8,"CHLOROSULPHONIC ACID"]
[null,null,null,null,null,null,null,null,null,null,null,null,null,null,null,null,null,null,null,null,null,null,null,null,null,null,null,"1755",8,"CHROMIC ACID SOLUTION"]
[null,null,null,null,null,null,null,null,null,null,null,null,null,null,null,null,null,null,null,null,null,null,null,null,null,null,null,"1756",8,"CHROMIC FLUORIDE, SOLID"]
[null,null,null,null,null,null,null,null,null,null,null,null,null,null,null,null,null,null,null,null,null,null,null,null,null,null,null,"1757",8,"CHROMIC FLUORIDE SOLUTION"]
[null,null,null,null,null,null,null,null,null,null,null,null,null,null,null,null,null,null,null,null,null,null,null,null,null,null,null,"1758",8,"CHROMIUM OXYCHLORIDE"]
[null,null,null,null,null,null,null,null,null,null,null,null,null,null,null,null,null,null,null,null,null,null,null,null,null,null,null,"1759",8,"CORROSIVE SOLID, N.O.S."]
[null,null,null,null,null,null,null,null,null,null,null,null,null,null,null,null,null,null,null,null,null,null,null,null,null,null,null,"1760",8,"CORROSIVE LIQUID, N.O.S."]
[null,null,null,null,null,null,null,null,null,null,null,null,null,null,null,null,null,null,null,null,null,null,null,null,null,null,null,"1761",8,"CUPRIETHYLENEDIAMINE SOLUTION"]
[null,null,null,null,null,null,null,null,null,null,null,null,null,null,null,null,null,null,null,null,null,null,null,null,null,null,null,"1762",8,"CYCLOHEXENYLTRICHLOROSILANE"]
[null,null,null,null,null,null,null,null,null,null,null,null,null,null,null,null,null,null,null,null,null,null,null,null,null,null,null,"1763",8,"CYCLOHEXYLTRICHLOROSILANE"]
[null,null,null,null,null,null,null,null,null,null,null,null,null,null,null,null,null,null,null,null,null,null,null,null,null,null,null,"1764",8,"DICHLOROACETIC ACID"]
[null,null,null,null,null,null,null,null,null,null,null,null,null,null,null,null,null,null,null,null,null,null,null,null,null,null,null,"1765",8,"DICHLOROACETYL CHLORIDE"]
[null,null,null,null,null,null,null,null,null,null,null,null,null,null,null,null,null,null,null,null,null,null,null,null,null,null,null,"1766",8,"DICHLOROPHENYLTRICHLOROSILANE"]
[null,null,null,null,null,null,null,null,null,null,null,null,null,null,null,null,null,null,null,null,null,null,null,null,null,null,null,"1767",8,"DIETHYLDICHLOROSILANE"]
[null,null,null,null,null,null,null,null,null,null,null,null,null,null,null,null,null,null,null,null,null,null,null,null,null,null,null,"1768",8,"DIFLUOROPHOSPHORIC ACID, ANHYDROUS"]
[null,null,null,null,null,null,null,null,null,null,null,null,null,null,null,null,null,null,null,null,null,null,null,null,null,null,null,"1769",8,"DIPHENYLDICHLOROSILANE"]
[null,null,null,null,null,null,null,null,null,null,null,null,null,null,null,null,null,null,null,null,null,null,null,null,null,null,null,"1770",8,"DIPHENYLMETHYL BROMIDE"]
[null,null,null,null,null,null,null,null,null,null,null,null,null,null,null,null,null,null,null,null,null,null,null,null,null,null,null,"1771",8,"DODECYLTRICHLOROSILANE"]
[null,null,null,null,null,null,null,null,null,null,null,null,null,null,null,null,null,null,null,null,null,null,null,null,null,null,null,"1773",8,"FERRIC CHLORIDE, ANHYDROUS"]
[null,null,null,null,null,null,null,null,null,null,null,null,null,null,null,null,null,null,null,null,null,null,null,null,null,null,null,"1774",8,"FIRE EXTINGUISHER CHARGES"]
[null,null,null,null,null,null,null,null,null,null,null,null,null,null,null,null,null,null,null,null,null,null,null,null,null,null,null,"1775",8,"FLUOROBORIC ACID"]
[null,null,null,null,null,null,null,null,null,null,null,null,null,null,null,null,null,null,null,null,null,null,null,null,null,null,null,"1776",8,"FLUOROPHOSPHORIC ACID, ANHYDROUS"]
[null,null,null,null,null,null,null,null,null,null,null,null,null,null,null,null,null,null,null,null,null,null,null,null,null,null,null,"1777",8,"FLUOROSULPHONIC ACID"]
[null,null,null,null,null,null,null,null,null,null,null,null,null,null,null,null,null,null,null,null,null,null,null,null,null,null,null,"1778",8,"FLUOROSILICIC ACID"]
[null,null,null,null,null,null,null,null,null,null,null,null,null,null,null,null,null,null,null,null,null,null,null,null,null,null,null,"1779",8,"FORMIC ACID"]
[null,null,null,null,null,null,null,null,null,null,null,null,null,null,null,null,null,null,null,null,null,null,null,null,null,null,null,"1780",8,"FUMARYL CHLORIDE"]
[null,null,null,null,null,null,null,null,null,null,null,null,null,null,null,null,null,null,null,null,null,null,null,null,null,null,null,"1781",8,"HEXADECYLTRICHLOROSILANE"]
[null,null,null,null,null,null,null,null,null,null,null,null,null,null,null,null,null,null,null,null,null,null,null,null,null,null,null,"1782",8,"HEXAFLUOROPHOSPHORIC ACID"]
[null,null,null,null,null,null,null,null,null,null,null,null,null,null,null,null,null,null,null,null,null,null,null,null,null,null,null,"1783",8,"HEXAMETHYLENEDIAMINE SOLUTION"]
[null,null,null,null,null,null,null,null,null,null,null,null,null,null,null,null,null,null,null,null,null,null,null,null,null,null,null,"1784",8,"HEXYLTRICHLOROSILANE"]
[null,null,null,null,null,null,null,null,null,null,null,null,null,null,null,null,null,null,null,null,null,null,null,null,null,null,null,"1786",8,"HYDROFLUORIC ACID AND SULPHURIC ACID MIXTURE"]
[null,null,null,null,null,null,null,null,null,null,null,null,null,null,null,null,null,null,null,null,null,null,null,null,null,null,null,"1787",8,"HYDRIODIC ACID"]
[null,null,null,null,null,null,null,null,null,null,null,null,null,null,null,null,null,null,null,null,null,null,null,null,null,null,null,"1788",8,"HYDROBROMIC ACID"]
[null,null,null,null,null,null,null,null,null,null,null,null,null,null,null,null,null,null,null,null,null,null,null,null,null,null,null,"1789",8,"HYDROCHLORIC ACID"]
[null,null,null,null,null,null,null,null,null,null,null,null,null,null,null,null,null,null,null,null,null,null,null,null,null,null,null,"1790",8,"HYDROFLUORIC ACID"]
[null,null,null,null,null,null,null,null,null,null,null,null,null,null,null,null,null,null,null,null,null,null,null,null,null,null,null,"1791",8,"HYPOCHLORITE SOLUTION"]
[null,null,null,null,null,null,null,null,null,null,null,null,null,null,null,null,null,null,null,null,null,null,null,null,null,null,null,"1792",8,"IODINE MONOCHLORIDE, SOLID"]
[null,null,null,null,null,null,null,null,null,null,null,null,null,null,null,null,null,null,null,null,null,null,null,null,null,null,null,"1793",8,"ISOPROPYL ACID PHOSPHATE"]
[null,null,null,null,null,null,null,null,null,null,null,null,null,null,null,null,null,null,null,null,null,null,null,null,null,null,null,"1794",8,"LEAD SULPHATE"]
[null,null,null,null,null,null,null,null,null,null,null,null,null,null,null,null,null,null,null,null,null,null,null,null,null,null,null,"1796",8,"NITRATING ACID MIXTURE"]
[null,null,null,null,null,null,null,null,null,null,null,null,null,null,null,null,null,null,null,null,null,null,null,null,null,null,null,"1798",8,"NITROHYDROCHLORIC ACID"]
[null,null,null,null,null,null,null,null,null,null,null,null,null,null,null,null,null,null,null,null,null,null,null,null,null,null,null,"1799",8,"NONYLTRICHLOROSILANE"]
[null,null,null,null,null,null,null,null,null,null,null,null,null,null,null,null,null,null,null,null,null,null,null,null,null,null,null,"1800",8,"OCTADECYLTRICHLOROSILANE"]
[null,null,null,null,null,null,null,null,null,null,null,null,null,null,null,null,null,null,null,null,null,null,null,null,null,null,null,"1801",8,"OCTYLTRICHLOROSILANE"]
[null,null,null,null,null,null,null,null,null,null,null,null,null,null,null,null,null,null,null,null,null,null,null,null,null,null,null,"1802",8,"PERCHLORIC ACID"]
[null,null,null,null,null,null,null,null,null,null,null,null,null,null,null,null,null,null,null,null,null,null,null,null,null,null,null,"1803",8,"PHENOLSULPHONIC ACID, LIQUID"]
[null,null,null,null,null,null,null,null,null,null,null,null,null,null,null,null,null,null,null,null,null,null,null,null,null,null,null,"1804",8,"PHENYLTRICHLOROSILANE"]
[null,null,null,null,null,null,null,null,null,null,null,null,null,null,null,null,null,null,null,null,null,null,null,null,null,null,null,"1805",8,"PHOSPHORIC ACID SOLUTION"]
[null,null,null,null,null,null,null,null,null,null,null,null,null,null,null,null,null,null,null,null,null,null,null,null,null,null,null,"1806",8,"PHOSPHORUS PENTACHLORIDE"]
[null,null,null,null,null,null,null,null,null,null,null,null,null,null,null,null,null,null,null,null,null,null,null,null,null,null,null,"1807",8,"PHOSPHORUS PENTOXIDE"]
[null,null,null,null,null,null,null,null,null,null,null,null,null,null,null,null,null,null,null,null,null,null,null,null,null,null,null,"1808",8,"PHOSPHORUS TRIBROMIDE"]
[null,null,null,null,null,null,null,null,null,null,null,null,null,null,null,null,null,null,null,null,null,null,null,null,null,null,null,"1809",6.1,"PHOSPHORUS TRICHLORIDE"]
[null,null,null,null,null,null,null,null,null,null,null,null,null,null,null,null,null,null,null,null,null,null,null,null,null,null,null,"1810",6.1,"PHOSPHORUS OXYCHLORIDE"]
[null,null,null,null,null,null,null,null,null,null,null,null,null,null,null,null,null,null,null,null,null,null,null,null,null,null,null,"1811",8,"POTASSIUM HYDROGEN DIFLUORIDE, SOLID"]
[null,null,null,null,null,null,null,null,null,null,null,null,null,null,null,null,null,null,null,null,null,null,null,null,null,null,null,"1812",6.1,"POTASSIUM FLUORIDE, SOLID"]
[null,null,null,null,null,null,null,null,null,null,null,null,null,null,null,null,null,null,null,null,null,null,null,null,null,null,null,"1813",8,"POTASSIUM HYDROXIDE, SOLID"]
[null,null,null,null,null,null,null,null,null,null,null,null,null,null,null,null,null,null,null,null,null,null,null,null,null,null,null,"1814",8,"POTASSIUM HYDROXIDE SOLUTION"]
[null,null,null,null,null,null,null,null,null,null,null,null,null,null,null,null,null,null,null,null,null,null,null,null,null,null,null,"1815",3,"PROPIONYL CHLORIDE"]
[null,null,null,null,null,null,null,null,null,null,null,null,null,null,null,null,null,null,null,null,null,null,null,null,null,null,null,"1816",8,"PROPYLTRICHLOROSILANE"]
[null,null,null,null,null,null,null,null,null,null,null,null,null,null,null,null,null,null,null,null,null,null,null,null,null,null,null,"1817",8,"PYROSULPHURYL CHLORIDE"]
[null,null,null,null,null,null,null,null,null,null,null,null,null,null,null,null,null,null,null,null,null,null,null,null,null,null,null,"1818",8,"SILICON TETRACHLORIDE"]
[null,null,null,null,null,null,null,null,null,null,null,null,null,null,null,null,null,null,null,null,null,null,null,null,null,null,null,"1819",8,"SODIUM ALUMINATE SOLUTION"]
[null,null,null,null,null,null,null,null,null,null,null,null,null,null,null,null,null,null,null,null,null,null,null,null,null,null,null,"1823",8,"SODIUM HYDROXIDE, SOLID"]
[null,null,null,null,null,null,null,null,null,null,null,null,null,null,null,null,null,null,null,null,null,null,null,null,null,null,null,"1824",8,"SODIUM HYDROXIDE SOLUTION"]
[null,null,null,null,null,null,null,null,null,null,null,null,null,null,null,null,null,null,null,null,null,null,null,null,null,null,null,"1825",8,"SODIUM MONOXIDE"]
[null,null,null,null,null,null,null,null,null,null,null,null,null,null,null,null,null,null,null,null,null,null,null,null,null,null,null,"1826",8,"NITRATING ACID MIXTURE, SPENT"]
[null,null,null,null,null,null,null,null,null,null,null,null,null,null,null,null,null,null,null,null,null,null,null,null,null,null,null,"1827",8,"STANNIC CHLORIDE, ANHYDROUS"]
[null,null,null,null,null,null,null,null,null,null,null,null,null,null,null,null,null,null,null,null,null,null,null,null,null,null,null,"1828",8,"SULPHUR CHLORIDES"]
[null,null,null,null,null,null,null,null,null,null,null,null,null,null,null,null,null,null,null,null,null,null,null,null,null,null,null,"1829",8,"SULPHUR TRIOXIDE, STABILIZED"]
[null,null,null,null,null,null,null,null,null,null,null,null,null,null,null,null,null,null,null,null,null,null,null,null,null,null,null,"1830",8,"SULPHURIC ACID"]
[null,null,null,null,null,null,null,null,null,null,null,null,null,null,null,null,null,null,null,null,null,null,null,null,null,null,null,"1831",8,"SULPHURIC ACID, FUMING"]
[null,null,null,null,null,null,null,null,null,null,null,null,null,null,null,null,null,null,null,null,null,null,null,null,null,null,null,"1832",8,"SULPHURIC ACID, SPENT"]
[null,null,null,null,null,null,null,null,null,null,null,null,null,null,null,null,null,null,null,null,null,null,null,null,null,null,null,"1833",8,"SULPHUROUS ACID"]
[null,null,null,null,null,null,null,null,null,null,null,null,null,null,null,null,null,null,null,null,null,null,null,null,null,null,null,"1834",6.1,"SULPHURYL CHLORIDE"]
[null,null,null,null,null,null,null,null,null,null,null,null,null,null,null,null,null,null,null,null,null,null,null,null,null,null,null,"1835",8,"TETRAMETHYLAMMONIUM HYDROXIDE SOLUTION"]
[null,null,null,null,null,null,null,null,null,null,null,null,null,null,null,null,null,null,null,null,null,null,null,null,null,null,null,"1836",8,"THIONYL CHLORIDE"]
[null,null,null,null,null,null,null,null,null,null,null,null,null,null,null,null,null,null,null,null,null,null,null,null,null,null,null,"1837",8,"THIOPHOSPHORYL CHLORIDE"]
[null,null,null,null,null,null,null,null,null,null,null,null,null,null,null,null,null,null,null,null,null,null,null,null,null,null,null,"1838",6.1,"TITANIUM TETRACHLORIDE"]
[null,null,null,null,null,null,null,null,null,null,null,null,null,null,null,null,null,null,null,null,null,null,null,null,null,null,null,"1839",8,"TRICHLOROACETIC ACID, SOLID"]
[null,null,null,null,null,null,null,null,null,null,null,null,null,null,null,null,null,null,null,null,null,null,null,null,null,null,null,"1840",8,"ZINC CHLORIDE SOLUTION"]
[null,null,null,null,null,null,null,null,null,null,null,null,null,null,null,null,null,null,null,null,null,null,null,null,null,null,null,"1841",9,"ACETALDEHYDE AMMONIA"]
[null,null,null,null,null,null,null,null,null,null,null,null,null,null,null,null,null,null,null,null,null,null,null,null,null,null,null,"1843",6.1,"AMMONIUM DINITRO-o-CRESOLATE, SOLID"]
[null,null,null,null,null,null,null,null,null,null,null,null,null,null,null,null,null,null,null,null,null,null,null,null,null,null,null,"1845",9,"CARBON DIOXIDE, SOLID"]
[null,null,null,null,null,null,null,null,null,null,null,null,null,null,null,null,null,null,null,null,null,null,null,null,null,null,null,"1846",6.1,"CARBON TETRACHLORIDE"]
[null,null,null,null,null,null,null,null,null,null,null,null,null,null,null,null,null,null,null,null,null,null,null,null,null,null,null,"1847",8,"POTASSIUM SULPHIDE, HYDRATED"]
[null,null,null,null,null,null,null,null,null,null,null,null,null,null,null,null,null,null,null,null,null,null,null,null,null,null,null,"1848",8,"PROPIONIC ACID"]
[null,null,null,null,null,null,null,null,null,null,null,null,null,null,null,null,null,null,null,null,null,null,null,null,null,null,null,"1849",8,"SODIUM SULPHIDE, HYDRATED"]
[null,null,null,null,null,null,null,null,null,null,null,null,null,null,null,null,null,null,null,null,null,null,null,null,null,null,null,"1851",6.1,"MEDICINE, LIQUID, TOXIC, N.O.S."]
[null,null,null,null,null,null,null,null,null,null,null,null,null,null,null,null,null,null,null,null,null,null,null,null,null,null,null,"1854",4.2,"BARIUM ALLOYS, PYROPHORIC"]
[null,null,null,null,null,null,null,null,null,null,null,null,null,null,null,null,null,null,null,null,null,null,null,null,null,null,null,"1855",4.2,"CALCIUM, PYROPHORIC"]
[null,null,null,null,null,null,null,null,null,null,null,null,null,null,null,null,null,null,null,null,null,null,null,null,null,null,null,"1856",4.2,"RAGS, OILY"]
[null,null,null,null,null,null,null,null,null,null,null,null,null,null,null,null,null,null,null,null,null,null,null,null,null,null,null,"1857",4.2,"TEXTILE WASTE, WET"]
[null,null,null,null,null,null,null,null,null,null,null,null,null,null,null,null,null,null,null,null,null,null,null,null,null,null,null,"1858",2.2000000000000002,"HEXAFLUOROPROPYLENE"]
[null,null,null,null,null,null,null,null,null,null,null,null,null,null,null,null,null,null,null,null,null,null,null,null,null,null,null,"1859",2.2999999999999998,"SILICON TETRAFLUORIDE"]
[null,null,null,null,null,null,null,null,null,null,null,null,null,null,null,null,null,null,null,null,null,null,null,null,null,null,null,"1860",2.1,"VINYL FLUORIDE, STABILIZED"]
[null,null,null,null,null,null,null,null,null,null,null,null,null,null,null,null,null,null,null,null,null,null,null,null,null,null,null,"1862",3,"ETHYL CROTONATE"]
[null,null,null,null,null,null,null,null,null,null,null,null,null,null,null,null,null,null,null,null,null,null,null,null,null,null,null,"1863",3,"FUEL, AVIATION, TURBINE ENGINE"]
[null,null,null,null,null,null,null,null,null,null,null,null,null,null,null,null,null,null,null,null,null,null,null,null,null,null,null,"1865",3,"n-PROPYL NITRATE"]
[null,null,null,null,null,null,null,null,null,null,null,null,null,null,null,null,null,null,null,null,null,null,null,null,null,null,null,"1866",3,"RESIN SOLUTION"]
[null,null,null,null,null,null,null,null,null,null,null,null,null,null,null,null,null,null,null,null,null,null,null,null,null,null,null,"1868",4.0999999999999996,"DECABORANE"]
[null,null,null,null,null,null,null,null,null,null,null,null,null,null,null,null,null,null,null,null,null,null,null,null,null,null,null,"1869",4.0999999999999996,"MAGNESIUM"]
[null,null,null,null,null,null,null,null,null,null,null,null,null,null,null,null,null,null,null,null,null,null,null,null,null,null,null,"1870",4.3,"POTASSIUM BOROHYDRIDE"]
[null,null,null,null,null,null,null,null,null,null,null,null,null,null,null,null,null,null,null,null,null,null,null,null,null,null,null,"1871",4.0999999999999996,"TITANIUM HYDRIDE"]
[null,null,null,null,null,null,null,null,null,null,null,null,null,null,null,null,null,null,null,null,null,null,null,null,null,null,null,"1872",5.0999999999999996,"LEAD DIOXIDE"]
[null,null,null,null,null,null,null,null,null,null,null,null,null,null,null,null,null,null,null,null,null,null,null,null,null,null,null,"1873",5.0999999999999996,"PERCHLORIC ACID"]
[null,null,null,null,null,null,null,null,null,null,null,null,null,null,null,null,null,null,null,null,null,null,null,null,null,null,null,"1884",6.1,"BARIUM OXIDE"]
[null,null,null,null,null,null,null,null,null,null,null,null,null,null,null,null,null,null,null,null,null,null,null,null,null,null,null,"1885",6.1,"BENZIDINE"]
[null,null,null,null,null,null,null,null,null,null,null,null,null,null,null,null,null,null,null,null,null,null,null,null,null,null,null,"1886",6.1,"BENZYLIDENE CHLORIDE"]
[null,null,null,null,null,null,null,null,null,null,null,null,null,null,null,null,null,null,null,null,null,null,null,null,null,null,null,"1887",6.1,"BROMOCHLOROMETHANE"]
[null,null,null,null,null,null,null,null,null,null,null,null,null,null,null,null,null,null,null,null,null,null,null,null,null,null,null,"1888",6.1,"CHLOROFORM"]
[null,null,null,null,null,null,null,null,null,null,null,null,null,null,null,null,null,null,null,null,null,null,null,null,null,null,null,"1889",6.1,"CYANOGEN BROMIDE"]
[null,null,null,null,null,null,null,null,null,null,null,null,null,null,null,null,null,null,null,null,null,null,null,null,null,null,null,"1891",6.1,"ETHYL BROMIDE"]
[null,null,null,null,null,null,null,null,null,null,null,null,null,null,null,null,null,null,null,null,null,null,null,null,null,null,null,"1892",6.1,"ETHYLDICHLOROARSINE"]
[null,null,null,null,null,null,null,null,null,null,null,null,null,null,null,null,null,null,null,null,null,null,null,null,null,null,null,"1894",6.1,"PHENYLMERCURIC HYDROXIDE"]
[null,null,null,null,null,null,null,null,null,null,null,null,null,null,null,null,null,null,null,null,null,null,null,null,null,null,null,"1895",6.1,"PHENYLMERCURIC NITRATE"]
[null,null,null,null,null,null,null,null,null,null,null,null,null,null,null,null,null,null,null,null,null,null,null,null,null,null,null,"1897",6.1,"TETRACHLOROETHYLENE"]
[null,null,null,null,null,null,null,null,null,null,null,null,null,null,null,null,null,null,null,null,null,null,null,null,null,null,null,"1898",8,"ACETYL IODIDE"]
[null,null,null,null,null,null,null,null,null,null,null,null,null,null,null,null,null,null,null,null,null,null,null,null,null,null,null,"1902",8,"DIISOOCTYL ACID PHOSPHATE"]
[null,null,null,null,null,null,null,null,null,null,null,null,null,null,null,null,null,null,null,null,null,null,null,null,null,null,null,"1903",8,"DISINFECTANT, LIQUID, CORROSIVE, N.O.S."]
[null,null,null,null,null,null,null,null,null,null,null,null,null,null,null,null,null,null,null,null,null,null,null,null,null,null,null,"1905",8,"SELENIC ACID"]
[null,null,null,null,null,null,null,null,null,null,null,null,null,null,null,null,null,null,null,null,null,null,null,null,null,null,null,"1906",8,"SLUDGE ACID"]
[null,null,null,null,null,null,null,null,null,null,null,null,null,null,null,null,null,null,null,null,null,null,null,null,null,null,null,"1907",8,"SODA LIME"]
[null,null,null,null,null,null,null,null,null,null,null,null,null,null,null,null,null,null,null,null,null,null,null,null,null,null,null,"1908",8,"CHLORITE SOLUTION"]
[null,null,null,null,null,null,null,null,null,null,null,null,null,null,null,null,null,null,null,null,null,null,null,null,null,null,null,"1910",8,"CALCIUM OXIDE"]
[null,null,null,null,null,null,null,null,null,null,null,null,null,null,null,null,null,null,null,null,null,null,null,null,null,null,null,"1911",2.2999999999999998,"DIBORANE"]
[null,null,null,null,null,null,null,null,null,null,null,null,null,null,null,null,null,null,null,null,null,null,null,null,null,null,null,"1912",2.1,"METHYL CHLORIDE AND METHYLENE CHLORIDE MIXTURE"]
[null,null,null,null,null,null,null,null,null,null,null,null,null,null,null,null,null,null,null,null,null,null,null,null,null,null,null,"1913",2.2000000000000002,"NEON, REFRIGERATED LIQUID"]
[null,null,null,null,null,null,null,null,null,null,null,null,null,null,null,null,null,null,null,null,null,null,null,null,null,null,null,"1914",3,"BUTYL PROPIONATES"]
[null,null,null,null,null,null,null,null,null,null,null,null,null,null,null,null,null,null,null,null,null,null,null,null,null,null,null,"1915",3,"CYCLOHEXANONE"]
[null,null,null,null,null,null,null,null,null,null,null,null,null,null,null,null,null,null,null,null,null,null,null,null,null,null,null,"1916",6.1,"2,2'-DICHLORODIETHYL ETHER"]
[null,null,null,null,null,null,null,null,null,null,null,null,null,null,null,null,null,null,null,null,null,null,null,null,null,null,null,"1917",3,"ETHYL ACRYLATE, STABILIZED"]
[null,null,null,null,null,null,null,null,null,null,null,null,null,null,null,null,null,null,null,null,null,null,null,null,null,null,null,"1918",3,"ISOPROPYLBENZENE"]
[null,null,null,null,null,null,null,null,null,null,null,null,null,null,null,null,null,null,null,null,null,null,null,null,null,null,null,"1919",3,"METHYL ACRYLATE, STABILIZED"]
[null,null,null,null,null,null,null,null,null,null,null,null,null,null,null,null,null,null,null,null,null,null,null,null,null,null,null,"1920",3,"NONANES"]
[null,null,null,null,null,null,null,null,null,null,null,null,null,null,null,null,null,null,null,null,null,null,null,null,null,null,null,"1921",3,"PROPYLENEIMINE, STABILIZED"]
[null,null,null,null,null,null,null,null,null,null,null,null,null,null,null,null,null,null,null,null,null,null,null,null,null,null,null,"1922",3,"PYRROLIDINE"]
[null,null,null,null,null,null,null,null,null,null,null,null,null,null,null,null,null,null,null,null,null,null,null,null,null,null,null,"1923",4.2,"CALCIUM DITHIONITE"]
[null,null,null,null,null,null,null,null,null,null,null,null,null,null,null,null,null,null,null,null,null,null,null,null,null,null,null,"1928",4.3,"METHYLMAGNESIUM BROMIDE IN ETHYL ETHER"]
[null,null,null,null,null,null,null,null,null,null,null,null,null,null,null,null,null,null,null,null,null,null,null,null,null,null,null,"1929",4.2,"POTASSIUM DITHIONITE"]
[null,null,null,null,null,null,null,null,null,null,null,null,null,null,null,null,null,null,null,null,null,null,null,null,null,null,null,"1931",9,"ZINC DITHIONITE"]
[null,null,null,null,null,null,null,null,null,null,null,null,null,null,null,null,null,null,null,null,null,null,null,null,null,null,null,"1932",4.2,"ZIRCONIUM, SCRAP"]
[null,null,null,null,null,null,null,null,null,null,null,null,null,null,null,null,null,null,null,null,null,null,null,null,null,null,null,"1935",6.1,"CYANIDE SOLUTION, N.O.S."]
[null,null,null,null,null,null,null,null,null,null,null,null,null,null,null,null,null,null,null,null,null,null,null,null,null,null,null,"1938",8,"BROMOACETIC ACID SOLUTION"]
[null,null,null,null,null,null,null,null,null,null,null,null,null,null,null,null,null,null,null,null,null,null,null,null,null,null,null,"1939",8,"PHOSPHORUS OXYBROMIDE"]
[null,null,null,null,null,null,null,null,null,null,null,null,null,null,null,null,null,null,null,null,null,null,null,null,null,null,null,"1940",8,"THIOGLYCOLIC ACID"]
[null,null,null,null,null,null,null,null,null,null,null,null,null,null,null,null,null,null,null,null,null,null,null,null,null,null,null,"1941",9,"DIBROMODIFLUOROMETHANE"]
[null,null,null,null,null,null,null,null,null,null,null,null,null,null,null,null,null,null,null,null,null,null,null,null,null,null,null,"1942",5.0999999999999996,"AMMONIUM NITRATE"]
[null,null,null,null,null,null,null,null,null,null,null,null,null,null,null,null,null,null,null,null,null,null,null,null,null,null,null,"1944",4.0999999999999996,"MATCHES, SAFETY"]
[null,null,null,null,null,null,null,null,null,null,null,null,null,null,null,null,null,null,null,null,null,null,null,null,null,null,null,"1945",4.0999999999999996,"MATCHES, WAX 'VESTA'"]
[null,null,null,null,null,null,null,null,null,null,null,null,null,null,null,null,null,null,null,null,null,null,null,null,null,null,null,"1950",2.1,"AEROSOLS"]
[null,null,null,null,null,null,null,null,null,null,null,null,null,null,null,null,null,null,null,null,null,null,null,null,null,null,null,"1951",2.2000000000000002,"ARGON, REFRIGERATED LIQUID"]
[null,null,null,null,null,null,null,null,null,null,null,null,null,null,null,null,null,null,null,null,null,null,null,null,null,null,null,"1952",2.2000000000000002,"ETHYLENE OXIDE AND CARBON DIOXIDE MIXTURE"]
[null,null,null,null,null,null,null,null,null,null,null,null,null,null,null,null,null,null,null,null,null,null,null,null,null,null,null,"1953",2.2999999999999998,"COMPRESSED GAS, TOXIC, FLAMMABLE, N.O.S."]
[null,null,null,null,null,null,null,null,null,null,null,null,null,null,null,null,null,null,null,null,null,null,null,null,null,null,null,"1954",2.1,"COMPRESSED GAS, FLAMMABLE, N.O.S."]
[null,null,null,null,null,null,null,null,null,null,null,null,null,null,null,null,null,null,null,null,null,null,null,null,null,null,null,"1955",2.2999999999999998,"COMPRESSED GAS, TOXIC, N.O.S."]
[null,null,null,null,null,null,null,null,null,null,null,null,null,null,null,null,null,null,null,null,null,null,null,null,null,null,null,"1956",2.2000000000000002,"COMPRESSED GAS, N.O.S."]
[null,null,null,null,null,null,null,null,null,null,null,null,null,null,null,null,null,null,null,null,null,null,null,null,null,null,null,"1957",2.1,"DEUTERIUM, COMPRESSED"]
[null,null,null,null,null,null,null,null,null,null,null,null,null,null,null,null,null,null,null,null,null,null,null,null,null,null,null,"1958",2.2000000000000002,"1,2-DICHLORO-1,1,2,2-TETRAFLUOROETHANE"]
[null,null,null,null,null,null,null,null,null,null,null,null,null,null,null,null,null,null,null,null,null,null,null,null,null,null,null,"1959",2.1,"1,1-DIFLUOROETHYLENE"]
[null,null,null,null,null,null,null,null,null,null,null,null,null,null,null,null,null,null,null,null,null,null,null,null,null,null,null,"1961",2.1,"ETHANE, REFRIGERATED LIQUID"]
[null,null,null,null,null,null,null,null,null,null,null,null,null,null,null,null,null,null,null,null,null,null,null,null,null,null,null,"1962",2.1,"ETHYLENE"]
[null,null,null,null,null,null,null,null,null,null,null,null,null,null,null,null,null,null,null,null,null,null,null,null,null,null,null,"1963",2.2000000000000002,"HELIUM, REFRIGERATED LIQUID"]
[null,null,null,null,null,null,null,null,null,null,null,null,null,null,null,null,null,null,null,null,null,null,null,null,null,null,null,"1964",2.1,"HYDROCARBON GAS MIXTURE, COMPRESSED, N.O.S."]
[null,null,null,null,null,null,null,null,null,null,null,null,null,null,null,null,null,null,null,null,null,null,null,null,null,null,null,"1965",2.1,"HYDROCARBON GAS MIXTURE, LIQUEFIED, N.O.S."]
[null,null,null,null,null,null,null,null,null,null,null,null,null,null,null,null,null,null,null,null,null,null,null,null,null,null,null,"1966",2.1,"HYDROGEN, REFRIGERATED LIQUID"]
[null,null,null,null,null,null,null,null,null,null,null,null,null,null,null,null,null,null,null,null,null,null,null,null,null,null,null,"1967",2.2999999999999998,"INSECTICIDE GAS, TOXIC, N.O.S."]
[null,null,null,null,null,null,null,null,null,null,null,null,null,null,null,null,null,null,null,null,null,null,null,null,null,null,null,"1968",2.2000000000000002,"INSECTICIDE GAS, N.O.S."]
[null,null,null,null,null,null,null,null,null,null,null,null,null,null,null,null,null,null,null,null,null,null,null,null,null,null,null,"1969",2.1,"ISOBUTANE"]
[null,null,null,null,null,null,null,null,null,null,null,null,null,null,null,null,null,null,null,null,null,null,null,null,null,null,null,"1970",2.2000000000000002,"KRYPTON, REFRIGERATED LIQUID"]
[null,null,null,null,null,null,null,null,null,null,null,null,null,null,null,null,null,null,null,null,null,null,null,null,null,null,null,"1971",2.1,"METHANE, COMPRESSED"]
[null,null,null,null,null,null,null,null,null,null,null,null,null,null,null,null,null,null,null,null,null,null,null,null,null,null,null,"1972",2.1,"METHANE, REFRIGERATED LIQUID"]
[null,null,null,null,null,null,null,null,null,null,null,null,null,null,null,null,null,null,null,null,null,null,null,null,null,null,null,"1973",2.2000000000000002,"CHLORODIFLUOROMETHANE AND CHLOROPENTAFLUOROETHANE MIXTURE"]
[null,null,null,null,null,null,null,null,null,null,null,null,null,null,null,null,null,null,null,null,null,null,null,null,null,null,null,"1974",2.2000000000000002,"CHLORODIFLUOROBROMOMETHANE"]
[null,null,null,null,null,null,null,null,null,null,null,null,null,null,null,null,null,null,null,null,null,null,null,null,null,null,null,"1975",2.2999999999999998,"NITRIC OXIDE AND DINITROGEN TETROXIDE MIXTURE"]
[null,null,null,null,null,null,null,null,null,null,null,null,null,null,null,null,null,null,null,null,null,null,null,null,null,null,null,"1976",2.2000000000000002,"OCTAFLUOROCYCLOBUTANE"]
[null,null,null,null,null,null,null,null,null,null,null,null,null,null,null,null,null,null,null,null,null,null,null,null,null,null,null,"1977",2.2000000000000002,"NITROGEN, REFRIGERATED LIQUID"]
[null,null,null,null,null,null,null,null,null,null,null,null,null,null,null,null,null,null,null,null,null,null,null,null,null,null,null,"1978",2.1,"PROPANE"]
[null,null,null,null,null,null,null,null,null,null,null,null,null,null,null,null,null,null,null,null,null,null,null,null,null,null,null,"1982",2.2000000000000002,"TETRAFLUOROMETHANE"]
[null,null,null,null,null,null,null,null,null,null,null,null,null,null,null,null,null,null,null,null,null,null,null,null,null,null,null,"1983",2.2000000000000002,"1-CHLORO-2,2,2-TRIFLUOROETHANE"]
[null,null,null,null,null,null,null,null,null,null,null,null,null,null,null,null,null,null,null,null,null,null,null,null,null,null,null,"1984",2.2000000000000002,"TRIFLUOROMETHANE"]
[null,null,null,null,null,null,null,null,null,null,null,null,null,null,null,null,null,null,null,null,null,null,null,null,null,null,null,"1986",3,"ALCOHOLS, FLAMMABLE, TOXIC, N.O.S."]
[null,null,null,null,null,null,null,null,null,null,null,null,null,null,null,null,null,null,null,null,null,null,null,null,null,null,null,"1987",3,"ALCOHOLS, N.O.S."]
[null,null,null,null,null,null,null,null,null,null,null,null,null,null,null,null,null,null,null,null,null,null,null,null,null,null,null,"1988",3,"ALDEHYDES, FLAMMABLE, TOXIC, N.O.S."]
[null,null,null,null,null,null,null,null,null,null,null,null,null,null,null,null,null,null,null,null,null,null,null,null,null,null,null,"1989",3,"ALDEHYDES, N.O.S."]
[null,null,null,null,null,null,null,null,null,null,null,null,null,null,null,null,null,null,null,null,null,null,null,null,null,null,null,"1990",9,"BENZALDEHYDE"]
[null,null,null,null,null,null,null,null,null,null,null,null,null,null,null,null,null,null,null,null,null,null,null,null,null,null,null,"1991",3,"CHLOROPRENE, STABILIZED"]
[null,null,null,null,null,null,null,null,null,null,null,null,null,null,null,null,null,null,null,null,null,null,null,null,null,null,null,"1992",3,"FLAMMABLE LIQUID, TOXIC, N.O.S."]
[null,null,null,null,null,null,null,null,null,null,null,null,null,null,null,null,null,null,null,null,null,null,null,null,null,null,null,"1993",3,"FLAMMABLE LIQUID, N.O.S."]
[null,null,null,null,null,null,null,null,null,null,null,null,null,null,null,null,null,null,null,null,null,null,null,null,null,null,null,"1994",6.1,"IRON PENTACARBONYL"]
[null,null,null,null,null,null,null,null,null,null,null,null,null,null,null,null,null,null,null,null,null,null,null,null,null,null,null,"1999",3,"TARS, LIQUID"]
[null,null,null,null,null,null,null,null,null,null,null,null,null,null,null,null,null,null,null,null,null,null,null,null,null,null,null,"2000",4.0999999999999996,"CELLULOID"]
[null,null,null,null,null,null,null,null,null,null,null,null,null,null,null,null,null,null,null,null,null,null,null,null,null,null,null,"2001",4.0999999999999996,"COBALT NAPHTHENATES, POWDER"]
[null,null,null,null,null,null,null,null,null,null,null,null,null,null,null,null,null,null,null,null,null,null,null,null,null,null,null,"2002",4.2,"CELLULOID, SCRAP"]
[null,null,null,null,null,null,null,null,null,null,null,null,null,null,null,null,null,null,null,null,null,null,null,null,null,null,null,"2004",4.2,"MAGNESIUM DIAMIDE"]
[null,null,null,null,null,null,null,null,null,null,null,null,null,null,null,null,null,null,null,null,null,null,null,null,null,null,null,"2006",4.2,"PLASTICS, NITROCELLULOSE-BASED, SELF-HEATING, N.O.S."]
[null,null,null,null,null,null,null,null,null,null,null,null,null,null,null,null,null,null,null,null,null,null,null,null,null,null,null,"2008",4.2,"ZIRCONIUM POWDER, DRY"]
[null,null,null,null,null,null,null,null,null,null,null,null,null,null,null,null,null,null,null,null,null,null,null,null,null,null,null,"2009",4.2,"ZIRCONIUM, DRY"]
[null,null,null,null,null,null,null,null,null,null,null,null,null,null,null,null,null,null,null,null,null,null,null,null,null,null,null,"2010",4.3,"MAGNESIUM HYDRIDE"]
[null,null,null,null,null,null,null,null,null,null,null,null,null,null,null,null,null,null,null,null,null,null,null,null,null,null,null,"2011",4.3,"MAGNESIUM PHOSPHIDE"]
[null,null,null,null,null,null,null,null,null,null,null,null,null,null,null,null,null,null,null,null,null,null,null,null,null,null,null,"2012",4.3,"POTASSIUM PHOSPHIDE"]
[null,null,null,null,null,null,null,null,null,null,null,null,null,null,null,null,null,null,null,null,null,null,null,null,null,null,null,"2013",4.3,"STRONTIUM PHOSPHIDE"]
[null,null,null,null,null,null,null,null,null,null,null,null,null,null,null,null,null,null,null,null,null,null,null,null,null,null,null,"2014",5.0999999999999996,"HYDROGEN PEROXIDE, AQUEOUS SOLUTION"]
[null,null,null,null,null,null,null,null,null,null,null,null,null,null,null,null,null,null,null,null,null,null,null,null,null,null,null,"2015",5.0999999999999996,"HYDROGEN PEROXIDE, STABILIZED"]
[null,null,null,null,null,null,null,null,null,null,null,null,null,null,null,null,null,null,null,null,null,null,null,null,null,null,null,"2016",6.1,"AMMUNITION, TOXIC, NON-EXPLOSIVE"]
[null,null,null,null,null,null,null,null,null,null,null,null,null,null,null,null,null,null,null,null,null,null,null,null,null,null,null,"2017",6.1,"AMMUNITION, TEAR-PRODUCING, NON-EXPLOSIVE"]
[null,null,null,null,null,null,null,null,null,null,null,null,null,null,null,null,null,null,null,null,null,null,null,null,null,null,null,"2018",6.1,"CHLOROANILINES, SOLID"]
[null,null,null,null,null,null,null,null,null,null,null,null,null,null,null,null,null,null,null,null,null,null,null,null,null,null,null,"2019",6.1,"CHLOROANILINES, LIQUID"]
[null,null,null,null,null,null,null,null,null,null,null,null,null,null,null,null,null,null,null,null,null,null,null,null,null,null,null,"2020",6.1,"CHLOROPHENOLS, SOLID"]
[null,null,null,null,null,null,null,null,null,null,null,null,null,null,null,null,null,null,null,null,null,null,null,null,null,null,null,"2021",6.1,"CHLOROPHENOLS, LIQUID"]
[null,null,null,null,null,null,null,null,null,null,null,null,null,null,null,null,null,null,null,null,null,null,null,null,null,null,null,"2022",6.1,"CRESYLIC ACID"]
[null,null,null,null,null,null,null,null,null,null,null,null,null,null,null,null,null,null,null,null,null,null,null,null,null,null,null,"2023",6.1,"EPICHLOROHYDRIN"]
[null,null,null,null,null,null,null,null,null,null,null,null,null,null,null,null,null,null,null,null,null,null,null,null,null,null,null,"2024",6.1,"MERCURY COMPOUND, LIQUID, N.O.S."]
[null,null,null,null,null,null,null,null,null,null,null,null,null,null,null,null,null,null,null,null,null,null,null,null,null,null,null,"2025",6.1,"MERCURY COMPOUND, SOLID, N.O.S."]
[null,null,null,null,null,null,null,null,null,null,null,null,null,null,null,null,null,null,null,null,null,null,null,null,null,null,null,"2026",6.1,"PHENYLMERCURIC COMPOUND, N.O.S."]
[null,null,null,null,null,null,null,null,null,null,null,null,null,null,null,null,null,null,null,null,null,null,null,null,null,null,null,"2027",6.1,"SODIUM ARSENITE, SOLID"]
[null,null,null,null,null,null,null,null,null,null,null,null,null,null,null,null,null,null,null,null,null,null,null,null,null,null,null,"2028",8,"BOMBS, SMOKE, NON-EXPLOSIVE"]
[null,null,null,null,null,null,null,null,null,null,null,null,null,null,null,null,null,null,null,null,null,null,null,null,null,null,null,"2029",8,"HYDRAZINE, ANHYDROUS"]
[null,null,null,null,null,null,null,null,null,null,null,null,null,null,null,null,null,null,null,null,null,null,null,null,null,null,null,"2030",8,"HYDRAZINE, AQUEOUS SOLUTION"]
[null,null,null,null,null,null,null,null,null,null,null,null,null,null,null,null,null,null,null,null,null,null,null,null,null,null,null,"2031",8,"NITRIC ACID"]
[null,null,null,null,null,null,null,null,null,null,null,null,null,null,null,null,null,null,null,null,null,null,null,null,null,null,null,"2032",8,"NITRIC ACID, RED FUMING"]
[null,null,null,null,null,null,null,null,null,null,null,null,null,null,null,null,null,null,null,null,null,null,null,null,null,null,null,"2033",8,"POTASSIUM MONOXIDE"]
[null,null,null,null,null,null,null,null,null,null,null,null,null,null,null,null,null,null,null,null,null,null,null,null,null,null,null,"2034",2.1,"HYDROGEN AND METHANE MIXTURE, COMPRESSED"]
[null,null,null,null,null,null,null,null,null,null,null,null,null,null,null,null,null,null,null,null,null,null,null,null,null,null,null,"2035",2.1,"1,1,1-TRIFLUOROETHANE"]
[null,null,null,null,null,null,null,null,null,null,null,null,null,null,null,null,null,null,null,null,null,null,null,null,null,null,null,"2036",2.2000000000000002,"XENON"]
[null,null,null,null,null,null,null,null,null,null,null,null,null,null,null,null,null,null,null,null,null,null,null,null,null,null,null,"2037",2.1,"RECEPTACLES, SMALL, CONTAINING GAS"]
[null,null,null,null,null,null,null,null,null,null,null,null,null,null,null,null,null,null,null,null,null,null,null,null,null,null,null,"2038",6.1,"DINITROTOLUENES, LIQUID"]
[null,null,null,null,null,null,null,null,null,null,null,null,null,null,null,null,null,null,null,null,null,null,null,null,null,null,null,"2044",2.1,"2,2-DIMETHYLPROPANE"]
[null,null,null,null,null,null,null,null,null,null,null,null,null,null,null,null,null,null,null,null,null,null,null,null,null,null,null,"2045",3,"ISOBUTYL ALDEHYDE"]
[null,null,null,null,null,null,null,null,null,null,null,null,null,null,null,null,null,null,null,null,null,null,null,null,null,null,null,"2046",3,"CYMENES"]
[null,null,null,null,null,null,null,null,null,null,null,null,null,null,null,null,null,null,null,null,null,null,null,null,null,null,null,"2047",3,"DICHLOROPROPENES"]
[null,null,null,null,null,null,null,null,null,null,null,null,null,null,null,null,null,null,null,null,null,null,null,null,null,null,null,"2048",3,"DICYCLOPENTADIENE"]
[null,null,null,null,null,null,null,null,null,null,null,null,null,null,null,null,null,null,null,null,null,null,null,null,null,null,null,"2049",3,"DIETHYLBENZENE"]
[null,null,null,null,null,null,null,null,null,null,null,null,null,null,null,null,null,null,null,null,null,null,null,null,null,null,null,"2050",3,"DIISOBUTYLENES, ISOMERIC COMPOUNDS"]
[null,null,null,null,null,null,null,null,null,null,null,null,null,null,null,null,null,null,null,null,null,null,null,null,null,null,null,"2051",8,"2-DIMETHYLAMINOETHANOL"]
[null,null,null,null,null,null,null,null,null,null,null,null,null,null,null,null,null,null,null,null,null,null,null,null,null,null,null,"2052",3,"DIPENTENE"]
[null,null,null,null,null,null,null,null,null,null,null,null,null,null,null,null,null,null,null,null,null,null,null,null,null,null,null,"2053",3,"METHYL ISOBUTYL CARBINOL"]
[null,null,null,null,null,null,null,null,null,null,null,null,null,null,null,null,null,null,null,null,null,null,null,null,null,null,null,"2054",8,"MORPHOLINE"]
[null,null,null,null,null,null,null,null,null,null,null,null,null,null,null,null,null,null,null,null,null,null,null,null,null,null,null,"2055",3,"STYRENE MONOMER, STABILIZED"]
[null,null,null,null,null,null,null,null,null,null,null,null,null,null,null,null,null,null,null,null,null,null,null,null,null,null,null,"2056",3,"TETRAHYDROFURAN"]
[null,null,null,null,null,null,null,null,null,null,null,null,null,null,null,null,null,null,null,null,null,null,null,null,null,null,null,"2057",3,"TRIPROPYLENE"]
[null,null,null,null,null,null,null,null,null,null,null,null,null,null,null,null,null,null,null,null,null,null,null,null,null,null,null,"2058",3,"VALERALDEHYDE"]
[null,null,null,null,null,null,null,null,null,null,null,null,null,null,null,null,null,null,null,null,null,null,null,null,null,null,null,"2059",3,"NITROCELLULOSE SOLUTION, FLAMMABLE"]
[null,null,null,null,null,null,null,null,null,null,null,null,null,null,null,null,null,null,null,null,null,null,null,null,null,null,null,"2067",5.0999999999999996,"AMMONIUM NITRATE BASED FERTILIZER"]
[null,null,null,null,null,null,null,null,null,null,null,null,null,null,null,null,null,null,null,null,null,null,null,null,null,null,null,"2071",9,"AMMONIUM NITRATE BASED FERTILIZER"]
[null,null,null,null,null,null,null,null,null,null,null,null,null,null,null,null,null,null,null,null,null,null,null,null,null,null,null,"2073",2.2000000000000002,"AMMONIA SOLUTION"]
[null,null,null,null,null,null,null,null,null,null,null,null,null,null,null,null,null,null,null,null,null,null,null,null,null,null,null,"2074",6.1,"ACRYLAMIDE, SOLID"]
[null,null,null,null,null,null,null,null,null,null,null,null,null,null,null,null,null,null,null,null,null,null,null,null,null,null,null,"2075",6.1,"CHLORAL, ANHYDROUS, STABILIZED"]
[null,null,null,null,null,null,null,null,null,null,null,null,null,null,null,null,null,null,null,null,null,null,null,null,null,null,null,"2076",6.1,"CRESOLS, LIQUID"]
[null,null,null,null,null,null,null,null,null,null,null,null,null,null,null,null,null,null,null,null,null,null,null,null,null,null,null,"2077",6.1,"alpha-NAPHTHYLAMINE"]
[null,null,null,null,null,null,null,null,null,null,null,null,null,null,null,null,null,null,null,null,null,null,null,null,null,null,null,"2078",6.1,"TOLUENE DIISOCYANATE"]
[null,null,null,null,null,null,null,null,null,null,null,null,null,null,null,null,null,null,null,null,null,null,null,null,null,null,null,"2079",8,"DIETHYLENETRIAMINE"]
[null,null,null,null,null,null,null,null,null,null,null,null,null,null,null,null,null,null,null,null,null,null,null,null,null,null,null,"2186",2.2999999999999998,"HYDROGEN CHLORIDE, REFRIGERATED LIQUID"]
[null,null,null,null,null,null,null,null,null,null,null,null,null,null,null,null,null,null,null,null,null,null,null,null,null,null,null,"2187",2.2000000000000002,"CARBON DIOXIDE, REFRIGERATED LIQUID"]
[null,null,null,null,null,null,null,null,null,null,null,null,null,null,null,null,null,null,null,null,null,null,null,null,null,null,null,"2188",2.2999999999999998,"ARSINE"]
[null,null,null,null,null,null,null,null,null,null,null,null,null,null,null,null,null,null,null,null,null,null,null,null,null,null,null,"2189",2.2999999999999998,"DICHLOROSILANE"]
[null,null,null,null,null,null,null,null,null,null,null,null,null,null,null,null,null,null,null,null,null,null,null,null,null,null,null,"2190",2.2999999999999998,"OXYGEN DIFLUORIDE, COMPRESSED"]
[null,null,null,null,null,null,null,null,null,null,null,null,null,null,null,null,null,null,null,null,null,null,null,null,null,null,null,"2191",2.2999999999999998,"SULPHURYL FLUORIDE"]
[null,null,null,null,null,null,null,null,null,null,null,null,null,null,null,null,null,null,null,null,null,null,null,null,null,null,null,"2192",2.2999999999999998,"GERMANE"]
[null,null,null,null,null,null,null,null,null,null,null,null,null,null,null,null,null,null,null,null,null,null,null,null,null,null,null,"2193",2.2000000000000002,"HEXAFLUOROETHANE"]
[null,null,null,null,null,null,null,null,null,null,null,null,null,null,null,null,null,null,null,null,null,null,null,null,null,null,null,"2194",2.2999999999999998,"SELENIUM HEXAFLUORIDE"]
[null,null,null,null,null,null,null,null,null,null,null,null,null,null,null,null,null,null,null,null,null,null,null,null,null,null,null,"2195",2.2999999999999998,"TELLURIUM HEXAFLUORIDE"]
[null,null,null,null,null,null,null,null,null,null,null,null,null,null,null,null,null,null,null,null,null,null,null,null,null,null,null,"2196",2.2999999999999998,"TUNGSTEN HEXAFLUORIDE"]
[null,null,null,null,null,null,null,null,null,null,null,null,null,null,null,null,null,null,null,null,null,null,null,null,null,null,null,"2197",2.2999999999999998,"HYDROGEN IODIDE, ANHYDROUS"]
[null,null,null,null,null,null,null,null,null,null,null,null,null,null,null,null,null,null,null,null,null,null,null,null,null,null,null,"2198",2.2999999999999998,"PHOSPHORUS PENTAFLUORIDE"]
[null,null,null,null,null,null,null,null,null,null,null,null,null,null,null,null,null,null,null,null,null,null,null,null,null,null,null,"2199",2.2999999999999998,"PHOSPHINE"]
[null,null,null,null,null,null,null,null,null,null,null,null,null,null,null,null,null,null,null,null,null,null,null,null,null,null,null,"2200",2.1,"PROPADIENE, STABILIZED"]
[null,null,null,null,null,null,null,null,null,null,null,null,null,null,null,null,null,null,null,null,null,null,null,null,null,null,null,"2201",2.2000000000000002,"NITROUS OXIDE, REFRIGERATED LIQUID"]
[null,null,null,null,null,null,null,null,null,null,null,null,null,null,null,null,null,null,null,null,null,null,null,null,null,null,null,"2202",2.2999999999999998,"HYDROGEN SELENIDE, ANHYDROUS"]
[null,null,null,null,null,null,null,null,null,null,null,null,null,null,null,null,null,null,null,null,null,null,null,null,null,null,null,"2203",2.1,"SILANE"]
[null,null,null,null,null,null,null,null,null,null,null,null,null,null,null,null,null,null,null,null,null,null,null,null,null,null,null,"2204",2.2999999999999998,"CARBONYL SULPHIDE"]
[null,null,null,null,null,null,null,null,null,null,null,null,null,null,null,null,null,null,null,null,null,null,null,null,null,null,null,"2205",6.1,"ADIPONITRILE"]
[null,null,null,null,null,null,null,null,null,null,null,null,null,null,null,null,null,null,null,null,null,null,null,null,null,null,null,"2206",6.1,"ISOCYANATES, TOXIC, N.O.S."]
[null,null,null,null,null,null,null,null,null,null,null,null,null,null,null,null,null,null,null,null,null,null,null,null,null,null,null,"2208",5.0999999999999996,"CALCIUM HYPOCHLORITE MIXTURE, DRY"]
[null,null,null,null,null,null,null,null,null,null,null,null,null,null,null,null,null,null,null,null,null,null,null,null,null,null,null,"2209",8,"FORMALDEHYDE SOLUTION"]
[null,null,null,null,null,null,null,null,null,null,null,null,null,null,null,null,null,null,null,null,null,null,null,null,null,null,null,"2210",4.2,"MANEB"]
[null,null,null,null,null,null,null,null,null,null,null,null,null,null,null,null,null,null,null,null,null,null,null,null,null,null,null,"2211",9,"POLYMERIC BEADS, EXPANDABLE"]
[null,null,null,null,null,null,null,null,null,null,null,null,null,null,null,null,null,null,null,null,null,null,null,null,null,null,null,"2212",9,"ASBESTOS, AMPHIBOLE"]
[null,null,null,null,null,null,null,null,null,null,null,null,null,null,null,null,null,null,null,null,null,null,null,null,null,null,null,"2213",4.0999999999999996,"PARAFORMALDEHYDE"]
[null,null,null,null,null,null,null,null,null,null,null,null,null,null,null,null,null,null,null,null,null,null,null,null,null,null,null,"2214",8,"PHTHALIC ANHYDRIDE"]
[null,null,null,null,null,null,null,null,null,null,null,null,null,null,null,null,null,null,null,null,null,null,null,null,null,null,null,"2215",8,"MALEIC ANHYDRIDE"]
[null,null,null,null,null,null,null,null,null,null,null,null,null,null,null,null,null,null,null,null,null,null,null,null,null,null,null,"2216",9,"FISHMEAL, STABILIZED"]
[null,null,null,null,null,null,null,null,null,null,null,null,null,null,null,null,null,null,null,null,null,null,null,null,null,null,null,"2217",4.2,"SEED CAKE"]
[null,null,null,null,null,null,null,null,null,null,null,null,null,null,null,null,null,null,null,null,null,null,null,null,null,null,null,"2218",8,"ACRYLIC ACID, STABILIZED"]
[null,null,null,null,null,null,null,null,null,null,null,null,null,null,null,null,null,null,null,null,null,null,null,null,null,null,null,"2219",3,"ALLYL GLYCIDYL ETHER"]
[null,null,null,null,null,null,null,null,null,null,null,null,null,null,null,null,null,null,null,null,null,null,null,null,null,null,null,"2222",3,"ANISOLE"]
[null,null,null,null,null,null,null,null,null,null,null,null,null,null,null,null,null,null,null,null,null,null,null,null,null,null,null,"2224",6.1,"BENZONITRILE"]
[null,null,null,null,null,null,null,null,null,null,null,null,null,null,null,null,null,null,null,null,null,null,null,null,null,null,null,"2225",8,"BENZENESULPHONYL CHLORIDE"]
[null,null,null,null,null,null,null,null,null,null,null,null,null,null,null,null,null,null,null,null,null,null,null,null,null,null,null,"2226",8,"BENZOTRICHLORIDE"]
[null,null,null,null,null,null,null,null,null,null,null,null,null,null,null,null,null,null,null,null,null,null,null,null,null,null,null,"2227",3,"n-BUTYL METHACRYLATE, STABILIZED"]
[null,null,null,null,null,null,null,null,null,null,null,null,null,null,null,null,null,null,null,null,null,null,null,null,null,null,null,"2232",6.1,"2-CHLOROETHANAL"]
[null,null,null,null,null,null,null,null,null,null,null,null,null,null,null,null,null,null,null,null,null,null,null,null,null,null,null,"2233",6.1,"CHLOROANISIDINES"]
[null,null,null,null,null,null,null,null,null,null,null,null,null,null,null,null,null,null,null,null,null,null,null,null,null,null,null,"2234",3,"CHLOROBENZOTRIFLUORIDES"]
[null,null,null,null,null,null,null,null,null,null,null,null,null,null,null,null,null,null,null,null,null,null,null,null,null,null,null,"2235",6.1,"CHLOROBENZYL CHLORIDES, LIQUID"]
[null,null,null,null,null,null,null,null,null,null,null,null,null,null,null,null,null,null,null,null,null,null,null,null,null,null,null,"2236",6.1,"3-CHLORO-4-METHYLPHENYL ISOCYANATE, LIQUID"]
[null,null,null,null,null,null,null,null,null,null,null,null,null,null,null,null,null,null,null,null,null,null,null,null,null,null,null,"2237",6.1,"CHLORONITROANILINES"]
[null,null,null,null,null,null,null,null,null,null,null,null,null,null,null,null,null,null,null,null,null,null,null,null,null,null,null,"2238",3,"CHLOROTOLUENES"]
[null,null,null,null,null,null,null,null,null,null,null,null,null,null,null,null,null,null,null,null,null,null,null,null,null,null,null,"2239",6.1,"CHLOROTOLUIDINES, SOLID"]
[null,null,null,null,null,null,null,null,null,null,null,null,null,null,null,null,null,null,null,null,null,null,null,null,null,null,null,"2240",8,"CHROMOSULPHURIC ACID"]
[null,null,null,null,null,null,null,null,null,null,null,null,null,null,null,null,null,null,null,null,null,null,null,null,null,null,null,"2241",3,"CYCLOHEPTANE"]
[null,null,null,null,null,null,null,null,null,null,null,null,null,null,null,null,null,null,null,null,null,null,null,null,null,null,null,"2242",3,"CYCLOHEPTENE"]
[null,null,null,null,null,null,null,null,null,null,null,null,null,null,null,null,null,null,null,null,null,null,null,null,null,null,null,"2243",3,"CYCLOHEXYL ACETATE"]
[null,null,null,null,null,null,null,null,null,null,null,null,null,null,null,null,null,null,null,null,null,null,null,null,null,null,null,"2244",3,"CYCLOPENTANOL"]
[null,null,null,null,null,null,null,null,null,null,null,null,null,null,null,null,null,null,null,null,null,null,null,null,null,null,null,"2245",3,"CYCLOPENTANONE"]
[null,null,null,null,null,null,null,null,null,null,null,null,null,null,null,null,null,null,null,null,null,null,null,null,null,null,null,"2246",3,"CYCLOPENTENE"]
[null,null,null,null,null,null,null,null,null,null,null,null,null,null,null,null,null,null,null,null,null,null,null,null,null,null,null,"2247",3,"n-DECANE"]
[null,null,null,null,null,null,null,null,null,null,null,null,null,null,null,null,null,null,null,null,null,null,null,null,null,null,null,"2248",8,"DI-n-BUTYLAMINE"]
[null,null,null,null,null,null,null,null,null,null,null,null,null,null,null,null,null,null,null,null,null,null,null,null,null,null,null,"2249",6.1,"DICHLORODIMETHYL ETHER, SYMMETRICAL"]
[null,null,null,null,null,null,null,null,null,null,null,null,null,null,null,null,null,null,null,null,null,null,null,null,null,null,null,"2250",6.1,"DICHLOROPHENYL ISOCYANATES"]
[null,null,null,null,null,null,null,null,null,null,null,null,null,null,null,null,null,null,null,null,null,null,null,null,null,null,null,"2251",3,"BICYCLO[2.2.1]HEPTA-2,5-DIENE, STABILIZED"]
[null,null,null,null,null,null,null,null,null,null,null,null,null,null,null,null,null,null,null,null,null,null,null,null,null,null,null,"2252",3,"1,2-DIMETHOXYETHANE"]
[null,null,null,null,null,null,null,null,null,null,null,null,null,null,null,null,null,null,null,null,null,null,null,null,null,null,null,"2253",6.1,"N,N-DIMETHYLANILINE"]
[null,null,null,null,null,null,null,null,null,null,null,null,null,null,null,null,null,null,null,null,null,null,null,null,null,null,null,"2254",4.0999999999999996,"MATCHES, FUSEE"]
[null,null,null,null,null,null,null,null,null,null,null,null,null,null,null,null,null,null,null,null,null,null,null,null,null,null,null,"2256",3,"CYCLOHEXENE"]
[null,null,null,null,null,null,null,null,null,null,null,null,null,null,null,null,null,null,null,null,null,null,null,null,null,null,null,"2257",4.3,"POTASSIUM"]
[null,null,null,null,null,null,null,null,null,null,null,null,null,null,null,null,null,null,null,null,null,null,null,null,null,null,null,"2258",8,"1,2-PROPYLENEDIAMINE"]
[null,null,null,null,null,null,null,null,null,null,null,null,null,null,null,null,null,null,null,null,null,null,null,null,null,null,null,"2259",8,"TRIETHYLENETETRAMINE"]
[null,null,null,null,null,null,null,null,null,null,null,null,null,null,null,null,null,null,null,null,null,null,null,null,null,null,null,"2260",3,"TRIPROPYLAMINE"]
[null,null,null,null,null,null,null,null,null,null,null,null,null,null,null,null,null,null,null,null,null,null,null,null,null,null,null,"2261",6.1,"XYLENOLS, SOLID"]
[null,null,null,null,null,null,null,null,null,null,null,null,null,null,null,null,null,null,null,null,null,null,null,null,null,null,null,"2262",8,"DIMETHYLCARBAMOYL CHLORIDE"]
[null,null,null,null,null,null,null,null,null,null,null,null,null,null,null,null,null,null,null,null,null,null,null,null,null,null,null,"2263",3,"DIMETHYLCYCLOHEXANES"]
[null,null,null,null,null,null,null,null,null,null,null,null,null,null,null,null,null,null,null,null,null,null,null,null,null,null,null,"2264",8,"N,N-DIMETHYLCYCLOHEXYLAMINE"]
[null,null,null,null,null,null,null,null,null,null,null,null,null,null,null,null,null,null,null,null,null,null,null,null,null,null,null,"2265",3,"N,N-DIMETHYLFORMAMIDE"]
[null,null,null,null,null,null,null,null,null,null,null,null,null,null,null,null,null,null,null,null,null,null,null,null,null,null,null,"2266",3,"DIMETHYL-N-PROPYLAMINE"]
[null,null,null,null,null,null,null,null,null,null,null,null,null,null,null,null,null,null,null,null,null,null,null,null,null,null,null,"2267",6.1,"DIMETHYL THIOPHOSPHORYL CHLORIDE"]
[null,null,null,null,null,null,null,null,null,null,null,null,null,null,null,null,null,null,null,null,null,null,null,null,null,null,null,"2269",8,"3,3'-IMINODIPROPYLAMINE"]
[null,null,null,null,null,null,null,null,null,null,null,null,null,null,null,null,null,null,null,null,null,null,null,null,null,null,null,"2270",3,"ETHYLAMINE, AQUEOUS SOLUTION"]
[null,null,null,null,null,null,null,null,null,null,null,null,null,null,null,null,null,null,null,null,null,null,null,null,null,null,null,"2271",3,"ETHYL AMYL KETONES"]
[null,null,null,null,null,null,null,null,null,null,null,null,null,null,null,null,null,null,null,null,null,null,null,null,null,null,null,"2272",6.1,"N-ETHYLANILINE"]
[null,null,null,null,null,null,null,null,null,null,null,null,null,null,null,null,null,null,null,null,null,null,null,null,null,null,null,"2273",6.1,"2-ETHYLANILINE"]
[null,null,null,null,null,null,null,null,null,null,null,null,null,null,null,null,null,null,null,null,null,null,null,null,null,null,null,"2274",6.1,"N-ETHYL-N-BENZYLANILINE"]
[null,null,null,null,null,null,null,null,null,null,null,null,null,null,null,null,null,null,null,null,null,null,null,null,null,null,null,"2275",3,"2-ETHYLBUTANOL"]
[null,null,null,null,null,null,null,null,null,null,null,null,null,null,null,null,null,null,null,null,null,null,null,null,null,null,null,"2276",3,"2-ETHYLHEXYLAMINE"]
[null,null,null,null,null,null,null,null,null,null,null,null,null,null,null,null,null,null,null,null,null,null,null,null,null,null,null,"2277",3,"ETHYL METHACRYLATE, STABILIZED"]
[null,null,null,null,null,null,null,null,null,null,null,null,null,null,null,null,null,null,null,null,null,null,null,null,null,null,null,"2278",3,"n-HEPTENE"]
[null,null,null,null,null,null,null,null,null,null,null,null,null,null,null,null,null,null,null,null,null,null,null,null,null,null,null,"2279",6.1,"HEXACHLOROBUTADIENE"]
[null,null,null,null,null,null,null,null,null,null,null,null,null,null,null,null,null,null,null,null,null,null,null,null,null,null,null,"2280",8,"HEXAMETHYLENEDIAMINE, MOLTEN"]
[null,null,null,null,null,null,null,null,null,null,null,null,null,null,null,null,null,null,null,null,null,null,null,null,null,null,null,"2281",6.1,"HEXAMETHYLENE DIISOCYANATE"]
[null,null,null,null,null,null,null,null,null,null,null,null,null,null,null,null,null,null,null,null,null,null,null,null,null,null,null,"2282",3,"HEXANOLS"]
[null,null,null,null,null,null,null,null,null,null,null,null,null,null,null,null,null,null,null,null,null,null,null,null,null,null,null,"2283",3,"ISOBUTYL METHACRYLATE, STABILIZED"]
[null,null,null,null,null,null,null,null,null,null,null,null,null,null,null,null,null,null,null,null,null,null,null,null,null,null,null,"2284",3,"ISOBUTYRONITRILE"]
[null,null,null,null,null,null,null,null,null,null,null,null,null,null,null,null,null,null,null,null,null,null,null,null,null,null,null,"2285",6.1,"ISOCYANATOBENZOTRIFLUORIDES"]
[null,null,null,null,null,null,null,null,null,null,null,null,null,null,null,null,null,null,null,null,null,null,null,null,null,null,null,"2286",3,"PENTAMETHYLHEPTANE"]
[null,null,null,null,null,null,null,null,null,null,null,null,null,null,null,null,null,null,null,null,null,null,null,null,null,null,null,"2287",3,"ISOHEPTENES"]
[null,null,null,null,null,null,null,null,null,null,null,null,null,null,null,null,null,null,null,null,null,null,null,null,null,null,null,"2288",3,"ISOHEXENES"]
[null,null,null,null,null,null,null,null,null,null,null,null,null,null,null,null,null,null,null,null,null,null,null,null,null,null,null,"2289",8,"ISOPHORONEDIAMINE"]
[null,null,null,null,null,null,null,null,null,null,null,null,null,null,null,null,null,null,null,null,null,null,null,null,null,null,null,"2290",6.1,"ISOPHORONE DIISOCYANATE"]
[null,null,null,null,null,null,null,null,null,null,null,null,null,null,null,null,null,null,null,null,null,null,null,null,null,null,null,"2291",6.1,"LEAD COMPOUND, SOLUBLE, N.O.S."]
[null,null,null,null,null,null,null,null,null,null,null,null,null,null,null,null,null,null,null,null,null,null,null,null,null,null,null,"2293",3,"4-METHOXY-4-METHYLPENTAN-2-ONE"]
[null,null,null,null,null,null,null,null,null,null,null,null,null,null,null,null,null,null,null,null,null,null,null,null,null,null,null,"2294",6.1,"N-METHYLANILINE"]
[null,null,null,null,null,null,null,null,null,null,null,null,null,null,null,null,null,null,null,null,null,null,null,null,null,null,null,"2295",6.1,"METHYL CHLOROACETATE"]
[null,null,null,null,null,null,null,null,null,null,null,null,null,null,null,null,null,null,null,null,null,null,null,null,null,null,null,"2296",3,"METHYLCYCLOHEXANE"]
[null,null,null,null,null,null,null,null,null,null,null,null,null,null,null,null,null,null,null,null,null,null,null,null,null,null,null,"2297",3,"METHYLCYCLOHEXANONE"]
[null,null,null,null,null,null,null,null,null,null,null,null,null,null,null,null,null,null,null,null,null,null,null,null,null,null,null,"2298",3,"METHYLCYCLOPENTANE"]
[null,null,null,null,null,null,null,null,null,null,null,null,null,null,null,null,null,null,null,null,null,null,null,null,null,null,null,"2299",6.1,"METHYL DICHLOROACETATE"]
[null,null,null,null,null,null,null,null,null,null,null,null,null,null,null,null,null,null,null,null,null,null,null,null,null,null,null,"2300",6.1,"2-METHYL-5-ETHYLPYRIDINE"]
[null,null,null,null,null,null,null,null,null,null,null,null,null,null,null,null,null,null,null,null,null,null,null,null,null,null,null,"2301",3,"2-METHYLFURAN"]
[null,null,null,null,null,null,null,null,null,null,null,null,null,null,null,null,null,null,null,null,null,null,null,null,null,null,null,"2302",3,"5-METHYLHEXAN-2-ONE"]
[null,null,null,null,null,null,null,null,null,null,null,null,null,null,null,null,null,null,null,null,null,null,null,null,null,null,null,"2303",3,"ISOPROPENYLBENZENE"]
[null,null,null,null,null,null,null,null,null,null,null,null,null,null,null,null,null,null,null,null,null,null,null,null,null,null,null,"2304",4.0999999999999996,"NAPHTHALENE, MOLTEN"]
[null,null,null,null,null,null,null,null,null,null,null,null,null,null,null,null,null,null,null,null,null,null,null,null,null,null,null,"2305",8,"NITROBENZENESULPHONIC ACID"]
[null,null,null,null,null,null,null,null,null,null,null,null,null,null,null,null,null,null,null,null,null,null,null,null,null,null,null,"2306",6.1,"NITROBENZOTRIFLUORIDES, LIQUID"]
[null,null,null,null,null,null,null,null,null,null,null,null,null,null,null,null,null,null,null,null,null,null,null,null,null,null,null,"2307",6.1,"3-NITRO-4-CHLOROBENZOTRIFLUORIDE"]
[null,null,null,null,null,null,null,null,null,null,null,null,null,null,null,null,null,null,null,null,null,null,null,null,null,null,null,"2308",8,"NITROSYLSULPHURIC ACID, LIQUID"]
[null,null,null,null,null,null,null,null,null,null,null,null,null,null,null,null,null,null,null,null,null,null,null,null,null,null,null,"2309",3,"OCTADIENE"]
[null,null,null,null,null,null,null,null,null,null,null,null,null,null,null,null,null,null,null,null,null,null,null,null,null,null,null,"2310",3,"PENTANE-2,4-DIONE"]
[null,null,null,null,null,null,null,null,null,null,null,null,null,null,null,null,null,null,null,null,null,null,null,null,null,null,null,"2311",6.1,"PHENETIDINES"]
[null,null,null,null,null,null,null,null,null,null,null,null,null,null,null,null,null,null,null,null,null,null,null,null,null,null,null,"2312",6.1,"PHENOL, MOLTEN"]
[null,null,null,null,null,null,null,null,null,null,null,null,null,null,null,null,null,null,null,null,null,null,null,null,null,null,null,"2313",3,"PICOLINES"]
[null,null,null,null,null,null,null,null,null,null,null,null,null,null,null,null,null,null,null,null,null,null,null,null,null,null,null,"2315",9,"POLYCHLORINATED BIPHENYLS, LIQUID"]
[null,null,null,null,null,null,null,null,null,null,null,null,null,null,null,null,null,null,null,null,null,null,null,null,null,null,null,"2316",6.1,"SODIUM CUPROCYANIDE, SOLID"]
[null,null,null,null,null,null,null,null,null,null,null,null,null,null,null,null,null,null,null,null,null,null,null,null,null,null,null,"2317",6.1,"SODIUM CUPROCYANIDE SOLUTION"]
[null,null,null,null,null,null,null,null,null,null,null,null,null,null,null,null,null,null,null,null,null,null,null,null,null,null,null,"2318",4.2,"SODIUM HYDROSULPHIDE"]
[null,null,null,null,null,null,null,null,null,null,null,null,null,null,null,null,null,null,null,null,null,null,null,null,null,null,null,"2319",3,"TERPENE HYDROCARBONS, N.O.S."]
[null,null,null,null,null,null,null,null,null,null,null,null,null,null,null,null,null,null,null,null,null,null,null,null,null,null,null,"2320",8,"TETRAETHYLENEPENTAMINE"]
[null,null,null,null,null,null,null,null,null,null,null,null,null,null,null,null,null,null,null,null,null,null,null,null,null,null,null,"2321",6.1,"TRICHLOROBENZENES, LIQUID"]
[null,null,null,null,null,null,null,null,null,null,null,null,null,null,null,null,null,null,null,null,null,null,null,null,null,null,null,"2322",6.1,"TRICHLOROBUTENE"]
[null,null,null,null,null,null,null,null,null,null,null,null,null,null,null,null,null,null,null,null,null,null,null,null,null,null,null,"2323",3,"TRIETHYL PHOSPHITE"]
[null,null,null,null,null,null,null,null,null,null,null,null,null,null,null,null,null,null,null,null,null,null,null,null,null,null,null,"2324",3,"TRIISOBUTYLENE"]
[null,null,null,null,null,null,null,null,null,null,null,null,null,null,null,null,null,null,null,null,null,null,null,null,null,null,null,"2325",3,"1,3,5-TRIMETHYLBENZENE"]
[null,null,null,null,null,null,null,null,null,null,null,null,null,null,null,null,null,null,null,null,null,null,null,null,null,null,null,"2326",8,"TRIMETHYLCYCLOHEXYLAMINE"]
[null,null,null,null,null,null,null,null,null,null,null,null,null,null,null,null,null,null,null,null,null,null,null,null,null,null,null,"2327",8,"TRIMETHYLHEXAMETHYLENEDIAMINES"]
[null,null,null,null,null,null,null,null,null,null,null,null,null,null,null,null,null,null,null,null,null,null,null,null,null,null,null,"2328",6.1,"TRIMETHYLHEXAMETHYLENE DIISOCYANATE"]
[null,null,null,null,null,null,null,null,null,null,null,null,null,null,null,null,null,null,null,null,null,null,null,null,null,null,null,"2329",3,"TRIMETHYL PHOSPHITE"]
[null,null,null,null,null,null,null,null,null,null,null,null,null,null,null,null,null,null,null,null,null,null,null,null,null,null,null,"2330",3,"UNDECANE"]
[null,null,null,null,null,null,null,null,null,null,null,null,null,null,null,null,null,null,null,null,null,null,null,null,null,null,null,"2331",8,"ZINC CHLORIDE, ANHYDROUS"]
[null,null,null,null,null,null,null,null,null,null,null,null,null,null,null,null,null,null,null,null,null,null,null,null,null,null,null,"2332",3,"ACETALDEHYDE OXIME"]
[null,null,null,null,null,null,null,null,null,null,null,null,null,null,null,null,null,null,null,null,null,null,null,null,null,null,null,"2333",3,"ALLYL ACETATE"]
[null,null,null,null,null,null,null,null,null,null,null,null,null,null,null,null,null,null,null,null,null,null,null,null,null,null,null,"2334",6.1,"ALLYLAMINE"]
[null,null,null,null,null,null,null,null,null,null,null,null,null,null,null,null,null,null,null,null,null,null,null,null,null,null,null,"2335",3,"ALLYL ETHYL ETHER"]
[null,null,null,null,null,null,null,null,null,null,null,null,null,null,null,null,null,null,null,null,null,null,null,null,null,null,null,"2336",3,"ALLYL FORMATE"]
[null,null,null,null,null,null,null,null,null,null,null,null,null,null,null,null,null,null,null,null,null,null,null,null,null,null,null,"2337",6.1,"PHENYL MERCAPTAN"]
[null,null,null,null,null,null,null,null,null,null,null,null,null,null,null,null,null,null,null,null,null,null,null,null,null,null,null,"2338",3,"BENZOTRIFLUORIDE"]
[null,null,null,null,null,null,null,null,null,null,null,null,null,null,null,null,null,null,null,null,null,null,null,null,null,null,null,"2339",3,"2-BROMOBUTANE"]
[null,null,null,null,null,null,null,null,null,null,null,null,null,null,null,null,null,null,null,null,null,null,null,null,null,null,null,"2340",3,"2-BROMOETHYL ETHYL ETHER"]
[null,null,null,null,null,null,null,null,null,null,null,null,null,null,null,null,null,null,null,null,null,null,null,null,null,null,null,"2341",3,"1-BROMO-3-METHYLBUTANE"]
[null,null,null,null,null,null,null,null,null,null,null,null,null,null,null,null,null,null,null,null,null,null,null,null,null,null,null,"2342",3,"BROMOMETHYLPROPANES"]
[null,null,null,null,null,null,null,null,null,null,null,null,null,null,null,null,null,null,null,null,null,null,null,null,null,null,null,"2343",3,"2-BROMOPENTANE"]
[null,null,null,null,null,null,null,null,null,null,null,null,null,null,null,null,null,null,null,null,null,null,null,null,null,null,null,"2344",3,"BROMOPROPANES"]
[null,null,null,null,null,null,null,null,null,null,null,null,null,null,null,null,null,null,null,null,null,null,null,null,null,null,null,"2345",3,"3-BROMOPROPYNE"]
[null,null,null,null,null,null,null,null,null,null,null,null,null,null,null,null,null,null,null,null,null,null,null,null,null,null,null,"2346",3,"BUTANEDIONE"]
[null,null,null,null,null,null,null,null,null,null,null,null,null,null,null,null,null,null,null,null,null,null,null,null,null,null,null,"2347",3,"BUTYL MERCAPTAN"]
[null,null,null,null,null,null,null,null,null,null,null,null,null,null,null,null,null,null,null,null,null,null,null,null,null,null,null,"2348",3,"BUTYL ACRYLATES, STABILIZED"]
[null,null,null,null,null,null,null,null,null,null,null,null,null,null,null,null,null,null,null,null,null,null,null,null,null,null,null,"2350",3,"BUTYL METHYL ETHER"]
[null,null,null,null,null,null,null,null,null,null,null,null,null,null,null,null,null,null,null,null,null,null,null,null,null,null,null,"2351",3,"BUTYL NITRITES"]
[null,null,null,null,null,null,null,null,null,null,null,null,null,null,null,null,null,null,null,null,null,null,null,null,null,null,null,"2352",3,"BUTYL VINYL ETHER, STABILIZED"]
[null,null,null,null,null,null,null,null,null,null,null,null,null,null,null,null,null,null,null,null,null,null,null,null,null,null,null,"2353",3,"BUTYRYL CHLORIDE"]
[null,null,null,null,null,null,null,null,null,null,null,null,null,null,null,null,null,null,null,null,null,null,null,null,null,null,null,"2354",3,"CHLOROMETHYL ETHYL ETHER"]
[null,null,null,null,null,null,null,null,null,null,null,null,null,null,null,null,null,null,null,null,null,null,null,null,null,null,null,"2356",3,"2-CHLOROPROPANE"]
[null,null,null,null,null,null,null,null,null,null,null,null,null,null,null,null,null,null,null,null,null,null,null,null,null,null,null,"2357",8,"CYCLOHEXYLAMINE"]
[null,null,null,null,null,null,null,null,null,null,null,null,null,null,null,null,null,null,null,null,null,null,null,null,null,null,null,"2358",3,"CYCLOOCTATETRAENE"]
[null,null,null,null,null,null,null,null,null,null,null,null,null,null,null,null,null,null,null,null,null,null,null,null,null,null,null,"2359",3,"DIALLYLAMINE"]
[null,null,null,null,null,null,null,null,null,null,null,null,null,null,null,null,null,null,null,null,null,null,null,null,null,null,null,"2360",3,"DIALLYL ETHER"]
[null,null,null,null,null,null,null,null,null,null,null,null,null,null,null,null,null,null,null,null,null,null,null,null,null,null,null,"2361",3,"DIISOBUTYLAMINE"]
[null,null,null,null,null,null,null,null,null,null,null,null,null,null,null,null,null,null,null,null,null,null,null,null,null,null,null,"2362",3,"1,1-DICHLOROETHANE"]
[null,null,null,null,null,null,null,null,null,null,null,null,null,null,null,null,null,null,null,null,null,null,null,null,null,null,null,"2363",3,"ETHYL MERCAPTAN"]
[null,null,null,null,null,null,null,null,null,null,null,null,null,null,null,null,null,null,null,null,null,null,null,null,null,null,null,"2364",3,"n-PROPYLBENZENE"]
[null,null,null,null,null,null,null,null,null,null,null,null,null,null,null,null,null,null,null,null,null,null,null,null,null,null,null,"2366",3,"DIETHYL CARBONATE"]
[null,null,null,null,null,null,null,null,null,null,null,null,null,null,null,null,null,null,null,null,null,null,null,null,null,null,null,"2367",3,"alpha-METHYLVALERALDEHYDE"]
[null,null,null,null,null,null,null,null,null,null,null,null,null,null,null,null,null,null,null,null,null,null,null,null,null,null,null,"2368",3,"alpha-PINENE"]
[null,null,null,null,null,null,null,null,null,null,null,null,null,null,null,null,null,null,null,null,null,null,null,null,null,null,null,"2370",3,"1-HEXENE"]
[null,null,null,null,null,null,null,null,null,null,null,null,null,null,null,null,null,null,null,null,null,null,null,null,null,null,null,"2371",3,"ISOPENTENES"]
[null,null,null,null,null,null,null,null,null,null,null,null,null,null,null,null,null,null,null,null,null,null,null,null,null,null,null,"2372",3,"1,2-DI(DIMETHYLAMINO)ETHANE"]
[null,null,null,null,null,null,null,null,null,null,null,null,null,null,null,null,null,null,null,null,null,null,null,null,null,null,null,"2373",3,"DIETHOXYMETHANE"]
[null,null,null,null,null,null,null,null,null,null,null,null,null,null,null,null,null,null,null,null,null,null,null,null,null,null,null,"2374",3,"3,3-DIETHOXYPROPENE"]
[null,null,null,null,null,null,null,null,null,null,null,null,null,null,null,null,null,null,null,null,null,null,null,null,null,null,null,"2375",3,"DIETHYL SULPHIDE"]
[null,null,null,null,null,null,null,null,null,null,null,null,null,null,null,null,null,null,null,null,null,null,null,null,null,null,null,"2376",3,"2,3-DIHYDROPYRAN"]
[null,null,null,null,null,null,null,null,null,null,null,null,null,null,null,null,null,null,null,null,null,null,null,null,null,null,null,"2377",3,"1,1-DIMETHOXYETHANE"]
[null,null,null,null,null,null,null,null,null,null,null,null,null,null,null,null,null,null,null,null,null,null,null,null,null,null,null,"2378",3,"2-DIMETHYLAMINOACETONITRILE"]
[null,null,null,null,null,null,null,null,null,null,null,null,null,null,null,null,null,null,null,null,null,null,null,null,null,null,null,"2379",3,"1,3-DIMETHYLBUTYLAMINE"]
[null,null,null,null,null,null,null,null,null,null,null,null,null,null,null,null,null,null,null,null,null,null,null,null,null,null,null,"2380",3,"DIMETHYLDIETHOXYSILANE"]
[null,null,null,null,null,null,null,null,null,null,null,null,null,null,null,null,null,null,null,null,null,null,null,null,null,null,null,"2381",3,"DIMETHYL DISULPHIDE"]
[null,null,null,null,null,null,null,null,null,null,null,null,null,null,null,null,null,null,null,null,null,null,null,null,null,null,null,"2382",6.1,"DIMETHYLHYDRAZINE, SYMMETRICAL"]
[null,null,null,null,null,null,null,null,null,null,null,null,null,null,null,null,null,null,null,null,null,null,null,null,null,null,null,"2383",3,"DIPROPYLAMINE"]
[null,null,null,null,null,null,null,null,null,null,null,null,null,null,null,null,null,null,null,null,null,null,null,null,null,null,null,"2384",3,"DI-n-PROPYL ETHER"]
[null,null,null,null,null,null,null,null,null,null,null,null,null,null,null,null,null,null,null,null,null,null,null,null,null,null,null,"2385",3,"ETHYL ISOBUTYRATE"]
[null,null,null,null,null,null,null,null,null,null,null,null,null,null,null,null,null,null,null,null,null,null,null,null,null,null,null,"2386",3,"1-ETHYLPIPERIDINE"]
[null,null,null,null,null,null,null,null,null,null,null,null,null,null,null,null,null,null,null,null,null,null,null,null,null,null,null,"2387",3,"FLUOROBENZENE"]
[null,null,null,null,null,null,null,null,null,null,null,null,null,null,null,null,null,null,null,null,null,null,null,null,null,null,null,"2388",3,"FLUOROTOLUENES"]
[null,null,null,null,null,null,null,null,null,null,null,null,null,null,null,null,null,null,null,null,null,null,null,null,null,null,null,"2389",3,"FURAN"]
[null,null,null,null,null,null,null,null,null,null,null,null,null,null,null,null,null,null,null,null,null,null,null,null,null,null,null,"2390",3,"2-IODOBUTANE"]
[null,null,null,null,null,null,null,null,null,null,null,null,null,null,null,null,null,null,null,null,null,null,null,null,null,null,null,"2391",3,"IODOMETHYLPROPANES"]
[null,null,null,null,null,null,null,null,null,null,null,null,null,null,null,null,null,null,null,null,null,null,null,null,null,null,null,"2392",3,"IODOPROPANES"]
[null,null,null,null,null,null,null,null,null,null,null,null,null,null,null,null,null,null,null,null,null,null,null,null,null,null,null,"2393",3,"ISOBUTYL FORMATE"]
[null,null,null,null,null,null,null,null,null,null,null,null,null,null,null,null,null,null,null,null,null,null,null,null,null,null,null,"2394",3,"ISOBUTYL PROPIONATE"]
[null,null,null,null,null,null,null,null,null,null,null,null,null,null,null,null,null,null,null,null,null,null,null,null,null,null,null,"2395",3,"ISOBUTYRYL CHLORIDE"]
[null,null,null,null,null,null,null,null,null,null,null,null,null,null,null,null,null,null,null,null,null,null,null,null,null,null,null,"2396",3,"METHACRYLALDEHYDE, STABILIZED"]
[null,null,null,null,null,null,null,null,null,null,null,null,null,null,null,null,null,null,null,null,null,null,null,null,null,null,null,"2397",3,"3-METHYLBUTAN-2-ONE"]
[null,null,null,null,null,null,null,null,null,null,null,null,null,null,null,null,null,null,null,null,null,null,null,null,null,null,null,"2398",3,"METHYL tert-BUTYL ETHER"]
[null,null,null,null,null,null,null,null,null,null,null,null,null,null,null,null,null,null,null,null,null,null,null,null,null,null,null,"2399",3,"1-METHYLPIPERIDINE"]
[null,null,null,null,null,null,null,null,null,null,null,null,null,null,null,null,null,null,null,null,null,null,null,null,null,null,null,"2400",3,"METHYL ISOVALERATE"]
[null,null,null,null,null,null,null,null,null,null,null,null,null,null,null,null,null,null,null,null,null,null,null,null,null,null,null,"2401",8,"PIPERIDINE"]
[null,null,null,null,null,null,null,null,null,null,null,null,null,null,null,null,null,null,null,null,null,null,null,null,null,null,null,"2402",3,"PROPANETHIOLS"]
[null,null,null,null,null,null,null,null,null,null,null,null,null,null,null,null,null,null,null,null,null,null,null,null,null,null,null,"2403",3,"ISOPROPENYL ACETATE"]
[null,null,null,null,null,null,null,null,null,null,null,null,null,null,null,null,null,null,null,null,null,null,null,null,null,null,null,"2404",3,"PROPIONITRILE"]
[null,null,null,null,null,null,null,null,null,null,null,null,null,null,null,null,null,null,null,null,null,null,null,null,null,null,null,"2405",3,"ISOPROPYL BUTYRATE"]
[null,null,null,null,null,null,null,null,null,null,null,null,null,null,null,null,null,null,null,null,null,null,null,null,null,null,null,"2406",3,"ISOPROPYL ISOBUTYRATE"]
[null,null,null,null,null,null,null,null,null,null,null,null,null,null,null,null,null,null,null,null,null,null,null,null,null,null,null,"2407",6.1,"ISOPROPYL CHLOROFORMATE"]
[null,null,null,null,null,null,null,null,null,null,null,null,null,null,null,null,null,null,null,null,null,null,null,null,null,null,null,"2409",3,"ISOPROPYL PROPIONATE"]
[null,null,null,null,null,null,null,null,null,null,null,null,null,null,null,null,null,null,null,null,null,null,null,null,null,null,null,"2410",3,"1,2,3,6-TETRAHYDROPYRIDINE"]
[null,null,null,null,null,null,null,null,null,null,null,null,null,null,null,null,null,null,null,null,null,null,null,null,null,null,null,"2411",3,"BUTYRONITRILE"]
[null,null,null,null,null,null,null,null,null,null,null,null,null,null,null,null,null,null,null,null,null,null,null,null,null,null,null,"2412",3,"TETRAHYDROTHIOPHENE"]
[null,null,null,null,null,null,null,null,null,null,null,null,null,null,null,null,null,null,null,null,null,null,null,null,null,null,null,"2413",3,"TETRAPROPYL ORTHOTITANATE"]
[null,null,null,null,null,null,null,null,null,null,null,null,null,null,null,null,null,null,null,null,null,null,null,null,null,null,null,"2414",3,"THIOPHENE"]
[null,null,null,null,null,null,null,null,null,null,null,null,null,null,null,null,null,null,null,null,null,null,null,null,null,null,null,"2416",3,"TRIMETHYL BORATE"]
[null,null,null,null,null,null,null,null,null,null,null,null,null,null,null,null,null,null,null,null,null,null,null,null,null,null,null,"2417",2.2999999999999998,"CARBONYL FLUORIDE"]
[null,null,null,null,null,null,null,null,null,null,null,null,null,null,null,null,null,null,null,null,null,null,null,null,null,null,null,"2418",2.2999999999999998,"SULPHUR TETRAFLUORIDE"]
[null,null,null,null,null,null,null,null,null,null,null,null,null,null,null,null,null,null,null,null,null,null,null,null,null,null,null,"2419",2.1,"BROMOTRIFLUOROETHYLENE"]
[null,null,null,null,null,null,null,null,null,null,null,null,null,null,null,null,null,null,null,null,null,null,null,null,null,null,null,"2420",2.2999999999999998,"HEXAFLUOROACETONE"]
[null,null,null,null,null,null,null,null,null,null,null,null,null,null,null,null,null,null,null,null,null,null,null,null,null,null,null,"2421",2.2999999999999998,"NITROGEN TRIOXIDE"]
[null,null,null,null,null,null,null,null,null,null,null,null,null,null,null,null,null,null,null,null,null,null,null,null,null,null,null,"2422",2.2000000000000002,"OCTAFLUOROBUT-2-ENE"]
[null,null,null,null,null,null,null,null,null,null,null,null,null,null,null,null,null,null,null,null,null,null,null,null,null,null,null,"2424",2.2000000000000002,"OCTAFLUOROPROPANE"]
[null,null,null,null,null,null,null,null,null,null,null,null,null,null,null,null,null,null,null,null,null,null,null,null,null,null,null,"2426",5.0999999999999996,"AMMONIUM NITRATE, LIQUID"]
[null,null,null,null,null,null,null,null,null,null,null,null,null,null,null,null,null,null,null,null,null,null,null,null,null,null,null,"2427",5.0999999999999996,"POTASSIUM CHLORATE, AQUEOUS SOLUTION"]
[null,null,null,null,null,null,null,null,null,null,null,null,null,null,null,null,null,null,null,null,null,null,null,null,null,null,null,"2428",5.0999999999999996,"SODIUM CHLORATE, AQUEOUS SOLUTION"]
[null,null,null,null,null,null,null,null,null,null,null,null,null,null,null,null,null,null,null,null,null,null,null,null,null,null,null,"2429",5.0999999999999996,"CALCIUM CHLORATE, AQUEOUS SOLUTION"]
[null,null,null,null,null,null,null,null,null,null,null,null,null,null,null,null,null,null,null,null,null,null,null,null,null,null,null,"2430",8,"ALKYLPHENOLS, SOLID, N.O.S."]
[null,null,null,null,null,null,null,null,null,null,null,null,null,null,null,null,null,null,null,null,null,null,null,null,null,null,null,"2431",6.1,"ANISIDINES"]
[null,null,null,null,null,null,null,null,null,null,null,null,null,null,null,null,null,null,null,null,null,null,null,null,null,null,null,"2432",6.1,"N,N-DIETHYLANILINE"]
[null,null,null,null,null,null,null,null,null,null,null,null,null,null,null,null,null,null,null,null,null,null,null,null,null,null,null,"2433",6.1,"CHLORONITROTOLUENES, LIQUID"]
[null,null,null,null,null,null,null,null,null,null,null,null,null,null,null,null,null,null,null,null,null,null,null,null,null,null,null,"2434",8,"DIBENZYLDICHLOROSILANE"]
[null,null,null,null,null,null,null,null,null,null,null,null,null,null,null,null,null,null,null,null,null,null,null,null,null,null,null,"2435",8,"ETHYLPHENYLDICHLOROSILANE"]
[null,null,null,null,null,null,null,null,null,null,null,null,null,null,null,null,null,null,null,null,null,null,null,null,null,null,null,"2436",3,"THIOACETIC ACID"]
[null,null,null,null,null,null,null,null,null,null,null,null,null,null,null,null,null,null,null,null,null,null,null,null,null,null,null,"2437",8,"METHYLPHENYLDICHLOROSILANE"]
[null,null,null,null,null,null,null,null,null,null,null,null,null,null,null,null,null,null,null,null,null,null,null,null,null,null,null,"2438",6.1,"TRIMETHYLACETYL CHLORIDE"]
[null,null,null,null,null,null,null,null,null,null,null,null,null,null,null,null,null,null,null,null,null,null,null,null,null,null,null,"2439",8,"SODIUM HYDROGENDIFLUORIDE"]
[null,null,null,null,null,null,null,null,null,null,null,null,null,null,null,null,null,null,null,null,null,null,null,null,null,null,null,"2440",8,"STANNIC CHLORIDE PENTAHYDRATE"]
[null,null,null,null,null,null,null,null,null,null,null,null,null,null,null,null,null,null,null,null,null,null,null,null,null,null,null,"2441",4.2,"TITANIUM TRICHLORIDE, PYROPHORIC"]
[null,null,null,null,null,null,null,null,null,null,null,null,null,null,null,null,null,null,null,null,null,null,null,null,null,null,null,"2442",8,"TRICHLOROACETYL CHLORIDE"]
[null,null,null,null,null,null,null,null,null,null,null,null,null,null,null,null,null,null,null,null,null,null,null,null,null,null,null,"2443",8,"VANADIUM OXYTRICHLORIDE"]
[null,null,null,null,null,null,null,null,null,null,null,null,null,null,null,null,null,null,null,null,null,null,null,null,null,null,null,"2444",8,"VANADIUM TETRACHLORIDE"]
[null,null,null,null,null,null,null,null,null,null,null,null,null,null,null,null,null,null,null,null,null,null,null,null,null,null,null,"2446",6.1,"NITROCRESOLS, SOLID"]
[null,null,null,null,null,null,null,null,null,null,null,null,null,null,null,null,null,null,null,null,null,null,null,null,null,null,null,"2447",4.2,"PHOSPHORUS, WHITE, MOLTEN"]
[null,null,null,null,null,null,null,null,null,null,null,null,null,null,null,null,null,null,null,null,null,null,null,null,null,null,null,"2448",4.0999999999999996,"SULPHUR, MOLTEN"]
[null,null,null,null,null,null,null,null,null,null,null,null,null,null,null,null,null,null,null,null,null,null,null,null,null,null,null,"2451",2.2000000000000002,"NITROGEN TRIFLUORIDE"]
[null,null,null,null,null,null,null,null,null,null,null,null,null,null,null,null,null,null,null,null,null,null,null,null,null,null,null,"2452",2.1,"ETHYLACETYLENE, STABILIZED"]
[null,null,null,null,null,null,null,null,null,null,null,null,null,null,null,null,null,null,null,null,null,null,null,null,null,null,null,"2453",2.1,"ETHYL FLUORIDE"]
[null,null,null,null,null,null,null,null,null,null,null,null,null,null,null,null,null,null,null,null,null,null,null,null,null,null,null,"2454",2.1,"METHYL FLUORIDE"]
[null,null,null,null,null,null,null,null,null,null,null,null,null,null,null,null,null,null,null,null,null,null,null,null,null,null,null,"2455",2.2000000000000002,"METHYL NITRITE"]
[null,null,null,null,null,null,null,null,null,null,null,null,null,null,null,null,null,null,null,null,null,null,null,null,null,null,null,"2456",3,"2-CHLOROPROPENE"]
[null,null,null,null,null,null,null,null,null,null,null,null,null,null,null,null,null,null,null,null,null,null,null,null,null,null,null,"2457",3,"2,3-DIMETHYLBUTANE"]
[null,null,null,null,null,null,null,null,null,null,null,null,null,null,null,null,null,null,null,null,null,null,null,null,null,null,null,"2458",3,"HEXADIENES"]
[null,null,null,null,null,null,null,null,null,null,null,null,null,null,null,null,null,null,null,null,null,null,null,null,null,null,null,"2459",3,"2-METHYL-1-BUTENE"]
[null,null,null,null,null,null,null,null,null,null,null,null,null,null,null,null,null,null,null,null,null,null,null,null,null,null,null,"2460",3,"2-METHYL-2-BUTENE"]
[null,null,null,null,null,null,null,null,null,null,null,null,null,null,null,null,null,null,null,null,null,null,null,null,null,null,null,"2461",3,"METHYLPENTADIENES"]
[null,null,null,null,null,null,null,null,null,null,null,null,null,null,null,null,null,null,null,null,null,null,null,null,null,null,null,"2463",4.3,"ALUMINIUM HYDRIDE"]
[null,null,null,null,null,null,null,null,null,null,null,null,null,null,null,null,null,null,null,null,null,null,null,null,null,null,null,"2464",5.0999999999999996,"BERYLLIUM NITRATE"]
[null,null,null,null,null,null,null,null,null,null,null,null,null,null,null,null,null,null,null,null,null,null,null,null,null,null,null,"2465",5.0999999999999996,"DICHLOROISOCYANURIC ACID, DRY"]
[null,null,null,null,null,null,null,null,null,null,null,null,null,null,null,null,null,null,null,null,null,null,null,null,null,null,null,"2466",5.0999999999999996,"POTASSIUM SUPEROXIDE"]
[null,null,null,null,null,null,null,null,null,null,null,null,null,null,null,null,null,null,null,null,null,null,null,null,null,null,null,"2468",5.0999999999999996,"TRICHLOROISOCYANURIC ACID, DRY"]
[null,null,null,null,null,null,null,null,null,null,null,null,null,null,null,null,null,null,null,null,null,null,null,null,null,null,null,"2469",5.0999999999999996,"ZINC BROMATE"]
[null,null,null,null,null,null,null,null,null,null,null,null,null,null,null,null,null,null,null,null,null,null,null,null,null,null,null,"2470",6.1,"PHENYLACETONITRILE, LIQUID"]
[null,null,null,null,null,null,null,null,null,null,null,null,null,null,null,null,null,null,null,null,null,null,null,null,null,null,null,"2471",6.1,"OSMIUM TETROXIDE"]
[null,null,null,null,null,null,null,null,null,null,null,null,null,null,null,null,null,null,null,null,null,null,null,null,null,null,null,"2473",6.1,"SODIUM ARSANILATE"]
[null,null,null,null,null,null,null,null,null,null,null,null,null,null,null,null,null,null,null,null,null,null,null,null,null,null,null,"2474",6.1,"THIOPHOSGENE"]
[null,null,null,null,null,null,null,null,null,null,null,null,null,null,null,null,null,null,null,null,null,null,null,null,null,null,null,"2475",8,"VANADIUM TRICHLORIDE"]
[null,null,null,null,null,null,null,null,null,null,null,null,null,null,null,null,null,null,null,null,null,null,null,null,null,null,null,"2477",6.1,"METHYL ISOTHIOCYANATE"]
[null,null,null,null,null,null,null,null,null,null,null,null,null,null,null,null,null,null,null,null,null,null,null,null,null,null,null,"2478",3,"ISOCYANATES, FLAMMABLE, TOXIC, N.O.S."]
[null,null,null,null,null,null,null,null,null,null,null,null,null,null,null,null,null,null,null,null,null,null,null,null,null,null,null,"2480",6.1,"METHYL ISOCYANATE"]
[null,null,null,null,null,null,null,null,null,null,null,null,null,null,null,null,null,null,null,null,null,null,null,null,null,null,null,"2481",6.1,"ETHYL ISOCYANATE"]
[null,null,null,null,null,null,null,null,null,null,null,null,null,null,null,null,null,null,null,null,null,null,null,null,null,null,null,"2482",6.1,"n-PROPYL ISOCYANATE"]
[null,null,null,null,null,null,null,null,null,null,null,null,null,null,null,null,null,null,null,null,null,null,null,null,null,null,null,"2483",6.1,"ISOPROPYL ISOCYANATE"]
[null,null,null,null,null,null,null,null,null,null,null,null,null,null,null,null,null,null,null,null,null,null,null,null,null,null,null,"2484",6.1,"tert-BUTYL ISOCYANATE"]
[null,null,null,null,null,null,null,null,null,null,null,null,null,null,null,null,null,null,null,null,null,null,null,null,null,null,null,"2485",6.1,"n-BUTYL ISOCYANATE"]
[null,null,null,null,null,null,null,null,null,null,null,null,null,null,null,null,null,null,null,null,null,null,null,null,null,null,null,"2486",6.1,"ISOBUTYL ISOCYANATE"]
[null,null,null,null,null,null,null,null,null,null,null,null,null,null,null,null,null,null,null,null,null,null,null,null,null,null,null,"2487",6.1,"PHENYL ISOCYANATE"]
[null,null,null,null,null,null,null,null,null,null,null,null,null,null,null,null,null,null,null,null,null,null,null,null,null,null,null,"2488",6.1,"CYCLOHEXYL ISOCYANATE"]
[null,null,null,null,null,null,null,null,null,null,null,null,null,null,null,null,null,null,null,null,null,null,null,null,null,null,null,"2490",6.1,"DICHLOROISOPROPYL ETHER"]
[null,null,null,null,null,null,null,null,null,null,null,null,null,null,null,null,null,null,null,null,null,null,null,null,null,null,null,"2491",8,"ETHANOLAMINE"]
[null,null,null,null,null,null,null,null,null,null,null,null,null,null,null,null,null,null,null,null,null,null,null,null,null,null,null,"2493",3,"HEXAMETHYLENEIMINE"]
[null,null,null,null,null,null,null,null,null,null,null,null,null,null,null,null,null,null,null,null,null,null,null,null,null,null,null,"2495",5.0999999999999996,"IODINE PENTAFLUORIDE"]
[null,null,null,null,null,null,null,null,null,null,null,null,null,null,null,null,null,null,null,null,null,null,null,null,null,null,null,"2496",8,"PROPIONIC ANHYDRIDE"]
[null,null,null,null,null,null,null,null,null,null,null,null,null,null,null,null,null,null,null,null,null,null,null,null,null,null,null,"2498",3,"1,2,3,6-TETRAHYDROBENZALDEHYDE"]
[null,null,null,null,null,null,null,null,null,null,null,null,null,null,null,null,null,null,null,null,null,null,null,null,null,null,null,"2501",6.1,"TRIS-(1-AZIRIDINYL) PHOSPHINE OXIDE SOLUTION"]
[null,null,null,null,null,null,null,null,null,null,null,null,null,null,null,null,null,null,null,null,null,null,null,null,null,null,null,"2502",8,"VALERYL CHLORIDE"]
[null,null,null,null,null,null,null,null,null,null,null,null,null,null,null,null,null,null,null,null,null,null,null,null,null,null,null,"2503",8,"ZIRCONIUM TETRACHLORIDE"]
[null,null,null,null,null,null,null,null,null,null,null,null,null,null,null,null,null,null,null,null,null,null,null,null,null,null,null,"2504",6.1,"TETRABROMOETHANE"]
[null,null,null,null,null,null,null,null,null,null,null,null,null,null,null,null,null,null,null,null,null,null,null,null,null,null,null,"2505",6.1,"AMMONIUM FLUORIDE"]
[null,null,null,null,null,null,null,null,null,null,null,null,null,null,null,null,null,null,null,null,null,null,null,null,null,null,null,"2506",8,"AMMONIUM HYDROGEN SULPHATE"]
[null,null,null,null,null,null,null,null,null,null,null,null,null,null,null,null,null,null,null,null,null,null,null,null,null,null,null,"2507",8,"CHLOROPLATINIC ACID, SOLID"]
[null,null,null,null,null,null,null,null,null,null,null,null,null,null,null,null,null,null,null,null,null,null,null,null,null,null,null,"2508",8,"MOLYBDENUM PENTACHLORIDE"]
[null,null,null,null,null,null,null,null,null,null,null,null,null,null,null,null,null,null,null,null,null,null,null,null,null,null,null,"2509",8,"POTASSIUM HYDROGEN SULPHATE"]
[null,null,null,null,null,null,null,null,null,null,null,null,null,null,null,null,null,null,null,null,null,null,null,null,null,null,null,"2511",8,"2-CHLOROPROPIONIC ACID"]
[null,null,null,null,null,null,null,null,null,null,null,null,null,null,null,null,null,null,null,null,null,null,null,null,null,null,null,"2512",6.1,"AMINOPHENOLS"]
[null,null,null,null,null,null,null,null,null,null,null,null,null,null,null,null,null,null,null,null,null,null,null,null,null,null,null,"2513",8,"BROMOACETYL BROMIDE"]
[null,null,null,null,null,null,null,null,null,null,null,null,null,null,null,null,null,null,null,null,null,null,null,null,null,null,null,"2514",3,"BROMOBENZENE"]
[null,null,null,null,null,null,null,null,null,null,null,null,null,null,null,null,null,null,null,null,null,null,null,null,null,null,null,"2515",6.1,"BROMOFORM"]
[null,null,null,null,null,null,null,null,null,null,null,null,null,null,null,null,null,null,null,null,null,null,null,null,null,null,null,"2516",6.1,"CARBON TETRABROMIDE"]
[null,null,null,null,null,null,null,null,null,null,null,null,null,null,null,null,null,null,null,null,null,null,null,null,null,null,null,"2517",2.1,"1-CHLORO-1,1-DIFLUOROETHANE"]
[null,null,null,null,null,null,null,null,null,null,null,null,null,null,null,null,null,null,null,null,null,null,null,null,null,null,null,"2518",6.1,"1,5,9-CYCLODODECATRIENE"]
[null,null,null,null,null,null,null,null,null,null,null,null,null,null,null,null,null,null,null,null,null,null,null,null,null,null,null,"2520",3,"CYCLOOCTADIENES"]
[null,null,null,null,null,null,null,null,null,null,null,null,null,null,null,null,null,null,null,null,null,null,null,null,null,null,null,"2521",6.1,"DIKETENE, STABILIZED"]
[null,null,null,null,null,null,null,null,null,null,null,null,null,null,null,null,null,null,null,null,null,null,null,null,null,null,null,"2522",6.1,"2-DIMETHYLAMINOETHYL METHACRYLATE"]
[null,null,null,null,null,null,null,null,null,null,null,null,null,null,null,null,null,null,null,null,null,null,null,null,null,null,null,"2524",3,"ETHYL ORTHOFORMATE"]
[null,null,null,null,null,null,null,null,null,null,null,null,null,null,null,null,null,null,null,null,null,null,null,null,null,null,null,"2525",6.1,"ETHYL OXALATE"]
[null,null,null,null,null,null,null,null,null,null,null,null,null,null,null,null,null,null,null,null,null,null,null,null,null,null,null,"2526",3,"FURFURYLAMINE"]
[null,null,null,null,null,null,null,null,null,null,null,null,null,null,null,null,null,null,null,null,null,null,null,null,null,null,null,"2527",3,"ISOBUTYL ACRYLATE, STABILIZED"]
[null,null,null,null,null,null,null,null,null,null,null,null,null,null,null,null,null,null,null,null,null,null,null,null,null,null,null,"2528",3,"ISOBUTYL ISOBUTYRATE"]
[null,null,null,null,null,null,null,null,null,null,null,null,null,null,null,null,null,null,null,null,null,null,null,null,null,null,null,"2529",3,"ISOBUTYRIC ACID"]
[null,null,null,null,null,null,null,null,null,null,null,null,null,null,null,null,null,null,null,null,null,null,null,null,null,null,null,"2531",8,"METHACRYLIC ACID, STABILIZED"]
[null,null,null,null,null,null,null,null,null,null,null,null,null,null,null,null,null,null,null,null,null,null,null,null,null,null,null,"2533",6.1,"METHYL TRICHLOROACETATE"]
[null,null,null,null,null,null,null,null,null,null,null,null,null,null,null,null,null,null,null,null,null,null,null,null,null,null,null,"2534",2.2999999999999998,"METHYLCHLOROSILANE"]
[null,null,null,null,null,null,null,null,null,null,null,null,null,null,null,null,null,null,null,null,null,null,null,null,null,null,null,"2535",3,"4-METHYLMORPHOLINE"]
[null,null,null,null,null,null,null,null,null,null,null,null,null,null,null,null,null,null,null,null,null,null,null,null,null,null,null,"2536",3,"METHYLTETRAHYDROFURAN"]
[null,null,null,null,null,null,null,null,null,null,null,null,null,null,null,null,null,null,null,null,null,null,null,null,null,null,null,"2538",4.0999999999999996,"NITRONAPHTHALENE"]
[null,null,null,null,null,null,null,null,null,null,null,null,null,null,null,null,null,null,null,null,null,null,null,null,null,null,null,"2541",3,"TERPINOLENE"]
[null,null,null,null,null,null,null,null,null,null,null,null,null,null,null,null,null,null,null,null,null,null,null,null,null,null,null,"2542",6.1,"TRIBUTYLAMINE"]
[null,null,null,null,null,null,null,null,null,null,null,null,null,null,null,null,null,null,null,null,null,null,null,null,null,null,null,"2545",4.2,"HAFNIUM POWDER, DRY"]
[null,null,null,null,null,null,null,null,null,null,null,null,null,null,null,null,null,null,null,null,null,null,null,null,null,null,null,"2546",4.2,"TITANIUM POWDER, DRY"]
[null,null,null,null,null,null,null,null,null,null,null,null,null,null,null,null,null,null,null,null,null,null,null,null,null,null,null,"2547",5.0999999999999996,"SODIUM SUPEROXIDE"]
[null,null,null,null,null,null,null,null,null,null,null,null,null,null,null,null,null,null,null,null,null,null,null,null,null,null,null,"2548",2.2999999999999998,"CHLORINE PENTAFLUORIDE"]
[null,null,null,null,null,null,null,null,null,null,null,null,null,null,null,null,null,null,null,null,null,null,null,null,null,null,null,"2552",6.1,"HEXAFLUOROACETONE HYDRATE, LIQUID"]
[null,null,null,null,null,null,null,null,null,null,null,null,null,null,null,null,null,null,null,null,null,null,null,null,null,null,null,"2554",3,"METHYLALLYL CHLORIDE"]
[null,null,null,null,null,null,null,null,null,null,null,null,null,null,null,null,null,null,null,null,null,null,null,null,null,null,null,"2555",4.0999999999999996,"NITROCELLULOSE WITH WATER"]
[null,null,null,null,null,null,null,null,null,null,null,null,null,null,null,null,null,null,null,null,null,null,null,null,null,null,null,"2556",4.0999999999999996,"NITROCELLULOSE WITH ALCOHOL"]
[null,null,null,null,null,null,null,null,null,null,null,null,null,null,null,null,null,null,null,null,null,null,null,null,null,null,null,"2557",4.0999999999999996,"NITROCELLULOSE MIXTURE WITH PLASTICIZER, WITH PIGMENT"]
[null,null,null,null,null,null,null,null,null,null,null,null,null,null,null,null,null,null,null,null,null,null,null,null,null,null,null,"2558",6.1,"EPIBROMOHYDRIN"]
[null,null,null,null,null,null,null,null,null,null,null,null,null,null,null,null,null,null,null,null,null,null,null,null,null,null,null,"2560",3,"2-METHYLPENTAN-2-OL"]
[null,null,null,null,null,null,null,null,null,null,null,null,null,null,null,null,null,null,null,null,null,null,null,null,null,null,null,"2561",3,"3-METHYL-1-BUTENE"]
[null,null,null,null,null,null,null,null,null,null,null,null,null,null,null,null,null,null,null,null,null,null,null,null,null,null,null,"2564",8,"TRICHLOROACETIC ACID SOLUTION"]
[null,null,null,null,null,null,null,null,null,null,null,null,null,null,null,null,null,null,null,null,null,null,null,null,null,null,null,"2565",8,"DICYCLOHEXYLAMINE"]
[null,null,null,null,null,null,null,null,null,null,null,null,null,null,null,null,null,null,null,null,null,null,null,null,null,null,null,"2567",6.1,"SODIUM PENTACHLOROPHENATE"]
[null,null,null,null,null,null,null,null,null,null,null,null,null,null,null,null,null,null,null,null,null,null,null,null,null,null,null,"2570",6.1,"CADMIUM COMPOUND"]
[null,null,null,null,null,null,null,null,null,null,null,null,null,null,null,null,null,null,null,null,null,null,null,null,null,null,null,"2571",8,"ALKYLSULPHURIC ACIDS"]
[null,null,null,null,null,null,null,null,null,null,null,null,null,null,null,null,null,null,null,null,null,null,null,null,null,null,null,"2572",6.1,"PHENYLHYDRAZINE"]
[null,null,null,null,null,null,null,null,null,null,null,null,null,null,null,null,null,null,null,null,null,null,null,null,null,null,null,"2573",5.0999999999999996,"THALLIUM CHLORATE"]
[null,null,null,null,null,null,null,null,null,null,null,null,null,null,null,null,null,null,null,null,null,null,null,null,null,null,null,"2574",6.1,"TRICRESYL PHOSPHATE"]
[null,null,null,null,null,null,null,null,null,null,null,null,null,null,null,null,null,null,null,null,null,null,null,null,null,null,null,"2576",8,"PHOSPHORUS OXYBROMIDE, MOLTEN"]
[null,null,null,null,null,null,null,null,null,null,null,null,null,null,null,null,null,null,null,null,null,null,null,null,null,null,null,"2577",8,"PHENYLACETYL CHLORIDE"]
[null,null,null,null,null,null,null,null,null,null,null,null,null,null,null,null,null,null,null,null,null,null,null,null,null,null,null,"2578",8,"PHOSPHORUS TRIOXIDE"]
[null,null,null,null,null,null,null,null,null,null,null,null,null,null,null,null,null,null,null,null,null,null,null,null,null,null,null,"2579",8,"PIPERAZINE"]
[null,null,null,null,null,null,null,null,null,null,null,null,null,null,null,null,null,null,null,null,null,null,null,null,null,null,null,"2580",8,"ALUMINIUM BROMIDE SOLUTION"]
[null,null,null,null,null,null,null,null,null,null,null,null,null,null,null,null,null,null,null,null,null,null,null,null,null,null,null,"2581",8,"ALUMINIUM CHLORIDE SOLUTION"]
[null,null,null,null,null,null,null,null,null,null,null,null,null,null,null,null,null,null,null,null,null,null,null,null,null,null,null,"2582",8,"FERRIC CHLORIDE SOLUTION"]
[null,null,null,null,null,null,null,null,null,null,null,null,null,null,null,null,null,null,null,null,null,null,null,null,null,null,null,"2583",8,"ALKYLSULPHONIC ACIDS, SOLID"]
[null,null,null,null,null,null,null,null,null,null,null,null,null,null,null,null,null,null,null,null,null,null,null,null,null,null,null,"2584",8,"ALKYLSULPHONIC ACIDS, LIQUID"]
[null,null,null,null,null,null,null,null,null,null,null,null,null,null,null,null,null,null,null,null,null,null,null,null,null,null,null,"2585",8,"ALKYLSULPHONIC ACIDS, SOLID"]
[null,null,null,null,null,null,null,null,null,null,null,null,null,null,null,null,null,null,null,null,null,null,null,null,null,null,null,"2586",8,"ALKYLSULPHONIC ACIDS, LIQUID"]
[null,null,null,null,null,null,null,null,null,null,null,null,null,null,null,null,null,null,null,null,null,null,null,null,null,null,null,"2587",6.1,"BENZOQUINONE"]
[null,null,null,null,null,null,null,null,null,null,null,null,null,null,null,null,null,null,null,null,null,null,null,null,null,null,null,"2588",6.1,"PESTICIDE, SOLID, TOXIC, N.O.S."]
[null,null,null,null,null,null,null,null,null,null,null,null,null,null,null,null,null,null,null,null,null,null,null,null,null,null,null,"2589",6.1,"VINYL CHLOROACETATE"]
[null,null,null,null,null,null,null,null,null,null,null,null,null,null,null,null,null,null,null,null,null,null,null,null,null,null,null,"2590",9,"ASBESTOS, CHRYSOTILE"]
[null,null,null,null,null,null,null,null,null,null,null,null,null,null,null,null,null,null,null,null,null,null,null,null,null,null,null,"2591",2.2000000000000002,"XENON, REFRIGERATED LIQUID"]
[null,null,null,null,null,null,null,null,null,null,null,null,null,null,null,null,null,null,null,null,null,null,null,null,null,null,null,"2599",2.2000000000000002,"CHLOROTRIFLUOROMETHANE AND TRIFLUOROMETHANE, AZEOTROPIC MIXTURE"]
[null,null,null,null,null,null,null,null,null,null,null,null,null,null,null,null,null,null,null,null,null,null,null,null,null,null,null,"2601",2.1,"CYCLOBUTANE"]
[null,null,null,null,null,null,null,null,null,null,null,null,null,null,null,null,null,null,null,null,null,null,null,null,null,null,null,"2602",2.2000000000000002,"DICHLORODIFLUOROMETHANE AND DIFLUOROETHANE, AZEOTROPIC MIXTURE"]
[null,null,null,null,null,null,null,null,null,null,null,null,null,null,null,null,null,null,null,null,null,null,null,null,null,null,null,"2603",3,"CYCLOHEPTATRIENE"]
[null,null,null,null,null,null,null,null,null,null,null,null,null,null,null,null,null,null,null,null,null,null,null,null,null,null,null,"2604",8,"BORON TRIFLUORIDE DIETHYL ETHERATE"]
[null,null,null,null,null,null,null,null,null,null,null,null,null,null,null,null,null,null,null,null,null,null,null,null,null,null,null,"2605",6.1,"METHOXYMETHYL ISOCYANATE"]
[null,null,null,null,null,null,null,null,null,null,null,null,null,null,null,null,null,null,null,null,null,null,null,null,null,null,null,"2606",6.1,"METHYL ORTHOSILICATE"]
[null,null,null,null,null,null,null,null,null,null,null,null,null,null,null,null,null,null,null,null,null,null,null,null,null,null,null,"2607",3,"ACROLEIN DIMER, STABILIZED"]
[null,null,null,null,null,null,null,null,null,null,null,null,null,null,null,null,null,null,null,null,null,null,null,null,null,null,null,"2608",3,"NITROPROPANES"]
[null,null,null,null,null,null,null,null,null,null,null,null,null,null,null,null,null,null,null,null,null,null,null,null,null,null,null,"2609",6.1,"TRIALLYL BORATE"]
[null,null,null,null,null,null,null,null,null,null,null,null,null,null,null,null,null,null,null,null,null,null,null,null,null,null,null,"2610",3,"TRIALLYLAMINE"]
[null,null,null,null,null,null,null,null,null,null,null,null,null,null,null,null,null,null,null,null,null,null,null,null,null,null,null,"2611",6.1,"PROPYLENE CHLOROHYDRIN"]
[null,null,null,null,null,null,null,null,null,null,null,null,null,null,null,null,null,null,null,null,null,null,null,null,null,null,null,"2612",3,"METHYL PROPYL ETHER"]
[null,null,null,null,null,null,null,null,null,null,null,null,null,null,null,null,null,null,null,null,null,null,null,null,null,null,null,"2614",3,"METHALLYL ALCOHOL"]
[null,null,null,null,null,null,null,null,null,null,null,null,null,null,null,null,null,null,null,null,null,null,null,null,null,null,null,"2615",3,"ETHYL PROPYL ETHER"]
[null,null,null,null,null,null,null,null,null,null,null,null,null,null,null,null,null,null,null,null,null,null,null,null,null,null,null,"2616",3,"TRIISOPROPYL BORATE"]
[null,null,null,null,null,null,null,null,null,null,null,null,null,null,null,null,null,null,null,null,null,null,null,null,null,null,null,"2617",3,"METHYLCYCLOHEXANOLS"]
[null,null,null,null,null,null,null,null,null,null,null,null,null,null,null,null,null,null,null,null,null,null,null,null,null,null,null,"2618",3,"VINYLTOLUENES, STABILIZED"]
[null,null,null,null,null,null,null,null,null,null,null,null,null,null,null,null,null,null,null,null,null,null,null,null,null,null,null,"2619",8,"BENZYLDIMETHYLAMINE"]
[null,null,null,null,null,null,null,null,null,null,null,null,null,null,null,null,null,null,null,null,null,null,null,null,null,null,null,"2620",3,"AMYL BUTYRATES"]
[null,null,null,null,null,null,null,null,null,null,null,null,null,null,null,null,null,null,null,null,null,null,null,null,null,null,null,"2621",3,"ACETYL METHYL CARBINOL"]
[null,null,null,null,null,null,null,null,null,null,null,null,null,null,null,null,null,null,null,null,null,null,null,null,null,null,null,"2622",3,"GLYCIDALDEHYDE"]
[null,null,null,null,null,null,null,null,null,null,null,null,null,null,null,null,null,null,null,null,null,null,null,null,null,null,null,"2623",4.0999999999999996,"FIRELIGHTERS, SOLID"]
[null,null,null,null,null,null,null,null,null,null,null,null,null,null,null,null,null,null,null,null,null,null,null,null,null,null,null,"2624",4.3,"MAGNESIUM SILICIDE"]
[null,null,null,null,null,null,null,null,null,null,null,null,null,null,null,null,null,null,null,null,null,null,null,null,null,null,null,"2626",5.0999999999999996,"CHLORIC ACID, AQUEOUS SOLUTION"]
[null,null,null,null,null,null,null,null,null,null,null,null,null,null,null,null,null,null,null,null,null,null,null,null,null,null,null,"2627",5.0999999999999996,"NITRITES, INORGANIC, N.O.S."]
[null,null,null,null,null,null,null,null,null,null,null,null,null,null,null,null,null,null,null,null,null,null,null,null,null,null,null,"2628",6.1,"POTASSIUM FLUOROACETATE"]
[null,null,null,null,null,null,null,null,null,null,null,null,null,null,null,null,null,null,null,null,null,null,null,null,null,null,null,"2629",6.1,"SODIUM FLUOROACETATE"]
[null,null,null,null,null,null,null,null,null,null,null,null,null,null,null,null,null,null,null,null,null,null,null,null,null,null,null,"2630",6.1,"SELENATES"]
[null,null,null,null,null,null,null,null,null,null,null,null,null,null,null,null,null,null,null,null,null,null,null,null,null,null,null,"2642",6.1,"FLUOROACETIC ACID"]
[null,null,null,null,null,null,null,null,null,null,null,null,null,null,null,null,null,null,null,null,null,null,null,null,null,null,null,"2643",6.1,"METHYL BROMOACETATE"]
[null,null,null,null,null,null,null,null,null,null,null,null,null,null,null,null,null,null,null,null,null,null,null,null,null,null,null,"2644",6.1,"METHYL IODIDE"]
[null,null,null,null,null,null,null,null,null,null,null,null,null,null,null,null,null,null,null,null,null,null,null,null,null,null,null,"2645",6.1,"PHENACYL BROMIDE"]
[null,null,null,null,null,null,null,null,null,null,null,null,null,null,null,null,null,null,null,null,null,null,null,null,null,null,null,"2646",6.1,"HEXACHLOROCYCLOPENTADIENE"]
[null,null,null,null,null,null,null,null,null,null,null,null,null,null,null,null,null,null,null,null,null,null,null,null,null,null,null,"2647",6.1,"MALONONITRILE"]
[null,null,null,null,null,null,null,null,null,null,null,null,null,null,null,null,null,null,null,null,null,null,null,null,null,null,null,"2648",6.1,"1,2-DIBROMOBUTAN-3-ONE"]
[null,null,null,null,null,null,null,null,null,null,null,null,null,null,null,null,null,null,null,null,null,null,null,null,null,null,null,"2649",6.1,"1,3-DICHLOROACETONE"]
[null,null,null,null,null,null,null,null,null,null,null,null,null,null,null,null,null,null,null,null,null,null,null,null,null,null,null,"2650",6.1,"1,1-DICHLORO-1-NITROETHANE"]
[null,null,null,null,null,null,null,null,null,null,null,null,null,null,null,null,null,null,null,null,null,null,null,null,null,null,null,"2651",6.1,"4,4'-DIAMINODIPHENYLMETHANE"]
[null,null,null,null,null,null,null,null,null,null,null,null,null,null,null,null,null,null,null,null,null,null,null,null,null,null,null,"2653",6.1,"BENZYL IODIDE"]
[null,null,null,null,null,null,null,null,null,null,null,null,null,null,null,null,null,null,null,null,null,null,null,null,null,null,null,"2655",6.1,"POTASSIUM FLUOROSILICATE"]
[null,null,null,null,null,null,null,null,null,null,null,null,null,null,null,null,null,null,null,null,null,null,null,null,null,null,null,"2656",6.1,"QUINOLINE"]
[null,null,null,null,null,null,null,null,null,null,null,null,null,null,null,null,null,null,null,null,null,null,null,null,null,null,null,"2657",6.1,"SELENIUM DISULPHIDE"]
[null,null,null,null,null,null,null,null,null,null,null,null,null,null,null,null,null,null,null,null,null,null,null,null,null,null,null,"2659",6.1,"SODIUM CHLOROACETATE"]
[null,null,null,null,null,null,null,null,null,null,null,null,null,null,null,null,null,null,null,null,null,null,null,null,null,null,null,"2660",6.1,"NITROTOLUIDINES (MONO)"]
[null,null,null,null,null,null,null,null,null,null,null,null,null,null,null,null,null,null,null,null,null,null,null,null,null,null,null,"2661",6.1,"HEXACHLOROACETONE"]
[null,null,null,null,null,null,null,null,null,null,null,null,null,null,null,null,null,null,null,null,null,null,null,null,null,null,null,"2664",6.1,"DIBROMOMETHANE"]
[null,null,null,null,null,null,null,null,null,null,null,null,null,null,null,null,null,null,null,null,null,null,null,null,null,null,null,"2667",6.1,"BUTYLTOLUENES"]
[null,null,null,null,null,null,null,null,null,null,null,null,null,null,null,null,null,null,null,null,null,null,null,null,null,null,null,"2668",6.1,"CHLOROACETONITRILE"]
[null,null,null,null,null,null,null,null,null,null,null,null,null,null,null,null,null,null,null,null,null,null,null,null,null,null,null,"2669",6.1,"CHLOROCRESOLS SOLUTION"]
[null,null,null,null,null,null,null,null,null,null,null,null,null,null,null,null,null,null,null,null,null,null,null,null,null,null,null,"2670",8,"CYANURIC CHLORIDE"]
[null,null,null,null,null,null,null,null,null,null,null,null,null,null,null,null,null,null,null,null,null,null,null,null,null,null,null,"2671",6.1,"AMINOPYRIDINES"]
[null,null,null,null,null,null,null,null,null,null,null,null,null,null,null,null,null,null,null,null,null,null,null,null,null,null,null,"2672",8,"AMMONIA SOLUTION"]
[null,null,null,null,null,null,null,null,null,null,null,null,null,null,null,null,null,null,null,null,null,null,null,null,null,null,null,"2673",6.1,"2-AMINO-4-CHLOROPHENOL"]
[null,null,null,null,null,null,null,null,null,null,null,null,null,null,null,null,null,null,null,null,null,null,null,null,null,null,null,"2674",6.1,"SODIUM FLUOROSILICATE"]
[null,null,null,null,null,null,null,null,null,null,null,null,null,null,null,null,null,null,null,null,null,null,null,null,null,null,null,"2676",2.2999999999999998,"STIBINE"]
[null,null,null,null,null,null,null,null,null,null,null,null,null,null,null,null,null,null,null,null,null,null,null,null,null,null,null,"2677",8,"RUBIDIUM HYDROXIDE SOLUTION"]
[null,null,null,null,null,null,null,null,null,null,null,null,null,null,null,null,null,null,null,null,null,null,null,null,null,null,null,"2678",8,"RUBIDIUM HYDROXIDE"]
[null,null,null,null,null,null,null,null,null,null,null,null,null,null,null,null,null,null,null,null,null,null,null,null,null,null,null,"2679",8,"LITHIUM HYDROXIDE SOLUTION"]
[null,null,null,null,null,null,null,null,null,null,null,null,null,null,null,null,null,null,null,null,null,null,null,null,null,null,null,"2680",8,"LITHIUM HYDROXIDE"]
[null,null,null,null,null,null,null,null,null,null,null,null,null,null,null,null,null,null,null,null,null,null,null,null,null,null,null,"2681",8,"CAESIUM HYDROXIDE SOLUTION"]
[null,null,null,null,null,null,null,null,null,null,null,null,null,null,null,null,null,null,null,null,null,null,null,null,null,null,null,"2682",8,"CAESIUM HYDROXIDE"]
[null,null,null,null,null,null,null,null,null,null,null,null,null,null,null,null,null,null,null,null,null,null,null,null,null,null,null,"2683",8,"AMMONIUM SULPHIDE SOLUTION"]
[null,null,null,null,null,null,null,null,null,null,null,null,null,null,null,null,null,null,null,null,null,null,null,null,null,null,null,"2684",3,"3-DIETHYLAMINOPROPYLAMINE"]
[null,null,null,null,null,null,null,null,null,null,null,null,null,null,null,null,null,null,null,null,null,null,null,null,null,null,null,"2685",8,"N,N-DIETHYLETHYLENEDIAMINE"]
[null,null,null,null,null,null,null,null,null,null,null,null,null,null,null,null,null,null,null,null,null,null,null,null,null,null,null,"2686",8,"2-DIETHYLAMINOETHANOL"]
[null,null,null,null,null,null,null,null,null,null,null,null,null,null,null,null,null,null,null,null,null,null,null,null,null,null,null,"2687",4.0999999999999996,"DICYCLOHEXYLAMMONIUM NITRITE"]
[null,null,null,null,null,null,null,null,null,null,null,null,null,null,null,null,null,null,null,null,null,null,null,null,null,null,null,"2688",6.1,"1-BROMO-3-CHLOROPROPANE"]
[null,null,null,null,null,null,null,null,null,null,null,null,null,null,null,null,null,null,null,null,null,null,null,null,null,null,null,"2689",6.1,"GLYCEROL-alpha-MONOCHLOROHYDRIN"]
[null,null,null,null,null,null,null,null,null,null,null,null,null,null,null,null,null,null,null,null,null,null,null,null,null,null,null,"2690",6.1,"N-n-BUTYLIMIDAZOLE"]
[null,null,null,null,null,null,null,null,null,null,null,null,null,null,null,null,null,null,null,null,null,null,null,null,null,null,null,"2691",8,"PHOSPHORUS PENTABROMIDE"]
[null,null,null,null,null,null,null,null,null,null,null,null,null,null,null,null,null,null,null,null,null,null,null,null,null,null,null,"2692",8,"BORON TRIBROMIDE"]
[null,null,null,null,null,null,null,null,null,null,null,null,null,null,null,null,null,null,null,null,null,null,null,null,null,null,null,"2693",8,"BISULPHITES, AQUEOUS SOLUTION, N.O.S."]
[null,null,null,null,null,null,null,null,null,null,null,null,null,null,null,null,null,null,null,null,null,null,null,null,null,null,null,"2698",8,"TETRAHYDROPHTHALIC ANHYDRIDES"]
[null,null,null,null,null,null,null,null,null,null,null,null,null,null,null,null,null,null,null,null,null,null,null,null,null,null,null,"2699",8,"TRIFLUOROACETIC ACID"]
[null,null,null,null,null,null,null,null,null,null,null,null,null,null,null,null,null,null,null,null,null,null,null,null,null,null,null,"2705",8,"1-PENTOL"]
[null,null,null,null,null,null,null,null,null,null,null,null,null,null,null,null,null,null,null,null,null,null,null,null,null,null,null,"2707",3,"DIMETHYLDIOXANES"]
[null,null,null,null,null,null,null,null,null,null,null,null,null,null,null,null,null,null,null,null,null,null,null,null,null,null,null,"2709",3,"BUTYLBENZENES"]
[null,null,null,null,null,null,null,null,null,null,null,null,null,null,null,null,null,null,null,null,null,null,null,null,null,null,null,"2710",3,"DIPROPYL KETONE"]
[null,null,null,null,null,null,null,null,null,null,null,null,null,null,null,null,null,null,null,null,null,null,null,null,null,null,null,"2713",6.1,"ACRIDINE"]
[null,null,null,null,null,null,null,null,null,null,null,null,null,null,null,null,null,null,null,null,null,null,null,null,null,null,null,"2714",4.0999999999999996,"ZINC RESINATE"]
[null,null,null,null,null,null,null,null,null,null,null,null,null,null,null,null,null,null,null,null,null,null,null,null,null,null,null,"2715",4.0999999999999996,"ALUMINIUM RESINATE"]
[null,null,null,null,null,null,null,null,null,null,null,null,null,null,null,null,null,null,null,null,null,null,null,null,null,null,null,"2716",6.1,"1,4-BUTYNEDIOL"]
[null,null,null,null,null,null,null,null,null,null,null,null,null,null,null,null,null,null,null,null,null,null,null,null,null,null,null,"2717",4.0999999999999996,"CAMPHOR"]
[null,null,null,null,null,null,null,null,null,null,null,null,null,null,null,null,null,null,null,null,null,null,null,null,null,null,null,"2719",5.0999999999999996,"BARIUM BROMATE"]
[null,null,null,null,null,null,null,null,null,null,null,null,null,null,null,null,null,null,null,null,null,null,null,null,null,null,null,"2720",5.0999999999999996,"CHROMIUM NITRATE"]
[null,null,null,null,null,null,null,null,null,null,null,null,null,null,null,null,null,null,null,null,null,null,null,null,null,null,null,"2721",5.0999999999999996,"COPPER CHLORATE"]
[null,null,null,null,null,null,null,null,null,null,null,null,null,null,null,null,null,null,null,null,null,null,null,null,null,null,null,"2722",5.0999999999999996,"LITHIUM NITRATE"]
[null,null,null,null,null,null,null,null,null,null,null,null,null,null,null,null,null,null,null,null,null,null,null,null,null,null,null,"2723",5.0999999999999996,"MAGNESIUM CHLORATE"]
[null,null,null,null,null,null,null,null,null,null,null,null,null,null,null,null,null,null,null,null,null,null,null,null,null,null,null,"2724",5.0999999999999996,"MANGANESE NITRATE"]
[null,null,null,null,null,null,null,null,null,null,null,null,null,null,null,null,null,null,null,null,null,null,null,null,null,null,null,"2725",5.0999999999999996,"NICKEL NITRATE"]
[null,null,null,null,null,null,null,null,null,null,null,null,null,null,null,null,null,null,null,null,null,null,null,null,null,null,null,"2726",5.0999999999999996,"NICKEL NITRITE"]
[null,null,null,null,null,null,null,null,null,null,null,null,null,null,null,null,null,null,null,null,null,null,null,null,null,null,null,"2727",6.1,"THALLIUM NITRATE"]
[null,null,null,null,null,null,null,null,null,null,null,null,null,null,null,null,null,null,null,null,null,null,null,null,null,null,null,"2728",5.0999999999999996,"ZIRCONIUM NITRATE"]
[null,null,null,null,null,null,null,null,null,null,null,null,null,null,null,null,null,null,null,null,null,null,null,null,null,null,null,"2729",6.1,"HEXACHLOROBENZENE"]
[null,null,null,null,null,null,null,null,null,null,null,null,null,null,null,null,null,null,null,null,null,null,null,null,null,null,null,"2730",6.1,"NITROANISOLES, LIQUID"]
[null,null,null,null,null,null,null,null,null,null,null,null,null,null,null,null,null,null,null,null,null,null,null,null,null,null,null,"2732",6.1,"NITROBROMOBENZENES, LIQUID"]
[null,null,null,null,null,null,null,null,null,null,null,null,null,null,null,null,null,null,null,null,null,null,null,null,null,null,null,"2733",3,"AMINES, FLAMMABLE, CORROSIVE, N.O.S."]
[null,null,null,null,null,null,null,null,null,null,null,null,null,null,null,null,null,null,null,null,null,null,null,null,null,null,null,"2734",8,"AMINES, LIQUID, CORROSIVE, FLAMMABLE, N.O.S."]
[null,null,null,null,null,null,null,null,null,null,null,null,null,null,null,null,null,null,null,null,null,null,null,null,null,null,null,"2735",8,"AMINES, LIQUID, CORROSIVE, N.O.S."]
[null,null,null,null,null,null,null,null,null,null,null,null,null,null,null,null,null,null,null,null,null,null,null,null,null,null,null,"2738",6.1,"N-BUTYLANILINE"]
[null,null,null,null,null,null,null,null,null,null,null,null,null,null,null,null,null,null,null,null,null,null,null,null,null,null,null,"2739",8,"BUTYRIC ANHYDRIDE"]
[null,null,null,null,null,null,null,null,null,null,null,null,null,null,null,null,null,null,null,null,null,null,null,null,null,null,null,"2740",6.1,"n-PROPYL CHLOROFORMATE"]
[null,null,null,null,null,null,null,null,null,null,null,null,null,null,null,null,null,null,null,null,null,null,null,null,null,null,null,"2741",5.0999999999999996,"BARIUM HYPOCHLORITE"]
[null,null,null,null,null,null,null,null,null,null,null,null,null,null,null,null,null,null,null,null,null,null,null,null,null,null,null,"2742",6.1,"CHLOROFORMATES, TOXIC, CORROSIVE, FLAMMABLE, N.O.S."]
[null,null,null,null,null,null,null,null,null,null,null,null,null,null,null,null,null,null,null,null,null,null,null,null,null,null,null,"2743",6.1,"n-BUTYL CHLOROFORMATE"]
[null,null,null,null,null,null,null,null,null,null,null,null,null,null,null,null,null,null,null,null,null,null,null,null,null,null,null,"2744",6.1,"CYCLOBUTYL CHLOROFORMATE"]
[null,null,null,null,null,null,null,null,null,null,null,null,null,null,null,null,null,null,null,null,null,null,null,null,null,null,null,"2745",6.1,"CHLOROMETHYL CHLOROFORMATE"]
[null,null,null,null,null,null,null,null,null,null,null,null,null,null,null,null,null,null,null,null,null,null,null,null,null,null,null,"2746",6.1,"PHENYL CHLOROFORMATE"]
[null,null,null,null,null,null,null,null,null,null,null,null,null,null,null,null,null,null,null,null,null,null,null,null,null,null,null,"2747",6.1,"tert-BUTYLCYCLOHEXYL CHLOROFORMATE"]
[null,null,null,null,null,null,null,null,null,null,null,null,null,null,null,null,null,null,null,null,null,null,null,null,null,null,null,"2748",6.1,"2-ETHYLHEXYL CHLOROFORMATE"]
[null,null,null,null,null,null,null,null,null,null,null,null,null,null,null,null,null,null,null,null,null,null,null,null,null,null,null,"2749",3,"TETRAMETHYLSILANE"]
[null,null,null,null,null,null,null,null,null,null,null,null,null,null,null,null,null,null,null,null,null,null,null,null,null,null,null,"2750",6.1,"1,3-DICHLOROPROPANOL-2"]
[null,null,null,null,null,null,null,null,null,null,null,null,null,null,null,null,null,null,null,null,null,null,null,null,null,null,null,"2751",8,"DIETHYLTHIOPHOSPHORYL CHLORIDE"]
[null,null,null,null,null,null,null,null,null,null,null,null,null,null,null,null,null,null,null,null,null,null,null,null,null,null,null,"2752",3,"1,2-EPOXY-3-ETHOXYPROPANE"]
[null,null,null,null,null,null,null,null,null,null,null,null,null,null,null,null,null,null,null,null,null,null,null,null,null,null,null,"2753",6.1,"N-ETHYLBENZYLTOLUIDINES, LIQUID"]
[null,null,null,null,null,null,null,null,null,null,null,null,null,null,null,null,null,null,null,null,null,null,null,null,null,null,null,"2754",6.1,"N-ETHYLTOLUIDINES"]
[null,null,null,null,null,null,null,null,null,null,null,null,null,null,null,null,null,null,null,null,null,null,null,null,null,null,null,"2757",6.1,"CARBAMATE PESTICIDE, SOLID, TOXIC"]
[null,null,null,null,null,null,null,null,null,null,null,null,null,null,null,null,null,null,null,null,null,null,null,null,null,null,null,"2758",3,"CARBAMATE PESTICIDE, LIQUID, FLAMMABLE, TOXIC"]
[null,null,null,null,null,null,null,null,null,null,null,null,null,null,null,null,null,null,null,null,null,null,null,null,null,null,null,"2759",6.1,"ARSENICAL PESTICIDE, SOLID, TOXIC"]
[null,null,null,null,null,null,null,null,null,null,null,null,null,null,null,null,null,null,null,null,null,null,null,null,null,null,null,"2760",3,"ARSENICAL PESTICIDE, LIQUID, FLAMMABLE, TOXIC"]
[null,null,null,null,null,null,null,null,null,null,null,null,null,null,null,null,null,null,null,null,null,null,null,null,null,null,null,"2761",6.1,"ORGANOCHLORINE PESTICIDE, SOLID, TOXIC"]
[null,null,null,null,null,null,null,null,null,null,null,null,null,null,null,null,null,null,null,null,null,null,null,null,null,null,null,"2762",3,"ORGANOCHLORINE PESTICIDE, LIQUID, FLAMMABLE, TOXIC"]
[null,null,null,null,null,null,null,null,null,null,null,null,null,null,null,null,null,null,null,null,null,null,null,null,null,null,null,"2763",6.1,"TRIAZINE PESTICIDE, SOLID, TOXIC"]
[null,null,null,null,null,null,null,null,null,null,null,null,null,null,null,null,null,null,null,null,null,null,null,null,null,null,null,"2764",3,"TRIAZINE PESTICIDE, LIQUID, FLAMMABLE, TOXIC"]
[null,null,null,null,null,null,null,null,null,null,null,null,null,null,null,null,null,null,null,null,null,null,null,null,null,null,null,"2771",6.1,"THIOCARBAMATE PESTICIDE, SOLID, TOXIC"]
[null,null,null,null,null,null,null,null,null,null,null,null,null,null,null,null,null,null,null,null,null,null,null,null,null,null,null,"2772",3,"THIOCARBAMATE PESTICIDE, LIQUID, FLAMMABLE, TOXIC"]
[null,null,null,null,null,null,null,null,null,null,null,null,null,null,null,null,null,null,null,null,null,null,null,null,null,null,null,"2775",6.1,"COPPER BASED PESTICIDE, SOLID, TOXIC"]
[null,null,null,null,null,null,null,null,null,null,null,null,null,null,null,null,null,null,null,null,null,null,null,null,null,null,null,"2776",3,"COPPER BASED PESTICIDE, LIQUID, FLAMMABLE, TOXIC"]
[null,null,null,null,null,null,null,null,null,null,null,null,null,null,null,null,null,null,null,null,null,null,null,null,null,null,null,"2777",6.1,"MERCURY BASED PESTICIDE, SOLID, TOXIC"]
[null,null,null,null,null,null,null,null,null,null,null,null,null,null,null,null,null,null,null,null,null,null,null,null,null,null,null,"2778",3,"MERCURY BASED PESTICIDE, LIQUID, FLAMMABLE, TOXIC"]
[null,null,null,null,null,null,null,null,null,null,null,null,null,null,null,null,null,null,null,null,null,null,null,null,null,null,null,"2779",6.1,"SUBSTITUTED NITROPHENOL PESTICIDE, SOLID, TOXIC"]
[null,null,null,null,null,null,null,null,null,null,null,null,null,null,null,null,null,null,null,null,null,null,null,null,null,null,null,"2780",3,"SUBSTITUTED NITROPHENOL PESTICIDE, LIQUID, FLAMMABLE, TOXIC"]
[null,null,null,null,null,null,null,null,null,null,null,null,null,null,null,null,null,null,null,null,null,null,null,null,null,null,null,"2781",6.1,"BIPYRIDILIUM PESTICIDE, SOLID, TOXIC"]
[null,null,null,null,null,null,null,null,null,null,null,null,null,null,null,null,null,null,null,null,null,null,null,null,null,null,null,"2782",3,"BIPYRIDILIUM PESTICIDE, LIQUID, FLAMMABLE, TOXIC"]
[null,null,null,null,null,null,null,null,null,null,null,null,null,null,null,null,null,null,null,null,null,null,null,null,null,null,null,"2783",6.1,"ORGANOPHOSPHORUS PESTICIDE, SOLID, TOXIC"]
[null,null,null,null,null,null,null,null,null,null,null,null,null,null,null,null,null,null,null,null,null,null,null,null,null,null,null,"2784",3,"ORGANOPHOSPHORUS PESTICIDE, LIQUID, FLAMMABLE, TOXIC"]
[null,null,null,null,null,null,null,null,null,null,null,null,null,null,null,null,null,null,null,null,null,null,null,null,null,null,null,"2785",6.1,"4-THIAPENTANAL"]
[null,null,null,null,null,null,null,null,null,null,null,null,null,null,null,null,null,null,null,null,null,null,null,null,null,null,null,"2786",6.1,"ORGANOTIN PESTICIDE, SOLID, TOXIC"]
[null,null,null,null,null,null,null,null,null,null,null,null,null,null,null,null,null,null,null,null,null,null,null,null,null,null,null,"2787",3,"ORGANOTIN PESTICIDE, LIQUID, FLAMMABLE, TOXIC"]
[null,null,null,null,null,null,null,null,null,null,null,null,null,null,null,null,null,null,null,null,null,null,null,null,null,null,null,"2788",6.1,"ORGANOTIN COMPOUND, LIQUID, N.O.S."]
[null,null,null,null,null,null,null,null,null,null,null,null,null,null,null,null,null,null,null,null,null,null,null,null,null,null,null,"2789",8,"ACETIC ACID, GLACIAL"]
[null,null,null,null,null,null,null,null,null,null,null,null,null,null,null,null,null,null,null,null,null,null,null,null,null,null,null,"2790",8,"ACETIC ACID SOLUTION"]
[null,null,null,null,null,null,null,null,null,null,null,null,null,null,null,null,null,null,null,null,null,null,null,null,null,null,null,"2793",4.2,"FERROUS METAL BORINGS"]
[null,null,null,null,null,null,null,null,null,null,null,null,null,null,null,null,null,null,null,null,null,null,null,null,null,null,null,"2794",8,"BATTERIES, WET, FILLED WITH ACID"]
[null,null,null,null,null,null,null,null,null,null,null,null,null,null,null,null,null,null,null,null,null,null,null,null,null,null,null,"2795",8,"BATTERIES, WET, FILLED WITH ALKALI"]
[null,null,null,null,null,null,null,null,null,null,null,null,null,null,null,null,null,null,null,null,null,null,null,null,null,null,null,"2796",8,"SULPHURIC ACID"]
[null,null,null,null,null,null,null,null,null,null,null,null,null,null,null,null,null,null,null,null,null,null,null,null,null,null,null,"2797",8,"BATTERY FLUID, ALKALI"]
[null,null,null,null,null,null,null,null,null,null,null,null,null,null,null,null,null,null,null,null,null,null,null,null,null,null,null,"2798",8,"PHENYLPHOSPHORUS DICHLORIDE"]
[null,null,null,null,null,null,null,null,null,null,null,null,null,null,null,null,null,null,null,null,null,null,null,null,null,null,null,"2799",8,"PHENYLPHOSPHORUS THIODICHLORIDE"]
[null,null,null,null,null,null,null,null,null,null,null,null,null,null,null,null,null,null,null,null,null,null,null,null,null,null,null,"2800",8,"BATTERIES, WET, NON-SPILLABLE"]
[null,null,null,null,null,null,null,null,null,null,null,null,null,null,null,null,null,null,null,null,null,null,null,null,null,null,null,"2801",8,"DYE, LIQUID, CORROSIVE, N.O.S."]
[null,null,null,null,null,null,null,null,null,null,null,null,null,null,null,null,null,null,null,null,null,null,null,null,null,null,null,"2802",8,"COPPER CHLORIDE"]
[null,null,null,null,null,null,null,null,null,null,null,null,null,null,null,null,null,null,null,null,null,null,null,null,null,null,null,"2803",8,"GALLIUM"]
[null,null,null,null,null,null,null,null,null,null,null,null,null,null,null,null,null,null,null,null,null,null,null,null,null,null,null,"2805",4.3,"LITHIUM HYDRIDE, FUSED SOLID"]
[null,null,null,null,null,null,null,null,null,null,null,null,null,null,null,null,null,null,null,null,null,null,null,null,null,null,null,"2806",4.3,"LITHIUM NITRIDE"]
[null,null,null,null,null,null,null,null,null,null,null,null,null,null,null,null,null,null,null,null,null,null,null,null,null,null,null,"2807",9,"MAGNETIZED MATERIAL"]
[null,null,null,null,null,null,null,null,null,null,null,null,null,null,null,null,null,null,null,null,null,null,null,null,null,null,null,"2809",8,"MERCURY"]
[null,null,null,null,null,null,null,null,null,null,null,null,null,null,null,null,null,null,null,null,null,null,null,null,null,null,null,"2810",6.1,"TOXIC LIQUID, ORGANIC, N.O.S."]
[null,null,null,null,null,null,null,null,null,null,null,null,null,null,null,null,null,null,null,null,null,null,null,null,null,null,null,"2811",6.1,"TOXIC SOLID, ORGANIC, N.O.S."]
[null,null,null,null,null,null,null,null,null,null,null,null,null,null,null,null,null,null,null,null,null,null,null,null,null,null,null,"2812",8,"SODIUM ALUMINATE, SOLID"]
[null,null,null,null,null,null,null,null,null,null,null,null,null,null,null,null,null,null,null,null,null,null,null,null,null,null,null,"2813",4.3,"WATER-REACTIVE SOLID, N.O.S."]
[null,null,null,null,null,null,null,null,null,null,null,null,null,null,null,null,null,null,null,null,null,null,null,null,null,null,null,"2814",6.2,"INFECTIOUS SUBSTANCE, AFFECTING HUMANS"]
[null,null,null,null,null,null,null,null,null,null,null,null,null,null,null,null,null,null,null,null,null,null,null,null,null,null,null,"2815",8,"N-AMINOETHYLPIPERAZINE"]
[null,null,null,null,null,null,null,null,null,null,null,null,null,null,null,null,null,null,null,null,null,null,null,null,null,null,null,"2817",8,"AMMONIUM HYDROGENDIFLUORIDE SOLUTION"]
[null,null,null,null,null,null,null,null,null,null,null,null,null,null,null,null,null,null,null,null,null,null,null,null,null,null,null,"2818",8,"AMMONIUM POLYSULPHIDE SOLUTION"]
[null,null,null,null,null,null,null,null,null,null,null,null,null,null,null,null,null,null,null,null,null,null,null,null,null,null,null,"2819",8,"AMYL ACID PHOSPHATE"]
[null,null,null,null,null,null,null,null,null,null,null,null,null,null,null,null,null,null,null,null,null,null,null,null,null,null,null,"2820",8,"BUTYRIC ACID"]
[null,null,null,null,null,null,null,null,null,null,null,null,null,null,null,null,null,null,null,null,null,null,null,null,null,null,null,"2821",6.1,"PHENOL SOLUTION"]
[null,null,null,null,null,null,null,null,null,null,null,null,null,null,null,null,null,null,null,null,null,null,null,null,null,null,null,"2822",6.1,"2-CHLOROPYRIDINE"]
[null,null,null,null,null,null,null,null,null,null,null,null,null,null,null,null,null,null,null,null,null,null,null,null,null,null,null,"2823",8,"CROTONIC ACID, SOLID"]
[null,null,null,null,null,null,null,null,null,null,null,null,null,null,null,null,null,null,null,null,null,null,null,null,null,null,null,"2826",8,"ETHYL CHLOROTHIOFORMATE"]
[null,null,null,null,null,null,null,null,null,null,null,null,null,null,null,null,null,null,null,null,null,null,null,null,null,null,null,"2829",8,"CAPROIC ACID"]
[null,null,null,null,null,null,null,null,null,null,null,null,null,null,null,null,null,null,null,null,null,null,null,null,null,null,null,"2830",4.3,"LITHIUM FERROSILICON"]
[null,null,null,null,null,null,null,null,null,null,null,null,null,null,null,null,null,null,null,null,null,null,null,null,null,null,null,"2831",6.1,"1,1,1-TRICHLOROETHANE"]
[null,null,null,null,null,null,null,null,null,null,null,null,null,null,null,null,null,null,null,null,null,null,null,null,null,null,null,"2834",8,"PHOSPHOROUS ACID"]
[null,null,null,null,null,null,null,null,null,null,null,null,null,null,null,null,null,null,null,null,null,null,null,null,null,null,null,"2835",4.3,"SODIUM ALUMINIUM HYDRIDE"]
[null,null,null,null,null,null,null,null,null,null,null,null,null,null,null,null,null,null,null,null,null,null,null,null,null,null,null,"2837",8,"BISULPHATES, AQUEOUS SOLUTION"]
[null,null,null,null,null,null,null,null,null,null,null,null,null,null,null,null,null,null,null,null,null,null,null,null,null,null,null,"2838",3,"VINYL BUTYRATE, STABILIZED"]
[null,null,null,null,null,null,null,null,null,null,null,null,null,null,null,null,null,null,null,null,null,null,null,null,null,null,null,"2839",6.1,"ALDOL"]
[null,null,null,null,null,null,null,null,null,null,null,null,null,null,null,null,null,null,null,null,null,null,null,null,null,null,null,"2840",3,"BUTYRALDOXIME"]
[null,null,null,null,null,null,null,null,null,null,null,null,null,null,null,null,null,null,null,null,null,null,null,null,null,null,null,"2841",3,"DI-n-AMYLAMINE"]
[null,null,null,null,null,null,null,null,null,null,null,null,null,null,null,null,null,null,null,null,null,null,null,null,null,null,null,"2842",3,"NITROETHANE"]
[null,null,null,null,null,null,null,null,null,null,null,null,null,null,null,null,null,null,null,null,null,null,null,null,null,null,null,"2844",4.3,"CALCIUM MANGANESE SILICON"]
[null,null,null,null,null,null,null,null,null,null,null,null,null,null,null,null,null,null,null,null,null,null,null,null,null,null,null,"2845",4.2,"PYROPHORIC LIQUID, ORGANIC, N.O.S."]
[null,null,null,null,null,null,null,null,null,null,null,null,null,null,null,null,null,null,null,null,null,null,null,null,null,null,null,"2846",4.2,"PYROPHORIC SOLID, ORGANIC, N.O.S."]
[null,null,null,null,null,null,null,null,null,null,null,null,null,null,null,null,null,null,null,null,null,null,null,null,null,null,null,"2849",6.1,"3-CHLOROPROPANOL-1"]
[null,null,null,null,null,null,null,null,null,null,null,null,null,null,null,null,null,null,null,null,null,null,null,null,null,null,null,"2850",3,"PROPYLENE TETRAMER"]
[null,null,null,null,null,null,null,null,null,null,null,null,null,null,null,null,null,null,null,null,null,null,null,null,null,null,null,"2851",8,"BORON TRIFLUORIDE DIHYDRATE"]
[null,null,null,null,null,null,null,null,null,null,null,null,null,null,null,null,null,null,null,null,null,null,null,null,null,null,null,"2852",4.0999999999999996,"DIPICRYL SULPHIDE, WETTED"]
[null,null,null,null,null,null,null,null,null,null,null,null,null,null,null,null,null,null,null,null,null,null,null,null,null,null,null,"2853",6.1,"MAGNESIUM FLUOROSILICATE"]
[null,null,null,null,null,null,null,null,null,null,null,null,null,null,null,null,null,null,null,null,null,null,null,null,null,null,null,"2854",6.1,"AMMONIUM FLUOROSILICATE"]
[null,null,null,null,null,null,null,null,null,null,null,null,null,null,null,null,null,null,null,null,null,null,null,null,null,null,null,"2855",6.1,"ZINC FLUOROSILICATE"]
[null,null,null,null,null,null,null,null,null,null,null,null,null,null,null,null,null,null,null,null,null,null,null,null,null,null,null,"2856",6.1,"FLUOROSILICATES, N.O.S."]
[null,null,null,null,null,null,null,null,null,null,null,null,null,null,null,null,null,null,null,null,null,null,null,null,null,null,null,"2857",2.2000000000000002,"REFRIGERATING MACHINES"]
[null,null,null,null,null,null,null,null,null,null,null,null,null,null,null,null,null,null,null,null,null,null,null,null,null,null,null,"2858",4.0999999999999996,"ZIRCONIUM, DRY"]
[null,null,null,null,null,null,null,null,null,null,null,null,null,null,null,null,null,null,null,null,null,null,null,null,null,null,null,"2859",6.1,"AMMONIUM METAVANADATE"]
[null,null,null,null,null,null,null,null,null,null,null,null,null,null,null,null,null,null,null,null,null,null,null,null,null,null,null,"2861",6.1,"AMMONIUM POLYVANADATE"]
[null,null,null,null,null,null,null,null,null,null,null,null,null,null,null,null,null,null,null,null,null,null,null,null,null,null,null,"2862",6.1,"VANADIUM PENTOXIDE"]
[null,null,null,null,null,null,null,null,null,null,null,null,null,null,null,null,null,null,null,null,null,null,null,null,null,null,null,"2863",6.1,"SODIUM AMMONIUM VANADATE"]
[null,null,null,null,null,null,null,null,null,null,null,null,null,null,null,null,null,null,null,null,null,null,null,null,null,null,null,"2864",6.1,"POTASSIUM METAVANADATE"]
[null,null,null,null,null,null,null,null,null,null,null,null,null,null,null,null,null,null,null,null,null,null,null,null,null,null,null,"2865",8,"HYDROXYLAMINE SULPHATE"]
[null,null,null,null,null,null,null,null,null,null,null,null,null,null,null,null,null,null,null,null,null,null,null,null,null,null,null,"2869",8,"TITANIUM TRICHLORIDE MIXTURE"]
[null,null,null,null,null,null,null,null,null,null,null,null,null,null,null,null,null,null,null,null,null,null,null,null,null,null,null,"2870",4.2,"ALUMINIUM BOROHYDRIDE"]
[null,null,null,null,null,null,null,null,null,null,null,null,null,null,null,null,null,null,null,null,null,null,null,null,null,null,null,"2871",6.1,"ANTIMONY POWDER"]
[null,null,null,null,null,null,null,null,null,null,null,null,null,null,null,null,null,null,null,null,null,null,null,null,null,null,null,"2872",6.1,"DIBROMOCHLOROPROPANES"]
[null,null,null,null,null,null,null,null,null,null,null,null,null,null,null,null,null,null,null,null,null,null,null,null,null,null,null,"2873",6.1,"DIBUTYLAMINOETHANOL"]
[null,null,null,null,null,null,null,null,null,null,null,null,null,null,null,null,null,null,null,null,null,null,null,null,null,null,null,"2874",6.1,"FURFURYL ALCOHOL"]
[null,null,null,null,null,null,null,null,null,null,null,null,null,null,null,null,null,null,null,null,null,null,null,null,null,null,null,"2875",6.1,"HEXACHLOROPHENE"]
[null,null,null,null,null,null,null,null,null,null,null,null,null,null,null,null,null,null,null,null,null,null,null,null,null,null,null,"2876",6.1,"RESORCINOL"]
[null,null,null,null,null,null,null,null,null,null,null,null,null,null,null,null,null,null,null,null,null,null,null,null,null,null,null,"2878",4.0999999999999996,"TITANIUM SPONGE GRANULES"]
[null,null,null,null,null,null,null,null,null,null,null,null,null,null,null,null,null,null,null,null,null,null,null,null,null,null,null,"2879",8,"SELENIUM OXYCHLORIDE"]
[null,null,null,null,null,null,null,null,null,null,null,null,null,null,null,null,null,null,null,null,null,null,null,null,null,null,null,"2880",5.0999999999999996,"CALCIUM HYPOCHLORITE, HYDRATED"]
[null,null,null,null,null,null,null,null,null,null,null,null,null,null,null,null,null,null,null,null,null,null,null,null,null,null,null,"2881",4.2,"METAL CATALYST, DRY"]
[null,null,null,null,null,null,null,null,null,null,null,null,null,null,null,null,null,null,null,null,null,null,null,null,null,null,null,"2900",6.2,"INFECTIOUS SUBSTANCE, AFFECTING ANIMALS"]
[null,null,null,null,null,null,null,null,null,null,null,null,null,null,null,null,null,null,null,null,null,null,null,null,null,null,null,"2901",2.2999999999999998,"BROMINE CHLORIDE"]
[null,null,null,null,null,null,null,null,null,null,null,null,null,null,null,null,null,null,null,null,null,null,null,null,null,null,null,"2902",6.1,"PESTICIDE, LIQUID, TOXIC, N.O.S."]
[null,null,null,null,null,null,null,null,null,null,null,null,null,null,null,null,null,null,null,null,null,null,null,null,null,null,null,"2903",6.1,"PESTICIDE, LIQUID, TOXIC, FLAMMABLE, N.O.S."]
[null,null,null,null,null,null,null,null,null,null,null,null,null,null,null,null,null,null,null,null,null,null,null,null,null,null,null,"2904",8,"CHLOROPHENOLATES, LIQUID"]
[null,null,null,null,null,null,null,null,null,null,null,null,null,null,null,null,null,null,null,null,null,null,null,null,null,null,null,"2905",8,"CHLOROPHENOLATES, SOLID"]
[null,null,null,null,null,null,null,null,null,null,null,null,null,null,null,null,null,null,null,null,null,null,null,null,null,null,null,"2907",4.0999999999999996,"ISOSORBIDE DINITRATE MIXTURE"]
[null,null,null,null,null,null,null,null,null,null,null,null,null,null,null,null,null,null,null,null,null,null,null,null,null,null,null,"2908",7,"RADIOACTIVE MATERIAL, EXCEPTED PACKAGE - EMPTY PACKAGING"]
[null,null,null,null,null,null,null,null,null,null,null,null,null,null,null,null,null,null,null,null,null,null,null,null,null,null,null,"2909",7,"RADIOACTIVE MATERIAL, EXCEPTED PACKAGE - ARTICLES MANUFACTURED FROM NATURAL URANIUM"]
[null,null,null,null,null,null,null,null,null,null,null,null,null,null,null,null,null,null,null,null,null,null,null,null,null,null,null,"2910",7,"RADIOACTIVE MATERIAL, EXCEPTED PACKAGE - LIMITED QUANTITY OF MATERIAL"]
[null,null,null,null,null,null,null,null,null,null,null,null,null,null,null,null,null,null,null,null,null,null,null,null,null,null,null,"2911",7,"RADIOACTIVE MATERIAL, EXCEPTED PACKAGE - INSTRUMENTS"]
[null,null,null,null,null,null,null,null,null,null,null,null,null,null,null,null,null,null,null,null,null,null,null,null,null,null,null,"2912",7,"RADIOACTIVE MATERIAL, LOW SPECIFIC ACTIVITY (LSA-I)"]
[null,null,null,null,null,null,null,null,null,null,null,null,null,null,null,null,null,null,null,null,null,null,null,null,null,null,null,"2913",7,"RADIOACTIVE MATERIAL, SURFACE CONTAMINATED OBJECTS (SCO-I)"]
[null,null,null,null,null,null,null,null,null,null,null,null,null,null,null,null,null,null,null,null,null,null,null,null,null,null,null,"2915",7,"RADIOACTIVE MATERIAL, TYPE A PACKAGE"]
[null,null,null,null,null,null,null,null,null,null,null,null,null,null,null,null,null,null,null,null,null,null,null,null,null,null,null,"2916",7,"RADIOACTIVE MATERIAL, TYPE B(U) PACKAGE"]
[null,null,null,null,null,null,null,null,null,null,null,null,null,null,null,null,null,null,null,null,null,null,null,null,null,null,null,"2917",7,"RADIOACTIVE MATERIAL, TYPE B(M) PACKAGE"]
[null,null,null,null,null,null,null,null,null,null,null,null,null,null,null,null,null,null,null,null,null,null,null,null,null,null,null,"2919",7,"RADIOACTIVE MATERIAL TRANSPORTED UNDER SPECIAL ARRANGEMENT"]
[null,null,null,null,null,null,null,null,null,null,null,null,null,null,null,null,null,null,null,null,null,null,null,null,null,null,null,"2920",8,"CORROSIVE LIQUID, FLAMMABLE, N.O.S."]
[null,null,null,null,null,null,null,null,null,null,null,null,null,null,null,null,null,null,null,null,null,null,null,null,null,null,null,"2921",8,"CORROSIVE SOLID, FLAMMABLE, N.O.S."]
[null,null,null,null,null,null,null,null,null,null,null,null,null,null,null,null,null,null,null,null,null,null,null,null,null,null,null,"2922",8,"CORROSIVE LIQUID, TOXIC, N.O.S."]
[null,null,null,null,null,null,null,null,null,null,null,null,null,null,null,null,null,null,null,null,null,null,null,null,null,null,null,"2923",8,"CORROSIVE SOLID, TOXIC, N.O.S."]
[null,null,null,null,null,null,null,null,null,null,null,null,null,null,null,null,null,null,null,null,null,null,null,null,null,null,null,"2924",3,"FLAMMABLE LIQUID, CORROSIVE, N.O.S."]
[null,null,null,null,null,null,null,null,null,null,null,null,null,null,null,null,null,null,null,null,null,null,null,null,null,null,null,"2925",4.0999999999999996,"FLAMMABLE SOLID, CORROSIVE, ORGANIC, N.O.S."]
[null,null,null,null,null,null,null,null,null,null,null,null,null,null,null,null,null,null,null,null,null,null,null,null,null,null,null,"2926",4.0999999999999996,"FLAMMABLE SOLID, TOXIC, ORGANIC, N.O.S."]
[null,null,null,null,null,null,null,null,null,null,null,null,null,null,null,null,null,null,null,null,null,null,null,null,null,null,null,"2927",6.1,"TOXIC LIQUID, CORROSIVE, ORGANIC, N.O.S."]
[null,null,null,null,null,null,null,null,null,null,null,null,null,null,null,null,null,null,null,null,null,null,null,null,null,null,null,"2928",6.1,"TOXIC SOLID, CORROSIVE, ORGANIC, N.O.S."]
[null,null,null,null,null,null,null,null,null,null,null,null,null,null,null,null,null,null,null,null,null,null,null,null,null,null,null,"2929",6.1,"TOXIC LIQUID, FLAMMABLE, ORGANIC, N.O.S."]
[null,null,null,null,null,null,null,null,null,null,null,null,null,null,null,null,null,null,null,null,null,null,null,null,null,null,null,"2930",6.1,"TOXIC SOLID, FLAMMABLE, ORGANIC, N.O.S."]
[null,null,null,null,null,null,null,null,null,null,null,null,null,null,null,null,null,null,null,null,null,null,null,null,null,null,null,"2931",6.1,"VANADYL SULPHATE"]
[null,null,null,null,null,null,null,null,null,null,null,null,null,null,null,null,null,null,null,null,null,null,null,null,null,null,null,"2933",3,"METHYL 2-CHLOROPROPIONATE"]
[null,null,null,null,null,null,null,null,null,null,null,null,null,null,null,null,null,null,null,null,null,null,null,null,null,null,null,"2934",3,"ISOPROPYL 2-CHLOROPROPIONATE"]
[null,null,null,null,null,null,null,null,null,null,null,null,null,null,null,null,null,null,null,null,null,null,null,null,null,null,null,"2935",3,"ETHYL 2-CHLOROPROPIONATE"]
[null,null,null,null,null,null,null,null,null,null,null,null,null,null,null,null,null,null,null,null,null,null,null,null,null,null,null,"2936",6.1,"THIOLACTIC ACID"]
[null,null,null,null,null,null,null,null,null,null,null,null,null,null,null,null,null,null,null,null,null,null,null,null,null,null,null,"2937",6.1,"alpha-METHYLBENZYL ALCOHOL, LIQUID"]
[null,null,null,null,null,null,null,null,null,null,null,null,null,null,null,null,null,null,null,null,null,null,null,null,null,null,null,"2940",4.2,"9-PHOSPHABICYCLONONANES"]
[null,null,null,null,null,null,null,null,null,null,null,null,null,null,null,null,null,null,null,null,null,null,null,null,null,null,null,"2941",6.1,"FLUOROANILINES"]
[null,null,null,null,null,null,null,null,null,null,null,null,null,null,null,null,null,null,null,null,null,null,null,null,null,null,null,"2942",6.1,"2-TRIFLUOROMETHYLANILINE"]
[null,null,null,null,null,null,null,null,null,null,null,null,null,null,null,null,null,null,null,null,null,null,null,null,null,null,null,"2943",3,"TETRAHYDROFURFURYLAMINE"]
[null,null,null,null,null,null,null,null,null,null,null,null,null,null,null,null,null,null,null,null,null,null,null,null,null,null,null,"2945",3,"N-METHYLBUTYLAMINE"]
[null,null,null,null,null,null,null,null,null,null,null,null,null,null,null,null,null,null,null,null,null,null,null,null,null,null,null,"2946",6.1,"2-AMINO-5-DIETHYLAMINOPENTANE"]
[null,null,null,null,null,null,null,null,null,null,null,null,null,null,null,null,null,null,null,null,null,null,null,null,null,null,null,"2947",3,"ISOPROPYL CHLOROACETATE"]
[null,null,null,null,null,null,null,null,null,null,null,null,null,null,null,null,null,null,null,null,null,null,null,null,null,null,null,"2948",6.1,"3-TRIFLUOROMETHYLANILINE"]
[null,null,null,null,null,null,null,null,null,null,null,null,null,null,null,null,null,null,null,null,null,null,null,null,null,null,null,"2949",8,"SODIUM HYDROSULPHIDE, HYDRATED"]
[null,null,null,null,null,null,null,null,null,null,null,null,null,null,null,null,null,null,null,null,null,null,null,null,null,null,null,"2950",4.3,"MAGNESIUM GRANULES, COATED"]
[null,null,null,null,null,null,null,null,null,null,null,null,null,null,null,null,null,null,null,null,null,null,null,null,null,null,null,"2956",4.0999999999999996,"5-tert-BUTYL-2,4,6-TRINITRO-m-XYLENE"]
[null,null,null,null,null,null,null,null,null,null,null,null,null,null,null,null,null,null,null,null,null,null,null,null,null,null,null,"2965",4.3,"BORON TRIFLUORIDE DIMETHYL ETHERATE"]
[null,null,null,null,null,null,null,null,null,null,null,null,null,null,null,null,null,null,null,null,null,null,null,null,null,null,null,"2966",6.1,"THIOGLYCOL"]
[null,null,null,null,null,null,null,null,null,null,null,null,null,null,null,null,null,null,null,null,null,null,null,null,null,null,null,"2967",8,"SULPHAMIC ACID"]
[null,null,null,null,null,null,null,null,null,null,null,null,null,null,null,null,null,null,null,null,null,null,null,null,null,null,null,"2968",4.3,"MANEB, STABILIZED"]
[null,null,null,null,null,null,null,null,null,null,null,null,null,null,null,null,null,null,null,null,null,null,null,null,null,null,null,"2969",9,"CASTOR BEANS"]
[null,null,null,null,null,null,null,null,null,null,null,null,null,null,null,null,null,null,null,null,null,null,null,null,null,null,null,"2977",7,"RADIOACTIVE MATERIAL, URANIUM HEXAFLUORIDE, FISSILE"]
[null,null,null,null,null,null,null,null,null,null,null,null,null,null,null,null,null,null,null,null,null,null,null,null,null,null,null,"2978",7,"RADIOACTIVE MATERIAL, URANIUM HEXAFLUORIDE"]
[null,null,null,null,null,null,null,null,null,null,null,null,null,null,null,null,null,null,null,null,null,null,null,null,null,null,null,"2983",3,"ETHYLENE OXIDE AND PROPYLENE OXIDE MIXTURE"]
[null,null,null,null,null,null,null,null,null,null,null,null,null,null,null,null,null,null,null,null,null,null,null,null,null,null,null,"2984",5.0999999999999996,"HYDROGEN PEROXIDE, AQUEOUS SOLUTION"]
[null,null,null,null,null,null,null,null,null,null,null,null,null,null,null,null,null,null,null,null,null,null,null,null,null,null,null,"2985",3,"CHLOROSILANES, FLAMMABLE, CORROSIVE, N.O.S."]
[null,null,null,null,null,null,null,null,null,null,null,null,null,null,null,null,null,null,null,null,null,null,null,null,null,null,null,"2986",8,"CHLOROSILANES, CORROSIVE, FLAMMABLE, N.O.S."]
[null,null,null,null,null,null,null,null,null,null,null,null,null,null,null,null,null,null,null,null,null,null,null,null,null,null,null,"2987",8,"CHLOROSILANES, CORROSIVE, N.O.S."]
[null,null,null,null,null,null,null,null,null,null,null,null,null,null,null,null,null,null,null,null,null,null,null,null,null,null,null,"2988",4.3,"CHLOROSILANES, WATER-REACTIVE, FLAMMABLE, CORROSIVE, N.O.S."]
[null,null,null,null,null,null,null,null,null,null,null,null,null,null,null,null,null,null,null,null,null,null,null,null,null,null,null,"2989",4.0999999999999996,"LEAD PHOSPHITE, DIBASIC"]
[null,null,null,null,null,null,null,null,null,null,null,null,null,null,null,null,null,null,null,null,null,null,null,null,null,null,null,"2990",9,"LIFE-SAVING APPLIANCES, SELF-INFLATING"]
[null,null,null,null,null,null,null,null,null,null,null,null,null,null,null,null,null,null,null,null,null,null,null,null,null,null,null,"2991",6.1,"CARBAMATE PESTICIDE, LIQUID, TOXIC, FLAMMABLE"]
[null,null,null,null,null,null,null,null,null,null,null,null,null,null,null,null,null,null,null,null,null,null,null,null,null,null,null,"2992",6.1,"CARBAMATE PESTICIDE, LIQUID, TOXIC"]
[null,null,null,null,null,null,null,null,null,null,null,null,null,null,null,null,null,null,null,null,null,null,null,null,null,null,null,"2993",6.1,"ARSENICAL PESTICIDE, LIQUID, TOXIC, FLAMMABLE"]
[null,null,null,null,null,null,null,null,null,null,null,null,null,null,null,null,null,null,null,null,null,null,null,null,null,null,null,"2994",6.1,"ARSENICAL PESTICIDE, LIQUID, TOXIC"]
[null,null,null,null,null,null,null,null,null,null,null,null,null,null,null,null,null,null,null,null,null,null,null,null,null,null,null,"2995",6.1,"ORGANOCHLORINE PESTICIDE, LIQUID, TOXIC, FLAMMABLE"]
[null,null,null,null,null,null,null,null,null,null,null,null,null,null,null,null,null,null,null,null,null,null,null,null,null,null,null,"2996",6.1,"ORGANOCHLORINE PESTICIDE, LIQUID, TOXIC"]
[null,null,null,null,null,null,null,null,null,null,null,null,null,null,null,null,null,null,null,null,null,null,null,null,null,null,null,"2997",6.1,"TRIAZINE PESTICIDE, LIQUID, TOXIC, FLAMMABLE"]
[null,null,null,null,null,null,null,null,null,null,null,null,null,null,null,null,null,null,null,null,null,null,null,null,null,null,null,"2998",6.1,"TRIAZINE PESTICIDE, LIQUID, TOXIC"]
[null,null,null,null,null,null,null,null,null,null,null,null,null,null,null,null,null,null,null,null,null,null,null,null,null,null,null,"3005",6.1,"THIOCARBAMATE PESTICIDE, LIQUID, TOXIC, FLAMMABLE"]
[null,null,null,null,null,null,null,null,null,null,null,null,null,null,null,null,null,null,null,null,null,null,null,null,null,null,null,"3006",6.1,"THIOCARBAMATE PESTICIDE, LIQUID, TOXIC"]
[null,null,null,null,null,null,null,null,null,null,null,null,null,null,null,null,null,null,null,null,null,null,null,null,null,null,null,"3009",6.1,"COPPER BASED PESTICIDE, LIQUID, TOXIC, FLAMMABLE"]
[null,null,null,null,null,null,null,null,null,null,null,null,null,null,null,null,null,null,null,null,null,null,null,null,null,null,null,"3010",6.1,"COPPER BASED PESTICIDE, LIQUID, TOXIC"]
[null,null,null,null,null,null,null,null,null,null,null,null,null,null,null,null,null,null,null,null,null,null,null,null,null,null,null,"3011",6.1,"MERCURY BASED PESTICIDE, LIQUID, TOXIC, FLAMMABLE"]
[null,null,null,null,null,null,null,null,null,null,null,null,null,null,null,null,null,null,null,null,null,null,null,null,null,null,null,"3012",6.1,"MERCURY BASED PESTICIDE, LIQUID, TOXIC"]
[null,null,null,null,null,null,null,null,null,null,null,null,null,null,null,null,null,null,null,null,null,null,null,null,null,null,null,"3013",6.1,"SUBSTITUTED NITROPHENOL PESTICIDE, LIQUID, TOXIC, FLAMMABLE"]
[null,null,null,null,null,null,null,null,null,null,null,null,null,null,null,null,null,null,null,null,null,null,null,null,null,null,null,"3014",6.1,"SUBSTITUTED NITROPHENOL PESTICIDE, LIQUID, TOXIC"]
[null,null,null,null,null,null,null,null,null,null,null,null,null,null,null,null,null,null,null,null,null,null,null,null,null,null,null,"3015",6.1,"BIPYRIDILIUM PESTICIDE, LIQUID, TOXIC, FLAMMABLE"]
[null,null,null,null,null,null,null,null,null,null,null,null,null,null,null,null,null,null,null,null,null,null,null,null,null,null,null,"3016",6.1,"BIPYRIDILIUM PESTICIDE, LIQUID, TOXIC"]
[null,null,null,null,null,null,null,null,null,null,null,null,null,null,null,null,null,null,null,null,null,null,null,null,null,null,null,"3017",6.1,"ORGANOPHOSPHORUS PESTICIDE, LIQUID, TOXIC, FLAMMABLE"]
[null,null,null,null,null,null,null,null,null,null,null,null,null,null,null,null,null,null,null,null,null,null,null,null,null,null,null,"3018",6.1,"ORGANOPHOSPHORUS PESTICIDE, LIQUID, TOXIC"]
[null,null,null,null,null,null,null,null,null,null,null,null,null,null,null,null,null,null,null,null,null,null,null,null,null,null,null,"3019",6.1,"ORGANOTIN PESTICIDE, LIQUID, TOXIC, FLAMMABLE"]
[null,null,null,null,null,null,null,null,null,null,null,null,null,null,null,null,null,null,null,null,null,null,null,null,null,null,null,"3020",6.1,"ORGANOTIN PESTICIDE, LIQUID, TOXIC"]
[null,null,null,null,null,null,null,null,null,null,null,null,null,null,null,null,null,null,null,null,null,null,null,null,null,null,null,"3021",3,"PESTICIDE, LIQUID, FLAMMABLE, TOXIC, N.O.S."]
[null,null,null,null,null,null,null,null,null,null,null,null,null,null,null,null,null,null,null,null,null,null,null,null,null,null,null,"3022",3,"1,2-BUTYLENE OXIDE, STABILIZED"]
[null,null,null,null,null,null,null,null,null,null,null,null,null,null,null,null,null,null,null,null,null,null,null,null,null,null,null,"3023",6.1,"2-METHYL-2-HEPTANETHIOL"]
[null,null,null,null,null,null,null,null,null,null,null,null,null,null,null,null,null,null,null,null,null,null,null,null,null,null,null,"3024",3,"COUMARIN DERIVATIVE PESTICIDE, LIQUID, FLAMMABLE, TOXIC"]
[null,null,null,null,null,null,null,null,null,null,null,null,null,null,null,null,null,null,null,null,null,null,null,null,null,null,null,"3025",6.1,"COUMARIN DERIVATIVE PESTICIDE, LIQUID, TOXIC, FLAMMABLE"]
[null,null,null,null,null,null,null,null,null,null,null,null,null,null,null,null,null,null,null,null,null,null,null,null,null,null,null,"3026",6.1,"COUMARIN DERIVATIVE PESTICIDE, LIQUID, TOXIC"]
[null,null,null,null,null,null,null,null,null,null,null,null,null,null,null,null,null,null,null,null,null,null,null,null,null,null,null,"3027",6.1,"COUMARIN DERIVATIVE PESTICIDE, SOLID, TOXIC"]
[null,null,null,null,null,null,null,null,null,null,null,null,null,null,null,null,null,null,null,null,null,null,null,null,null,null,null,"3028",8,"BATTERIES, DRY, CONTAINING POTASSIUM HYDROXIDE, SOLID"]
[null,null,null,null,null,null,null,null,null,null,null,null,null,null,null,null,null,null,null,null,null,null,null,null,null,null,null,"3048",6.1,"ALUMINIUM PHOSPHIDE PESTICIDE"]
[null,null,null,null,null,null,null,null,null,null,null,null,null,null,null,null,null,null,null,null,null,null,null,null,null,null,null,"3054",3,"CYCLOHEXYL MERCAPTAN"]
[null,null,null,null,null,null,null,null,null,null,null,null,null,null,null,null,null,null,null,null,null,null,null,null,null,null,null,"3055",8,"2-(2-AMINOETHOXY) ETHANOL"]
[null,null,null,null,null,null,null,null,null,null,null,null,null,null,null,null,null,null,null,null,null,null,null,null,null,null,null,"3056",3,"n-HEPTALDEHYDE"]
[null,null,null,null,null,null,null,null,null,null,null,null,null,null,null,null,null,null,null,null,null,null,null,null,null,null,null,"3057",2.2999999999999998,"TRIFLUOROACETYL CHLORIDE"]
[null,null,null,null,null,null,null,null,null,null,null,null,null,null,null,null,null,null,null,null,null,null,null,null,null,null,null,"3064",3,"NITROGLYCERIN SOLUTION IN ALCOHOL"]
[null,null,null,null,null,null,null,null,null,null,null,null,null,null,null,null,null,null,null,null,null,null,null,null,null,null,null,"3065",3,"ALCOHOLIC BEVERAGES"]
[null,null,null,null,null,null,null,null,null,null,null,null,null,null,null,null,null,null,null,null,null,null,null,null,null,null,null,"3066",8,"PAINT"]
[null,null,null,null,null,null,null,null,null,null,null,null,null,null,null,null,null,null,null,null,null,null,null,null,null,null,null,"3070",2.2000000000000002,"ETHYLENE OXIDE AND DICHLORODIFLUOROMETHANE MIXTURE"]
[null,null,null,null,null,null,null,null,null,null,null,null,null,null,null,null,null,null,null,null,null,null,null,null,null,null,null,"3071",6.1,"MERCAPTANS, LIQUID, TOXIC, FLAMMABLE, N.O.S."]
[null,null,null,null,null,null,null,null,null,null,null,null,null,null,null,null,null,null,null,null,null,null,null,null,null,null,null,"3072",9,"LIFE-SAVING APPLIANCES, NOT SELF-INFLATING"]
[null,null,null,null,null,null,null,null,null,null,null,null,null,null,null,null,null,null,null,null,null,null,null,null,null,null,null,"3073",6.1,"VINYLPYRIDINES, STABILIZED"]
[null,null,null,null,null,null,null,null,null,null,null,null,null,null,null,null,null,null,null,null,null,null,null,null,null,null,null,"3077",9,"ENVIRONMENTALLY HAZARDOUS SUBSTANCE, SOLID, N.O.S."]
[null,null,null,null,null,null,null,null,null,null,null,null,null,null,null,null,null,null,null,null,null,null,null,null,null,null,null,"3078",4.3,"CERIUM"]
[null,null,null,null,null,null,null,null,null,null,null,null,null,null,null,null,null,null,null,null,null,null,null,null,null,null,null,"3079",6.1,"METHACRYLONITRILE, STABILIZED"]
[null,null,null,null,null,null,null,null,null,null,null,null,null,null,null,null,null,null,null,null,null,null,null,null,null,null,null,"3080",6.1,"ISOCYANATES, TOXIC, FLAMMABLE, N.O.S"]
[null,null,null,null,null,null,null,null,null,null,null,null,null,null,null,null,null,null,null,null,null,null,null,null,null,null,null,"3082",9,"ENVIRONMENTALLY HAZARDOUS SUBSTANCE, LIQUID, N.O.S."]
[null,null,null,null,null,null,null,null,null,null,null,null,null,null,null,null,null,null,null,null,null,null,null,null,null,null,null,"3083",2.2999999999999998,"PERCHLORYL FLUORIDE"]
[null,null,null,null,null,null,null,null,null,null,null,null,null,null,null,null,null,null,null,null,null,null,null,null,null,null,null,"3084",8,"CORROSIVE SOLID, OXIDIZING, N.O.S."]
[null,null,null,null,null,null,null,null,null,null,null,null,null,null,null,null,null,null,null,null,null,null,null,null,null,null,null,"3085",5.0999999999999996,"OXIDIZING SOLID, CORROSIVE, N.O.S."]
[null,null,null,null,null,null,null,null,null,null,null,null,null,null,null,null,null,null,null,null,null,null,null,null,null,null,null,"3086",6.1,"TOXIC SOLID, OXIDIZING, N.O.S."]
[null,null,null,null,null,null,null,null,null,null,null,null,null,null,null,null,null,null,null,null,null,null,null,null,null,null,null,"3087",5.0999999999999996,"OXIDIZING SOLID, TOXIC, N.O.S."]
[null,null,null,null,null,null,null,null,null,null,null,null,null,null,null,null,null,null,null,null,null,null,null,null,null,null,null,"3088",4.2,"SELF-HEATING SOLID, ORGANIC, N.O.S."]
[null,null,null,null,null,null,null,null,null,null,null,null,null,null,null,null,null,null,null,null,null,null,null,null,null,null,null,"3089",4.0999999999999996,"METAL POWDER, FLAMMABLE, N.O.S."]
[null,null,null,null,null,null,null,null,null,null,null,null,null,null,null,null,null,null,null,null,null,null,null,null,null,null,null,"3090",9,"LITHIUM METAL BATTERIES"]
[null,null,null,null,null,null,null,null,null,null,null,null,null,null,null,null,null,null,null,null,null,null,null,null,null,null,null,"3091",9,"LITHIUM METAL BATTERIES CONTAINED IN EQUIPMENT"]
[null,null,null,null,null,null,null,null,null,null,null,null,null,null,null,null,null,null,null,null,null,null,null,null,null,null,null,"3092",3,"1-METHOXY-2-PROPANOL"]
[null,null,null,null,null,null,null,null,null,null,null,null,null,null,null,null,null,null,null,null,null,null,null,null,null,null,null,"3093",8,"CORROSIVE LIQUID, OXIDIZING, N.O.S."]
[null,null,null,null,null,null,null,null,null,null,null,null,null,null,null,null,null,null,null,null,null,null,null,null,null,null,null,"3094",8,"CORROSIVE LIQUID, WATER-REACTIVE, N.O.S."]
[null,null,null,null,null,null,null,null,null,null,null,null,null,null,null,null,null,null,null,null,null,null,null,null,null,null,null,"3095",8,"CORROSIVE SOLID, SELF-HEATING, N.O.S."]
[null,null,null,null,null,null,null,null,null,null,null,null,null,null,null,null,null,null,null,null,null,null,null,null,null,null,null,"3096",8,"CORROSIVE SOLID, WATER-REACTIVE, N.O.S."]
[null,null,null,null,null,null,null,null,null,null,null,null,null,null,null,null,null,null,null,null,null,null,null,null,null,null,null,"3097",4.0999999999999996,"FLAMMABLE SOLID, OXIDIZING, N.O.S."]
[null,null,null,null,null,null,null,null,null,null,null,null,null,null,null,null,null,null,null,null,null,null,null,null,null,null,null,"3098",5.0999999999999996,"OXIDIZING LIQUID, CORROSIVE, N.O.S."]
[null,null,null,null,null,null,null,null,null,null,null,null,null,null,null,null,null,null,null,null,null,null,null,null,null,null,null,"3099",5.0999999999999996,"OXIDIZING LIQUID, TOXIC, N.O.S."]
[null,null,null,null,null,null,null,null,null,null,null,null,null,null,null,null,null,null,null,null,null,null,null,null,null,null,null,"3100",5.0999999999999996,"OXIDIZING SOLID, SELF-HEATING, N.O.S."]
[null,null,null,null,null,null,null,null,null,null,null,null,null,null,null,null,null,null,null,null,null,null,null,null,null,null,null,"3101",5.2,"ORGANIC PEROXIDE TYPE B, LIQUID"]
[null,null,null,null,null,null,null,null,null,null,null,null,null,null,null,null,null,null,null,null,null,null,null,null,null,null,null,"3102",5.2,"ORGANIC PEROXIDE TYPE B, SOLID"]
[null,null,null,null,null,null,null,null,null,null,null,null,null,null,null,null,null,null,null,null,null,null,null,null,null,null,null,"3103",5.2,"ORGANIC PEROXIDE TYPE C, LIQUID"]
[null,null,null,null,null,null,null,null,null,null,null,null,null,null,null,null,null,null,null,null,null,null,null,null,null,null,null,"3104",5.2,"ORGANIC PEROXIDE TYPE C, SOLID"]
[null,null,null,null,null,null,null,null,null,null,null,null,null,null,null,null,null,null,null,null,null,null,null,null,null,null,null,"3105",5.2,"ORGANIC PEROXIDE TYPE D, LIQUID"]
[null,null,null,null,null,null,null,null,null,null,null,null,null,null,null,null,null,null,null,null,null,null,null,null,null,null,null,"3106",5.2,"ORGANIC PEROXIDE TYPE D, SOLID"]
[null,null,null,null,null,null,null,null,null,null,null,null,null,null,null,null,null,null,null,null,null,null,null,null,null,null,null,"3107",5.2,"ORGANIC PEROXIDE TYPE E, LIQUID"]
[null,null,null,null,null,null,null,null,null,null,null,null,null,null,null,null,null,null,null,null,null,null,null,null,null,null,null,"3108",5.2,"ORGANIC PEROXIDE TYPE E, SOLID"]
[null,null,null,null,null,null,null,null,null,null,null,null,null,null,null,null,null,null,null,null,null,null,null,null,null,null,null,"3109",5.2,"ORGANIC PEROXIDE TYPE F, LIQUID"]
[null,null,null,null,null,null,null,null,null,null,null,null,null,null,null,null,null,null,null,null,null,null,null,null,null,null,null,"3110",5.2,"ORGANIC PEROXIDE TYPE F, SOLID"]
[null,null,null,null,null,null,null,null,null,null,null,null,null,null,null,null,null,null,null,null,null,null,null,null,null,null,null,"3111",5.2,"ORGANIC PEROXIDE TYPE B, LIQUID, TEMPERATURE CONTROLLED"]
[null,null,null,null,null,null,null,null,null,null,null,null,null,null,null,null,null,null,null,null,null,null,null,null,null,null,null,"3112",5.2,"ORGANIC PEROXIDE TYPE B, SOLID, TEMPERATURE CONTROLLED"]
[null,null,null,null,null,null,null,null,null,null,null,null,null,null,null,null,null,null,null,null,null,null,null,null,null,null,null,"3113",5.2,"ORGANIC PEROXIDE TYPE C, LIQUID, TEMPERATURE CONTROLLED"]
[null,null,null,null,null,null,null,null,null,null,null,null,null,null,null,null,null,null,null,null,null,null,null,null,null,null,null,"3114",5.2,"ORGANIC PEROXIDE TYPE C, SOLID, TEMPERATURE CONTROLLED"]
[null,null,null,null,null,null,null,null,null,null,null,null,null,null,null,null,null,null,null,null,null,null,null,null,null,null,null,"3115",5.2,"ORGANIC PEROXIDE TYPE D, LIQUID, TEMPERATURE CONTROLLED"]
[null,null,null,null,null,null,null,null,null,null,null,null,null,null,null,null,null,null,null,null,null,null,null,null,null,null,null,"3116",5.2,"ORGANIC PEROXIDE TYPE D, SOLID, TEMPERATURE CONTROLLED"]
[null,null,null,null,null,null,null,null,null,null,null,null,null,null,null,null,null,null,null,null,null,null,null,null,null,null,null,"3117",5.2,"ORGANIC PEROXIDE TYPE E, LIQUID, TEMPERATURE CONTROLLED"]
[null,null,null,null,null,null,null,null,null,null,null,null,null,null,null,null,null,null,null,null,null,null,null,null,null,null,null,"3118",5.2,"ORGANIC PEROXIDE TYPE E, SOLID, TEMPERATURE CONTROLLED"]
[null,null,null,null,null,null,null,null,null,null,null,null,null,null,null,null,null,null,null,null,null,null,null,null,null,null,null,"3119",5.2,"ORGANIC PEROXIDE TYPE F, LIQUID, TEMPERATURE CONTROLLED"]
[null,null,null,null,null,null,null,null,null,null,null,null,null,null,null,null,null,null,null,null,null,null,null,null,null,null,null,"3120",5.2,"ORGANIC PEROXIDE TYPE F, SOLID, TEMPERATURE CONTROLLED"]
[null,null,null,null,null,null,null,null,null,null,null,null,null,null,null,null,null,null,null,null,null,null,null,null,null,null,null,"3121",5.0999999999999996,"OXIDIZING SOLID, WATER-REACTIVE, N.O.S."]
[null,null,null,null,null,null,null,null,null,null,null,null,null,null,null,null,null,null,null,null,null,null,null,null,null,null,null,"3122",6.1,"TOXIC LIQUID, OXIDIZING, N.O.S."]
[null,null,null,null,null,null,null,null,null,null,null,null,null,null,null,null,null,null,null,null,null,null,null,null,null,null,null,"3123",6.1,"TOXIC LIQUID, WATER-REACTIVE, N.O.S."]
[null,null,null,null,null,null,null,null,null,null,null,null,null,null,null,null,null,null,null,null,null,null,null,null,null,null,null,"3124",6.1,"TOXIC SOLID, SELF-HEATING, N.O.S."]
[null,null,null,null,null,null,null,null,null,null,null,null,null,null,null,null,null,null,null,null,null,null,null,null,null,null,null,"3125",6.1,"TOXIC SOLID, WATER-REACTIVE, N.O.S."]
[null,null,null,null,null,null,null,null,null,null,null,null,null,null,null,null,null,null,null,null,null,null,null,null,null,null,null,"3126",4.2,"SELF-HEATING SOLID, CORROSIVE, ORGANIC, N.O.S."]
[null,null,null,null,null,null,null,null,null,null,null,null,null,null,null,null,null,null,null,null,null,null,null,null,null,null,null,"3127",4.2,"SELF-HEATING SOLID, OXIDIZING, N.O.S."]
[null,null,null,null,null,null,null,null,null,null,null,null,null,null,null,null,null,null,null,null,null,null,null,null,null,null,null,"3128",4.2,"SELF-HEATING SOLID, TOXIC, ORGANIC, N.O.S."]
[null,null,null,null,null,null,null,null,null,null,null,null,null,null,null,null,null,null,null,null,null,null,null,null,null,null,null,"3129",4.3,"WATER-REACTIVE LIQUID, CORROSIVE, N.O.S."]
[null,null,null,null,null,null,null,null,null,null,null,null,null,null,null,null,null,null,null,null,null,null,null,null,null,null,null,"3130",4.3,"WATER-REACTIVE LIQUID, TOXIC, N.O.S."]
[null,null,null,null,null,null,null,null,null,null,null,null,null,null,null,null,null,null,null,null,null,null,null,null,null,null,null,"3131",4.3,"WATER-REACTIVE SOLID, CORROSIVE, N.O.S."]
[null,null,null,null,null,null,null,null,null,null,null,null,null,null,null,null,null,null,null,null,null,null,null,null,null,null,null,"3132",4.3,"WATER-REACTIVE SOLID, FLAMMABLE, N.O.S."]
[null,null,null,null,null,null,null,null,null,null,null,null,null,null,null,null,null,null,null,null,null,null,null,null,null,null,null,"3133",4.3,"WATER-REACTIVE SOLID, OXIDIZING, N.O.S."]
[null,null,null,null,null,null,null,null,null,null,null,null,null,null,null,null,null,null,null,null,null,null,null,null,null,null,null,"3134",4.3,"WATER-REACTIVE SOLID, TOXIC, N.O.S."]
[null,null,null,null,null,null,null,null,null,null,null,null,null,null,null,null,null,null,null,null,null,null,null,null,null,null,null,"3135",4.3,"WATER-REACTIVE SOLID, SELF-HEATING, N.O.S."]
[null,null,null,null,null,null,null,null,null,null,null,null,null,null,null,null,null,null,null,null,null,null,null,null,null,null,null,"3136",2.2000000000000002,"TRIFLUOROMETHANE, REFRIGERATED LIQUID"]
[null,null,null,null,null,null,null,null,null,null,null,null,null,null,null,null,null,null,null,null,null,null,null,null,null,null,null,"3137",5.0999999999999996,"OXIDIZING SOLID, FLAMMABLE, N.O.S."]
[null,null,null,null,null,null,null,null,null,null,null,null,null,null,null,null,null,null,null,null,null,null,null,null,null,null,null,"3138",2.1,"ETHYLENE, ACETYLENE AND PROPYLENE MIXTURE, REFRIGERATED LIQUID"]
[null,null,null,null,null,null,null,null,null,null,null,null,null,null,null,null,null,null,null,null,null,null,null,null,null,null,null,"3139",5.0999999999999996,"OXIDIZING LIQUID, N.O.S."]
[null,null,null,null,null,null,null,null,null,null,null,null,null,null,null,null,null,null,null,null,null,null,null,null,null,null,null,"3140",6.1,"ALKALOIDS, LIQUID, N.O.S."]
[null,null,null,null,null,null,null,null,null,null,null,null,null,null,null,null,null,null,null,null,null,null,null,null,null,null,null,"3141",6.1,"ANTIMONY COMPOUND, INORGANIC, LIQUID, N.O.S."]
[null,null,null,null,null,null,null,null,null,null,null,null,null,null,null,null,null,null,null,null,null,null,null,null,null,null,null,"3142",6.1,"DISINFECTANT, LIQUID, TOXIC, N.O.S."]
[null,null,null,null,null,null,null,null,null,null,null,null,null,null,null,null,null,null,null,null,null,null,null,null,null,null,null,"3143",6.1,"DYE, SOLID, TOXIC, N.O.S."]
[null,null,null,null,null,null,null,null,null,null,null,null,null,null,null,null,null,null,null,null,null,null,null,null,null,null,null,"3144",6.1,"NICOTINE COMPOUND, LIQUID, N.O.S."]
[null,null,null,null,null,null,null,null,null,null,null,null,null,null,null,null,null,null,null,null,null,null,null,null,null,null,null,"3145",8,"ALKYLPHENOLS, LIQUID, N.O.S."]
[null,null,null,null,null,null,null,null,null,null,null,null,null,null,null,null,null,null,null,null,null,null,null,null,null,null,null,"3146",6.1,"ORGANOTIN COMPOUND, SOLID, N.O.S."]
[null,null,null,null,null,null,null,null,null,null,null,null,null,null,null,null,null,null,null,null,null,null,null,null,null,null,null,"3147",8,"DYE, SOLID, CORROSIVE, N.O.S."]
[null,null,null,null,null,null,null,null,null,null,null,null,null,null,null,null,null,null,null,null,null,null,null,null,null,null,null,"3148",4.3,"WATER-REACTIVE LIQUID, N.O.S."]
[null,null,null,null,null,null,null,null,null,null,null,null,null,null,null,null,null,null,null,null,null,null,null,null,null,null,null,"3149",5.0999999999999996,"HYDROGEN PEROXIDE AND PEROXYACETIC ACID MIXTURE, STABILIZED"]
[null,null,null,null,null,null,null,null,null,null,null,null,null,null,null,null,null,null,null,null,null,null,null,null,null,null,null,"3150",2.1,"DEVICES, SMALL, HYDROCARBON GAS POWERED"]
[null,null,null,null,null,null,null,null,null,null,null,null,null,null,null,null,null,null,null,null,null,null,null,null,null,null,null,"3151",9,"POLYHALOGENATED BIPHENYLS, LIQUID"]
[null,null,null,null,null,null,null,null,null,null,null,null,null,null,null,null,null,null,null,null,null,null,null,null,null,null,null,"3152",9,"POLYHALOGENATED BIPHENYLS, SOLID"]
[null,null,null,null,null,null,null,null,null,null,null,null,null,null,null,null,null,null,null,null,null,null,null,null,null,null,null,"3153",2.1,"PERFLUORO (METHYL VINYL ETHER)"]
[null,null,null,null,null,null,null,null,null,null,null,null,null,null,null,null,null,null,null,null,null,null,null,null,null,null,null,"3154",2.1,"PERFLUORO (ETHYL VINYL ETHER)"]
[null,null,null,null,null,null,null,null,null,null,null,null,null,null,null,null,null,null,null,null,null,null,null,null,null,null,null,"3155",6.1,"PENTACHLOROPHENOL"]
[null,null,null,null,null,null,null,null,null,null,null,null,null,null,null,null,null,null,null,null,null,null,null,null,null,null,null,"3156",2.2000000000000002,"COMPRESSED GAS, OXIDIZING, N.O.S."]
[null,null,null,null,null,null,null,null,null,null,null,null,null,null,null,null,null,null,null,null,null,null,null,null,null,null,null,"3157",2.2000000000000002,"LIQUEFIED GAS, OXIDIZING, N.O.S."]
[null,null,null,null,null,null,null,null,null,null,null,null,null,null,null,null,null,null,null,null,null,null,null,null,null,null,null,"3158",2.2000000000000002,"GAS, REFRIGERATED LIQUID, N.O.S."]
[null,null,null,null,null,null,null,null,null,null,null,null,null,null,null,null,null,null,null,null,null,null,null,null,null,null,null,"3159",2.2000000000000002,"1,1,1,2-TETRAFLUOROETHANE"]
[null,null,null,null,null,null,null,null,null,null,null,null,null,null,null,null,null,null,null,null,null,null,null,null,null,null,null,"3160",2.2999999999999998,"LIQUEFIED GAS, TOXIC, FLAMMABLE, N.O.S."]
[null,null,null,null,null,null,null,null,null,null,null,null,null,null,null,null,null,null,null,null,null,null,null,null,null,null,null,"3161",2.1,"LIQUEFIED GAS, FLAMMABLE, N.O.S."]
[null,null,null,null,null,null,null,null,null,null,null,null,null,null,null,null,null,null,null,null,null,null,null,null,null,null,null,"3162",2.2999999999999998,"LIQUEFIED GAS, TOXIC, N.O.S."]
[null,null,null,null,null,null,null,null,null,null,null,null,null,null,null,null,null,null,null,null,null,null,null,null,null,null,null,"3163",2.2000000000000002,"LIQUEFIED GAS, N.O.S."]
[null,null,null,null,null,null,null,null,null,null,null,null,null,null,null,null,null,null,null,null,null,null,null,null,null,null,null,"3164",2.2000000000000002,"ARTICLES, PRESSURIZED, PNEUMATIC"]
[null,null,null,null,null,null,null,null,null,null,null,null,null,null,null,null,null,null,null,null,null,null,null,null,null,null,null,"3165",3,"AIRCRAFT HYDRAULIC POWER UNIT FUEL TANK"]
[null,null,null,null,null,null,null,null,null,null,null,null,null,null,null,null,null,null,null,null,null,null,null,null,null,null,null,"3166",9,"ENGINE, INTERNAL COMBUSTION"]
[null,null,null,null,null,null,null,null,null,null,null,null,null,null,null,null,null,null,null,null,null,null,null,null,null,null,null,"3167",2.1,"GAS SAMPLE, NON-PRESSURIZED, FLAMMABLE, N.O.S."]
[null,null,null,null,null,null,null,null,null,null,null,null,null,null,null,null,null,null,null,null,null,null,null,null,null,null,null,"3168",2.2999999999999998,"GAS SAMPLE, NON-PRESSURIZED, TOXIC, FLAMMABLE, N.O.S."]
[null,null,null,null,null,null,null,null,null,null,null,null,null,null,null,null,null,null,null,null,null,null,null,null,null,null,null,"3169",2.2999999999999998,"GAS SAMPLE, NON-PRESSURIZED, TOXIC, N.O.S."]
[null,null,null,null,null,null,null,null,null,null,null,null,null,null,null,null,null,null,null,null,null,null,null,null,null,null,null,"3170",4.3,"ALUMINIUM SMELTING BY-PRODUCTS"]
[null,null,null,null,null,null,null,null,null,null,null,null,null,null,null,null,null,null,null,null,null,null,null,null,null,null,null,"3171",9,"BATTERY-POWERED VEHICLE"]
[null,null,null,null,null,null,null,null,null,null,null,null,null,null,null,null,null,null,null,null,null,null,null,null,null,null,null,"3172",6.1,"TOXINS, EXTRACTED FROM LIVING SOURCES, LIQUID, N.O.S."]
[null,null,null,null,null,null,null,null,null,null,null,null,null,null,null,null,null,null,null,null,null,null,null,null,null,null,null,"3174",4.2,"TITANIUM DISULPHIDE"]
[null,null,null,null,null,null,null,null,null,null,null,null,null,null,null,null,null,null,null,null,null,null,null,null,null,null,null,"3175",4.0999999999999996,"SOLIDS CONTAINING FLAMMABLE LIQUID, N.O.S."]
[null,null,null,null,null,null,null,null,null,null,null,null,null,null,null,null,null,null,null,null,null,null,null,null,null,null,null,"3176",4.0999999999999996,"FLAMMABLE SOLID, ORGANIC, MOLTEN, N.O.S."]
[null,null,null,null,null,null,null,null,null,null,null,null,null,null,null,null,null,null,null,null,null,null,null,null,null,null,null,"3178",4.0999999999999996,"FLAMMABLE SOLID, INORGANIC, N.O.S."]
[null,null,null,null,null,null,null,null,null,null,null,null,null,null,null,null,null,null,null,null,null,null,null,null,null,null,null,"3179",4.0999999999999996,"FLAMMABLE SOLID, TOXIC, INORGANIC, N.O.S."]
[null,null,null,null,null,null,null,null,null,null,null,null,null,null,null,null,null,null,null,null,null,null,null,null,null,null,null,"3180",4.0999999999999996,"FLAMMABLE SOLID, CORROSIVE, INORGANIC, N.O.S."]
[null,null,null,null,null,null,null,null,null,null,null,null,null,null,null,null,null,null,null,null,null,null,null,null,null,null,null,"3181",4.0999999999999996,"METAL SALTS OF ORGANIC COMPOUNDS, FLAMMABLE, N.O.S."]
[null,null,null,null,null,null,null,null,null,null,null,null,null,null,null,null,null,null,null,null,null,null,null,null,null,null,null,"3182",4.0999999999999996,"METAL HYDRIDES, FLAMMABLE, N.O.S."]
[null,null,null,null,null,null,null,null,null,null,null,null,null,null,null,null,null,null,null,null,null,null,null,null,null,null,null,"3183",4.2,"SELF-HEATING LIQUID, ORGANIC, N.O.S."]
[null,null,null,null,null,null,null,null,null,null,null,null,null,null,null,null,null,null,null,null,null,null,null,null,null,null,null,"3184",4.2,"SELF-HEATING LIQUID, TOXIC, ORGANIC, N.O.S."]
[null,null,null,null,null,null,null,null,null,null,null,null,null,null,null,null,null,null,null,null,null,null,null,null,null,null,null,"3185",4.2,"SELF-HEATING LIQUID, CORROSIVE, ORGANIC, N.O.S."]
[null,null,null,null,null,null,null,null,null,null,null,null,null,null,null,null,null,null,null,null,null,null,null,null,null,null,null,"3186",4.2,"SELF-HEATING LIQUID, INORGANIC, N.O.S."]
[null,null,null,null,null,null,null,null,null,null,null,null,null,null,null,null,null,null,null,null,null,null,null,null,null,null,null,"3187",4.2,"SELF-HEATING LIQUID, TOXIC, INORGANIC, N.O.S."]
[null,null,null,null,null,null,null,null,null,null,null,null,null,null,null,null,null,null,null,null,null,null,null,null,null,null,null,"3188",4.2,"SELF-HEATING LIQUID, CORROSIVE, INORGANIC, N.O.S."]
[null,null,null,null,null,null,null,null,null,null,null,null,null,null,null,null,null,null,null,null,null,null,null,null,null,null,null,"3189",4.2,"METAL POWDER, SELF-HEATING, N.O.S."]
[null,null,null,null,null,null,null,null,null,null,null,null,null,null,null,null,null,null,null,null,null,null,null,null,null,null,null,"3190",4.2,"SELF-HEATING SOLID, INORGANIC, N.O.S."]
[null,null,null,null,null,null,null,null,null,null,null,null,null,null,null,null,null,null,null,null,null,null,null,null,null,null,null,"3191",4.2,"SELF-HEATING SOLID, TOXIC, INORGANIC, N.O.S."]
[null,null,null,null,null,null,null,null,null,null,null,null,null,null,null,null,null,null,null,null,null,null,null,null,null,null,null,"3192",4.2,"SELF-HEATING SOLID, CORROSIVE, INORGANIC, N.O.S."]
[null,null,null,null,null,null,null,null,null,null,null,null,null,null,null,null,null,null,null,null,null,null,null,null,null,null,null,"3194",4.2,"PYROPHORIC LIQUID, INORGANIC, N.O.S."]
[null,null,null,null,null,null,null,null,null,null,null,null,null,null,null,null,null,null,null,null,null,null,null,null,null,null,null,"3200",4.2,"PYROPHORIC SOLID, INORGANIC, N.O.S."]
[null,null,null,null,null,null,null,null,null,null,null,null,null,null,null,null,null,null,null,null,null,null,null,null,null,null,null,"3205",4.2,"ALKALINE EARTH METAL ALCOHOLATES, N.O.S."]
[null,null,null,null,null,null,null,null,null,null,null,null,null,null,null,null,null,null,null,null,null,null,null,null,null,null,null,"3206",4.2,"ALKALI METAL ALCOHOLATES, SELF-HEATING, CORROSIVE, N.O.S."]
[null,null,null,null,null,null,null,null,null,null,null,null,null,null,null,null,null,null,null,null,null,null,null,null,null,null,null,"3208",4.3,"METALLIC SUBSTANCE, WATER-REACTIVE, N.O.S."]
[null,null,null,null,null,null,null,null,null,null,null,null,null,null,null,null,null,null,null,null,null,null,null,null,null,null,null,"3209",4.3,"METALLIC SUBSTANCE, WATER-REACTIVE, SELF-HEATING, N.O.S."]
[null,null,null,null,null,null,null,null,null,null,null,null,null,null,null,null,null,null,null,null,null,null,null,null,null,null,null,"3210",5.0999999999999996,"CHLORATES, INORGANIC, AQUEOUS SOLUTION, N.O.S."]
[null,null,null,null,null,null,null,null,null,null,null,null,null,null,null,null,null,null,null,null,null,null,null,null,null,null,null,"3211",5.0999999999999996,"PERCHLORATES, INORGANIC, AQUEOUS SOLUTION, N.O.S."]
[null,null,null,null,null,null,null,null,null,null,null,null,null,null,null,null,null,null,null,null,null,null,null,null,null,null,null,"3212",5.0999999999999996,"HYPOCHLORITES, INORGANIC, N.O.S."]
[null,null,null,null,null,null,null,null,null,null,null,null,null,null,null,null,null,null,null,null,null,null,null,null,null,null,null,"3213",5.0999999999999996,"BROMATES, INORGANIC, AQUEOUS SOLUTION, N.O.S."]
[null,null,null,null,null,null,null,null,null,null,null,null,null,null,null,null,null,null,null,null,null,null,null,null,null,null,null,"3214",5.0999999999999996,"PERMANGANATES, INORGANIC, AQUEOUS SOLUTION, N.O.S."]
[null,null,null,null,null,null,null,null,null,null,null,null,null,null,null,null,null,null,null,null,null,null,null,null,null,null,null,"3215",5.0999999999999996,"PERSULPHATES, INORGANIC, N.O.S."]
[null,null,null,null,null,null,null,null,null,null,null,null,null,null,null,null,null,null,null,null,null,null,null,null,null,null,null,"3216",5.0999999999999996,"PERSULPHATES, INORGANIC, AQUEOUS SOLUTION, N.O.S."]
[null,null,null,null,null,null,null,null,null,null,null,null,null,null,null,null,null,null,null,null,null,null,null,null,null,null,null,"3218",5.0999999999999996,"NITRATES, INORGANIC, AQUEOUS SOLUTION, N.O.S."]
[null,null,null,null,null,null,null,null,null,null,null,null,null,null,null,null,null,null,null,null,null,null,null,null,null,null,null,"3219",5.0999999999999996,"NITRITES, INORGANIC, AQUEOUS SOLUTION, N.O.S."]
[null,null,null,null,null,null,null,null,null,null,null,null,null,null,null,null,null,null,null,null,null,null,null,null,null,null,null,"3220",2.2000000000000002,"PENTAFLUOROETHANE"]
[null,null,null,null,null,null,null,null,null,null,null,null,null,null,null,null,null,null,null,null,null,null,null,null,null,null,null,"3221",4.0999999999999996,"SELF-REACTIVE LIQUID TYPE B"]
[null,null,null,null,null,null,null,null,null,null,null,null,null,null,null,null,null,null,null,null,null,null,null,null,null,null,null,"3222",4.0999999999999996,"SELF-REACTIVE SOLID TYPE B"]
[null,null,null,null,null,null,null,null,null,null,null,null,null,null,null,null,null,null,null,null,null,null,null,null,null,null,null,"3223",4.0999999999999996,"SELF-REACTIVE LIQUID TYPE C"]
[null,null,null,null,null,null,null,null,null,null,null,null,null,null,null,null,null,null,null,null,null,null,null,null,null,null,null,"3224",4.0999999999999996,"SELF-REACTIVE SOLID TYPE C"]
[null,null,null,null,null,null,null,null,null,null,null,null,null,null,null,null,null,null,null,null,null,null,null,null,null,null,null,"3225",4.0999999999999996,"SELF-REACTIVE LIQUID TYPE D"]
[null,null,null,null,null,null,null,null,null,null,null,null,null,null,null,null,null,null,null,null,null,null,null,null,null,null,null,"3226",4.0999999999999996,"SELF-REACTIVE SOLID TYPE D"]
[null,null,null,null,null,null,null,null,null,null,null,null,null,null,null,null,null,null,null,null,null,null,null,null,null,null,null,"3227",4.0999999999999996,"SELF-REACTIVE LIQUID TYPE E"]
[null,null,null,null,null,null,null,null,null,null,null,null,null,null,null,null,null,null,null,null,null,null,null,null,null,null,null,"3228",4.0999999999999996,"SELF-REACTIVE SOLID TYPE E"]
[null,null,null,null,null,null,null,null,null,null,null,null,null,null,null,null,null,null,null,null,null,null,null,null,null,null,null,"3229",4.0999999999999996,"SELF-REACTIVE LIQUID TYPE F"]
[null,null,null,null,null,null,null,null,null,null,null,null,null,null,null,null,null,null,null,null,null,null,null,null,null,null,null,"3230",4.0999999999999996,"SELF-REACTIVE SOLID TYPE F"]
[null,null,null,null,null,null,null,null,null,null,null,null,null,null,null,null,null,null,null,null,null,null,null,null,null,null,null,"3231",4.0999999999999996,"SELF-REACTIVE LIQUID TYPE B, TEMPERATURE CONTROLLED"]
[null,null,null,null,null,null,null,null,null,null,null,null,null,null,null,null,null,null,null,null,null,null,null,null,null,null,null,"3232",4.0999999999999996,"SELF-REACTIVE SOLID TYPE B, TEMPERATURE CONTROLLED"]
[null,null,null,null,null,null,null,null,null,null,null,null,null,null,null,null,null,null,null,null,null,null,null,null,null,null,null,"3233",4.0999999999999996,"SELF-REACTIVE LIQUID TYPE C, TEMPERATURE CONTROLLED"]
[null,null,null,null,null,null,null,null,null,null,null,null,null,null,null,null,null,null,null,null,null,null,null,null,null,null,null,"3234",4.0999999999999996,"SELF-REACTIVE SOLID TYPE C, TEMPERATURE CONTROLLED"]
[null,null,null,null,null,null,null,null,null,null,null,null,null,null,null,null,null,null,null,null,null,null,null,null,null,null,null,"3235",4.0999999999999996,"SELF-REACTIVE LIQUID TYPE D, TEMPERATURE CONTROLLED"]
[null,null,null,null,null,null,null,null,null,null,null,null,null,null,null,null,null,null,null,null,null,null,null,null,null,null,null,"3236",4.0999999999999996,"SELF-REACTIVE SOLID TYPE D, TEMPERATURE CONTROLLED"]
[null,null,null,null,null,null,null,null,null,null,null,null,null,null,null,null,null,null,null,null,null,null,null,null,null,null,null,"3237",4.0999999999999996,"SELF-REACTIVE LIQUID TYPE E, TEMPERATURE CONTROLLED"]
[null,null,null,null,null,null,null,null,null,null,null,null,null,null,null,null,null,null,null,null,null,null,null,null,null,null,null,"3238",4.0999999999999996,"SELF-REACTIVE SOLID TYPE E, TEMPERATURE CONTROLLED"]
[null,null,null,null,null,null,null,null,null,null,null,null,null,null,null,null,null,null,null,null,null,null,null,null,null,null,null,"3239",4.0999999999999996,"SELF-REACTIVE LIQUID TYPE F, TEMPERATURE CONTROLLED"]
[null,null,null,null,null,null,null,null,null,null,null,null,null,null,null,null,null,null,null,null,null,null,null,null,null,null,null,"3240",4.0999999999999996,"SELF-REACTIVE SOLID TYPE F, TEMPERATURE CONTROLLED"]
[null,null,null,null,null,null,null,null,null,null,null,null,null,null,null,null,null,null,null,null,null,null,null,null,null,null,null,"3241",4.0999999999999996,"2-BROMO-2-NITROPROPANE-1,3-DIOL"]
[null,null,null,null,null,null,null,null,null,null,null,null,null,null,null,null,null,null,null,null,null,null,null,null,null,null,null,"3242",4.0999999999999996,"AZODICARBONAMIDE"]
[null,null,null,null,null,null,null,null,null,null,null,null,null,null,null,null,null,null,null,null,null,null,null,null,null,null,null,"3243",6.1,"SOLIDS CONTAINING TOXIC LIQUID, N.O.S."]
[null,null,null,null,null,null,null,null,null,null,null,null,null,null,null,null,null,null,null,null,null,null,null,null,null,null,null,"3244",8,"SOLIDS CONTAINING CORROSIVE LIQUID, N.O.S."]
[null,null,null,null,null,null,null,null,null,null,null,null,null,null,null,null,null,null,null,null,null,null,null,null,null,null,null,"3245",9,"GENETICALLY MODIFIED MICROORGANISMS"]
[null,null,null,null,null,null,null,null,null,null,null,null,null,null,null,null,null,null,null,null,null,null,null,null,null,null,null,"3246",6.1,"METHANESULPHONYL CHLORIDE"]
[null,null,null,null,null,null,null,null,null,null,null,null,null,null,null,null,null,null,null,null,null,null,null,null,null,null,null,"3247",5.0999999999999996,"SODIUM PEROXOBORATE, ANHYDROUS"]
[null,null,null,null,null,null,null,null,null,null,null,null,null,null,null,null,null,null,null,null,null,null,null,null,null,null,null,"3248",3,"MEDICINE, LIQUID, FLAMMABLE, TOXIC, N.O.S."]
[null,null,null,null,null,null,null,null,null,null,null,null,null,null,null,null,null,null,null,null,null,null,null,null,null,null,null,"3249",6.1,"MEDICINE, SOLID, TOXIC, N.O.S."]
[null,null,null,null,null,null,null,null,null,null,null,null,null,null,null,null,null,null,null,null,null,null,null,null,null,null,null,"3250",6.1,"CHLOROACETIC ACID, MOLTEN"]
[null,null,null,null,null,null,null,null,null,null,null,null,null,null,null,null,null,null,null,null,null,null,null,null,null,null,null,"3251",4.0999999999999996,"ISOSORBIDE-5-MONONITRATE"]
[null,null,null,null,null,null,null,null,null,null,null,null,null,null,null,null,null,null,null,null,null,null,null,null,null,null,null,"3252",2.1,"DIFLUOROMETHANE"]
[null,null,null,null,null,null,null,null,null,null,null,null,null,null,null,null,null,null,null,null,null,null,null,null,null,null,null,"3253",8,"DISODIUM TRIOXOSILICATE"]
[null,null,null,null,null,null,null,null,null,null,null,null,null,null,null,null,null,null,null,null,null,null,null,null,null,null,null,"3254",4.2,"TRIBUTYLPHOSPHANE"]
[null,null,null,null,null,null,null,null,null,null,null,null,null,null,null,null,null,null,null,null,null,null,null,null,null,null,null,"3255",4.2,"tert-BUTYL HYPOCHLORITE"]
[null,null,null,null,null,null,null,null,null,null,null,null,null,null,null,null,null,null,null,null,null,null,null,null,null,null,null,"3256",3,"ELEVATED TEMPERATURE LIQUID, FLAMMABLE, N.O.S."]
[null,null,null,null,null,null,null,null,null,null,null,null,null,null,null,null,null,null,null,null,null,null,null,null,null,null,null,"3257",9,"ELEVATED TEMPERATURE LIQUID, N.O.S."]
[null,null,null,null,null,null,null,null,null,null,null,null,null,null,null,null,null,null,null,null,null,null,null,null,null,null,null,"3258",9,"ELEVATED TEMPERATURE SOLID, N.O.S."]
[null,null,null,null,null,null,null,null,null,null,null,null,null,null,null,null,null,null,null,null,null,null,null,null,null,null,null,"3259",8,"AMINES, SOLID, CORROSIVE, N.O.S."]
[null,null,null,null,null,null,null,null,null,null,null,null,null,null,null,null,null,null,null,null,null,null,null,null,null,null,null,"3260",8,"CORROSIVE SOLID, ACIDIC, INORGANIC, N.O.S."]
[null,null,null,null,null,null,null,null,null,null,null,null,null,null,null,null,null,null,null,null,null,null,null,null,null,null,null,"3261",8,"CORROSIVE SOLID, ACIDIC, ORGANIC, N.O.S."]
[null,null,null,null,null,null,null,null,null,null,null,null,null,null,null,null,null,null,null,null,null,null,null,null,null,null,null,"3262",8,"CORROSIVE SOLID, BASIC, INORGANIC, N.O.S."]
[null,null,null,null,null,null,null,null,null,null,null,null,null,null,null,null,null,null,null,null,null,null,null,null,null,null,null,"3263",8,"CORROSIVE SOLID, BASIC, ORGANIC, N.O.S."]
[null,null,null,null,null,null,null,null,null,null,null,null,null,null,null,null,null,null,null,null,null,null,null,null,null,null,null,"3264",8,"CORROSIVE LIQUID, ACIDIC, INORGANIC, N.O.S."]
[null,null,null,null,null,null,null,null,null,null,null,null,null,null,null,null,null,null,null,null,null,null,null,null,null,null,null,"3265",8,"CORROSIVE LIQUID, ACIDIC, ORGANIC, N.O.S."]
[null,null,null,null,null,null,null,null,null,null,null,null,null,null,null,null,null,null,null,null,null,null,null,null,null,null,null,"3266",8,"CORROSIVE LIQUID, BASIC, INORGANIC, N.O.S."]
[null,null,null,null,null,null,null,null,null,null,null,null,null,null,null,null,null,null,null,null,null,null,null,null,null,null,null,"3267",8,"CORROSIVE LIQUID, BASIC, ORGANIC, N.O.S."]
[null,null,null,null,null,null,null,null,null,null,null,null,null,null,null,null,null,null,null,null,null,null,null,null,null,null,null,"3268",9,"SAFETY DEVICES"]
[null,null,null,null,null,null,null,null,null,null,null,null,null,null,null,null,null,null,null,null,null,null,null,null,null,null,null,"3269",3,"POLYESTER RESIN KIT"]
[null,null,null,null,null,null,null,null,null,null,null,null,null,null,null,null,null,null,null,null,null,null,null,null,null,null,null,"3270",4.0999999999999996,"NITROCELLULOSE MEMBRANE FILTERS"]
[null,null,null,null,null,null,null,null,null,null,null,null,null,null,null,null,null,null,null,null,null,null,null,null,null,null,null,"3271",3,"ETHERS, N.O.S."]
[null,null,null,null,null,null,null,null,null,null,null,null,null,null,null,null,null,null,null,null,null,null,null,null,null,null,null,"3272",3,"ESTERS, N.O.S."]
[null,null,null,null,null,null,null,null,null,null,null,null,null,null,null,null,null,null,null,null,null,null,null,null,null,null,null,"3273",3,"NITRILES, FLAMMABLE, TOXIC, N.O.S."]
[null,null,null,null,null,null,null,null,null,null,null,null,null,null,null,null,null,null,null,null,null,null,null,null,null,null,null,"3274",3,"ALCOHOLATES SOLUTION, N.O.S."]
[null,null,null,null,null,null,null,null,null,null,null,null,null,null,null,null,null,null,null,null,null,null,null,null,null,null,null,"3275",6.1,"NITRILES, TOXIC, FLAMMABLE, N.O.S."]
[null,null,null,null,null,null,null,null,null,null,null,null,null,null,null,null,null,null,null,null,null,null,null,null,null,null,null,"3276",6.1,"NITRILES, LIQUID, TOXIC, N.O.S."]
[null,null,null,null,null,null,null,null,null,null,null,null,null,null,null,null,null,null,null,null,null,null,null,null,null,null,null,"3277",6.1,"CHLOROFORMATES, TOXIC, CORROSIVE, N.O.S."]
[null,null,null,null,null,null,null,null,null,null,null,null,null,null,null,null,null,null,null,null,null,null,null,null,null,null,null,"3278",6.1,"ORGANOPHOSPHORUS COMPOUND, LIQUID, TOXIC, N.O.S."]
[null,null,null,null,null,null,null,null,null,null,null,null,null,null,null,null,null,null,null,null,null,null,null,null,null,null,null,"3279",6.1,"ORGANOPHOSPHORUS COMPOUND, TOXIC, FLAMMABLE, N.O.S."]
[null,null,null,null,null,null,null,null,null,null,null,null,null,null,null,null,null,null,null,null,null,null,null,null,null,null,null,"3280",6.1,"ORGANOARSENIC COMPOUND, LIQUID, N.O.S."]
[null,null,null,null,null,null,null,null,null,null,null,null,null,null,null,null,null,null,null,null,null,null,null,null,null,null,null,"3281",6.1,"METAL CARBONYLS, LIQUID, N.O.S."]
[null,null,null,null,null,null,null,null,null,null,null,null,null,null,null,null,null,null,null,null,null,null,null,null,null,null,null,"3282",6.1,"ORGANOMETALLIC COMPOUND, LIQUID, TOXIC, N.O.S."]
[null,null,null,null,null,null,null,null,null,null,null,null,null,null,null,null,null,null,null,null,null,null,null,null,null,null,null,"3283",6.1,"SELENIUM COMPOUND, SOLID, N.O.S."]
[null,null,null,null,null,null,null,null,null,null,null,null,null,null,null,null,null,null,null,null,null,null,null,null,null,null,null,"3284",6.1,"TELLURIUM COMPOUND, N.O.S."]
[null,null,null,null,null,null,null,null,null,null,null,null,null,null,null,null,null,null,null,null,null,null,null,null,null,null,null,"3285",6.1,"VANADIUM COMPOUND, N.O.S."]
[null,null,null,null,null,null,null,null,null,null,null,null,null,null,null,null,null,null,null,null,null,null,null,null,null,null,null,"3286",3,"FLAMMABLE LIQUID, TOXIC, CORROSIVE, N.O.S."]
[null,null,null,null,null,null,null,null,null,null,null,null,null,null,null,null,null,null,null,null,null,null,null,null,null,null,null,"3287",6.1,"TOXIC LIQUID, INORGANIC, N.O.S."]
[null,null,null,null,null,null,null,null,null,null,null,null,null,null,null,null,null,null,null,null,null,null,null,null,null,null,null,"3288",6.1,"TOXIC SOLID, INORGANIC, N.O.S."]
[null,null,null,null,null,null,null,null,null,null,null,null,null,null,null,null,null,null,null,null,null,null,null,null,null,null,null,"3289",6.1,"TOXIC LIQUID, CORROSIVE, INORGANIC, N.O.S."]
[null,null,null,null,null,null,null,null,null,null,null,null,null,null,null,null,null,null,null,null,null,null,null,null,null,null,null,"3290",6.1,"TOXIC SOLID, CORROSIVE, INORGANIC, N.O.S."]
[null,null,null,null,null,null,null,null,null,null,null,null,null,null,null,null,null,null,null,null,null,null,null,null,null,null,null,"3291",6.2,"CLINICAL WASTE, UNSPECIFIED, N.O.S."]
[null,null,null,null,null,null,null,null,null,null,null,null,null,null,null,null,null,null,null,null,null,null,null,null,null,null,null,"3292",4.3,"BATTERIES, CONTAINING SODIUM"]
[null,null,null,null,null,null,null,null,null,null,null,null,null,null,null,null,null,null,null,null,null,null,null,null,null,null,null,"3293",6.1,"HYDRAZINE, AQUEOUS SOLUTION"]
[null,null,null,null,null,null,null,null,null,null,null,null,null,null,null,null,null,null,null,null,null,null,null,null,null,null,null,"3294",6.1,"HYDROGEN CYANIDE, SOLUTION IN ALCOHOL"]
[null,null,null,null,null,null,null,null,null,null,null,null,null,null,null,null,null,null,null,null,null,null,null,null,null,null,null,"3295",3,"HYDROCARBONS, LIQUID, N.O.S."]
[null,null,null,null,null,null,null,null,null,null,null,null,null,null,null,null,null,null,null,null,null,null,null,null,null,null,null,"3296",2.2000000000000002,"HEPTAFLUOROPROPANE"]
[null,null,null,null,null,null,null,null,null,null,null,null,null,null,null,null,null,null,null,null,null,null,null,null,null,null,null,"3297",2.2000000000000002,"ETHYLENE OXIDE AND CHLOROTETRAFLUOROETHANE MIXTURE"]
[null,null,null,null,null,null,null,null,null,null,null,null,null,null,null,null,null,null,null,null,null,null,null,null,null,null,null,"3298",2.2000000000000002,"ETHYLENE OXIDE AND PENTAFLUOROETHANE MIXTURE"]
[null,null,null,null,null,null,null,null,null,null,null,null,null,null,null,null,null,null,null,null,null,null,null,null,null,null,null,"3299",2.2000000000000002,"ETHYLENE OXIDE AND TETRAFLUOROETHANE MIXTURE"]
[null,null,null,null,null,null,null,null,null,null,null,null,null,null,null,null,null,null,null,null,null,null,null,null,null,null,null,"3300",2.2999999999999998,"ETHYLENE OXIDE AND CARBON DIOXIDE MIXTURE"]
[null,null,null,null,null,null,null,null,null,null,null,null,null,null,null,null,null,null,null,null,null,null,null,null,null,null,null,"3301",8,"CORROSIVE LIQUID, SELF-HEATING, N.O.S."]
[null,null,null,null,null,null,null,null,null,null,null,null,null,null,null,null,null,null,null,null,null,null,null,null,null,null,null,"3302",6.1,"2-DIMETHYLAMINOETHYL ACRYLATE"]
[null,null,null,null,null,null,null,null,null,null,null,null,null,null,null,null,null,null,null,null,null,null,null,null,null,null,null,"3303",2.2999999999999998,"COMPRESSED GAS, TOXIC, OXIDIZING, N.O.S."]
[null,null,null,null,null,null,null,null,null,null,null,null,null,null,null,null,null,null,null,null,null,null,null,null,null,null,null,"3304",2.2999999999999998,"COMPRESSED GAS, TOXIC, CORROSIVE, N.O.S."]
[null,null,null,null,null,null,null,null,null,null,null,null,null,null,null,null,null,null,null,null,null,null,null,null,null,null,null,"3305",2.2999999999999998,"COMPRESSED GAS, TOXIC, FLAMMABLE, CORROSIVE, N.O.S."]
[null,null,null,null,null,null,null,null,null,null,null,null,null,null,null,null,null,null,null,null,null,null,null,null,null,null,null,"3306",2.2999999999999998,"COMPRESSED GAS, TOXIC, OXIDIZING, CORROSIVE, N.O.S."]
[null,null,null,null,null,null,null,null,null,null,null,null,null,null,null,null,null,null,null,null,null,null,null,null,null,null,null,"3307",2.2999999999999998,"LIQUEFIED GAS, TOXIC, OXIDIZING, N.O.S."]
[null,null,null,null,null,null,null,null,null,null,null,null,null,null,null,null,null,null,null,null,null,null,null,null,null,null,null,"3308",2.2999999999999998,"LIQUEFIED GAS, TOXIC, CORROSIVE, N.O.S."]
[null,null,null,null,null,null,null,null,null,null,null,null,null,null,null,null,null,null,null,null,null,null,null,null,null,null,null,"3309",2.2999999999999998,"LIQUEFIED GAS, TOXIC, FLAMMABLE, CORROSIVE, N.O.S."]
[null,null,null,null,null,null,null,null,null,null,null,null,null,null,null,null,null,null,null,null,null,null,null,null,null,null,null,"3310",2.2999999999999998,"LIQUEFIED GAS, TOXIC, OXIDIZING, CORROSIVE, N.O.S."]
[null,null,null,null,null,null,null,null,null,null,null,null,null,null,null,null,null,null,null,null,null,null,null,null,null,null,null,"3311",2.2000000000000002,"GAS, REFRIGERATED LIQUID, OXIDIZING, N.O.S."]
[null,null,null,null,null,null,null,null,null,null,null,null,null,null,null,null,null,null,null,null,null,null,null,null,null,null,null,"3312",2.1,"GAS, REFRIGERATED LIQUID, FLAMMABLE, N.O.S."]
[null,null,null,null,null,null,null,null,null,null,null,null,null,null,null,null,null,null,null,null,null,null,null,null,null,null,null,"3313",4.2,"ORGANIC PIGMENTS, SELF-HEATING"]
[null,null,null,null,null,null,null,null,null,null,null,null,null,null,null,null,null,null,null,null,null,null,null,null,null,null,null,"3314",9,"PLASTICS MOULDING COMPOUND"]
[null,null,null,null,null,null,null,null,null,null,null,null,null,null,null,null,null,null,null,null,null,null,null,null,null,null,null,"3315",6.1,"CHEMICAL SAMPLE, TOXIC"]
[null,null,null,null,null,null,null,null,null,null,null,null,null,null,null,null,null,null,null,null,null,null,null,null,null,null,null,"3316",9,"CHEMICAL KIT"]
[null,null,null,null,null,null,null,null,null,null,null,null,null,null,null,null,null,null,null,null,null,null,null,null,null,null,null,"3317",4.0999999999999996,"2-AMINO-4,6-DINITROPHENOL, WETTED"]
[null,null,null,null,null,null,null,null,null,null,null,null,null,null,null,null,null,null,null,null,null,null,null,null,null,null,null,"3318",2.2999999999999998,"AMMONIA SOLUTION"]
[null,null,null,null,null,null,null,null,null,null,null,null,null,null,null,null,null,null,null,null,null,null,null,null,null,null,null,"3319",4.0999999999999996,"NITROGLYCERIN MIXTURE, DESENSITIZED, SOLID, N.O.S."]
[null,null,null,null,null,null,null,null,null,null,null,null,null,null,null,null,null,null,null,null,null,null,null,null,null,null,null,"3320",8,"SODIUM BOROHYDRIDE AND SODIUM HYDROXIDE SOLUTION"]
[null,null,null,null,null,null,null,null,null,null,null,null,null,null,null,null,null,null,null,null,null,null,null,null,null,null,null,"3321",7,"RADIOACTIVE MATERIAL, LOW SPECIFIC ACTIVITY (LSA-II)"]
[null,null,null,null,null,null,null,null,null,null,null,null,null,null,null,null,null,null,null,null,null,null,null,null,null,null,null,"3322",7,"RADIOACTIVE MATERIAL, LOW SPECIFIC ACTIVITY (LSA-III)"]
[null,null,null,null,null,null,null,null,null,null,null,null,null,null,null,null,null,null,null,null,null,null,null,null,null,null,null,"3323",7,"RADIOACTIVE MATERIAL, TYPE C PACKAGE"]
[null,null,null,null,null,null,null,null,null,null,null,null,null,null,null,null,null,null,null,null,null,null,null,null,null,null,null,"3324",7,"RADIOACTIVE MATERIAL, LOW SPECIFIC ACTIVITY (LSA-II), FISSILE"]
[null,null,null,null,null,null,null,null,null,null,null,null,null,null,null,null,null,null,null,null,null,null,null,null,null,null,null,"3325",7,"RADIOACTIVE MATERIAL, LOW SPECIFIC ACTIVITY, (LSA-III), FISSILE"]
[null,null,null,null,null,null,null,null,null,null,null,null,null,null,null,null,null,null,null,null,null,null,null,null,null,null,null,"3326",7,"RADIOACTIVE MATERIAL, SURFACE CONTAMINATED OBJECTS (SCO-I), FISSILE"]
[null,null,null,null,null,null,null,null,null,null,null,null,null,null,null,null,null,null,null,null,null,null,null,null,null,null,null,"3327",7,"RADIOACTIVE MATERIAL, TYPE A PACKAGE, FISSILE"]
[null,null,null,null,null,null,null,null,null,null,null,null,null,null,null,null,null,null,null,null,null,null,null,null,null,null,null,"3328",7,"RADIOACTIVE MATERIAL, TYPE B(U) PACKAGE, FISSILE"]
[null,null,null,null,null,null,null,null,null,null,null,null,null,null,null,null,null,null,null,null,null,null,null,null,null,null,null,"3329",7,"RADIOACTIVE MATERIAL, TYPE B(M) PACKAGE, FISSILE"]
[null,null,null,null,null,null,null,null,null,null,null,null,null,null,null,null,null,null,null,null,null,null,null,null,null,null,null,"3330",7,"RADIOACTIVE MATERIAL, TYPE C PACKAGE, FISSILE"]
[null,null,null,null,null,null,null,null,null,null,null,null,null,null,null,null,null,null,null,null,null,null,null,null,null,null,null,"3331",7,"RADIOACTIVE MATERIAL, TRANSPORTED UNDER SPECIAL ARRANGEMENT, FISSILE"]
[null,null,null,null,null,null,null,null,null,null,null,null,null,null,null,null,null,null,null,null,null,null,null,null,null,null,null,"3332",7,"RADIOACTIVE MATERIAL, TYPE A PACKAGE, SPECIAL FORM"]
[null,null,null,null,null,null,null,null,null,null,null,null,null,null,null,null,null,null,null,null,null,null,null,null,null,null,null,"3333",7,"RADIOACTIVE MATERIAL, TYPE A PACKAGE, SPECIAL FORM, FISSILE"]
[null,null,null,null,null,null,null,null,null,null,null,null,null,null,null,null,null,null,null,null,null,null,null,null,null,null,null,"3334",9,"AVIATION REGULATED LIQUID, N.O.S."]
[null,null,null,null,null,null,null,null,null,null,null,null,null,null,null,null,null,null,null,null,null,null,null,null,null,null,null,"3335",9,"AVIATION REGULATED SOLID, N.O.S."]
[null,null,null,null,null,null,null,null,null,null,null,null,null,null,null,null,null,null,null,null,null,null,null,null,null,null,null,"3336",3,"MERCAPTANS, LIQUID, FLAMMABLE, N.O.S."]
[null,null,null,null,null,null,null,null,null,null,null,null,null,null,null,null,null,null,null,null,null,null,null,null,null,null,null,"3337",2.2000000000000002,"REFRIGERANT GAS R 404A"]
[null,null,null,null,null,null,null,null,null,null,null,null,null,null,null,null,null,null,null,null,null,null,null,null,null,null,null,"3338",2.2000000000000002,"REFRIGERANT GAS R 407A"]
[null,null,null,null,null,null,null,null,null,null,null,null,null,null,null,null,null,null,null,null,null,null,null,null,null,null,null,"3339",2.2000000000000002,"REFRIGERANT GAS R 407B"]
[null,null,null,null,null,null,null,null,null,null,null,null,null,null,null,null,null,null,null,null,null,null,null,null,null,null,null,"3340",2.2000000000000002,"REFRIGERANT GAS R 407C"]
[null,null,null,null,null,null,null,null,null,null,null,null,null,null,null,null,null,null,null,null,null,null,null,null,null,null,null,"3341",4.2,"THIOUREA DIOXIDE"]
[null,null,null,null,null,null,null,null,null,null,null,null,null,null,null,null,null,null,null,null,null,null,null,null,null,null,null,"3342",4.2,"XANTHATES"]
[null,null,null,null,null,null,null,null,null,null,null,null,null,null,null,null,null,null,null,null,null,null,null,null,null,null,null,"3343",3,"NITROGLYCERIN MIXTURE, DESENSITIZED, LIQUID, FLAMMABLE, N.O.S."]
[null,null,null,null,null,null,null,null,null,null,null,null,null,null,null,null,null,null,null,null,null,null,null,null,null,null,null,"3344",4.0999999999999996,"PENTAERYTHRITE TETRANITRATE MIXTURE, DESENSITIZED, SOLID, N.O.S."]
[null,null,null,null,null,null,null,null,null,null,null,null,null,null,null,null,null,null,null,null,null,null,null,null,null,null,null,"3345",6.1,"PHENOXYACETIC ACID DERIVATIVE PESTICIDE, SOLID, TOXIC"]
[null,null,null,null,null,null,null,null,null,null,null,null,null,null,null,null,null,null,null,null,null,null,null,null,null,null,null,"3346",3,"PHENOXYACETIC ACID DERIVATIVE PESTICIDE, LIQUID, FLAMMABLE, TOXIC"]
[null,null,null,null,null,null,null,null,null,null,null,null,null,null,null,null,null,null,null,null,null,null,null,null,null,null,null,"3347",6.1,"PHENOXYACETIC ACID DERIVATIVE PESTICIDE, LIQUID, TOXIC, FLAMMABLE"]
[null,null,null,null,null,null,null,null,null,null,null,null,null,null,null,null,null,null,null,null,null,null,null,null,null,null,null,"3348",6.1,"PHENOXYACETIC ACID DERIVATIVE PESTICIDE, LIQUID, TOXIC"]
[null,null,null,null,null,null,null,null,null,null,null,null,null,null,null,null,null,null,null,null,null,null,null,null,null,null,null,"3349",6.1,"PYRETHROID PESTICIDE, SOLID, TOXIC"]
[null,null,null,null,null,null,null,null,null,null,null,null,null,null,null,null,null,null,null,null,null,null,null,null,null,null,null,"3350",3,"PYRETHROID PESTICIDE, LIQUID, FLAMMABLE, TOXIC"]
[null,null,null,null,null,null,null,null,null,null,null,null,null,null,null,null,null,null,null,null,null,null,null,null,null,null,null,"3351",6.1,"PYRETHROID PESTICIDE, LIQUID, TOXIC, FLAMMABLE"]
[null,null,null,null,null,null,null,null,null,null,null,null,null,null,null,null,null,null,null,null,null,null,null,null,null,null,null,"3352",6.1,"PYRETHROID PESTICIDE, LIQUID, TOXIC"]
[null,null,null,null,null,null,null,null,null,null,null,null,null,null,null,null,null,null,null,null,null,null,null,null,null,null,null,"3354",2.1,"INSECTICIDE GAS, FLAMMABLE, N.O.S."]
[null,null,null,null,null,null,null,null,null,null,null,null,null,null,null,null,null,null,null,null,null,null,null,null,null,null,null,"3355",2.2999999999999998,"INSECTICIDE GAS, TOXIC, FLAMMABLE, N.O.S."]
[null,null,null,null,null,null,null,null,null,null,null,null,null,null,null,null,null,null,null,null,null,null,null,null,null,null,null,"3356",5.0999999999999996,"OXYGEN GENERATOR, CHEMICAL"]
[null,null,null,null,null,null,null,null,null,null,null,null,null,null,null,null,null,null,null,null,null,null,null,null,null,null,null,"3357",3,"NITROGLYCERIN MIXTURE, DESENSITIZED, LIQUID, N.O.S."]
[null,null,null,null,null,null,null,null,null,null,null,null,null,null,null,null,null,null,null,null,null,null,null,null,null,null,null,"3358",2.1,"REFRIGERATING MACHINES"]
[null,null,null,null,null,null,null,null,null,null,null,null,null,null,null,null,null,null,null,null,null,null,null,null,null,null,null,"3359",9,"FUMIGATED CARGO TRANSPORT UNIT"]
[null,null,null,null,null,null,null,null,null,null,null,null,null,null,null,null,null,null,null,null,null,null,null,null,null,null,null,"3360",4.0999999999999996,"FIBRES, VEGETABLE, DRY"]
[null,null,null,null,null,null,null,null,null,null,null,null,null,null,null,null,null,null,null,null,null,null,null,null,null,null,null,"3361",6.1,"CHLOROSILANES, TOXIC, CORROSIVE, N.O.S."]
[null,null,null,null,null,null,null,null,null,null,null,null,null,null,null,null,null,null,null,null,null,null,null,null,null,null,null,"3362",6.1,"CHLOROSILANES, TOXIC, CORROSIVE, FLAMMABLE, N.O.S."]
[null,null,null,null,null,null,null,null,null,null,null,null,null,null,null,null,null,null,null,null,null,null,null,null,null,null,null,"3363",9,"DANGEROUS GOODS IN MACHINERY"]
[null,null,null,null,null,null,null,null,null,null,null,null,null,null,null,null,null,null,null,null,null,null,null,null,null,null,null,"3364",4.0999999999999996,"TRINITROPHENOL, WETTED"]
[null,null,null,null,null,null,null,null,null,null,null,null,null,null,null,null,null,null,null,null,null,null,null,null,null,null,null,"3365",4.0999999999999996,"TRINITROCHLOROBENZENE, WETTED"]
[null,null,null,null,null,null,null,null,null,null,null,null,null,null,null,null,null,null,null,null,null,null,null,null,null,null,null,"3366",4.0999999999999996,"TRINITROTOLUENE, WETTED"]
[null,null,null,null,null,null,null,null,null,null,null,null,null,null,null,null,null,null,null,null,null,null,null,null,null,null,null,"3367",4.0999999999999996,"TRINITROBENZENE, WETTED"]
[null,null,null,null,null,null,null,null,null,null,null,null,null,null,null,null,null,null,null,null,null,null,null,null,null,null,null,"3368",4.0999999999999996,"TRINITROBENZOIC ACID, WETTED"]
[null,null,null,null,null,null,null,null,null,null,null,null,null,null,null,null,null,null,null,null,null,null,null,null,null,null,null,"3369",4.0999999999999996,"SODIUM DINITRO-o-CRESOLATE, WETTED"]
[null,null,null,null,null,null,null,null,null,null,null,null,null,null,null,null,null,null,null,null,null,null,null,null,null,null,null,"3370",4.0999999999999996,"UREA NITRATE, WETTED"]
[null,null,null,null,null,null,null,null,null,null,null,null,null,null,null,null,null,null,null,null,null,null,null,null,null,null,null,"3371",3,"2-METHYLBUTANAL"]
[null,null,null,null,null,null,null,null,null,null,null,null,null,null,null,null,null,null,null,null,null,null,null,null,null,null,null,"3373",6.2,"BIOLOGICAL SUBSTANCE, CATEGORY B"]
[null,null,null,null,null,null,null,null,null,null,null,null,null,null,null,null,null,null,null,null,null,null,null,null,null,null,null,"3374",2.1,"ACETYLENE, SOLVENT FREE"]
[null,null,null,null,null,null,null,null,null,null,null,null,null,null,null,null,null,null,null,null,null,null,null,null,null,null,null,"3375",5.0999999999999996,"AMMONIUM NITRATE EMULSION"]
[null,null,null,null,null,null,null,null,null,null,null,null,null,null,null,null,null,null,null,null,null,null,null,null,null,null,null,"3376",4.0999999999999996,"4-NITROPHENYLHYDRAZINE"]
[null,null,null,null,null,null,null,null,null,null,null,null,null,null,null,null,null,null,null,null,null,null,null,null,null,null,null,"3377",5.0999999999999996,"SODIUM PERBORATE MONOHYDRATE"]
[null,null,null,null,null,null,null,null,null,null,null,null,null,null,null,null,null,null,null,null,null,null,null,null,null,null,null,"3378",5.0999999999999996,"SODIUM CARBONATE PEROXYHYDRATE"]
[null,null,null,null,null,null,null,null,null,null,null,null,null,null,null,null,null,null,null,null,null,null,null,null,null,null,null,"3379",3,"DESENSITIZED EXPLOSIVE, LIQUID, N.O.S."]
[null,null,null,null,null,null,null,null,null,null,null,null,null,null,null,null,null,null,null,null,null,null,null,null,null,null,null,"3380",4.0999999999999996,"DESENSITIZED EXPLOSIVE, SOLID, N.O.S."]
[null,null,null,null,null,null,null,null,null,null,null,null,null,null,null,null,null,null,null,null,null,null,null,null,null,null,null,"3381",6.1,"TOXIC BY INHALATION LIQUID, N.O.S."]
[null,null,null,null,null,null,null,null,null,null,null,null,null,null,null,null,null,null,null,null,null,null,null,null,null,null,null,"3382",6.1,"TOXIC BY INHALATION LIQUID, N.O.S."]
[null,null,null,null,null,null,null,null,null,null,null,null,null,null,null,null,null,null,null,null,null,null,null,null,null,null,null,"3383",6.1,"TOXIC BY INHALATION LIQUID, FLAMMABLE, N.O.S."]
[null,null,null,null,null,null,null,null,null,null,null,null,null,null,null,null,null,null,null,null,null,null,null,null,null,null,null,"3384",6.1,"TOXIC BY INHALATION LIQUID, FLAMMABLE, N.O.S."]
[null,null,null,null,null,null,null,null,null,null,null,null,null,null,null,null,null,null,null,null,null,null,null,null,null,null,null,"3385",6.1,"TOXIC BY INHALATION LIQUID, WATER-REACTIVE, N.O.S."]
[null,null,null,null,null,null,null,null,null,null,null,null,null,null,null,null,null,null,null,null,null,null,null,null,null,null,null,"3386",6.1,"TOXIC BY INHALATION LIQUID, WATER-REACTIVE, N.O.S."]
[null,null,null,null,null,null,null,null,null,null,null,null,null,null,null,null,null,null,null,null,null,null,null,null,null,null,null,"3387",6.1,"TOXIC BY INHALATION LIQUID, OXIDIZING, N.O.S."]
[null,null,null,null,null,null,null,null,null,null,null,null,null,null,null,null,null,null,null,null,null,null,null,null,null,null,null,"3388",6.1,"TOXIC BY INHALATION LIQUID, OXIDIZING, N.O.S."]
[null,null,null,null,null,null,null,null,null,null,null,null,null,null,null,null,null,null,null,null,null,null,null,null,null,null,null,"3389",6.1,"TOXIC BY INHALATION LIQUID, CORROSIVE, N.O.S."]
[null,null,null,null,null,null,null,null,null,null,null,null,null,null,null,null,null,null,null,null,null,null,null,null,null,null,null,"3390",6.1,"TOXIC BY INHALATION LIQUID, CORROSIVE, N.O.S."]
[null,null,null,null,null,null,null,null,null,null,null,null,null,null,null,null,null,null,null,null,null,null,null,null,null,null,null,"3391",4.2,"ORGANOMETALLIC SUBSTANCE, SOLID, PYROPHORIC"]
[null,null,null,null,null,null,null,null,null,null,null,null,null,null,null,null,null,null,null,null,null,null,null,null,null,null,null,"3392",4.2,"ORGANOMETALLIC SUBSTANCE, LIQUID, PYROPHORIC"]
[null,null,null,null,null,null,null,null,null,null,null,null,null,null,null,null,null,null,null,null,null,null,null,null,null,null,null,"3393",4.2,"ORGANOMETALLIC SUBSTANCE, SOLID, PYROPHORIC, WATER-REACTIVE"]
[null,null,null,null,null,null,null,null,null,null,null,null,null,null,null,null,null,null,null,null,null,null,null,null,null,null,null,"3394",4.2,"ORGANOMETALLIC SUBSTANCE, LIQUID, PYROPHORIC, WATER-REACTIVE"]
[null,null,null,null,null,null,null,null,null,null,null,null,null,null,null,null,null,null,null,null,null,null,null,null,null,null,null,"3395",4.3,"ORGANOMETALLIC SUBSTANCE, SOLID, WATER-REACTIVE"]
[null,null,null,null,null,null,null,null,null,null,null,null,null,null,null,null,null,null,null,null,null,null,null,null,null,null,null,"3396",4.3,"ORGANOMETALLIC SUBSTANCE, SOLID, WATER-REACTIVE, FLAMMABLE"]
[null,null,null,null,null,null,null,null,null,null,null,null,null,null,null,null,null,null,null,null,null,null,null,null,null,null,null,"3397",4.3,"ORGANOMETALLIC SUBSTANCE, SOLID, WATER-REACTIVE, SELF-HEATING"]
[null,null,null,null,null,null,null,null,null,null,null,null,null,null,null,null,null,null,null,null,null,null,null,null,null,null,null,"3398",4.3,"ORGANOMETALLIC SUBSTANCE, LIQUID, WATER-REACTIVE"]
[null,null,null,null,null,null,null,null,null,null,null,null,null,null,null,null,null,null,null,null,null,null,null,null,null,null,null,"3399",4.3,"ORGANOMETALLIC SUBSTANCE, LIQUID, WATER-REACTIVE, FLAMMABLE"]
[null,null,null,null,null,null,null,null,null,null,null,null,null,null,null,null,null,null,null,null,null,null,null,null,null,null,null,"3400",4.2,"ORGANOMETALLIC SUBSTANCE, SOLID, SELF-HEATING"]
[null,null,null,null,null,null,null,null,null,null,null,null,null,null,null,null,null,null,null,null,null,null,null,null,null,null,null,"3401",4.3,"ALKALI METAL AMALGAM, SOLID"]
[null,null,null,null,null,null,null,null,null,null,null,null,null,null,null,null,null,null,null,null,null,null,null,null,null,null,null,"3402",4.3,"ALKALINE EARTH METAL AMALGAM, SOLID"]
[null,null,null,null,null,null,null,null,null,null,null,null,null,null,null,null,null,null,null,null,null,null,null,null,null,null,null,"3403",4.3,"POTASSIUM METAL ALLOYS, SOLID"]
[null,null,null,null,null,null,null,null,null,null,null,null,null,null,null,null,null,null,null,null,null,null,null,null,null,null,null,"3404",4.3,"POTASSIUM SODIUM ALLOYS, SOLID"]
[null,null,null,null,null,null,null,null,null,null,null,null,null,null,null,null,null,null,null,null,null,null,null,null,null,null,null,"3405",5.0999999999999996,"BARIUM CHLORATE SOLUTION"]
[null,null,null,null,null,null,null,null,null,null,null,null,null,null,null,null,null,null,null,null,null,null,null,null,null,null,null,"3406",5.0999999999999996,"BARIUM PERCHLORATE SOLUTION"]
[null,null,null,null,null,null,null,null,null,null,null,null,null,null,null,null,null,null,null,null,null,null,null,null,null,null,null,"3407",5.0999999999999996,"CHLORATE AND MAGNESIUM CHLORIDE MIXTURE SOLUTION"]
[null,null,null,null,null,null,null,null,null,null,null,null,null,null,null,null,null,null,null,null,null,null,null,null,null,null,null,"3408",5.0999999999999996,"LEAD PERCHLORATE SOLUTION"]
[null,null,null,null,null,null,null,null,null,null,null,null,null,null,null,null,null,null,null,null,null,null,null,null,null,null,null,"3409",6.1,"CHLORONITROBENZENES, LIQUID"]
[null,null,null,null,null,null,null,null,null,null,null,null,null,null,null,null,null,null,null,null,null,null,null,null,null,null,null,"3410",6.1,"4-CHLORO-o-TOLUIDINE HYDROCHLORIDE SOLUTION"]
[null,null,null,null,null,null,null,null,null,null,null,null,null,null,null,null,null,null,null,null,null,null,null,null,null,null,null,"3411",6.1,"beta-NAPHTHYLAMINE SOLUTION"]
[null,null,null,null,null,null,null,null,null,null,null,null,null,null,null,null,null,null,null,null,null,null,null,null,null,null,null,"3412",8,"FORMIC ACID"]
[null,null,null,null,null,null,null,null,null,null,null,null,null,null,null,null,null,null,null,null,null,null,null,null,null,null,null,"3413",6.1,"POTASSIUM CYANIDE SOLUTION"]
[null,null,null,null,null,null,null,null,null,null,null,null,null,null,null,null,null,null,null,null,null,null,null,null,null,null,null,"3414",6.1,"SODIUM CYANIDE SOLUTION"]
[null,null,null,null,null,null,null,null,null,null,null,null,null,null,null,null,null,null,null,null,null,null,null,null,null,null,null,"3415",6.1,"SODIUM FLUORIDE SOLUTION"]
[null,null,null,null,null,null,null,null,null,null,null,null,null,null,null,null,null,null,null,null,null,null,null,null,null,null,null,"3416",6.1,"CHLOROACETOPHENONE, LIQUID"]
[null,null,null,null,null,null,null,null,null,null,null,null,null,null,null,null,null,null,null,null,null,null,null,null,null,null,null,"3417",6.1,"XYLYL BROMIDE, SOLID"]
[null,null,null,null,null,null,null,null,null,null,null,null,null,null,null,null,null,null,null,null,null,null,null,null,null,null,null,"3418",6.1,"2,4-TOLUYLENEDIAMINE SOLUTION"]
[null,null,null,null,null,null,null,null,null,null,null,null,null,null,null,null,null,null,null,null,null,null,null,null,null,null,null,"3419",8,"BORON TRIFLUORIDE ACETIC ACID COMPLEX, SOLID"]
[null,null,null,null,null,null,null,null,null,null,null,null,null,null,null,null,null,null,null,null,null,null,null,null,null,null,null,"3420",8,"BORON TRIFLUORIDE PROPIONIC ACID COMPLEX, SOLID"]
[null,null,null,null,null,null,null,null,null,null,null,null,null,null,null,null,null,null,null,null,null,null,null,null,null,null,null,"3421",8,"POTASSIUM HYDROGEN DIFLUORIDE SOLUTION"]
[null,null,null,null,null,null,null,null,null,null,null,null,null,null,null,null,null,null,null,null,null,null,null,null,null,null,null,"3422",6.1,"POTASSIUM FLUORIDE SOLUTION"]
[null,null,null,null,null,null,null,null,null,null,null,null,null,null,null,null,null,null,null,null,null,null,null,null,null,null,null,"3423",8,"TETRAMETHYLAMMONIUM HYDROXIDE, SOLID"]
[null,null,null,null,null,null,null,null,null,null,null,null,null,null,null,null,null,null,null,null,null,null,null,null,null,null,null,"3424",6.1,"AMMONIUM DINITRO-o-CRESOLATE SOLUTION"]
[null,null,null,null,null,null,null,null,null,null,null,null,null,null,null,null,null,null,null,null,null,null,null,null,null,null,null,"3425",8,"BROMOACETIC ACID, SOLID"]
[null,null,null,null,null,null,null,null,null,null,null,null,null,null,null,null,null,null,null,null,null,null,null,null,null,null,null,"3426",6.1,"ACRYLAMIDE SOLUTION"]
[null,null,null,null,null,null,null,null,null,null,null,null,null,null,null,null,null,null,null,null,null,null,null,null,null,null,null,"3427",6.1,"CHLOROBENZYL CHLORIDES, SOLID"]
[null,null,null,null,null,null,null,null,null,null,null,null,null,null,null,null,null,null,null,null,null,null,null,null,null,null,null,"3428",6.1,"3-CHLORO-4-METHYLPHENYL ISOCYANATE, SOLID"]
[null,null,null,null,null,null,null,null,null,null,null,null,null,null,null,null,null,null,null,null,null,null,null,null,null,null,null,"3429",6.1,"CHLOROTOLUIDINES, LIQUID"]
[null,null,null,null,null,null,null,null,null,null,null,null,null,null,null,null,null,null,null,null,null,null,null,null,null,null,null,"3430",6.1,"XYLENOLS, LIQUID"]
[null,null,null,null,null,null,null,null,null,null,null,null,null,null,null,null,null,null,null,null,null,null,null,null,null,null,null,"3431",6.1,"NITROBENZOTRIFLUORIDES, SOLID"]
[null,null,null,null,null,null,null,null,null,null,null,null,null,null,null,null,null,null,null,null,null,null,null,null,null,null,null,"3432",9,"POLYCHLORINATED BIPHENYLS, SOLID"]
[null,null,null,null,null,null,null,null,null,null,null,null,null,null,null,null,null,null,null,null,null,null,null,null,null,null,null,"3434",6.1,"NITROCRESOLS, LIQUID"]
[null,null,null,null,null,null,null,null,null,null,null,null,null,null,null,null,null,null,null,null,null,null,null,null,null,null,null,"3436",6.1,"HEXAFLUOROACETONE HYDRATE, SOLID"]
[null,null,null,null,null,null,null,null,null,null,null,null,null,null,null,null,null,null,null,null,null,null,null,null,null,null,null,"3437",6.1,"CHLOROCRESOLS, SOLID"]
[null,null,null,null,null,null,null,null,null,null,null,null,null,null,null,null,null,null,null,null,null,null,null,null,null,null,null,"3438",6.1,"alpha-METHYLBENZYL ALCOHOL, SOLID"]
[null,null,null,null,null,null,null,null,null,null,null,null,null,null,null,null,null,null,null,null,null,null,null,null,null,null,null,"3439",6.1,"NITRILES, SOLID, TOXIC, N.O.S."]
[null,null,null,null,null,null,null,null,null,null,null,null,null,null,null,null,null,null,null,null,null,null,null,null,null,null,null,"3440",6.1,"SELENIUM COMPOUND, LIQUID, N.O.S."]
[null,null,null,null,null,null,null,null,null,null,null,null,null,null,null,null,null,null,null,null,null,null,null,null,null,null,null,"3441",6.1,"CHLORODINITROBENZENES, SOLID"]
[null,null,null,null,null,null,null,null,null,null,null,null,null,null,null,null,null,null,null,null,null,null,null,null,null,null,null,"3442",6.1,"DICHLOROANILINES, SOLID"]
[null,null,null,null,null,null,null,null,null,null,null,null,null,null,null,null,null,null,null,null,null,null,null,null,null,null,null,"3443",6.1,"DINITROBENZENES, SOLID"]
[null,null,null,null,null,null,null,null,null,null,null,null,null,null,null,null,null,null,null,null,null,null,null,null,null,null,null,"3444",6.1,"NICOTINE HYDROCHLORIDE, SOLID"]
[null,null,null,null,null,null,null,null,null,null,null,null,null,null,null,null,null,null,null,null,null,null,null,null,null,null,null,"3445",6.1,"NICOTINE SULPHATE, SOLID"]
[null,null,null,null,null,null,null,null,null,null,null,null,null,null,null,null,null,null,null,null,null,null,null,null,null,null,null,"3446",6.1,"NITROTOLUENES, SOLID"]
[null,null,null,null,null,null,null,null,null,null,null,null,null,null,null,null,null,null,null,null,null,null,null,null,null,null,null,"3447",6.1,"NITROXYLENES, SOLID"]
[null,null,null,null,null,null,null,null,null,null,null,null,null,null,null,null,null,null,null,null,null,null,null,null,null,null,null,"3448",6.1,"TEAR GAS SUBSTANCE, SOLID, N.O.S."]
[null,null,null,null,null,null,null,null,null,null,null,null,null,null,null,null,null,null,null,null,null,null,null,null,null,null,null,"3449",6.1,"BROMOBENZYL CYANIDES, SOLID"]
[null,null,null,null,null,null,null,null,null,null,null,null,null,null,null,null,null,null,null,null,null,null,null,null,null,null,null,"3450",6.1,"DIPHENYLCHLOROARSINE, SOLID"]
[null,null,null,null,null,null,null,null,null,null,null,null,null,null,null,null,null,null,null,null,null,null,null,null,null,null,null,"3451",6.1,"TOLUIDINES, SOLID"]
[null,null,null,null,null,null,null,null,null,null,null,null,null,null,null,null,null,null,null,null,null,null,null,null,null,null,null,"3452",6.1,"XYLIDINES, SOLID"]
[null,null,null,null,null,null,null,null,null,null,null,null,null,null,null,null,null,null,null,null,null,null,null,null,null,null,null,"3453",8,"PHOSPHORIC ACID, SOLID"]
[null,null,null,null,null,null,null,null,null,null,null,null,null,null,null,null,null,null,null,null,null,null,null,null,null,null,null,"3454",6.1,"DINITROTOLUENES, SOLID"]
[null,null,null,null,null,null,null,null,null,null,null,null,null,null,null,null,null,null,null,null,null,null,null,null,null,null,null,"3455",6.1,"CRESOLS, SOLID"]
[null,null,null,null,null,null,null,null,null,null,null,null,null,null,null,null,null,null,null,null,null,null,null,null,null,null,null,"3456",8,"NITROSYLSULPHURIC ACID, SOLID"]
[null,null,null,null,null,null,null,null,null,null,null,null,null,null,null,null,null,null,null,null,null,null,null,null,null,null,null,"3457",6.1,"CHLORONITROTOLUENES, SOLID"]
[null,null,null,null,null,null,null,null,null,null,null,null,null,null,null,null,null,null,null,null,null,null,null,null,null,null,null,"3458",6.1,"NITROANISOLES, SOLID"]
[null,null,null,null,null,null,null,null,null,null,null,null,null,null,null,null,null,null,null,null,null,null,null,null,null,null,null,"3459",6.1,"NITROBROMOBENZENES, SOLID"]
[null,null,null,null,null,null,null,null,null,null,null,null,null,null,null,null,null,null,null,null,null,null,null,null,null,null,null,"3460",6.1,"N-ETHYLBENZYLTOLUIDINES, SOLID"]
[null,null,null,null,null,null,null,null,null,null,null,null,null,null,null,null,null,null,null,null,null,null,null,null,null,null,null,"3462",6.1,"TOXINS, EXTRACTED FROM LIVING SOURCES, SOLID, N.O.S."]
[null,null,null,null,null,null,null,null,null,null,null,null,null,null,null,null,null,null,null,null,null,null,null,null,null,null,null,"3463",8,"PROPIONIC ACID"]
[null,null,null,null,null,null,null,null,null,null,null,null,null,null,null,null,null,null,null,null,null,null,null,null,null,null,null,"3464",6.1,"ORGANOPHOSPHORUS COMPOUND, SOLID, TOXIC, N.O.S."]
[null,null,null,null,null,null,null,null,null,null,null,null,null,null,null,null,null,null,null,null,null,null,null,null,null,null,null,"3465",6.1,"ORGANOARSENIC COMPOUND, SOLID, N.O.S."]
[null,null,null,null,null,null,null,null,null,null,null,null,null,null,null,null,null,null,null,null,null,null,null,null,null,null,null,"3466",6.1,"METAL CARBONYLS, SOLID, N.O.S."]
[null,null,null,null,null,null,null,null,null,null,null,null,null,null,null,null,null,null,null,null,null,null,null,null,null,null,null,"3467",6.1,"ORGANOMETALLIC COMPOUND, SOLID, TOXIC, N.O.S."]
[null,null,null,null,null,null,null,null,null,null,null,null,null,null,null,null,null,null,null,null,null,null,null,null,null,null,null,"3468",2.1,"HYDROGEN IN A METAL HYDRIDE STORAGE SYSTEM"]
[null,null,null,null,null,null,null,null,null,null,null,null,null,null,null,null,null,null,null,null,null,null,null,null,null,null,null,"3469",3,"PAINT, FLAMMABLE, CORROSIVE"]
[null,null,null,null,null,null,null,null,null,null,null,null,null,null,null,null,null,null,null,null,null,null,null,null,null,null,null,"3470",8,"PAINT, CORROSIVE, FLAMMABLE"]
[null,null,null,null,null,null,null,null,null,null,null,null,null,null,null,null,null,null,null,null,null,null,null,null,null,null,null,"3471",8,"HYDROGENDIFLUORIDES SOLUTION, N.O.S."]
[null,null,null,null,null,null,null,null,null,null,null,null,null,null,null,null,null,null,null,null,null,null,null,null,null,null,null,"3472",8,"CROTONIC ACID, LIQUID"]
[null,null,null,null,null,null,null,null,null,null,null,null,null,null,null,null,null,null,null,null,null,null,null,null,null,null,null,"3473",3,"FUEL CELL CARTRIDGES"]
[null,null,null,null,null,null,null,null,null,null,null,null,null,null,null,null,null,null,null,null,null,null,null,null,null,null,null,"3474",4.0999999999999996,"1-HYDROXYBENZOTRIAZOLE MONOHYDRATE"]
[null,null,null,null,null,null,null,null,null,null,null,null,null,null,null,null,null,null,null,null,null,null,null,null,null,null,null,"3475",3,"ETHANOL AND GASOLINE MIXTURE"]
[null,null,null,null,null,null,null,null,null,null,null,null,null,null,null,null,null,null,null,null,null,null,null,null,null,null,null,"3476",4.3,"FUEL CELL CARTRIDGES"]
[null,null,null,null,null,null,null,null,null,null,null,null,null,null,null,null,null,null,null,null,null,null,null,null,null,null,null,"3477",8,"FUEL CELL CARTRIDGES"]
[null,null,null,null,null,null,null,null,null,null,null,null,null,null,null,null,null,null,null,null,null,null,null,null,null,null,null,"3478",2.1,"FUEL CELL CARTRIDGES"]
[null,null,null,null,null,null,null,null,null,null,null,null,null,null,null,null,null,null,null,null,null,null,null,null,null,null,null,"3479",2.1,"FUEL CELL CARTRIDGES"]
[null,null,null,null,null,null,null,null,null,null,null,null,null,null,null,null,null,null,null,null,null,null,null,null,null,null,null,"3480",9,"LITHIUM ION BATTERIES"]
[null,null,null,null,null,null,null,null,null,null,null,null,null,null,null,null,null,null,null,null,null,null,null,null,null,null,null,"3481",9,"LITHIUM ION BATTERIES CONTAINED IN EQUIPMENT"]
[null,null,null,null,null,null,null,null,null,null,null,null,null,null,null,null,null,null,null,null,null,null,null,null,null,null,null,"3482",4.3,"ALKALI METAL DISPERSION, FLAMMABLE"]
[null,null,null,null,null,null,null,null,null,null,null,null,null,null,null,null,null,null,null,null,null,null,null,null,null,null,null,"3483",6.1,"MOTOR FUEL ANTI-KNOCK MIXTURE, FLAMMABLE"]
[null,null,null,null,null,null,null,null,null,null,null,null,null,null,null,null,null,null,null,null,null,null,null,null,null,null,null,"3484",8,"HYDRAZINE AQUEOUS SOLUTION, FLAMMABLE"]
[null,null,null,null,null,null,null,null,null,null,null,null,null,null,null,null,null,null,null,null,null,null,null,null,null,null,null,"3485",5.0999999999999996,"CALCIUM HYPOCHLORITE, DRY, CORROSIVE"]
[null,null,null,null,null,null,null,null,null,null,null,null,null,null,null,null,null,null,null,null,null,null,null,null,null,null,null,"3486",5.0999999999999996,"CALCIUM HYPOCHLORITE MIXTURE, DRY, CORROSIVE"]
[null,null,null,null,null,null,null,null,null,null,null,null,null,null,null,null,null,null,null,null,null,null,null,null,null,null,null,"3487",5.0999999999999996,"CALCIUM HYPOCHLORITE, HYDRATED, CORROSIVE"]
[null,null,null,null,null,null,null,null,null,null,null,null,null,null,null,null,null,null,null,null,null,null,null,null,null,null,null,"3488",6.1,"TOXIC BY INHALATION LIQUID, FLAMMABLE, CORROSIVE, N.O.S."]
[null,null,null,null,null,null,null,null,null,null,null,null,null,null,null,null,null,null,null,null,null,null,null,null,null,null,null,"3489",6.1,"TOXIC BY INHALATION LIQUID, FLAMMABLE, CORROSIVE, N.O.S."]
[null,null,null,null,null,null,null,null,null,null,null,null,null,null,null,null,null,null,null,null,null,null,null,null,null,null,null,"3490",6.1,"TOXIC BY INHALATION LIQUID, WATER-REACTIVE, FLAMMABLE, N.O.S."]
[null,null,null,null,null,null,null,null,null,null,null,null,null,null,null,null,null,null,null,null,null,null,null,null,null,null,null,"3491",6.1,"TOXIC BY INHALATION LIQUID, WATER-REACTIVE, FLAMMABLE, N.O.S."]
[null,null,null,null,null,null,null,null,null,null,null,null,null,null,null,null,null,null,null,null,null,null,null,null,null,null,null,"3494",3,"PETROLEUM SOUR CRUDE OIL, FLAMMABLE, TOXIC"]
[null,null,null,null,null,null,null,null,null,null,null,null,null,null,null,null,null,null,null,null,null,null,null,null,null,null,null,"3495",8,"IODINE"]
[null,null,null,null,null,null,null,null,null,null,null,null,null,null,null,null,null,null,null,null,null,null,null,null,null,null,null,"3496",9,"BATTERIES, NICKEL-METAL HYDRIDE"]
[null,null,null,null,null,null,null,null,null,null,null,null,null,null,null,null,null,null,null,null,null,null,null,null,null,null,null,"3497",4.2,"KRILL MEAL"]
[null,null,null,null,null,null,null,null,null,null,null,null,null,null,null,null,null,null,null,null,null,null,null,null,null,null,null,"3498",8,"IODINE MONOCHLORIDE, LIQUID"]
[null,null,null,null,null,null,null,null,null,null,null,null,null,null,null,null,null,null,null,null,null,null,null,null,null,null,null,"3499",9,"CAPACITOR, ELECTRIC DOUBLE LAYER"]
[null,null,null,null,null,null,null,null,null,null,null,null,null,null,null,null,null,null,null,null,null,null,null,null,null,null,null,"3500",2.2000000000000002,"CHEMICAL UNDER PRESSURE, N.O.S."]
[null,null,null,null,null,null,null,null,null,null,null,null,null,null,null,null,null,null,null,null,null,null,null,null,null,null,null,"3501",2.1,"CHEMICAL UNDER PRESSURE, FLAMMABLE, N.O.S."]
[null,null,null,null,null,null,null,null,null,null,null,null,null,null,null,null,null,null,null,null,null,null,null,null,null,null,null,"3502",2.2000000000000002,"CHEMICAL UNDER PRESSURE, TOXIC, N.O.S."]
[null,null,null,null,null,null,null,null,null,null,null,null,null,null,null,null,null,null,null,null,null,null,null,null,null,null,null,"3503",2.2000000000000002,"CHEMICAL UNDER PRESSURE, CORROSIVE, N.O.S."]
[null,null,null,null,null,null,null,null,null,null,null,null,null,null,null,null,null,null,null,null,null,null,null,null,null,null,null,"3504",2.1,"CHEMICAL UNDER PRESSURE, FLAMMABLE, TOXIC, N.O.S."]
[null,null,null,null,null,null,null,null,null,null,null,null,null,null,null,null,null,null,null,null,null,null,null,null,null,null,null,"3505",2.1,"CHEMICAL UNDER PRESSURE, FLAMMABLE, CORROSIVE, N.O.S."]
[null,null,null,null,null,null,null,null,null,null,null,null,null,null,null,null,null,null,null,null,null,null,null,null,null,null,null,"3506",8,"MERCURY CONTAINED IN MANUFACTURED ARTICLES"]
[null,null,null,null,null,null,null,null,null,null,null,null,null,null,null,null,null,null,null,null,null,null,null,null,null,null,null,"3507",8,"URANIUM HEXAFLUORIDE, RADIOACTIVE MATERIAL, EXCEPTED PACKAGE"]
[null,null,null,null,null,null,null,null,null,null,null,null,null,null,null,null,null,null,null,null,null,null,null,null,null,null,null,"3508",9,"CAPACITOR, ASYMMETRIC"]
[null,null,null,null,null,null,null,null,null,null,null,null,null,null,null,null,null,null,null,null,null,null,null,null,null,null,null,"3509",9,"PACKAGINGS, DISCARDED, EMPTY, UNCLEANED"]
[null,null,null,null,null,null,null,null,null,null,null,null,null,null,null,null,null,null,null,null,null,null,null,null,null,null,null,"3510",2.1,"ADSORBED GAS, FLAMMABLE, N.O.S."]
[null,null,null,null,null,null,null,null,null,null,null,null,null,null,null,null,null,null,null,null,null,null,null,null,null,null,null,"3511",2.2000000000000002,"ADSORBED GAS, N.O.S."]
[null,null,null,null,null,null,null,null,null,null,null,null,null,null,null,null,null,null,null,null,null,null,null,null,null,null,null,"3512",2.2999999999999998,"ADSORBED GAS, TOXIC, N.O.S."]
[null,null,null,null,null,null,null,null,null,null,null,null,null,null,null,null,null,null,null,null,null,null,null,null,null,null,null,"3513",2.2000000000000002,"ADSORBED GAS, OXIDIZING, N.O.S."]
[null,null,null,null,null,null,null,null,null,null,null,null,null,null,null,null,null,null,null,null,null,null,null,null,null,null,null,"3514",2.2999999999999998,"ADSORBED GAS, TOXIC, FLAMMABLE, N.O.S."]
[null,null,null,null,null,null,null,null,null,null,null,null,null,null,null,null,null,null,null,null,null,null,null,null,null,null,null,"3515",2.2999999999999998,"ADSORBED GAS, TOXIC, OXIDIZING, N.O.S."]
[null,null,null,null,null,null,null,null,null,null,null,null,null,null,null,null,null,null,null,null,null,null,null,null,null,null,null,"3516",2.2999999999999998,"ADSORBED GAS, TOXIC, CORROSIVE, N.O.S."]
[null,null,null,null,null,null,null,null,null,null,null,null,null,null,null,null,null,null,null,null,null,null,null,null,null,null,null,"3517",2.2999999999999998,"ADSORBED GAS, TOXIC, FLAMMABLE, CORROSIVE, N.O.S."]
[null,null,null,null,null,null,null,null,null,null,null,null,null,null,null,null,null,null,null,null,null,null,null,null,null,null,null,"3518",2.2999999999999998,"ADSORBED GAS, TOXIC, OXIDIZING, CORROSIVE, N.O.S."]
[null,null,null,null,null,null,null,null,null,null,null,null,null,null,null,null,null,null,null,null,null,null,null,null,null,null,null,"3519",2.2999999999999998,"BORON TRIFLUORIDE, ADSORBED"]
[null,null,null,null,null,null,null,null,null,null,null,null,null,null,null,null,null,null,null,null,null,null,null,null,null,null,null,"3520",2.2999999999999998,"CHLORINE, ADSORBED"]
[null,null,null,null,null,null,null,null,null,null,null,null,null,null,null,null,null,null,null,null,null,null,null,null,null,null,null,"3521",2.2999999999999998,"SILICON TETRAFLUORIDE, ADSORBED"]
[null,null,null,null,null,null,null,null,null,null,null,null,null,null,null,null,null,null,null,null,null,null,null,null,null,null,null,"3522",2.2999999999999998,"ARSINE, ADSORBED"]
[null,null,null,null,null,null,null,null,null,null,null,null,null,null,null,null,null,null,null,null,null,null,null,null,null,null,null,"3523",2.2999999999999998,"GERMANE, ADSORBED"]
[null,null,null,null,null,null,null,null,null,null,null,null,null,null,null,null,null,null,null,null,null,null,null,null,null,null,null,"3524",2.2999999999999998,"PHOSPHORUS PENTAFLUORIDE, ADSORBED"]
[null,null,null,null,null,null,null,null,null,null,null,null,null,null,null,null,null,null,null,null,null,null,null,null,null,null,null,"3525",2.2999999999999998,"PHOSPHINE, ADSORBED"]
[null,null,null,null,null,null,null,null,null,null,null,null,null,null,null,null,null,null,null,null,null,null,null,null,null,null,null,"3526",2.2999999999999998,"HYDROGEN SELENIDE, ADSORBED"]